Workbook

Sheet CF (hidden)
B2: CONDITIONAL FORMATTING MAP
F3: =INDEX(dms_CF_3.6.1, MATCH(dms_TradingName,dms_CF_TradingName))="Y" -> FALSE | G3: =INDEX(dms_CF_3.6.5, MATCH(dms_TradingName,dms_CF_TradingName))="Y" | H3: =INDEX(dms_CF_3.6.6, MATCH(dms_TradingName,dms_CF_TradingName))="Y" -> FALSE | I3: =INDEX(dms_CF_3.6.7.1, MATCH(dms_TradingName,dms_CF_TradingName))="Y" | J3: =INDEX(dms_CF_3.6.7.2, MATCH(dms_TradingName,dms_CF_TradingName))="Y" | K3: =INDEX(dms_CF_3.6.7.3, MATCH(dms_TradingName,dms_CF_TradingName))="Y" | L3: =INDEX(dms_CF_3.6.7.4, MATCH(dms_TradingName,dms_CF_TradingName))="Y" | M3: =INDEX(dms_CF_4.1, MATCH(dms_TradingName,dms_CF_TradingName))="Y" | N3: =INDEX(dms_CF_6.6.1, MATCH(dms_TradingName,dms_CF_TradingName))="Y" | O3: =INDEX(dms_CF_6.8, MATCH(dms_TradingName,dms_CF_TradingName))="Y" | P3: =INDEX(dms_CF_7.12, MATCH(dms_TradingName,dms_CF_TradingName))="Y" | Q3: =INDEX(dms_CF_8.1_A, MATCH(dms_TradingName,dms_CF_TradingName))="Y" | R3: =INDEX(dms_CF_8.1_B, MATCH(dms_TradingName,dms_CF_TradingName))="Y" | S3: =INDEX(dms_CF_8.1_Neg, MATCH(dms_TradingName,dms_CF_TradingName))="Y"
B4: dms_CF_TradingName | C4: JurisdictionList | D4: Sector | E4: Segment | F4: dms_CF_3.6.1 | G4: dms_CF_3.6.5 | H4: dms_CF_3.6.6 | I4: dms_CF_3.6.7.1 | J4: dms_CF_3.6.7.2 | K4: dms_CF_3.6.7.3 | L4: dms_CF_3.6.7.4 | M4: dms_CF_4.1 | N4: dms_CF_6.6.1 | O4: dms_CF_6.8 | P4: dms_CF_7.12 | Q4: dms_CF_8.1_A | R4: dms_CF_8.1_B | S4: dms_CF_8.1_Neg | T4: Spare1 | U4: Spare2
B5: ActewAGL Distribution | C5: ACT | D5: Electricity | E5: Distribution | G5: Y | I5: Y | J5: Y | K5: N | L5: Y | M5: Y | N5: N | O5: Y | P5: Y | Q5: N | R5: Y | S5: Y | T5: N | U5: N
B6: Ausgrid | C6: NSW | D6: Electricity | E6: Distribution | G6: Y | I6: N | J6: N | K6: N | L6: Y | M6: Y | N6: N | O6: Y | P6: Y | Q6: N | R6: Y | S6: Y | T6: N | U6: N
B7: AusNet (D) | C7: Vic | D7: Electricity | E7: Distribution | G7: N | I7: N | J7: N | K7: N | L7: N | M7: Y | N7: N | O7: Y | P7: N | Q7: N | R7: N | S7: Y | T7: N | U7: N
B8: AusNet (T) | C8: Vic | D8: Electricity | E8: Transmission | G8: N | I8: N | J8: N | K8: N | L8: N | M8: Y | N8: N | O8: Y | P8: N | Q8: N | R8: N | S8: Y | T8: N | U8: N
B9: CitiPower | C9: Vic | D9: Electricity | E9: Distribution | G9: N | I9: N | J9: N | K9: N | L9: N | M9: Y | N9: N | O9: Y | P9: N | Q9: N | R9: N | S9: Y | T9: N | U9: N
B10: Directlink | C10: Qld | D10: Electricity | E10: Transmission | G10: N | I10: N | J10: N | K10: N | L10: N | M10: Y | N10: N | O10: Y | P10: N | Q10: N | R10: Y | S10: Y | T10: N | U10: N
B11: ElectraNet | C11: SA | D11: Electricity | E11: Transmission | G11: N | I11: N | J11: N | K11: N | L11: N | M11: Y | N11: N | O11: Y | P11: N | Q11: N | R11: Y | S11: Y | T11: N | U11: N
B12: Endeavour Energy | C12: NSW | D12: Electricity | E12: Distribution | G12: Y | I12: N | J12: N | K12: N | L12: Y | M12: Y | N12: N | O12: Y | P12: Y | Q12: N | R12: Y | S12: Y | T12: N | U12: N
B13: Energex | C13: Qld | D13: Electricity | E13: Distribution | G13: Y | I13: N | J13: N | K13: N | L13: N | M13: Y | N13: N | O13: Y | P13: Y | Q13: N | R13: Y | S13: Y | T13: N | U13: N
B14: Ergon Energy | C14: Qld | D14: Electricity | E14: Distribution | G14: Y | I14: N | J14: N | K14: N | L14: N | M14: Y | N14: N | O14: Y | P14: Y | Q14: N | R14: Y | S14: Y | T14: N | U14: N
B15: Essential Energy | C15: NSW | D15: Electricity | E15: Distribution | G15: Y | I15: N | J15: N | K15: N | L15: Y | M15: Y | N15: N | O15: Y | P15: Y | Q15: N | R15: Y | S15: Y | T15: N | U15: N
B16: Jemena Electricity | C16: Vic | D16: Electricity | E16: Distribution | G16: N | I16: N | J16: N | K16: N | L16: N | M16: Y | N16: N | O16: Y | P16: N | Q16: N | R16: N | S16: Y | T16: N | U16: N
B17: Murraylink | C17: SA | D17: Electricity | E17: Transmission | G17: N | I17: N | J17: N | K17: N | L17: N | M17: Y | N17: N | O17: Y | P17: N | Q17: N | R17: Y | S17: Y | T17: N | U17: N
B18: Power and Water | C18: NT | D18: Electricity | E18: Distribution | G18: N | I18: N | J18: Y | K18: N | L18: N | M18: Y | N18: Y | O18: Y | P18: Y | Q18: N | R18: Y | S18: Y | T18: N | U18: N
B19: Powercor Australia | C19: Vic | D19: Electricity | E19: Distribution | G19: N | I19: N | J19: N | K19: N | L19: N | M19: Y | N19: N | O19: Y | P19: N | Q19: N | R19: N | S19: Y | T19: N | U19: N
B20: Powerlink | C20: Qld | D20: Electricity | E20: Transmission | G20: N | I20: N | J20: N | K20: N | L20: N | M20: Y | N20: N | O20: Y | P20: N | Q20: N | R20: Y | S20: Y | T20: N | U20: N
B21: SA Power Networks | C21: SA | D21: Electricity | E21: Distribution | G21: Y | I21: N | J21: N | K21: N | L21: N | M21: Y | N21: N | O21: Y | P21: Y | Q21: Y | R21: Y | S21: N | T21: N | U21: N
B22: TasNetworks (D) | C22: Tas | D22: Electricity | E22: Distribution | G22: Y | I22: N | J22: N | K22: N | L22: N | M22: Y | N22: N | O22: Y | P22: Y | Q22: N | R22: Y | S22: Y | T22: N | U22: N
B23: TasNetworks (T) | C23: Tas | D23: Electricity | E23: Transmission | G23: N | I23: N | J23: N | K23: N | L23: N | M23: Y | N23: N | O23: Y | P23: N | Q23: N | R23: Y | S23: Y | T23: N | U23: N
B24: TransGrid | C24: NSW | D24: Electricity | E24: Transmission | G24: N | I24: N | J24: N | K24: N | L24: N | M24: Y | N24: N | O24: Y | P24: N | Q24: N | R24: Y | S24: Y | T24: N | U24: N
B25: United Energy | C25: Vic | D25: Electricity | E25: Distribution | G25: N | I25: N | J25: N | K25: N | L25: N | M25: Y | N25: N | O25: Y | P25: N | Q25: N | R25: N | S25: Y | T25: N | U25: N
C124: 0 | E124: =IFERROR(IF(dms_060801_StartCell<>"",IF(dms_Model="ARR",(LOOKUP(2,1/(dms_060801_01_Values<>""),(ROW(dms_060801_01_Values)))),"not an ARR"),0),"0")
C125: =IFERROR(IF(dms_Model="ARR",(MAX(0,dms_0608_LastRow-dms_0608_OffsetRows)),"not an ARR"),"0") -> not an ARR | E125: =IFERROR(IF(dms_Model="ARR",(MAX(0,dms_0608_LastRow-dms_0608_OffsetRows)),"not an ARR"),"0")

Sheet AER only (hidden)
B1: Data in these columns used for data validation and database purposes.
B2: Date last modified: | C2: 2017-01-16 | D2: added (Albury and Victora) for AGN
C3: 2016-10-17 | D3: updated TransGrid's correct legal name, corrected TasNetworks (T) to June financial year
C4: 2017-02-01 | D4: inserted Power and Water, added NRs (dms_FeederCat_1 and dms_FeederCat_2)
C5: 2017-03-03 | D5: inserted AEMO as a business | AB5: FOR ELECTRICITY BUSINESSES ONLY
C6: 2018-03-28 | D6: major changes to accommodate STPIS
C7: Template Version | D7: 5 | AB7: Feeder Types | AF7: TasNetworks (D) | AG7: MAIFI flag | AH7: Feeder Names
AB9: CBD | AC9: Urban | AD9: Short rural | AE9: long rural | AF9: EXTRA
B10: dms_TradingName_List | C10: dms_TradingNameFull_List | D10: dms_ABN_List | E10: dms_JurisdictionList | F10: dms_Sector_List | G10: dms_Segment_List | H10: dms_FormControl_List | I10: dms_RPT_List | J10: dms_RPTMonth_List | K10: dms_CRCPlength_List | L10: dms_FRCPlength_List | M10: dms_663_List | N10: dms_DeterminationRef_List | O10: dms_Addr1_List | P10: dms_Addr2_List | Q10: dms_Suburb_List | R10: dms_State_List | S10: dms_PostCode_List | T10: dms_PAddr1_List | U10: dms_PAddr2_List | V10: dms_PSuburb_List | W10: dms_PState_List | X10: dms_PPostCode_List | Y10: dms_ContactName1_List | Z10: dms_ContactPh1_List | AA10: dms_ContactEmail_List | AB10: dms_CBD_flag | AC10: dms_Urban_flag | AD10: dms_ShortRural_flag | AE10: dms_LongRural_flag | AF10: dms_FeederType_5_flag | AG10: dms_MAIFI_flag_List | AH10: dms_FeederName_1 | AI10: dms_FeederName_2 | AJ10: dms_FeederName_3 | AK10: dms_FeederName_4 | AL10: dms_FeederName_5 | AM10: dms_Public_Lighting_List | AN10: Column1
B11: ActewAGL Distribution | C11: ActewAGL Distribution | D11: 76670568688 | E11: ACT | F11: Electricity | G11: Distribution | H11: Revenue cap | I11: Financial | J11: June | K11: 5 | L11: 5 | M11: 5 | N11: 2014-19 Distribution Determination | O11: 40 Bunda Street | Q11: CANBERRA | R11: ACT | S11: 2600 | T11: GPO BOX 366 | V11: CANBERRA | W11: ACT | X11: 2601 | Y11: Robert Walker | Z11: 02 6248 3847 | AA11: robert.walker@actewagle.com.au | AB11: NO | AC11: YES | AD11: YES | AE11: NO | AF11: NO | AG11: NO | AH11: CBD | AI11: Urban | AJ11: Short rural | AK11: Long rural | AM11: YES | AN11: ActewAGL Distribution
B12: ActewAGL Distribution (Tx Assets) | C12: ActewAGL Distribution (Tx Assets) | D12: 76670568688 | E12: ACT | F12: Electricity | G12: Distribution | H12: Revenue cap | I12: Financial | J12: June | K12: 5 | L12: 5 | M12: 5 | N12: distribution determination | O12: 40 Bunda Street | Q12: CANBERRA | R12: ACT | S12: 2600 | T12: GPO BOX 366 | V12: CANBERRA | W12: ACT | X12: 2601 | Y12: Robert Walker | Z12: 02 6248 3847 | AA12: robert.walker@actewagle.com.au | AB12: NO | AC12: YES | AD12: YES | AE12: NO | AF12: NO | AG12: NO | AH12: CBD | AI12: Urban | AJ12: Short rural | AK12: Long rural | AM12: NO | AN12: ActewAGL Distribution (Tx Assets)
B13: ActewAGL Gas | C13: ActewAGL Gas | D13: 76670568688 | E13: ACT | F13: Gas | G13: Distribution | H13: Weighted average price cap | I13: Financial | J13: June | K13: 5 | L13: 5 | M13: x | O13: 40 Bunda Street | Q13: CANBERRA | R13: ACT | S13: 2600 | T13: GPO BOX 366 | V13: CANBERRA | W13: ACT | X13: 2601 | Y13: Philip Deamer | Z13: 02 6248 3438 | AA13: GasAAReview@actewagl.com.au | AB13: NO | AC13: NO | AD13: NO | AE13: NO | AF13: NO | AG13: - | AH13: CBD | AI13: Urban | AJ13: Short rural | AK13: Long rural | AM13: NO | AN13: ActewAGL Gas
B14: AEMO | C14: Australian Energy Market Operator Ltd | D14: 94072010327 | E14: Vic | F14: Electricity | G14: Transmission | H14: - | I14: Financial | J14: March | K14: 5 | L14: 5 | M14: x | N14: - | O14: Level 22 | P14: 530 Collins Street | Q14: MELBOURNE | R14: VIC | S14: 3000 | T14: GPO Box 2008 | V14: MELBOURNE | W14: VIC | X14: 3001 | AB14: NO | AC14: NO | AD14: NO | AE14: NO | AF14: NO | AG14: - | AH14: CBD | AI14: Urban | AJ14: Short rural | AK14: Long rural | AM14: NO | AN14: AEMO
B15: AGN (Albury and Victoria) | C15: Australian Gas Networks Limited (reporting data for Albury and Victoria) | D15: 19078551685 | E15: Vic | F15: Gas | G15: Distribution | H15: Weighted average price cap | I15: Calendar | J15: December | K15: 5 | L15: 5 | M15: x | O15: Level 6 | P15: 400 King William Street | Q15: ADELAIDE | R15: SA | S15: 5000 | T15: PO Box 6468 | U15: Halifax Street | V15: ADELAIDE | W15: SA | X15: 5000 | Y15: Craig de Laine | Z15: 08 8418 1129 | AA15: craig.delaine@agn.com.au | AB15: NO | AC15: NO | AD15: NO | AE15: NO | AF15: NO | AG15: - | AH15: CBD | AI15: Urban | AJ15: Short rural | AK15: Long rural | AM15: NO | AN15: AGN (Albury)
B16: AGN (Albury) | C16: Australian Gas Networks Limited (reporting data for Albury) | D16: 19078551685 | E16: Vic | F16: Gas | G16: Distribution | H16: Weighted average price cap | I16: Calendar | J16: December | K16: 5 | L16: 5 | M16: x | O16: Level 6 | P16: 400 King William Street | Q16: ADELAIDE | R16: SA | S16: 5000 | T16: PO Box 6468 | U16: Halifax Street | V16: ADELAIDE | W16: SA | X16: 5000 | Y16: Craig de Laine | Z16: 08 8418 1129 | AA16: craig.delaine@agn.com.au | AB16: NO | AC16: NO | AD16: NO | AE16: NO | AF16: NO | AG16: - | AH16: CBD | AI16: Urban | AJ16: Short rural | AK16: Long rural | AM16: NO
B17: AGN (SA) | C17: Australian Gas Networks Limited (reporting data for SA) | D17: 19078551685 | E17: SA | F17: Gas | G17: Distribution | H17: Weighted average price cap | I17: Financial | J17: June | K17: 5 | L17: 5 | M17: 5 | N17: distribution determination | O17: Level 6 | P17: 400 King William Street | Q17: ADELAIDE | R17: SA | S17: 5000 | T17: PO Box 6468 | U17: Halifax Street | V17: ADELAIDE | W17: SA | X17: 5000 | Y17: Craig de Laine | Z17: 08 8418 1129 | AA17: craig.delaine@agn.com.au | AB17: NO | AC17: NO | AD17: NO | AE17: NO | AF17: NO | AG17: - | AH17: CBD | AI17: Urban | AJ17: Short rural | AK17: Long rural | AM17: NO | AN17: AGN (SA)
B18: AGN (Victoria) | C18: Australian Gas Networks Limited (reporting data for Victoria) | D18: 19078551685 | E18: Vic | F18: Gas | G18: Distribution | H18: Weighted average price cap | I18: Calendar | J18: December | K18: 5 | L18: 5 | M18: x | O18: Level 6 | P18: 400 King William Street | Q18: ADELAIDE | R18: SA | S18: 5000 | T18: PO Box 6468 | U18: Halifax Street | V18: ADELAIDE | W18: SA | X18: 5000 | Y18: Craig de Laine | Z18: 08 8418 1129 | AA18: craig.delaine@agn.com.au | AB18: NO | AC18: NO | AD18: NO | AE18: NO | AF18: NO | AG18: - | AH18: CBD | AI18: Urban | AJ18: Short rural | AK18: Long rural | AM18: NO | AN18: AGN (Victoria)
B19: Amadeus | C19: APT Pipelines (NT) Pty Ltd | D19: 39009737393 | E19: NT | F19: Gas | G19: Transmission | H19: Weighted average price cap | I19: Financial | J19: June | K19: 5 | L19: 5 | M19: x | N19: n/a | O19: Level 19, HSBC Building | P19: 580 George Street | Q19: SYDNEY | R19: NSW | S19: 2000 | T19: Level 19, HSBC Building | U19: 580 George Street | V19: SYDNEY | W19: NSW | X19: 2000 | Y19: Alexandra Curran | Z19: 02 9275 0020 | AA19: alexandra.curran@apa.com.au | AB19: NO | AC19: NO | AD19: NO | AE19: NO | AF19: NO | AG19: - | AH19: CBD | AI19: Urban | AJ19: Short rural | AK19: Long rural | AM19: NO | AN19: Amadeus
B20: APA GasNet | C20: APA GasNet Australia (Operations) Pty Ltd | D20: 065083009 | E20: Vic | F20: Gas | G20: Transmission | H20: Weighted average price cap | I20: Calendar | J20: December | K20: 5 | L20: 5 | M20: x | O20: Level 19, HSBC Building | P20: 580 George Street | Q20: SYDNEY | R20: NSW | S20: 2000 | T20: PO Box R41 | V20: ROYAL EXCHANGE | W20: NSW | X20: 1225 | Y20: Alexandra Curran | Z20: 02 9275 0020 | AA20: alexandra.curran@apa.com.au | AB20: NO | AC20: NO | AD20: NO | AE20: NO | AF20: NO | AG20: - | AH20: CBD | AI20: Urban | AJ20: Short rural | AK20: Long rural | AM20: NO | AN20: APA GasNet
B21: Ausgrid | C21: Ausgrid | D21: 78508211731 | E21: NSW | F21: Electricity | G21: Distribution | H21: Revenue cap | I21: Financial | J21: June | K21: 5 | L21: 5 | M21: 5 | N21: 2014-19 Distribution Determination | O21: 570 George St | Q21: SYDNEY | R21: NSW | S21: 2000 | T21: GPO Box 4009 | V21: SYDNEY | W21: NSW | X21: 2001 | Y21: John Thomson | Z21: 02 9269 2312 | AA21: john.thomson@ausgrid.com.au | AB21: YES | AC21: YES | AD21: YES | AE21: YES | AF21: NO | AG21: NO | AH21: CBD | AI21: Urban | AJ21: Short rural | AK21: Long rural | AM21: YES | AN21: Ausgrid
B22: Ausgrid (Tx Assets) | C22: Ausgrid (Tx Assets) | D22: 67505337385 | E22: NSW | F22: Electricity | G22: Distribution | H22: Revenue cap | I22: Financial | J22: June | K22: 5 | L22: 5 | M22: 5 | N22: distribution determination | O22: 570 George St | Q22: SYDNEY | R22: NSW | S22: 2000 | T22: GPO Box 4009 | V22: SYDNEY | W22: NSW | X22: 2001 | Y22: John Thomson | Z22: 02 9269 2312 | AA22: john.thomson@ausgrid.com.au | AB22: YES | AC22: YES | AD22: YES | AE22: YES | AF22: NO | AG22: NO | AH22: CBD | AI22: Urban | AJ22: Short rural | AK22: Long rural | AM22: NO | AN22: Ausgrid (Tx Assets)
B23: AusNet (D) | C23: AusNet Electricity Services Pty Ltd | D23: 91064651118 | E23: Vic | F23: Electricity | G23: Distribution | H23: Revenue cap | I23: Calendar | J23: December | K23: 5 | L23: 5 | M23: 2 | N23: 2016-20 Distribution Determination | O23: Level 32 | P23: 2 Southbank Boulevard | Q23: SOUTHBANK | R23: Vic | S23: 3006 | T23: Locked Bag 14051 | V23: MELBOURNE CITY MAIL CENTRE | W23: VIC | X23: 8001 | Y23: please provide contact details | AB23: NO | AC23: YES | AD23: YES | AE23: YES | AF23: NO | AG23: YES | AH23: CBD | AI23: Urban | AJ23: Short rural | AK23: Long rural | AM23: YES | AN23: AusNet (D)
B24: AusNet (Gas) | C24: AusNet Gas Services | D24: 086015036 | E24: Vic | F24: Gas | G24: Distribution | H24: Weighted average price cap | I24: Calendar | J24: December | K24: 5 | L24: 5 | M24: X | O24: Level 19, HSBC Building | P24: 580 George Street | Q24: SYDNEY | R24: NSW | S24: 2000 | T24: PO Box R41 | V24: ROYAL EXCHANGE | W24: NSW | X24: 1225 | Y24: Alexandra Curran | Z24: 02 9275 0020 | AA24: alexandra.curran@apa.com.au | AB24: NO | AC24: NO | AD24: NO | AE24: NO | AF24: NO | AG24: - | AH24: CBD | AI24: Urban | AJ24: Short rural | AK24: Long rural | AM24: NO | AN24: AusNet (Gas)
B25: AusNet (T) | C25: Ausnet Services (Transmission) Ltd | D25: 48116124362 | E25: Vic | F25: Electricity | G25: Transmission | H25: Revenue cap | I25: Financial | J25: March | K25: 5 | L25: 5 | M25: 2 | N25: transmission determination | O25: Level 32 | P25: 2 Southbank Boulevard | Q25: SOUTHBANK | R25: Vic | S25: 3006 | T25: Locked Bag 14051 | V25: MELBOURNE CITY MAIL CENTRE | W25: Vic | X25: 8001 | Y25: Clare Thompson | Z25: 03 9695 6670 | AA25: clare.e.thompson@ausnetservices.com.au | AB25: NO | AC25: NO | AD25: NO | AE25: NO | AF25: NO | AG25: - | AH25: CBD | AI25: Urban | AJ25: Short rural | AK25: Long rural | AM25: NO | AN25: AusNet (T)
B26: Australian Distribution Co. | C26: Australian Distribution Co. | D26: 11222333444 | E26: - | F26: Electricity | G26: Distribution | H26: Revenue cap | I26: Financial | J26: June | K26: 5 | L26: 5 | M26: 2 | N26: distribution determination | O26: 123 Straight Street | Q26: SYDNEY | R26: NSW | S26: 2000 | T26: PO Box 123 | V26: SYDNEY | W26: NSW | X26: 2000 | Y26: Bob Smith | Z26: 02 1234 5678 | AA26: bob@auselec.net.au | AB26: YES | AC26: YES | AD26: YES | AE26: YES | AF26: NO | AG26: NO | AH26: CBD | AI26: Urban | AJ26: Short rural | AK26: Long rural | AM26: YES | AN26: Australian Distribution Co.
B27: Australian Distribution Co. (Gas) | C27: Australian Gas Distribution Co. | D27: 11222333444 | E27: NSW | F27: Gas | G27: Distribution | H27: Weighted average price cap | I27: Financial | J27: June | K27: 5 | L27: 5 | O27: 123 Straight Street | Q27: SYDNEY | R27: NSW | S27: 2000 | T27: PO Box 123 | V27: SYDNEY | W27: NSW | X27: 2000 | Y27: Bob Smith | Z27: 02 1234 5678 | AA27: bob@auselec.net.au | AB27: NO | AC27: NO | AD27: NO | AE27: NO | AF27: NO | AG27: - | AH27: CBD | AI27: Urban | AJ27: Short rural | AK27: Long rural | AM27: NO | AN27: Australian Distribution Co. (Vic)
B28: Australian Distribution Co. (Vic) | C28: Australian Distribution Co. (Victoria) | D28: 11222333444 | E28: Vic | F28: Electricity | G28: Distribution | H28: Revenue cap | I28: Calendar | J28: December | K28: 5 | L28: 5 | M28: 2 | N28: distribution determination | O28: 123 Straight Street | Q28: MELBOURNE | R28: Vic | S28: 3000 | T28: PO Box 123 | V28: MELBOURNE | W28: VIC | X28: 3000 | Y28: Bob Smith | Z28: 02 1234 5678 | AA28: bob@auselec.net.au | AB28: NO | AC28: NO | AD28: NO | AE28: NO | AF28: NO | AG28: YES | AH28: CBD | AI28: Urban | AJ28: Short rural | AK28: Long rural | AM28: YES | AN28: Australian Distribution Co. (Vic)
B29: Australian Transmission Co. | C29: Australian Transmission Co. | D29: 11222333444 | E29: - | F29: Electricity | G29: Transmission | H29: Revenue cap | I29: Financial | J29: June | K29: 5 | L29: 5 | M29: 5 | N29: transmission determination | O29: 123 Straight Street | Q29: SYDNEY | R29: NSW | S29: 2000 | T29: PO Box 123 | V29: SYDNEY | W29: NSW | X29: 2000 | Y29: Bob Smith | Z29: 02 1234 5678 | AA29: bob@auselec.net.au | AB29: NO | AC29: NO | AD29: NO | AE29: NO | AF29: NO | AG29: - | AH29: CBD | AI29: Urban | AJ29: Short rural | AK29: Long rural | AM29: NO | AN29: Australian Transmission Co.
B30: Central Ranges Pipeline (D) | C30: Central Ranges Pipeline Pty Ltd | D30: 108218355 | E30: NSW | F30: Gas | G30: Distribution | H30: Weighted average price cap | I30: Financial | J30: June | K30: 15 | L30: 5 | M30: 5 | N30: distribution determination | O30: Level 19 | P30: 580 George Street | Q30: SYDNEY | R30: NSW | S30: 2000 | T30: PO Box R41 | V30: ROYAL EXCHANGE | W30: NSW | X30: 1225 | Y30: Scott Young | Z30: 02 9275 0031 | AA30: scott.young@apa.com.au | AB30: NO | AC30: NO | AD30: NO | AE30: NO | AF30: NO | AG30: - | AH30: CBD | AI30: Urban | AJ30: Short rural | AK30: Long rural | AM30: NO
B31: Central Ranges Pipeline (T) | C31: Central Ranges Pipeline Pty Ltd | D31: 108218355 | E31: NSW | F31: Gas | G31: Distribution | H31: Weighted average price cap | I31: Financial | J31: June | K31: 14 | L31: 5 | M31: 5 | N31: transmission determination | O31: Level 19 | P31: 580 George Street | Q31: SYDNEY | R31: NSW | S31: 2000 | T31: PO Box R41 | V31: ROYAL EXCHANGE | W31: NSW | X31: 1225 | Y31: Scott Young | Z31: 02 9275 0031 | AA31: scott.young@apa.com.au | AB31: NO | AC31: NO | AD31: NO | AE31: NO | AF31: NO | AG31: - | AH31: CBD | AI31: Urban | AJ31: Short rural | AK31: Long rural | AM31: NO
B32: CitiPower | C32: CitiPower | D32: 76064651056 | E32: Vic | F32: Electricity | G32: Distribution | H32: Revenue cap | I32: Calendar | J32: December | K32: 5 | L32: 5 | M32: 2 | N32: 2016-20 Distribution Determination | O32: 40 Market Street | Q32: MELBOURNE | R32: Vic | S32: 3000 | T32: Locked Bag 14090 | V32: MELBOURNE | W32: VIC | X32: 8001 | Y32: Hannah Williams | Z32: 03 9683 4088 | AA32: hwilliams@powercor.com.au | AB32: YES | AC32: YES | AD32: NO | AE32: NO | AF32: NO | AG32: YES | AH32: CBD | AI32: Urban | AJ32: Short rural | AK32: Long rural | AM32: YES | AN32: CitiPower
B33: Directlink | C33: Directlink | D33: 16779340889 | E33: Qld | F33: Electricity | G33: Transmission | H33: Revenue cap | I33: Financial | J33: June | K33: 5 | L33: 5 | M33: 5 | N33: transmission determination | O33: Level 19, HSBC Building | P33: 580 George Street | Q33: SYDNEY | R33: NSW | S33: 2000 | T33: PO Box R41 | V33: ROYAL EXCHANGE | W33: NSW | X33: 1225 | Y33: Scott Young | Z33: 02 9275 0031 | AA33: scott.young@apa.com.au | AB33: NO | AC33: NO | AD33: NO | AE33: NO | AF33: NO | AG33: - | AH33: CBD | AI33: Urban | AJ33: Short rural | AK33: Long rural | AM33: NO | AN33: Directlink
B34: ElectraNet | C34: ElectraNet | D34: 41094482416 | E34: SA | F34: Electricity | G34: Transmission | H34: Revenue cap | I34: Financial | J34: June | K34: 5 | L34: 5 | M34: 5 | N34: transmission determination | O34: 52-55 East Terrace | P34: Rymill Park | Q34: ADELAIDE | R34: SA | S34: 5000 | T34: PO Box 7096 | U34: Hutt Street Post Office | V34: ADELAIDE | W34: SA | X34: 5000 | Y34: Bill Jackson | Z34: 08 8404 7969 | AA34: jackson.bill@electranet.com.au | AB34: NO | AC34: NO | AD34: NO | AE34: NO | AF34: NO | AG34: - | AH34: CBD | AI34: Urban | AJ34: Short rural | AK34: Long rural | AM34: NO | AN34: ElectraNet
B35: Endeavour Energy | C35: Endeavour Energy | D35: 11247365823 | E35: NSW | F35: Electricity | G35: Distribution | H35: Revenue cap | I35: Financial | J35: June | K35: 5 | L35: 5 | M35: 5 | N35: 2014-19 Distribution Determination | O35: 51 Huntingwood Drive | Q35: HUNTINGWOOD | R35: NSW | S35: 2148 | T35: PO Box 811 | V35: SEVEN HILLS | W35: NSW | X35: 1730 | Y35: Jon Hocking | Z35: 02 9853 4386 / 0407 348 156 | AA35: Jon.Hocking@Endeavourenergy.com.au | AB35: NO | AC35: YES | AD35: YES | AE35: YES | AF35: NO | AG35: NO | AH35: CBD | AI35: Urban | AJ35: Short rural | AK35: Long rural | AM35: YES | AN35: Endeavour Energy
B36: Energex | C36: Energex | D36: 40078849055 | E36: Qld | F36: Electricity | G36: Distribution | H36: Revenue cap | I36: Financial | J36: June | K36: 5 | L36: 5 | M36: 5 | N36: 2015-20 Distribution Determination | O36: 26 Reddacliff Street | Q36: NEWSTEAD | R36: Qld | S36: 4006 | T36: 26 Reddacliff Street | V36: NEWSTEAD | W36: QLD | X36: 4006 | Y36: Jenny Doyle, Group Manager Regulatory Affairs | Z36: (07) 3851 6416 | AA36: jenny.doyle@ergon.com.au | AB36: YES | AC36: YES | AD36: YES | AE36: NO | AF36: NO | AG36: NO | AH36: CBD | AI36: Urban | AJ36: Short rural | AK36: Long rural | AM36: YES | AN36: Energex
B37: Ergon Energy | C37: Ergon Energy | D37: 50087646062 | E37: Qld | F37: Electricity | G37: Distribution | H37: Revenue cap | I37: Financial | J37: June | K37: 5 | L37: 5 | M37: 5 | N37: 2015-20 Distribution Determination | O37: 22 Walker Street | Q37: TOWNSVILLE | R37: Qld | S37: 4810 | T37: Po Box 264 | V37: FORTITUDE VALLEY | W37: QLD | X37: 4006 | Y37: Jenny Doyle, Group Manager Regulatory Affairs | Z37: (07) 3851 6416 | AA37: jenny.doyle@ergon.com.au | AB37: NO | AC37: YES | AD37: YES | AE37: YES | AF37: NO | AG37: NO | AH37: CBD | AI37: Urban | AJ37: Short rural | AK37: Long rural | AM37: YES | AN37: Ergon Energy
B38: Essential Energy | C38: Essential Energy | D38: 37428185226 | E38: NSW | F38: Electricity | G38: Distribution | H38: Revenue cap | I38: Financial | J38: June | K38: 5 | L38: 5 | M38: 5 | N38: 2014-19 Distribution Determination | O38: 8 Buller Street | Q38: PORT MACQUARIE | R38: NSW | S38: 2444 | T38: PO Box 5730 | V38: PORT MACQUARIE | W38: NSW | X38: 2444 | Y38: Catherine Waddell | Z38: 02 6338 3553 | AA38: catherine.waddell@essentialenergy.com.au | AB38: NO | AC38: NO | AD38: YES | AE38: YES | AF38: NO | AG38: NO | AH38: CBD | AI38: Urban | AJ38: Short rural | AK38: Long rural | AM38: YES | AN38: Essential Energy
B39: Jemena Electricity | C39: Jemena Electricity | D39: 82064651083 | E39: Vic | F39: Electricity | G39: Distribution | H39: Revenue cap | I39: Calendar | J39: December | K39: 5 | L39: 5 | M39: 2 | N39: 2016-20 Distribution Determination | O39: Level 16 | P39: 567 Collins Street | Q39: MELBOURNE | R39: VIC | S39: 3000 | T39: PO Box 16182 | V39: MELBOURNE | W39: VIC | X39: 8001 | Y39: Matthew Serpell | Z39: 03 9173 8231 | AA39: matthew.serpell@jemena.com.au | AB39: NO | AC39: YES | AD39: YES | AE39: NO | AF39: NO | AG39: YES | AH39: CBD | AI39: Urban | AJ39: Short rural | AK39: Long rural | AM39: YES | AN39: Jemena Electricity
B40: JGN | C40: Jemena Gas Networks (NSW) Ltd | D40: 003 004 322 | E40: NSW | F40: Gas | G40: Distribution | H40: Weighted average price cap | I40: Financial | J40: June | K40: 5 | L40: 5 | Y40: please provide contact details | AB40: NO | AC40: NO | AD40: NO | AE40: NO | AF40: NO | AG40: - | AH40: CBD | AI40: Urban | AJ40: Short rural | AK40: Long rural | AM40: NO | AN40: JGN
B41: Multinet Gas | C41: Multinet Gas (DB No.1) Pty Ltd (ACN 086 026 986), Multinet Gas (DB No.2) Pty Ltd (ACN 086 230 122) | D41: 086026986 | E41: Vic | F41: Gas | G41: Distribution | H41: Weighted average price cap | I41: Calendar | J41: December | K41: 5 | L41: 5 | M41: x | O41: 43-45 Centreway | Q41: MT WAVERLEY | R41: Vic | S41: 3149 | Y41: Andrew Schille | Z41: 03 8846 9860 | AA41: andrew.schille@ue.com.au | AB41: NO | AC41: NO | AD41: NO | AE41: NO | AF41: NO | AG41: - | AH41: CBD | AI41: Urban | AJ41: Short rural | AK41: Long rural | AM41: NO | AN41: Multinet Gas
B42: Murraylink | C42: Murraylink | D42: 79181207909 | E42: SA | F42: Electricity | G42: Transmission | H42: Revenue cap | I42: Financial | J42: June | K42: 5 | L42: 5 | M42: 5 | N42: transmission determination | O42: Level 19 | P42: 580 George Street | Q42: SYDNEY | R42: NSW | S42: 2000 | T42: PO Box R41 | V42: ROYAL EXCHANGE | W42: NSW | X42: 1225 | Y42: Scott Young | Z42: 02 9275 0031 | AA42: scott.young@apa.com.au | AB42: NO | AC42: NO | AD42: NO | AE42: NO | AF42: NO | AG42: - | AH42: CBD | AI42: Urban | AJ42: Short rural | AK42: Long rural | AM42: NO | AN42: Murraylink
B43: Power and Water | C43: Power and Water Corporation | D43: 15947352360 | E43: NT | F43: Electricity | G43: Distribution | H43: Revenue cap | I43: Financial | J43: June | K43: 5 | L43: 5 | M43: x | N43: distribution determination | O43: GPO Box 1921 | Q43: DARWIN | R43: NT | S43: 801 | T43: GPO Box 1921 | V43: DARWIN | W43: NT | X43: 801 | Y43: Lucy Moon | Z43: 08 8924 5822 | AA43: Lucy.Moon@powerwater.com.au | AB43: YES | AC43: YES | AD43: YES | AE43: YES | AF43: NO | AG43: NO | AH43: CBD | AI43: Urban | AJ43: Short rural | AK43: Long rural | AM43: NO | AN43: Power and Water
B44: Powercor Australia | C44: Powercor Australia | D44: 89064651109 | E44: Vic | F44: Electricity | G44: Distribution | H44: Revenue cap | I44: Calendar | J44: December | K44: 5 | L44: 5 | M44: 2 | N44: 2016-20 Distribution Determination | O44: 40 Market Street | Q44: MELBOURNE | R44: Vic | S44: 3000 | T44: Locked bag 14090 | V44: MELBOURNE | W44: VIC | X44: 8001 | Y44: Hannah Williams | Z44: 03 9683 4088 | AA44: hwilliams@powercor.com.au | AB44: NO | AC44: NO | AD44: YES | AE44: YES | AF44: NO | AG44: YES | AH44: CBD | AI44: Urban | AJ44: Short rural | AK44: Long rural | AM44: YES | AN44: Powercor Australia
B45: Powerlink | C45: Queensland Electricity Transmission Corporation Limited trading as Powerlink Queensland | D45: 82078849233 | E45: Qld | F45: Electricity | G45: Transmission | H45: Revenue cap | I45: Financial | J45: June | K45: 5 | L45: 5 | M45: 5 | N45: transmission determination | O45: 33 Harold St | Q45: VIRGINIA | R45: Qld | S45: 4014 | T45: PO Box 1193 | V45: VIRGINIA | W45: QLD | X45: 4014 | Y45: Jennifer Harris | Z45: 07 3860 2667 | AA45: jharris@powerlink.com.au | AB45: NO | AC45: NO | AD45: NO | AE45: NO | AF45: NO | AG45: - | AH45: CBD | AI45: Urban | AJ45: Short rural | AK45: Long rural | AM45: NO | AN45: Powerlink
B46: Roma to Brisbane Pipeline | C46: APT Petroleum Pipelines Limited t/a Roma to Brisbane Pipeline | D46: 009 737 393 | E46: Qld | F46: Gas | G46: Transmission | H46: Weighted average price cap | I46: Financial | J46: June | K46: 5 | L46: 5 | M46: x | N46: n/a | O46: 580 George Street | Q46: SYDNEY | R46: NSW | S46: 2000 | T46: PO Box R41 | V46: ROYAL EXCHANGE | W46: NSW | X46: 1225 | Y46: Mark Allen | Z46: 02 9275 0010 | AA46: mark.allen@apa.com.au | AB46: NO | AC46: NO | AD46: NO | AE46: NO | AF46: NO | AG46: - | AH46: CBD | AI46: Urban | AJ46: Short rural | AK46: Long rural | AM46: NO | AN46: Roma to Brisbane Pipeline
B47: SA Power Networks | C47: SA Power Networks | D47: 13332330749 | E47: SA | F47: Electricity | G47: Distribution | H47: Revenue cap | I47: Financial | J47: June | K47: 5 | L47: 5 | M47: 5 | N47: 2015-20 Distribution Determination | O47: 1 Anzac Highway | Q47: KESWICK | R47: SA | S47: 5035 | T47: GPO Box 77 | V47: ADELAIDE | W47: SA | X47: 5000 | Y47: Richard Sibly | Z47: 08 8404 5613 | AA47: richard.sibly@sapowernetworks.com.au | AB47: NO | AC47: NO | AD47: YES | AE47: YES | AF47: NO | AG47: NO | AH47: CBD | AI47: Urban | AJ47: Short rural | AK47: Long rural | AM47: NO | AN47: SA Power Networks
B48: TasNetworks (D) | C48: TasNetworks (D) | D48: 24167357299 | E48: Tas | F48: Electricity | G48: Distribution | H48: Revenue cap | I48: Financial | J48: June | K48: 5 | L48: 5 | M48: 5 | N48: distribution determination | O48: 1-7 Maria Street | Q48: LENAH VALLEY | R48: Tas | S48: 7008 | T48: PO Box 606 | V48: MOONAH | W48: Tas | X48: 7009 | Y48: John Sayers | Z48: 03 6271 6469 | AA48: john.sayers@tasnetworks.com.au | AB48: YES | AC48: YES | AD48: YES | AE48: YES | AF48: YES | AG48: NO | AH48: Critical Infrastructure | AI48: High density commercial | AJ48: Urban | AK48: High density rural | AL48: Low density rural | AM48: YES | AN48: TasNetworks (D)
B49: TasNetworks (T) | C49: TasNetworks (T) | D49: 24167357299 | E49: Tas | F49: Electricity | G49: Transmission | H49: Revenue cap | I49: Financial | J49: June | K49: 5 | L49: 5 | M49: 5 | N49: transmission determination | O49: 1-7 Maria Street | Q49: LENAH VALLEY | R49: Tas | S49: 7008 | T49: PO Box 606 | V49: MOONAH | W49: Tas | X49: 7009 | Y49: John Sayers | Z49: 03 6271 6469 | AA49: john.sayers@tasnetworks.com.au | AB49: NO | AC49: NO | AD49: NO | AE49: NO | AF49: NO | AG49: - | AH49: CBD | AI49: Urban | AJ49: Short rural | AK49: Long rural | AM49: NO | AN49: TasNetworks (T)
B50: TransGrid | C50: NSW Electricity Networks Operations Pty Ltd trading as TransGrid | D50: 70 250 995 390 | E50: NSW | F50: Electricity | G50: Transmission | H50: Revenue cap | I50: Financial | J50: June | K50: 4 | L50: 5 | M50: 5 | N50: transmission determination | O50: 180 Thomas Street | Q50: SYDNEY | R50: NSW | S50: 2000 | T50: PO Box A1000 | V50: SYDNEY SOUTH | W50: NSW | X50: 1235 | Y50: Garrie Chubb | Z50: 0408 210 221 | AA50: garrie.chubb@transgrid.com.au | AB50: NO | AC50: NO | AD50: NO | AE50: NO | AF50: NO | AG50: - | AH50: CBD | AI50: Urban | AJ50: Short rural | AK50: Long rural | AM50: NO | AN50: TransGrid
B51: United Energy | C51: United Energy | D51: 70064651029 | E51: Vic | F51: Electricity | G51: Distribution | H51: Revenue cap | I51: Calendar | J51: December | K51: 5 | L51: 5 | M51: 2 | N51: 2016-20 Distribution Determination | O51: Level 3 | P51: 6 Nexus Court | Q51: MULGRAVE | R51: Vic | S51: 3149 | T51: PO Box 449 | V51: MOUNT WAVERLEY | W51: VIC | X51: 3170 | Y51: Mathew Abraham | Z51: 03 8846 9758 | AA51: mathew.abraham@ue.com.au | AB51: NO | AC51: NO | AD51: YES | AE51: NO | AF51: NO | AG51: YES | AH51: CBD | AI51: Urban | AJ51: Short rural | AK51: Long rural | AM51: YES | AN51: United Energy
Z54: For EB & Reset RINs only | AE54: For AARs only
B55: The Reg Year Ending (dms_RYE) must be set to the last year of the regulatory period. For forecast data is is usually (FRCP_y5) for actual it is a single year (CRY). For historical actual data the RYE will need to be set manually in the business details sheet by setting the dms_Multiyear_flag to 1 and putting the correct value in 'dms_Specified_FinalYear. See cells C67:C68 | N55: Drop down selector box for CA & Reset RINs. | O55: For CA & Reset RINs only | Z55: for DNSP only | AE55: For DNSPs only
B56: dms_Model_List | C56: dms_Worksheet_List | E56: dms_RYE_Formula_Result | N56: dms_0203_ProjectType | O56: dms_020303_01_UOM | P56: dms_020501_01_UOM | Q56: dms_020501_02_UOM | R56: dms_020501_03_UOM | S56: dms_020501_04_UOM | T56: dms_020603_01_UOM | U56: dms_020701_01_UOM | V56: dms_020701_02_UOM | W56: dms_020701_01_Rows | X56: dms_040102_01_UOM | Y56: dms_040102_04_UOM | Z56: dms_030601_01_UOM | AA56: dms_030601_02_UOM | AB56: dms_030701_01_UOM | AC56: dms_030702_01_UOM | AD56: dms_030703_01_UOM | AE56: dms_030605_UOM | AF56: dms_03060703_UOM
B57: ARR | C57: ANNUAL REPORTING STATEMENT | E57: =LEFT(dms_SingleYear_FinalYear_Result,2)&RIGHT(dms_SingleYear_FinalYear_Result,2) -> 2018 | F57: =LEFT(dms_SingleYear_FinalYear_Result,2)&RIGHT(dms_SingleYear_FinalYear_Result,2) | H57: Formula errors are OK | N57: New line on new route - single circuit | O57: Circuit line length in km | P57: 0's | Q57: 0's | R57: 0's | S57: 0's | T57: 0's | U57: km | V57: km | W57: Route line length within zone | X57: 0's | Y57: days | Z57: minutes/customer | AA57: minutes/customer | AB57: Customer / km | AC57: % | AD57: km | AE57: number | AF57: number
B58: CA | C58: CATEGORY ANALYSIS | E58: =LEFT(dms_SingleYear_FinalYear_Result,2)&RIGHT(dms_SingleYear_FinalYear_Result,2) -> 2018 | F58: =LEFT(dms_SingleYear_FinalYear_Result,2)&RIGHT(dms_SingleYear_FinalYear_Result,2) | H58: Formula errors are OK | N58: New line on new route - dual circuit | O58: Circuit line length in km | P58: 0's | Q58: 0's | R58: 0's | S58: 0's | T58: 0's | U58: 0's | V58: 0's | W58: Number of maintenance spans | X58: 0's | Y58: 0's | Z58: minutes/customer | AA58: minutes/customer | AB58: MWh/customer | AC58: Number of spans | AE58: number | AF58: number
B59: CESS | C59: CAPITLAL EXPENDITURE SHARING SCHEMING | E59: 2016 | F59: =LEFT(dms_SingleYear_FinalYear_Result,2)&RIGHT(dms_SingleYear_FinalYear_Result,2) | N59: New line on new route - other | O59: Circuit line length in km | P59: MVA added | Q59: MVA added | R59: MVA added | S59: MVA added | T59: 0's | U59: km | V59: km | W59: Total length of maintenance spans | X59: 0's | Y59: $0s | Z59: interruptions/customer | AA59: interruptions/customer | AB59: kVA / customer | AC59: Number of spans | AE59: number | AF59: number
B60: CPI | C60: CPI | N60: Line rebuild over existing route - single circuit | O60: Circuit line length in km | P60: 0's | Q60: 0's | R60: 0's | S60: 0's | T60: 0's | U60: km | V60: km | W60: Length of vegetation corridors | X60: $0s | Y60: 0's | Z60: interruptions/customer | AA60: interruptions/customer | AC60: Number of spans | AE60: number | AF60: number
B61: EB | C61: ECONOMIC BENCHMARKING | E61: =LEFT(dms_SingleYear_FinalYear_Result,2)&RIGHT(dms_SingleYear_FinalYear_Result,2) -> 2018 | F61: =LEFT(dms_SingleYear_FinalYear_Result,2)&RIGHT(dms_SingleYear_FinalYear_Result,2) | H61: Formula errors are OK | N61: Line rebuild over existing route - dual circuit | O61: Number | P61: total spend $0s | Q61: total spend $0s | R61: total spend $0s | S61: total spend $0s | T61: (per cent) | U61: 0's | V61: 0's | W61: Average number of trees per maintenance span | AC61: Number of spans | AE61: number | AF61: (per cent)
B62: PTRM | C62: POST TAX REVENUE MODEL | E62: =LEFT(dms_MultiYear_FinalYear_Result,2)&RIGHT(dms_MultiYear_FinalYear_Result,2) -> 2025 | F62: =LEFT(dms_MultiYear_FinalYear_Result,2)&RIGHT(dms_MultiYear_FinalYear_Result,2) | N62: Reconductor - Single circuit | O62: Number | P62: net circuit km added | Q62: net circuit km added | R62: net circuit km added | S62: net circuit km added | U62: years | V62: years | W62: Average frequency of cutting cycle | AC62: Years | AE62: number
B63: Reset | C63: REGULATORY REPORTING STATEMENT | E63: =LEFT(dms_MultiYear_FinalYear_Result,2)&RIGHT(dms_MultiYear_FinalYear_Result,2) -> 2025 | F63: =LEFT(dms_MultiYear_FinalYear_Result,2)&RIGHT(dms_MultiYear_FinalYear_Result,2) | H63: Formula errors are OK | N63: Reconductor - Dual circuit | O63: Number | P63: total spend $0s | Q63: total spend $0s | R63: total spend $0s | S63: total spend $0s | AC63: Years | AE63: number
B64: RFM | C64: ROLL FORWARD MODEL | E64: =LEFT(dms_CRCP_FinalYear_Result,2)&RIGHT(dms_CRCP_FinalYear_Result,2) -> 2018 | F64: =LEFT(dms_CRCP_FinalYear_Result,2)&RIGHT(dms_CRCP_FinalYear_Result,2) | N64: Other | P64: net circuit km added | Q64: net circuit km added | R64: net circuit km added | S64: net circuit km added | AC64: Trees | AE64: number
B65: WACC | C65: WEIGHTED AVERAGE COST OF CAPITAL | E65: =LEFT(dms_MultiYear_FinalYear_Result,2)&RIGHT(dms_MultiYear_FinalYear_Result,2) -> 2025 | F65: =LEFT(dms_MultiYear_FinalYear_Result,2)&RIGHT(dms_MultiYear_FinalYear_Result,2) | P65: total spend $0s | Q65: total spend $0s | R65: total spend $0s | S65: total spend $0s | AC65: Trees | AE65: number
P66: 0's | R66: $0s | AC66: Defects | AE66: number
B67: dms_DataQuality_List | C67: dms_Confid_status_List | P67: 0's | AC67: Defects | AE67: number
B68: Actual | C68: Public | P68: 0's | AC68: Spans | AE68: number
B69: Estimate | C69: Confidential | P69: $0s | AC69: km | AE69: (per cent)
B70: Consolidated | AC70: Spans | AE70: (per cent)
O73: For PTRM files - this field set the text for the named range "DMS_Xfactor" which in all cases is simply the text "x factors" - this saves putting in each old gas PTRM file | Z73: for TNSP only
B74: For all files either AER or business needs to be able to specify the type of submission | C74: For PTRM & RFM templates we must provide a choice in case they change their form of control - otherwise it is drawn from the business specific lookup table above. | O74: DMS_Xfactor | Z74: dms_030601_01_UOM | AB74: dms_030701_01_UOM | AC74: dms_030702_01_UOM
B75: dms_SourceList | C75: dms_FormControl_Choices | O75: x factors | Z75: % | AB75: Number of spans | AC75: km
B76: After appeal | C76: Revenue cap | Z76: number | AB76: Years | AC76: %
B77: Draft decision | C77: Revenue yield | Z77: number | AB77: Trees | AC77: km
B78: Final decision | C78: Weighted average price cap | Z78: % | AB78: Defects | AC78: number
B79: PTRM update 1 | Z79: number | AB79: Number of spans
B80: PTRM update 2 | Z80: number | AB80: km
B81: PTRM update 3 | Z81: % | AB81: km
B82: PTRM update 4 | Z82: number | AB82: Number of spans
B83: PTRM update 5 | Z83: number
B84: PTRM update 6 | Z84: %
B85: PTRM update 7 | Z85: number
B86: Regulatory proposal | Z86: %
B87: Reporting | Z87: number
B88: Revised regulatory proposal | Z88: %
Z89: number
B93: Reason for interruption | C93: dms_Reason_Interruption_Detailed | D93: dms_Reason_Interruption | E93: dms_STPIS_Exclusion_List | F93: dms_020301_ProjectType_List | G93: dms_020302_ProjectType_List
B94: Animal | C94: Animal impact | D94: Animal | E94: Weather | F94: New substation establishment | G94: New line on new route - single circuit
C95: Animal nesting/burrowing, etc and other | D95: Asset failure | E95: Equipment failure | F95: Capacity upgrade | G95: New line on new route - dual circuit
C96: Other | D96: Other | E96: Operational error | F96: Voltage upgrade | G96: New line on new route - other
B97: Asset failure | C97: LV | D97: Overloads | E97: Vegetation | F97: Other | G97: Line rebuild over existing route - single circuit
C98: Distribution substation | D98: Planned | E98: Animals | G98: Line rebuild over existing route - dual circuit
C99: HV | D99: Network business | E99: Third party impacts | G99: Reconductor - Single circuit
C100: Zone substation | D100: Third party | E100: Transmission failure | G100: Reconductor - Dual circuit
C101: Subtransmission | D101: Unknown | E101: Load shedding | G101: Reconductor - Other
B102: Other | C102: insert description of 'other' | D102: Vegetation | E102: Inter-distributor connection failure | G102: Line upgrade - raising/retensoring
B103: Overloads | C103: - | D103: Weather | E103: Other | G103: Line upgrade - voltage upgrade
B104: Planned | C104: - | D104: 2 - STPIS Exclusion (3.3)(a) | G104: Line upgrade - capacity
B105: Network business | C105: Network error | D105: 3 - STPIS Exclusion (3.3)(a) | G105: String spare circuit
C106: Switching and protection error | D106: 4 - STPIS Exclusion (3.3)(a) | G106: Other
B107: Third party | C107: Fire | D107: 5 - STPIS Exclusion (3.3)(a)
C108: Other | D108: 6 - STPIS Exclusion (3.3)(a)
C109: Dig-in | D109: 7 - STPIS Exclusion (3.3)(a)
C110: Unauthorised access
C111: Vehicle impact
B112: Unknown | C112: Unknown
B113: Vegetation | C113: Blow-in/Fall-in - NSP responsibility
C114: Grow-in - NSP responsibility
C115: Blow-in/Fall-in - Other responsible party
C116: Grow-in - Other responsible party
B117: Weather
B118: 2 - STPIS Exclusion (3.3)(a)
B119: 3 - STPIS Exclusion (3.3)(a)
B120: 4 - STPIS Exclusion (3.3)(a)
B121: 5 - STPIS Exclusion (3.3)(a)
B122: 6 - STPIS Exclusion (3.3)(a)
B123: 7 - STPIS Exclusion (3.3)(a)
C124: 0 | E124: =IFERROR(IF(dms_060801_StartCell<>"",IF(dms_Model="ARR",(LOOKUP(2,1/(dms_060801_01_Values<>""),(ROW(dms_060801_01_Values)))),"not an ARR"),0),"0")
C125: =IFERROR(IF(dms_Model="ARR",(MAX(0,dms_0608_LastRow-dms_0608_OffsetRows)),"not an ARR"),"0") -> not an ARR | E125: =IFERROR(IF(dms_Model="ARR",(MAX(0,dms_0608_LastRow-dms_0608_OffsetRows)),"not an ARR"),"0")
B131: These are indeces and lookup values for various dates. All step from the value placed in FRCP_y1 on the business and other details worksheet | C131: =IF(dms_FifthFeeder_flag_NSP="NO","This NSP has only 4 feeder categories","This NSP has 5 feeder categories") -> This NSP has only 4 feeder categories | O131: These date tables are currently used in the Recast templates to provide column headings and conditional formatting
B132: dms_FRCPlength_Num_List | C132: dms_FinalYear_List | D132: dms_CRCPlength_Num_List | E132: dms_CFinalYear_List | F132: dms_FRCP_years | H132: dms_CRCP_years | J132: dms_CRCP_index | L132: dms_Financial_Years | M132: dms_Calendar_Years | O132: CRY from input cell on business sheet | P132: CRY - financial | Q132: dms_FinYears | R132: CRY calendar | S132: dms_CalYears
B133: 1 | C133: dms_FRCP_y1 | D133: 1 | E133: CRCP_y1 | F133: =FRCP_y1 -> 2021 | G133: dms_FRCP_y1 | H133: =IF(dms_RPT="financial",VALUE(LEFT(dms_FRCP_y1,4)-1)&"-"&TEXT(VALUE(MID(dms_FRCP_y1,3,2)),"00"),VALUE(LEFT(dms_FRCP_y1,4)-1)) -> 2020 | I133: dms_CRCP_yZ | J133: 1 | L133: 2005-06 | M133: 2006 | O133: =CRY -> 2018 | P133: =VALUE(LEFT(CRY,4))&"-"&TEXT(MID(CRY,3,2)+1,"00") -> 2018-19 | Q133: dms_CRYf_y1 | R133: =VALUE(LEFT(CRY,4)+1) -> 2019 | S133: dms_CRYc_y1
B134: 2 | C134: dms_FRCP_y2 | D134: 2 | E134: CRCP_y2 | F134: =IF(dms_RPT="financial",VALUE(LEFT(dms_FRCP_y1,4)+1)&"-"&TEXT(VALUE(RIGHT(dms_FRCP_y1,2)+1),"00"),VALUE(LEFT(dms_FRCP_y1,4)+1)) -> 2022 | G134: dms_FRCP_y2 | H134: =IF(dms_RPT="financial",VALUE(LEFT(dms_CRCP_yZ,4)-1)&"-"&TEXT(VALUE(MID(dms_CRCP_yZ,3,2)),"00"),VALUE(LEFT(dms_CRCP_yZ,4)-1)) -> 2019 | I134: dms_CRCP_yY | J134: 2 | L134: 2006-07 | M134: 2007 | P134: =VALUE(LEFT(dms_CRYf_y1,4)+1)&"-"&TEXT(MID(dms_CRYf_y1,3,2)+2,"00") -> 2019-20 | Q134: dms_CRYf_y2 | R134: =VALUE(LEFT(dms_CRYc_y1,4)+1) -> 2020 | S134: dms_CRYc_y2
B135: 3 | C135: dms_FRCP_y3 | D135: 3 | E135: CRCP_y3 | F135: =IF(dms_RPT="financial",VALUE(LEFT(dms_FRCP_y2,4)+1)&"-"&TEXT(VALUE(RIGHT(dms_FRCP_y2,2)+1),"00"),VALUE(LEFT(dms_FRCP_y2,4)+1)) -> 2023 | G135: dms_FRCP_y3 | H135: =IF(dms_RPT="financial",VALUE(LEFT(dms_CRCP_yY,4)-1)&"-"&TEXT(VALUE(MID(dms_CRCP_yY,3,2)),"00"),VALUE(LEFT(dms_CRCP_yY,4)-1)) -> 2018 | I135: dms_CRCP_yX | J135: 3 | L135: 2007-08 | M135: 2008 | P135: =VALUE(LEFT(dms_CRYf_y2,4)+1)&"-"&TEXT(MID(dms_CRYf_y2,3,2)+2,"00") -> 2020-21 | Q135: dms_CRYf_y3 | R135: =VALUE(LEFT(dms_CRYc_y2,4)+1) -> 2021 | S135: dms_CRYc_y3
B136: 4 | C136: dms_FRCP_y4 | D136: 4 | E136: CRCP_y4 | F136: =IF(dms_RPT="financial",VALUE(LEFT(dms_FRCP_y3,4)+1)&"-"&TEXT(VALUE(RIGHT(dms_FRCP_y3,2)+1),"00"),VALUE(LEFT(dms_FRCP_y3,4)+1)) -> 2024 | G136: dms_FRCP_y4 | H136: =IF(dms_RPT="financial",VALUE(LEFT(dms_CRCP_yX,4)-1)&"-"&TEXT(VALUE(MID(dms_CRCP_yX,3,2)),"00"),VALUE(LEFT(dms_CRCP_yX,4)-1)) -> 2017 | I136: dms_CRCP_yW | J136: 4 | L136: 2008-09 | M136: 2009 | P136: =VALUE(LEFT(dms_CRYf_y3,4)+1)&"-"&TEXT(MID(dms_CRYf_y3,3,2)+2,"00") -> 2021-22 | Q136: dms_CRYf_y4 | R136: =VALUE(LEFT(dms_CRYc_y3,4)+1) -> 2022 | S136: dms_CRYc_y4
B137: 5 | C137: dms_FRCP_y5 | D137: 5 | E137: CRCP_y5 | F137: =IF(dms_RPT="financial",VALUE(LEFT(dms_FRCP_y4,4)+1)&"-"&TEXT(VALUE(RIGHT(dms_FRCP_y4,2)+1),"00"),VALUE(LEFT(dms_FRCP_y4,4)+1)) -> 2025 | G137: dms_FRCP_y5 | H137: =IF(dms_RPT="financial",VALUE(LEFT(dms_CRCP_yW,4)-1)&"-"&TEXT(VALUE(MID(dms_CRCP_yW,3,2)),"00"),VALUE(LEFT(dms_CRCP_yW,4)-1)) -> 2016 | I137: dms_CRCP_yV | J137: 5 | L137: 2009-10 | M137: 2010 | P137: =VALUE(LEFT(dms_CRYf_y4,4)+1)&"-"&TEXT(MID(dms_CRYf_y4,3,2)+2,"00") -> 2022-23 | Q137: dms_CRYf_y5 | R137: =VALUE(LEFT(dms_CRYc_y4,4)+1) -> 2023 | S137: dms_CRYc_y5
B138: 6 | C138: dms_FRCP_y6 | D138: 6 | E138: CRCP_y6 | F138: =IF(dms_RPT="financial",VALUE(LEFT(dms_FRCP_y5,4)+1)&"-"&TEXT(VALUE(RIGHT(dms_FRCP_y5,2)+1),"00"),VALUE(LEFT(dms_FRCP_y5,4)+1)) -> 2026 | G138: dms_FRCP_y6 | H138: =IF(dms_RPT="financial",VALUE(LEFT(dms_CRCP_yV,4)-1)&"-"&TEXT(VALUE(MID(dms_CRCP_yV,3,2)),"00"),VALUE(LEFT(dms_CRCP_yV,4)-1)) -> 2015 | I138: dms_CRCP_yU | J138: 6 | L138: 2010-11 | M138: 2011 | P138: =VALUE(LEFT(dms_CRYf_y5,4)+1)&"-"&TEXT(MID(dms_CRYf_y5,3,2)+2,"00") -> 2023-24 | Q138: dms_CRYf_y6 | R138: =VALUE(LEFT(dms_CRYc_y5,4)+1) -> 2024 | S138: dms_CRYc_y6
B139: 7 | C139: dms_FRCP_y7 | D139: 7 | E139: CRCP_y7 | F139: =IF(dms_RPT="financial",VALUE(LEFT(dms_FRCP_y6,4)+1)&"-"&TEXT(VALUE(RIGHT(dms_FRCP_y6,2)+1),"00"),VALUE(LEFT(dms_FRCP_y6,4)+1)) -> 2027 | G139: dms_FRCP_y7 | H139: =IF(dms_RPT="financial",VALUE(LEFT(dms_CRCP_yU,4)-1)&"-"&TEXT(VALUE(MID(dms_CRCP_yU,3,2)),"00"),VALUE(LEFT(dms_CRCP_yU,4)-1)) -> 2014 | I139: dms_CRCP_yT | J139: 7 | L139: 2011-12 | M139: 2012 | P139: =VALUE(LEFT(dms_CRYf_y6,4)+1)&"-"&TEXT(MID(dms_CRYf_y6,3,2)+2,"00") -> 2024-25 | Q139: dms_CRYf_y7 | R139: =VALUE(LEFT(dms_CRYc_y6,4)+1) -> 2025 | S139: dms_CRYc_y7
B140: 8 | C140: dms_FRCP_y8 | D140: 8 | E140: CRCP_y8 | F140: =IF(dms_RPT="financial",VALUE(LEFT(dms_FRCP_y7,4)+1)&"-"&TEXT(VALUE(RIGHT(dms_FRCP_y7,2)+1),"00"),VALUE(LEFT(dms_FRCP_y7,4)+1)) -> 2028 | G140: dms_FRCP_y8 | H140: =IF(dms_RPT="financial",VALUE(LEFT(dms_CRCP_yT,4)-1)&"-"&TEXT(VALUE(MID(dms_CRCP_yT,3,2)),"00"),VALUE(LEFT(dms_CRCP_yT,4)-1)) -> 2013 | I140: dms_CRCP_yS | J140: 8 | L140: 2012-13 | M140: 2013 | P140: =VALUE(LEFT(dms_CRYf_y7,4)+1)&"-"&TEXT(MID(dms_CRYf_y7,3,2)+2,"00") -> 2025-26 | Q140: dms_CRYf_y8 | R140: =VALUE(LEFT(dms_CRYc_y7,4)+1) -> 2026 | S140: dms_CRYc_y8
B141: 9 | C141: dms_FRCP_y9 | D141: 9 | E141: CRCP_y9 | F141: =IF(dms_RPT="financial",VALUE(LEFT(dms_FRCP_y8,4)+1)&"-"&TEXT(VALUE(RIGHT(dms_FRCP_y8,2)+1),"00"),VALUE(LEFT(dms_FRCP_y8,4)+1)) -> 2029 | G141: dms_FRCP_y9 | H141: =IF(dms_RPT="financial",VALUE(LEFT(dms_CRCP_yS,4)-1)&"-"&TEXT(VALUE(MID(dms_CRCP_yS,3,2)),"00"),VALUE(LEFT(dms_CRCP_yS,4)-1)) -> 2012 | I141: dms_CRCP_yR | J141: 9 | L141: 2013-14 | M141: 2014 | P141: =VALUE(LEFT(dms_CRYf_y8,4)+1)&"-"&TEXT(MID(dms_CRYf_y8,3,2)+2,"00") -> 2026-27 | Q141: dms_CRYf_y9 | R141: =VALUE(LEFT(dms_CRYc_y8,4)+1) -> 2027 | S141: dms_CRYc_y9
B142: 10 | C142: dms_FRCP_y10 | D142: 10 | E142: CRCP_y10 | F142: =IF(dms_RPT="financial",VALUE(LEFT(dms_FRCP_y9,4)+1)&"-"&TEXT(VALUE(RIGHT(dms_FRCP_y9,2)+1),"00"),VALUE(LEFT(dms_FRCP_y9,4)+1)) -> 2030 | G142: dms_FRCP_y10 | H142: =IF(dms_RPT="financial",VALUE(LEFT(dms_CRCP_yR,4)-1)&"-"&TEXT(VALUE(MID(dms_CRCP_yR,3,2)),"00"),VALUE(LEFT(dms_CRCP_yR,4)-1)) -> 2011 | I142: dms_CRCP_yQ | J142: 10 | L142: 2014-15 | M142: 2015 | P142: =VALUE(LEFT(dms_CRYf_y9,4)+1)&"-"&TEXT(MID(dms_CRYf_y9,3,2)+2,"00") -> 2027-28 | Q142: dms_CRYf_y10 | R142: =VALUE(LEFT(dms_CRYc_y9,4)+1) -> 2028 | S142: dms_CRYc_y10
B143: 11 | C143: dms_FRCP_y11 | D143: 11 | E143: CRCP_y11 | F143: =IF(dms_RPT="financial",VALUE(LEFT(dms_FRCP_y10,4)+1)&"-"&TEXT(VALUE(RIGHT(dms_FRCP_y10,2)+1),"00"),VALUE(LEFT(dms_FRCP_y10,4)+1)) -> 2031 | G143: dms_FRCP_y11 | H143: =IF(dms_RPT="financial",VALUE(LEFT(dms_CRCP_yQ,4)-1)&"-"&TEXT(VALUE(MID(dms_CRCP_yQ,3,2)),"00"),VALUE(LEFT(dms_CRCP_yQ,4)-1)) -> 2010 | I143: dms_CRCP_yP | J143: 11 | L143: 2015-16 | M143: 2016 | P143: =VALUE(LEFT(dms_CRYf_y10,4)+1)&"-"&TEXT(MID(dms_CRYf_y10,3,2)+2,"00") -> 2028-29 | Q143: dms_CRYf_y11 | R143: =VALUE(LEFT(dms_CRYc_y10,4)+1) -> 2029 | S143: dms_CRYc_y11
B144: 12 | C144: dms_FRCP_y12 | D144: 12 | E144: CRCP_y12 | F144: =IF(dms_RPT="financial",VALUE(LEFT(dms_FRCP_y11,4)+1)&"-"&TEXT(VALUE(RIGHT(dms_FRCP_y11,2)+1),"00"),VALUE(LEFT(dms_FRCP_y11,4)+1)) -> 2032 | G144: dms_FRCP_y12 | H144: =IF(dms_RPT="financial",VALUE(LEFT(dms_CRCP_yP,4)-1)&"-"&TEXT(VALUE(MID(dms_CRCP_yP,3,2)),"00"),VALUE(LEFT(dms_CRCP_yP,4)-1)) -> 2009 | I144: dms_CRCP_yO | J144: 12 | L144: 2016-17 | M144: 2017 | P144: =VALUE(LEFT(dms_CRYf_y11,4)+1)&"-"&TEXT(MID(dms_CRYf_y11,3,2)+2,"00") -> 2029-30 | Q144: dms_CRYf_y12 | R144: =VALUE(LEFT(dms_CRYc_y11,4)+1) -> 2030 | S144: dms_CRYc_y12
B145: 13 | C145: dms_FRCP_y13 | D145: 13 | E145: CRCP_y13 | F145: =IF(dms_RPT="financial",VALUE(LEFT(dms_FRCP_y12,4)+1)&"-"&TEXT(VALUE(RIGHT(dms_FRCP_y12,2)+1),"00"),VALUE(LEFT(dms_FRCP_y12,4)+1)) -> 2033 | G145: dms_FRCP_y13 | H145: =IF(dms_RPT="financial",VALUE(LEFT(dms_CRCP_yO,4)-1)&"-"&TEXT(VALUE(MID(dms_CRCP_yO,3,2)),"00"),VALUE(LEFT(dms_CRCP_yO,4)-1)) -> 2008 | I145: dms_CRCP_yN | J145: 13 | L145: 2017-18 | M145: 2018 | P145: =VALUE(LEFT(dms_CRYf_y12,4)+1)&"-"&TEXT(MID(dms_CRYf_y12,3,2)+2,"00") -> 2030-31 | Q145: dms_CRYf_y13 | R145: =VALUE(LEFT(dms_CRYc_y12,4)+1) -> 2031 | S145: dms_CRYc_y13
B146: 14 | C146: dms_FRCP_y14 | D146: 14 | E146: CRCP_y14 | F146: =IF(dms_RPT="financial",VALUE(LEFT(dms_FRCP_y13,4)+1)&"-"&TEXT(VALUE(RIGHT(dms_FRCP_y13,2)+1),"00"),VALUE(LEFT(dms_FRCP_y13,4)+1)) -> 2034 | G146: dms_FRCP_y14 | H146: =IF(dms_RPT="financial",VALUE(LEFT(dms_CRCP_yN,4)-1)&"-"&TEXT(VALUE(MID(dms_CRCP_yN,3,2)),"00"),VALUE(LEFT(dms_CRCP_yN,4)-1)) -> 2007 | I146: dms_CRCP_yM | J146: 14 | L146: 2018-19 | M146: 2019 | P146: =VALUE(LEFT(dms_CRYf_y13,4)+1)&"-"&TEXT(MID(dms_CRYf_y13,3,2)+2,"00") -> 2031-32 | Q146: dms_CRYf_y14 | R146: =VALUE(LEFT(dms_CRYc_y13,4)+1) -> 2032 | S146: dms_CRYc_y14
B147: 15 | C147: dms_FRCP_y15 | D147: 15 | E147: CRCP_y15 | F147: =IF(dms_RPT="financial",VALUE(LEFT(dms_FRCP_y14,4)+1)&"-"&TEXT(VALUE(RIGHT(dms_FRCP_y14,2)+1),"00"),VALUE(LEFT(dms_FRCP_y14,4)+1)) -> 2035 | G147: dms_FRCP_y15 | H147: =IF(dms_RPT="financial",VALUE(LEFT(dms_CRCP_yM,4)-1)&"-"&TEXT(VALUE(MID(dms_CRCP_yM,3,2)),"00"),VALUE(LEFT(dms_CRCP_yM,4)-1)) -> 2006 | I147: dms_CRCP_yL | J147: 15 | L147: 2019-20 | M147: 2020 | P147: =VALUE(LEFT(dms_CRYf_y14,4)+1)&"-"&TEXT(MID(dms_CRYf_y14,3,2)+2,"00") -> 2032-33 | Q147: dms_CRYf_y15 | R147: =VALUE(LEFT(dms_CRYc_y14,4)+1) -> 2033 | S147: dms_CRYc_y15
L148: 2020-21 | M148: 2021 | P148: =VALUE(LEFT(dms_CRYf_y15,4)+1)&"-"&TEXT(MID(dms_CRYf_y15,3,2)+2,"00") -> 2033-34 | Q148: dms_CRYf_y16 | R148: =VALUE(LEFT(dms_CRYc_y15,4)+1) -> 2034 | S148: dms_CRYc_y16
B149: These are drop down lists for businesses to select the correct FRCP_y1 on the business and other details worksheet. This also populates the column headings in the worksheets | L149: 2021-22 | M149: 2022 | P149: =VALUE(LEFT(dms_CRYf_y16,4)+1)&"-"&TEXT(MID(dms_CRYf_y16,3,2)+2,"00") -> 2034-35 | Q149: dms_CRYf_y17 | R149: =VALUE(LEFT(dms_CRYc_y16,4)+1) -> 2035 | S149: dms_CRYc_y17
B150: dms_RCP_fyear_list | C150: dms_CRY_ListF | D150: dms_CRY_ListC | E150: dms_RCP_cyear_list | F150: dms_FRCP_fyear_list | G150: dms_FRCP_ListF | H150: dms_FRCP_ListC | I150: dms_FRCP_cyear_list | L150: 2022-23 | M150: 2023 | P150: =VALUE(LEFT(dms_CRYf_y17,4)+1)&"-"&TEXT(MID(dms_CRYf_y17,3,2)+2,"00") -> 2035-36 | Q150: dms_CRYf_y18 | R150: =VALUE(LEFT(dms_CRYc_y17,4)+1) -> 2036 | S150: dms_CRYc_y18
B151: dms_y1 | C151: =CRY -> 2018 | D151: 2006 | E151: dms_cy1 | F151: dms_frcp_fy1 | G151: 2010-11 | H151: 2011 | I151: dms_crcp_cy1 | L151: 2023-24 | M151: 2024 | P151: =VALUE(LEFT(dms_CRYf_y18,4)+1)&"-"&TEXT(MID(dms_CRYf_y18,3,2)+2,"00") -> 2036-37 | Q151: dms_CRYf_y19 | R151: =VALUE(LEFT(dms_CRYc_y18,4)+1) -> 2037 | S151: dms_CRYc_y19
B152: dms_y2 | C152: =IF(dms_RPT="financial",VALUE(LEFT(CRY,4)+1)&"-"&TEXT(MID(CRY,3,2)+2,"00"),VALUE(LEFT(CRY,4)+1)) -> 2019 | D152: 2007 | E152: dms_cy2 | F152: dms_frcp_fy2 | G152: 2011-12 | H152: 2012 | I152: dms_crcp_cy2 | L152: 2024-25 | M152: 2025 | P152: =VALUE(LEFT(dms_CRYf_y19,4)+1)&"-"&TEXT(MID(dms_CRYf_y19,3,2)+2,"00") -> 2037-38 | Q152: dms_CRYf_y20 | R152: =VALUE(LEFT(dms_CRYc_y19,4)+1) -> 2038 | S152: dms_CRYc_y20
B153: dms_y3 | C153: =IF(dms_RPT="financial",VALUE(LEFT(dms_fy2,4)+1)&"-"&TEXT(MID(dms_fy2,3,2)+2,"00"),VALUE(LEFT(dms_fy2,4)+1)) -> 2020 | D153: 2008 | E153: dms_cy3 | F153: dms_frcp_fy3 | G153: 2012-13 | H153: 2013 | I153: dms_crcp_cy3 | L153: 2025-26 | M153: 2026
B154: dms_y4 | C154: =IF(dms_RPT="financial",VALUE(LEFT(dms_fy3,4)+1)&"-"&TEXT(MID(dms_fy3,3,2)+2,"00"),VALUE(LEFT(dms_fy3,4)+1)) -> 2021 | D154: 2009 | E154: dms_cy4 | F154: dms_frcp_fy4 | G154: 2013-14 | H154: 2014 | I154: dms_crcp_cy4 | L154: 2026-27 | M154: 2027
B155: dms_y5 | C155: =IF(dms_RPT="financial",VALUE(LEFT(dms_fy4,4)+1)&"-"&TEXT(MID(dms_fy4,3,2)+2,"00"),VALUE(LEFT(dms_fy4,4)+1)) -> 2022 | D155: 2010 | E155: dms_cy5 | F155: dms_frcp_fy5 | G155: 2014-15 | H155: 2015 | I155: dms_crcp_cy5 | L155: 2027-28 | M155: 2028
B156: dms_y6 | C156: =IF(dms_RPT="financial",VALUE(LEFT(dms_fy5,4)+1)&"-"&TEXT(MID(dms_fy5,3,2)+2,"00"),VALUE(LEFT(dms_fy5,4)+1)) -> 2023 | D156: 2011 | E156: dms_cy6 | F156: dms_frcp_fy6 | G156: 2015-16 | H156: 2016 | I156: dms_crcp_cy6 | L156: 2028-29 | M156: 2029
B157: dms_y7 | C157: =IF(dms_RPT="financial",VALUE(LEFT(dms_fy6,4)+1)&"-"&TEXT(MID(dms_fy6,3,2)+2,"00"),VALUE(LEFT(dms_fy6,4)+1)) -> 2024 | D157: 2012 | E157: dms_cy7 | F157: dms_frcp_fy7 | G157: 2016-17 | H157: 2017 | I157: dms_crcp_cy7 | L157: 2029-30 | M157: 2030
B158: dms_y8 | C158: =IF(dms_RPT="financial",VALUE(LEFT(dms_fy7,4)+1)&"-"&TEXT(MID(dms_fy7,3,2)+2,"00"),VALUE(LEFT(dms_fy7,4)+1)) -> 2025 | D158: 2013 | E158: dms_cy8 | F158: dms_frcp_fy8 | G158: 2017-18 | H158: 2018 | I158: dms_crcp_cy8 | L158: 2030-31 | M158: 2031
B159: dms_y9 | C159: =IF(dms_RPT="financial",VALUE(LEFT(dms_fy8,4)+1)&"-"&TEXT(MID(dms_fy8,3,2)+2,"00"),VALUE(LEFT(dms_fy8,4)+1)) -> 2026 | D159: 2014 | E159: dms_cy9 | F159: dms_frcp_fy9 | G159: 2018-19 | H159: 2019 | I159: dms_crcp_cy9 | L159: 2031-32 | M159: 2032
B160: dms_y10 | C160: =IF(dms_RPT="financial",VALUE(LEFT(dms_fy9,4)+1)&"-"&TEXT(MID(dms_fy9,3,2)+2,"00"),VALUE(LEFT(dms_fy9,4)+1)) -> 2027 | D160: 2015 | E160: dms_cy10 | F160: dms_frcp_fy10 | G160: 2019-20 | H160: 2020 | I160: dms_crcp_cy10 | L160: 2032-33 | M160: 2033
B161: dms_y11 | C161: =IF(dms_RPT="financial",VALUE(LEFT(dms_fy10,4)+1)&"-"&TEXT(MID(dms_fy10,3,2)+2,"00"),VALUE(LEFT(dms_fy10,4)+1)) -> 2028 | D161: 2016 | E161: dms_cy11 | F161: dms_frcp_fy11 | G161: 2020-21 | H161: 2021 | I161: dms_crcp_cy11 | L161: 2033-34 | M161: 2034
B162: dms_y12 | C162: =IF(dms_RPT="financial",VALUE(LEFT(dms_fy11,4)+1)&"-"&TEXT(MID(dms_fy11,3,2)+2,"00"),VALUE(LEFT(dms_fy11,4)+1)) -> 2029 | D162: 2017 | E162: dms_cy12 | F162: dms_frcp_fy12 | G162: 2021-22 | H162: 2022 | I162: dms_crcp_cy12 | L162: 2034-35 | M162: 2035
B163: dms_y13 | C163: =IF(dms_RPT="financial",VALUE(LEFT(dms_fy12,4)+1)&"-"&TEXT(MID(dms_fy12,3,2)+2,"00"),VALUE(LEFT(dms_fy12,4)+1)) -> 2030 | D163: 2018 | E163: dms_cy13 | F163: dms_frcp_fy13 | G163: 2022-23 | H163: 2023 | I163: dms_crcp_cy13 | L163: 2035-36 | M163: 2036
B164: dms_y14 | C164: =IF(dms_RPT="financial",VALUE(LEFT(dms_fy13,4)+1)&"-"&TEXT(MID(dms_fy13,3,2)+2,"00"),VALUE(LEFT(dms_fy13,4)+1)) -> 2031 | D164: 2019 | E164: dms_cy14 | F164: dms_frcp_fy14 | G164: 2023-24 | H164: 2024 | I164: dms_crcp_cy14
B165: dms_y15 | C165: =IF(dms_RPT="financial",VALUE(LEFT(dms_fy14,4)+1)&"-"&TEXT(MID(dms_fy14,3,2)+2,"00"),VALUE(LEFT(dms_fy14,4)+1)) -> 2032 | D165: 2020 | E165: dms_cy15 | F165: dms_frcp_fy15 | G165: 2024-25 | H165: 2025 | I165: dms_crcp_cy15
B166: dms_y16 | C166: =IF(dms_RPT="financial",VALUE(LEFT(dms_fy15,4)+1)&"-"&TEXT(MID(dms_fy15,3,2)+2,"00"),VALUE(LEFT(dms_fy15,4)+1)) -> 2033 | D166: 2021 | E166: dms_cy16
B167: dms_y17 | C167: =IF(dms_RPT="financial",VALUE(LEFT(dms_fy16,4)+1)&"-"&TEXT(MID(dms_fy16,3,2)+2,"00"),VALUE(LEFT(dms_fy16,4)+1)) -> 2034 | D167: 2022 | E167: dms_cy17
B168: dms_y18 | C168: =IF(dms_RPT="financial",VALUE(LEFT(dms_fy17,4)+1)&"-"&TEXT(MID(dms_fy17,3,2)+2,"00"),VALUE(LEFT(dms_fy17,4)+1)) -> 2035 | D168: 2023 | E168: dms_cy18
B169: dms_y19 | C169: =IF(dms_RPT="financial",VALUE(LEFT(dms_fy18,4)+1)&"-"&TEXT(MID(dms_fy18,3,2)+2,"00"),VALUE(LEFT(dms_fy18,4)+1)) -> 2036 | D169: 2024 | E169: dms_cy19
B170: dms_y20 | C170: =IF(dms_RPT="financial",VALUE(LEFT(dms_fy19,4)+1)&"-"&TEXT(MID(dms_fy19,3,2)+2,"00"),VALUE(LEFT(dms_fy19)+1)) -> 3 | D170: 2025 | E170: dms_cy20
B176: These "row descriptions" are the column headings in the various templates but become row descriptions in the ETL process
C177: Table 6.3 sustained interruptions - row descriptions
C178: dms_060301_CustNo_Affected_Row | D178: dms_060301_Avg_Duration_Sustained_Int_Row | E178: dms_060301_Effect_unplanned_SAIDI_Row | F178: dms_060301_Effect_unplanned_SAIFI_Row
C179: Number of customers affected by the interruption | D179: Average duration of sustained customer interruption | E179: Effect on unplanned SAIDI | F179: Effect on unplanned SAIFI
C183: Table 6.1 telephone answering - row descriptions and start date
C184: dms_060101_Rows | D184: dms_060102_Rows | E184: dms_060101_StartDateTxt
C185: Total number of calls (after removing excluded events) | D185: Number of calls answered within 30 seconds (after excluding excluded events) | E185: =dms_060701_StartDateTxt -> 1-Jan-2018
H189: dms_0603_FeederList | I189: =INDEX(dms_FeederName_1,MATCH(dms_TradingName,dms_TradingName_List)) -> CBD | J189: =INDEX(dms_FeederName_2,MATCH(dms_TradingName,dms_TradingName_List)) -> Urban | K189: =INDEX(dms_FeederName_3,MATCH(dms_TradingName,dms_TradingName_List)) -> Short rural | L189: =INDEX(dms_FeederName_4,MATCH(dms_TradingName,dms_TradingName_List)) -> Long rural
C190: Table 6.7.1 - daily performance data - unplanned - MAIFI -- row descriptions and header named range values
C191: These headings (Lists) are determined from the INDEX/MATCH function on the NSP selected on the Business & other details sheet
B192: dms_060701_Feeder_Header_Lvl4 | C192: =INDEX(dms_FeederName_1,MATCH(dms_TradingName,dms_TradingName_List)) -> CBD | D192: =INDEX(dms_FeederName_1,MATCH(dms_TradingName,dms_TradingName_List)) -> CBD | E192: =INDEX(dms_FeederName_2,MATCH(dms_TradingName,dms_TradingName_List)) -> Urban | F192: =INDEX(dms_FeederName_2,MATCH(dms_TradingName,dms_TradingName_List)) -> Urban | G192: =INDEX(dms_FeederName_3,MATCH(dms_TradingName,dms_TradingName_List)) -> Short rural | H192: =INDEX(dms_FeederName_3,MATCH(dms_TradingName,dms_TradingName_List)) -> Short rural | I192: =INDEX(dms_FeederName_4,MATCH(dms_TradingName,dms_TradingName_List)) -> Long rural | J192: =INDEX(dms_FeederName_4,MATCH(dms_TradingName,dms_TradingName_List)) -> Long rural | K192: =IF((INDEX(dms_FeederName_5,MATCH(dms_TradingName,dms_TradingName_List))=0),"Network",(INDEX(dms_FeederName_5,MATCH(dms_TradingName,dms_TradingName_List)))) -> Network | L192: =IF((INDEX(dms_FeederName_5,MATCH(dms_TradingName,dms_TradingName_List))=0),"Network",(INDEX(dms_FeederName_5,MATCH(dms_TradingName,dms_TradingName_List)))) -> Network | M192: Network | N192: Network
B194: dms_060701_Rows | C194: All events | D194: After removing excluded events | E194: All events | F194: After removing excluded events | G194: All events | H194: After removing excluded events | I194: All events | J194: After removing excluded events | K194: All events | L194: After removing excluded events | M194: All events | N194: After removing excluded events
C195: the number of column headings changes from 10 to 12 depending on the number of feeder categories for the NSP
C200: Table 6.8.1 - row descriptions
C201: dms_060801_01_Rows | D201: dms_060801_02_Rows | E201: dms_060801_03_Rows | F201: dms_060801_04_Rows
C202: Number of interruptions | D202: Duration of interruptions | E202: Total unplanned minutes off supply | F202: Effect on unplanned MAIFI
C207: Table 7.9.4 - market impact component - row descriptions
B208: dms_070904_01_Rows | C208: without exclusions | D208: with exclusions
C214: Use this to add to existing files
C215: ARRs 6.7 STPIS daily performance
C216: dms_060101_Values | D216: dms_060102_Values | E216: dms_060701_Values
C217: dms_LeapYear
C219: ARR's 6.8 STPIS exclusions
C220: dms_060801_Event_Date | D220: dms_060801_OutageID | E220: dms_060801_FeederID | F220: dms_060801_FeederClass | G220: dms_060801_CauseID | H220: dms_060801_01_Values | I220: dms_060801_02_Values | J220: dms_060801_03_Values | K220: dms_060801_Excl_Cat | L220: dms_060801_04_Values
C221: dms_060801_StartCell
C223: CA 6.3 sustained interruptions
C224: dms_060301_Event_Date | D224: dms_060301_Event_Time | E224: dms_060301_AssetID | F224: dms_060301_FeederClass | G224: dms_060301_Reason | H224: dms_060301_DetailedReason | I224: dms_060301_CustNo_Affected_Values | J224: dms_060301_Avg_Duration_Sustained_Int_Values | K224: dms_060301_Effect_unplanned_SAIDI_Values | L224: dms_060301_Effect_unplanned_SAIFI_Values | M224: dms_060301_MED

Sheet Instructions
B2: =CONCATENATE(dms_Segment," Network Service Provider") -> Distribution Network Service Provider
B3: Annual Reporting RIN Template
C4: =CONCATENATE("This template is to be used by ",dms_TradingName," to fulfil its reporting obligations to the AER.") -> This template is to be used by AusNet (D) to fulfil its reporting obligations to the AER.
C5: INSTRUCTIONS
C6: Complete the Business & other details worksheet before entering data or values in any other worksheets. The Business & other details worksheet is linked to other worksheets within the workbook and automatically generates certain column headings and conditional formatting.
C8: Identifying CONFIDENTIAL INFORMATION: Please use the macro at the top of each worksheet to identify confidential information.
C9: -Do this by selecting the cell or cells that contain confidential information and then run the Mark selection as CONFIDENTIAL macro. This will format the cells a specific colour that is identified by the AER's database which in turn marks that information as confidential. -To reverse this, select the cell or cells and run the Return selection to NON-CONFIDENTIAL macro
C11: UNITS OF MEASURE All amounts are to be unrounded and reported in nominal terms on a one for one basis: that is 1000 is to be entered as '1000'.
C13: COLOUR CODING OF INPUT / NON-INPUT CELLS:
D14: Yellow = Input cell (mandatory)
D15: Darker yellow = input cell (mandatory)
D16: Orange = input cell (if data available)
D17: Grey = Not applicable/No inputs required
D18: Leave coloured cells blank if no information exists. PLEASE DO NOT ENTER TEXT into cells that are to contain numeric data.
C21: WORKSHEET NAVIGATION Many tables in the worksheets have been "grouped" to allow for easy navigation. To ungroup or group data use the outline symbols in the left margin of excel (for Row groupings) or above the columns (for column groupings).
C23: RETURNING COMPLETED RESPONSES Please return four (4) files to the AER: 1. A confidential version which must contain a complete set of all responses with confidential information marked using the Mark selected cells CONFIDENTIAL macro and which has been completed using the locked template file provided by the AER. 2. An actual and an estimate version with confidential information marked using the Mark selected cells CONFIDENTIAL macro and which has been completed using the locked template file provided by the AER. 3. A public version with confidential information either removed completely or aggregated in some form together with writtten consent to disclose the public version of the response. Use the drop down box on the Business and other details worksheet to identify the file as either confidential ('consolidated') or public.
C25: SUBMITTING AMENDED DATA TO THE AER If an NSP wishes to correct data previously submitted to the AER it should resubmit that data using the original completed submission as the starting point. Please make any necessary changes to the data. Data that is not being amended should be left unchanged. NSPs must identify the reason for the amendments in the Amendment Reason box on the Business and other details worksheet. NSPs may provide further details regarding any amendments in the Amendments worksheet. .
C26: NSP may use Amended Data macro to highlight cells that contain amended data. NB: if data is also CONFIDENTIAL, re-apply the Confidentiality macro after applying the Amended macro
C27: Please resubmit two (2) files - a confidential version and a public version of the amended submission to the AER

Sheet Contents
B1: REGULATORY REPORTING STATEMENT
B2: =INDEX(dms_TradingNameFull_List,MATCH(dms_TradingName,dms_TradingName_List)) -> AusNet Electricity Services Pty Ltd
B3: =CONCATENATE((LOOKUP(dms_Model,dms_Model_List,dms_Worksheet_List))&" "&CRY) -> CATEGORY ANALYSIS 2018
B4: CONTENTS
E7: 1. Business details | L7: 2. Expenditure
E27: 4. Alternative control services | L27: 5. Network information | S27: 6. Service & quality

Sheet Business & other details
B1: =IF(dms_DataQuality="backcast",INDEX(dms_Worksheet_List,MATCH(dms_Model,dms_Model_List))&" BACKCAST",INDEX(dms_Worksheet_List,MATCH(dms_Model,dms_Model_List))) -> CATEGORY ANALYSIS
B2: =INDEX(dms_TradingNameFull_List,MATCH(dms_TradingName,dms_TradingName_List)) -> AusNet Electricity Services Pty Ltd
B3: =IF(SUM(dms_SingleYear_Model)>0,CONCATENATE(CRY),CONCATENATE(FRCP_y1," to ",dms_MultiYear_FinalYear_Result)) -> 2018
B4: BUSINESS & OTHER DETAILS
B7: Instructions
B8: Complete the following business details regulatory template before entering data or values in any other regulatory template. This regulatory template is linked to other cells within the spreadsheet and automatically generates column headings and conditional formatting to distinguish business specific input and non-input cells.
B10: SUBMISSION PARTICULARS INPUT SHEETS
B12: ENTITY DETAILS
B14: Short name | C14: AusNet (D) | F14: Select business name from drop down list first
B15: ACN / ABN | C15: =INDEX(dms_ABN_List,MATCH(dms_TradingName,dms_TradingName_List)) -> 91064651118
B18: Business address | C18: Address 1 | E18: =INDEX(dms_Addr1_List,MATCH(dms_TradingName,dms_TradingName_List)) -> Level 32
D19: Address 2 | E19: =IF(ISBLANK(INDEX(dms_Addr2_List,MATCH(dms_TradingName,dms_TradingName_List))),"",(INDEX(dms_Addr2_List,MATCH(dms_TradingName,dms_TradingName_List)))) -> 2 Southbank Boulevard
C20: Suburb | E20: =INDEX(dms_Suburb_List,MATCH(dms_TradingName,dms_TradingName_List)) -> SOUTHBANK
D21: State | E21: =INDEX(dms_State_List,MATCH(dms_TradingName,dms_TradingName_List)) -> Vic | F21: p/code | G21: =INDEX(dms_PostCode_List,MATCH(dms_TradingName,dms_TradingName_List)) -> 3006
B23: Postal address | C23: Address 1 | E23: =INDEX(dms_PAddr1_List,MATCH(dms_TradingName,dms_TradingName_List)) -> Locked Bag 14051
D24: Address 2 | E24: =IF(ISBLANK(INDEX(dms_PAddr2_List,MATCH(dms_TradingName,dms_TradingName_List))),"",(INDEX(dms_PAddr2_List,MATCH(dms_TradingName,dms_TradingName_List)))) -> 
C25: Suburb | E25: =INDEX(dms_PSuburb_List,MATCH(dms_TradingName,dms_TradingName_List)) -> MELBOURNE CITY MAIL CENTRE
D26: State | E26: =INDEX(dms_PState_List,MATCH(dms_TradingName,dms_TradingName_List)) -> VIC | F26: p/code | G26: =INDEX(dms_PPostCode_List,MATCH(dms_TradingName,dms_TradingName_List)) -> 8001
B29: Contact name/s | F29: Clare Thompson
B30: Contact phone/s
B31: Contact email address/s
B33: REGULATORY CONTROL PERIODS
B35: Forthcoming regulatory control period | C35: 2021 | D35: =dms_FRCP_y2 -> 2022 | E35: =dms_FRCP_y3 -> 2023 | F35: =dms_FRCP_y4 -> 2024 | G35: =dms_FRCP_y5 -> 2025
C36: =dms_FRCP_y6 -> 2026 | D36: =dms_FRCP_y7 -> 2027 | E36: =dms_FRCP_y8 -> 2028 | F36: =dms_FRCP_y9 -> 2029 | G36: =dms_FRCP_y10 -> 2030
B39: Current regulatory control period | C39: =dms_CRCP_FirstYear_Result -> 2016 | D39: =IF(dms_RPT="financial",VALUE(LEFT(CRCP_y1,4)+1)&"-"&TEXT(MID(CRCP_y1,3,2)+2,"00"),VALUE(LEFT(CRCP_y1,4)+1)) -> 2017 | E39: =IF(dms_RPT="financial",VALUE(LEFT(CRCP_y1,4)+2)&"-"&TEXT(VALUE(MID(CRCP_y1,3,2)+3),"00"),VALUE(LEFT(CRCP_y1,4)+2)) -> 2018 | F39: =IF(dms_RPT="financial",VALUE(LEFT(CRCP_y1,4)+3)&"-"&TEXT(MID(CRCP_y1,3,2)+4,"00"),VALUE(LEFT(CRCP_y1,4)+3)) -> 2019 | G39: =IF(dms_RPT="financial",VALUE(LEFT(CRCP_y1,4)+4)&"-"&TEXT(MID(CRCP_y1,3,2)+5,"00"),VALUE(LEFT(CRCP_y1,4)+4)) -> 2020
C40: =IF(dms_RPT="financial",VALUE(LEFT(CRCP_y1,4)+5)&"-"&TEXT(MID(CRCP_y1,3,2)+6,"00"),VALUE(LEFT(CRCP_y1,4)+5)) -> 2021 | D40: =IF(dms_RPT="financial",VALUE(LEFT(CRCP_y1,4)+6)&"-"&TEXT(MID(CRCP_y1,3,2)+7,"00"),VALUE(LEFT(CRCP_y1,4)+6)) -> 2022 | E40: =IF(dms_RPT="financial",VALUE(LEFT(CRCP_y1,4)+7)&"-"&TEXT(MID(CRCP_y1,3,2)+8,"00"),VALUE(LEFT(CRCP_y1,4)+7)) -> 2023 | F40: =IF(dms_RPT="financial",VALUE(LEFT(CRCP_y1,4)+8)&"-"&TEXT(MID(CRCP_y1,3,2)+9,"00"),VALUE(LEFT(CRCP_y1,4)+8)) -> 2024 | G40: =IF(dms_RPT="financial",VALUE(LEFT(CRCP_y1,4)+9)&"-"&TEXT(MID(CRCP_y1,3,2)+10,"00"),VALUE(LEFT(CRCP_y1,4)+9)) -> 2025
C41: =IF(dms_RPT="financial",VALUE(LEFT(CRCP_y1,4)+10)&"-"&TEXT(MID(CRCP_y1,3,2)+11,"00"),VALUE(LEFT(CRCP_y1,4)+10)) -> 2026 | D41: =IF(dms_RPT="financial",VALUE(LEFT(CRCP_y1,4)+11)&"-"&TEXT(MID(CRCP_y1,3,2)+12,"00"),VALUE(LEFT(CRCP_y1,4)+11)) -> 2027 | E41: =IF(dms_RPT="financial",VALUE(LEFT(CRCP_y1,4)+12)&"-"&TEXT(MID(CRCP_y1,3,2)+13,"00"),VALUE(LEFT(CRCP_y1,4)+12)) -> 2028 | F41: =IF(dms_RPT="financial",VALUE(LEFT(CRCP_y1,4)+13)&"-"&TEXT(MID(CRCP_y1,3,2)+14,"00"),VALUE(LEFT(CRCP_y1,4)+13)) -> 2029 | G41: =IF(dms_RPT="financial",VALUE(LEFT(CRCP_y1,4)+14)&"-"&TEXT(MID(CRCP_y1,3,2)+15,"00"),VALUE(LEFT(CRCP_y1,4)+14)) -> 2030
B44: Previous regulatory control period | C44: =IF(dms_RPT="financial",VALUE(LEFT(PRCP_y2,4)-1)&"-"&TEXT(VALUE(MID(PRCP_y2,3,2)),"00"),VALUE(LEFT(PRCP_y2,4)-1)) -> 2011 | D44: =IF(dms_RPT="financial",VALUE(LEFT(PRCP_y3,4)-1)&"-"&TEXT(VALUE(MID(PRCP_y3,3,2)),"00"),VALUE(LEFT(PRCP_y3,4)-1)) -> 2012 | E44: =IF(dms_RPT="financial",VALUE(LEFT(PRCP_y4,4)-1)&"-"&TEXT(VALUE(MID(PRCP_y4,3,2)),"00"),VALUE(LEFT(PRCP_y4,4)-1)) -> 2013 | F44: =IF(dms_RPT="financial",VALUE(LEFT(PRCP_y5,4)-1)&"-"&TEXT(VALUE(RIGHT(PRCP_y5,2)-1),"00"),VALUE(LEFT(PRCP_y5,4)-1)) -> 2014 | G44: =IF(dms_RPT="financial",VALUE(LEFT(CRCP_y1,4)-1)&"-"&TEXT(VALUE(RIGHT(CRCP_y1,2)-1),"00"),VALUE(LEFT(CRCP_y1,4)-1)) -> 2015
B48: Commencing regulatory year | C48: 2018 | D48: CRY
B50: Last completed regulatory year | C50: 2018 | D50: dms_FinalYear
C54: IF THIS IS AN ABC RIN - make sure the the named range CRY is applied and the named range dms_dollar_nom_UOM is applied
C55: IF THIS IS A RESET RIN - make sure the named ranges CRY and dms_dollar_nom_UOM are NOT present in the workbook
C56: FOR ABC RINS THAT SPAN MULTIPLE YEARS - make sure MultiYear Flag is set and final year entered as required
B58: Source | C58: Reporting | E58: Please select the correct submission type from the dropdown list.
B59: Data quality (actual, estimate, consolidated) | C59: Consolidated
B60: Confidentiality Status (public, confidential) | C60: Public
B61: Amended RIN submission - amendment reason | C61: .
B62: Submission Date | C62: 30/04/19 | D62: dms_SubmissionDate | E62: Please enter date this file submitted to AER (dd/mm/yyyy)
B63: EBSS - First application of scheme in forthcoming period? | C63: No
B64: Data ingestion data quality | C64: =IF(dms_DQ_2="Confidential","Consolidated","Public") -> Public | D64: dms_DataQuality | E64: =IF(dms_DQ_2="Confidential","Consolidated","Public")
B65: Sector | C65: =INDEX(dms_Sector_List,MATCH(dms_TradingName,dms_TradingName_List)) -> Electricity | D65: dms_Sector | E65: =INDEX(dms_Sector_List,MATCH(dms_TradingName,dms_TradingName_List))
B66: Segment | C66: =INDEX(dms_Segment_List,MATCH(dms_TradingName,dms_TradingName_List)) -> Distribution | D66: dms_Segment | E66: =INDEX(dms_Segment_List,MATCH(dms_TradingName,dms_TradingName_List))
B67: Regulatory Year Ending | C67: =IF(dms_MultiYear_Flag=1,LEFT(dms_Specified_FinalYear,2)&RIGHT(dms_Specified_FinalYear,2),INDEX(dms_RYE_Formula_Result,MATCH(dms_Model,dms_Model_List))) -> 2018 | D67: dms_RYE | E67: =IF(dms_MultiYear_Flag=1,LEFT(dms_Specified_FinalYear,2)&RIGHT(dms_Specified_FinalYear,2),INDEX(dms_RYE_Formula_Result,MATCH(dms_Model,dms_Model_List)))
B68: Reporting Period Type | C68: =INDEX(dms_RPT_List,MATCH(dms_TradingName,dms_TradingName_List)) -> Calendar | D68: dms_RPT | E68: =INDEX(dms_RPT_List,MATCH(dms_TradingName,dms_TradingName_List))
B69: Model or RIN Type | C69: CA | D69: dms_Model | E69: Drop down selection
B70: EB/CA Unit of Measure for Monetary Values | C70: $0s | D70: dms_dollar_nom_UOM | E70: If the cover sheet is attached to an ABC RIN apply the NAMED RANGE to the cell
B71: Security Classification | C71: Public | D71: dms_Classification | E71: Always Public
B72: Jurisdiction | C72: =INDEX(dms_JurisdictionList,MATCH(dms_TradingName,dms_TradingName_List)) -> Vic | D72: dms_Jurisdiction | E72: =INDEX(dms_JurisdictionList,MATCH(dms_TradingName,dms_TradingName_List))
B73: FORECAST and MultiYear RINS
B74: CRY-1 (last full calendar year before CRY) | C74: =IF(dms_RPT="financial",VALUE(LEFT(dms_SingleYear_FinalYear_Result,4)),VALUE(LEFT(dms_SingleYear_FinalYear_Result,4)-1)) -> 2017 | D74: dms_Cal_Year_B4_CRY | E74: '=IF(dms_RPT="financial",VALUE(LEFT(dms_SingleYear_FinalYear_Result,4)),VALUE(LEFT(dms_SingleYear_FinalYear_Result,4)-1))
B75: Dollar $ real month | C75: =INDEX(dms_RPTMonth_List,MATCH(dms_TradingName,dms_TradingName_List)) -> December | D75: dms_RPTMonth | E75: =INDEX(dms_RPTMonth_List,MATCH(dms_TradingName,dms_TradingName_List))
B76: Dollar $ real (the last month before the FRCP_y1) | C76: =IF(SUM(dms_SingleYear_Model)>0,CONCATENATE(dms_RPTMonth)&" "&VALUE((LEFT(CRY,2))&RIGHT(CRY,2)),CONCATENATE(dms_RPTMonth)&" "&VALUE((LEFT(dms_CRCP_FinalYear_Result,2)&RIGHT(dms_CRCP_FinalYear_Result,2)))) -> December 2018 | D76: dms_DollarReal | E76: =IF(SUM(dms_SingleYear_Model)>0,CONCATENATE(dms_RPTMonth)&" "&VALUE((LEFT(CRY,2))&RIGHT(CRY,2)),CONCATENATE(dms_RPTMonth)&" "&VALUE((LEFT(dms_CRCP_FinalYear_Result,2)&RIGHT(dms_CRCP_FinalYear_Result,2))))
B77: Dollar $ real previous year (PRCP_y5) | C77: =IF(SUM(dms_SingleYear_Model)>0,CONCATENATE(dms_RPTMonth)&" "&VALUE(((LEFT(CRY,2))&RIGHT(CRY,2))-1),CONCATENATE(dms_RPTMonth)&" "&VALUE(((LEFT(dms_CRCP_FirstYear_Result,2)&RIGHT(dms_CRCP_FirstYear_Result,2))))-1) -> December 2017 | D77: dms_DollarReal_Prev | E77: =IF(SUM(dms_SingleYear_Model)>0,CONCATENATE(dms_RPTMonth)&" "&VALUE(((LEFT(CRY,2))&RIGHT(CRY,2))-1),CONCATENATE(dms_RPTMonth)&" "&VALUE(((LEFT(dms_CRCP_FirstYear_Result,2)&RIGHT(dms_CRCP_FirstYear_Result,2))))-1)
B78: This block works out the various RYE's for ALL RIN types and MODELS
B79: Single Year Model T/F | C79: =IF(dms_Model="EB",1,0) -> 0 | D79: dms_EB
C80: =IF(dms_Model="CA",1,0) -> 1 | D80: dms_CA | E80: =dms_SingleYear_Model
C81: =IF(dms_Model="ARR",1,0) -> 0 | D81: dms_ARR
B82: Is this a single Year RIN? | C82: =IF(SUM(dms_SingleYear_Model)=1,"yes","no") -> yes | D82: dms_SingleYearModel | E82: =IF(SUM(dms_SingleYear_Model)=1,"yes","no")
B83: Single Year Final Year Reference | C83: CRY | D83: dms_SingleYear_FinalYear_Ref | E83: This is the reference for EB, CA & ARR RINs
B84: Single Year Final Year Result | C84: =IFERROR(IF(SUM(dms_SingleYear_Model)<>0,(INDIRECT(dms_SingleYear_FinalYear_Ref)),"not a single year RIN"),"CRY not present") -> 2018 | D84: dms_SingleYear_FinalYear_Result | E84: =IFERROR(IF(SUM(dms_SingleYear_Model)<>0,(INDIRECT(dms_SingleYear_FinalYear_Ref)),"not a single year RIN"),"CRY not present")
B85: FRCP length in years | C85: =INDEX(dms_FRCPlength_List,MATCH(dms_TradingName,dms_TradingName_List)) -> 5 | D85: dms_FRCPlength_Num | E85: =INDEX(dms_FRCPlength_List,MATCH(dms_TradingName,dms_TradingName_List))
B86: Multi Year Final Year Reference | C86: =INDEX(dms_FinalYear_List,MATCH(dms_FRCPlength_Num,dms_FRCPlength_Num_List)) -> dms_FRCP_y5 | D86: dms_MultiYear_FinalYear_Ref | E86: =INDEX(dms_FinalYear_List,MATCH(dms_FRCPlength_Num,dms_FRCPlength_Num_List))
B87: Multi Year Final Year Result | C87: =IF(dms_MultiYear_Flag=0,INDIRECT(dms_MultiYear_FinalYear_Ref),dms_Specified_FinalYear) -> 2025 | D87: dms_MultiYear_FinalYear_Result | E87: =IF(dms_MultiYear_Flag=0,INDIRECT(dms_MultiYear_FinalYear_Ref),dms_Specified_FinalYear) | I87: Formula errors OK
B88: CRCP length in years | C88: =INDEX(dms_CRCPlength_List,MATCH(dms_TradingName,dms_TradingName_List)) -> 5 | D88: dms_CRCPlength_Num | E88: =INDEX(dms_CRCPlength_List,MATCH(dms_TradingName,dms_TradingName_List))
B89: CRCP Final Year Reference | C89: =INDEX(dms_CFinalYear_List,MATCH(dms_CRCPlength_Num,dms_CRCPlength_Num_List)) -> CRCP_y5 | D89: dms_CRCP_FinalYear_Ref | E89: =INDEX(dms_CFinalYear_List,MATCH(dms_CRCPlength_Num,dms_CRCPlength_Num_List))
B90: CRCP First Year Result | C90: =INDEX(dms_CRCP_years,MATCH(dms_CRCPlength_Num,dms_CRCP_index)) -> 2016 | D90: dms_CRCP_FirstYear_Result | E90: =INDEX(dms_CRCP_years,MATCH(dms_CRCPlength_Num,dms_CRCP_index))
B91: CRCP Final Year Result | C91: =IF(dms_MultiYear_Flag=0,(IF(SUM(dms_SingleYear_Model)>0,CRY,dms_CRCP_yZ)),dms_Specified_FinalYear) -> 2018 | D91: dms_CRCP_FinalYear_Result | E91: =IF(dms_MultiYear_Flag=0,(IF(SUM(dms_SingleYear_Model)>0,CRY,dms_CRCP_yZ)),dms_Specified_FinalYear)
B92: PTRM/ RFMs
B93: Form of control | C93: =INDEX(dms_FormControl_List,MATCH(dms_TradingName,dms_TradingName_List)) -> Revenue cap | D93: dms_FormControl | E93: =INDEX(dms_FormControl_List,MATCH(dms_TradingName,dms_TradingName_List))
B94: ABC RINS THAT SPAN MULTIPLE YEARS
B95: Is this a multi year ABC RIN? | C95: No
B96: Multiyear EB, CA or ARR? | C96: =IF(dms_MultiYear_ResponseFlag="No",0,1) -> 0 | D96: dms_MultiYear_Flag | E96: This is set from the answer provided above
C97: =IF(dms_MultiYear_Flag=1,FRY,"not a Multiple year submission") -> not a Multiple year submission | D97: dms_Specified_FinalYear | E97: The result here is returned to dms_CRCP_FinalYear_Result if response to Q in C73 is "yes" and dms_MultiYear_Flag is set to 1
B98: Start year for 5.2 in Multi year ABC RINS | C98: =IFERROR(IF(dms_MultiYear_Flag=1,FRY,CRY),"not an ABC") -> 2018 | D98: dms_0502_Inst_Year | E98: =IF(dms_MultiYear_Flag=1,FRY,CRY) | G98: For single year RINS this is CRY - multi year RINS need to start a the end of the span of years (ie. FRY)
B99: EB RINS
B100: Calendar Year for table 3.6 data | C100: =IF(dms_MultiYear_Flag=0,CRY, FRY) -> 2018 | D100: dms_0306_Year | E100: =IF(dms_MultiYear_Flag=0,CRY, FRY)
B101: CA RINS
B102: Find how many rows in tables 6.3 sustained interruptions? | E102: dms_060301_MaxRows only returns a valid value when cover sheet is attached to a CA file
C103: =IF(dms_Model<>"CA","not a CA","Is a CA") -> Is a CA | E103: =IF(dms_Model<>"CA","not a CA","Is a CA")
B104: dms_060301_Avg_Duration_Sustained_Int_Values present? | C104: =IFERROR(IF(INDEX(dms_060301_Avg_Duration_Sustained_Int_Values,1,1)<>"","yes","no"),"no") -> yes | D104: dms_060301_checkvalue | E104: =IFERROR(IF(INDEX(dms_060301_Avg_Duration_Sustained_Int_Values,1,1)<>"","yes","no"),"no")
C105: =IF(AND(dms_Model="CA",(dms_060301_checkvalue="no")),"error - NR not present","no errors") -> no errors | E105: =IF(AND(dms_Model="CA",(dms_060301_checkvalue="no")),"error - NR not present","no errors")
B106: Table 6.3.1 - last row reference | C106: =IFERROR(IF(dms_Model="CA",LOOKUP(2,1/(dms_060301_Avg_Duration_Sustained_Int_Values<>""),(ROW(dms_060301_Avg_Duration_Sustained_Int_Values))),"not a CA"),"6.3 not present") -> 21794 | D106: dms_060301_LastRow | E106: =IFERROR(IF(dms_Model="CA",LOOKUP(2,1/(dms_060301_Avg_Duration_Sustained_Int_Values<>""),(ROW(dms_060301_Avg_Duration_Sustained_Int_Values))),"not a CA"),"6.3 not present")
B107: Table 6.3.1 - max number rows | C107: =IFERROR(IF(dms_Model="CA",(dms_060301_LastRow-15),"not a CA"),"error") -> 21779 | D107: dms_060301_MaxRows | E107: =IFERROR(IF(dms_Model="CA",(dms_060301_LastRow-15),"not a CA"),"error")
B108: Table 6.6.3 - Public lighting repair - no. business days | C108: =INDEX(dms_663_List,MATCH(dms_TradingName,dms_TradingName_List)) -> 2 | D108: dms_663 | E108: =INDEX(dms_663_List,MATCH(dms_TradingName,dms_TradingName_List))
B109: ARR or RESET RINS
B110: How many rows in tables 6.1 or 6.7? (leap year?) | C110: insert dms_LeapYear NR if required | E110: 'dms_LeapYear is used to determine dms_060701_Max_Rows BUT it is only found on worksheet 6.1 or 6.7 and the date value in the cell is used to determine whether it is a leap year
B111: Is dms_LeapYear named range present? | C111: =IFERROR(IF(dms_LeapYear,"yes"),"no") -> no
B112: Table 6.7.1 - includes a leap year? | C112: =IFERROR(IF(MONTH(DATE(YEAR(dms_LeapYear),2,29))=2,"is a leap year","not a leap year"), "dms_LeapYear not present") -> dms_LeapYear not present | D112: dms_LeapYear_Result | E112: =IFERROR(IF(MONTH(DATE(YEAR(dms_LeapYear),2,29))=2,"is a leap year","not a leap year"),"dms_LeapYear not present")
B113: MaxRows if Reset and leap year | C113: =IF(dms_LeapYear_Result="is a leap year",1827,1826) -> 1826 | D113: dms_060701_Reset_MaxRows | E113: =IF(dms_LeapYear_Result="is a leap year",1827,1826) | H113: number of days present in Reset RIN table
B114: MaxRows if ARR and leap year | C114: =IF(dms_LeapYear_Result="is a leap year",366,365) -> 365 | D114: dms_060701_ARR_MaxRows | E114: =IF(dms_LeapYear_Result="is a leap year",366,365) | H114: number of days present in ARR RIN table
B115: Table 6.7.1 - Max Rows (leap year/ non leap year) | C115: =IF(dms_Model="ARR",dms_060701_ARR_MaxRows,IF(dms_Model="Reset",dms_060701_Reset_MaxRows,"not a relevant RIN type")) -> not a relevant RIN type | D115: dms_060701_MaxRows | E115: =IF(dms_Model="ARR",dms_060701_ARR_MaxRows,IF(dms_Model="Reset",dms_060701_Reset_MaxRows,"not a relevant RIN type"))
B116: How many columns in 6.7? (4 or 5 feeder categories) | C116: =IF(dms_FifthFeeder_flag_NSP="NO","This NSP has only 4 feeder categories","This NSP has 5 feeder categories") -> This NSP has only 4 feeder categories
B117: Table 6.7.1 - Last column (# of feeder categories > 4) | C117: =IF(dms_FifthFeeder_flag_NSP="NO",10,12) -> 10 | D117: dms_060701_MaxCols | E117: =IF(dms_FifthFeeder_flag_NSP="NO",8,10)
B118: Table 6.7.1 - Number of offset rows | C118: =IF(dms_Model="ARR",15,9) -> 9 | D118: dms_060701_OffsetRows | E118: =IF(dms_Model="ARR",15,9)
B119: Start date for telephone answering in 6.1 or 6.7? | E119: Using 060101 as naming standard not 060701 for start dates
B120: Table 6.1.1 and 6.7.1 - Start Date as Text | C120: =IF(dms_SingleYearModel="yes",(CONCATENATE(IF(LEN(CRY)=4,"1-Jan-","1-Jul-"),LEFT(CRY,4))),(CONCATENATE(IF(LEN(PRCP_y4)=4,"1-Jan-","1-Jul-"),LEFT(PRCP_y4,4)))) -> 1-Jan-2018 | D120: dms_060101_StartDateTxt | E120: =IF(SUM(dms_SingleYear_Model)>1,(CONCATENATE(IF(LEN(CRY)=4,"1-Jan-","1-Jul-"),LEFT(CRY,4))),(CONCATENATE(IF(LEN(CRCP_y4)=4,"1-Jan-","1-Jul-"),LEFT(CRCP_y4,4))))
B121: Table 6.1.1 and 6.7.1 - Start Date as Date Value | C121: =DATEVALUE(dms_060701_StartDateTxt) -> 43101 | D121: dms_060101_StartDateVal | E121: =DATEVALUE(dms_060701_StartDateTxt)
B122: ARRs
B123: How many rows in table 6.8? | C123: insert dms_060801_StartCell NR if required | E123: dms_060801_StartCell is only found on worksheet 6.8 and is used to determine the starting date for the date range
B124: Is dms_060801_StartCell named range present? | C124: yes | E124: =IFERROR(IF((ROW(dms_060801_StartCell)-1)=1,"yes","yes"),"no")
B125: Table 6.8 - Number of offset rows | C125: 12 | D125: dms_0608_OffsetRows | E125: =IFERROR(IF(dms_Model="ARR",(ROW(dms_060801_StartCell)-1),"not an ARR"),"6.8 error")
B126: Table 6.8 - Last row | C126: 0 | D126: dms_0608_LastRow | E126: =IFERROR(IF(dms_060801_StartCell<>"",IF(dms_Model="ARR",(LOOKUP(2,1/(dms_060801_01_Values<>""),(ROW(dms_060801_01_Values)))),"not an ARR"),0),"0")
B127: Table 6.8 - MaxRows | C127: =IFERROR(IF(dms_Model="ARR",(MAX(0,dms_0608_LastRow-dms_0608_OffsetRows)),"not an ARR"),"0") -> not an ARR | D127: dms_060801_MaxRows | E127: =IFERROR(IF(dms_Model="ARR",(MAX(0,dms_0608_LastRow-dms_0608_OffsetRows)),"not an ARR"),"0")
B128: TNSP RESET RINS
B129: Table 7.9.4 only appears in TNSPs Reset RIN
B130: Table 7.9.4 - first year | C130: =LEFT(PRCP_y3,4) -> 2013 | D130: dms_070904_Start_Year | E130: =LEFT(PRCP_y3,4)
B131: SUBSET FILES
B132: Is this Submission File a Subset File | C132: NO | D132: dms_Partial
B133: MISC
B134: Distribution Determination Reference | C134: =INDEX(dms_DeterminationRef_List,MATCH(dms_TradingName,dms_TradingName_List)) -> 2016-20 Distribution Determination | D134: dms_DeterminationRef
B135: Public lighting NSP? | C135: =INDEX(dms_Public_Lighting_List,MATCH(dms_TradingName,dms_TradingName_List)) -> YES | D135: dms_Public_Lighting | E135: =INDEX(dms_Public_Lighting_List,MATCH(dms_TradingName,dms_TradingName_List))
B136: CBD Feeder for this business | C136: =INDEX(dms_CBD_flag,MATCH(dms_TradingName,dms_TradingName_List)) -> NO | D136: dms_CBD_flag_NSP
B137: Urban Feeder for this business | C137: =INDEX(dms_Urban_flag,MATCH(dms_TradingName,dms_TradingName_List)) -> YES | D137: dms_Urban_flag_NSP
B138: Short rural Feeder for this business | C138: =INDEX(dms_ShortRural_flag,MATCH(dms_TradingName,dms_TradingName_List)) -> YES | D138: dms_ShortRural_flag_NSP
B139: Long rural Feeder for this business | C139: =INDEX(dms_LongRural_flag,MATCH(dms_TradingName,dms_TradingName_List)) -> YES | D139: dms_LongRural_flag_NSP
B140: Fifth Feeder Category (eg. TasNetworks (D)) | C140: =INDEX(dms_FeederType_5_flag,MATCH(dms_TradingName,dms_TradingName_List)) -> NO | D140: dms_FifthFeeder_flag_NSP | E140: =INDEX(dms_FeederType_5_flag,MATCH(dms_TradingName,dms_TradingName_List))
B142: DISCARD FILES
B143: discard this record? | C143: NO | D143: dms_DISCARD | E143: If record is to be discarded from DB set this flag to YES
B145: USES NAMED RANGES FLAG | C145: yes | D145: dms_Defined_Names_Used
B147: REGULATORY YEARS FOR MULTI RYE SUBMISSIONS
B148: Multiple RYE flag | C148: NO | D148: dms_Multi_RYE_flag
C149: Manually specify RYE | D149: Named ranges to apply
C150: 2013 | D150: dms_RYE_01
C151: 2014 | D151: dms_RYE_02
C152: 2015 | D152: dms_RYE_03
C153: 2016 | D153: dms_RYE_04
C154: 2017 | D154: dms_RYE_05
C155: 2018 | D155: dms_RYE_06
C156: 2019 | D156: dms_RYE_07
C157: 2020 | D157: dms_RYE_08
C158: 2021 | D158: dms_RYE_09

Sheet 2.1 Expenditure summary
B1: REGULATORY REPORTING STATEMENT
B2: =INDEX(dms_TradingNameFull_List,MATCH(dms_TradingName,dms_TradingName_List)) -> AusNet Electricity Services Pty Ltd
B3: =CONCATENATE((LOOKUP(dms_Model,dms_Model_List,dms_Worksheet_List))&" "&CRY) -> CATEGORY ANALYSIS 2018
B4: 2.1 EXPENDITURE SUMMARY & RECONCILIATION
B6: There are SIX tables on this worksheet. Each has been grouped for ease of navigation. See the Instructions sheet on how to group or ungroup tables.
B8: 2.1.1 - STANDARD CONTROL SERVICES CAPEX
C9: EXPENDITURE ($0's)
C10: =CRY -> 2018
B11: Replacement expenditure | C11: 138581466.5
B12: Connections | C12: 65323888.06
B13: Augmentation Expenditure | C13: 98382351.16
B14: Non-network | C14: 44891179.81
B15: Capitalised network overheads | C15: 30691961.26
B16: Capitalised corporate overheads | C16: 3102633.561
B17: Metering | C17: 0
B18: Public Lighting | C18: 0
B26: balancing item | C26: 0
B27: capcons (included in the above) | C27: -23213594.07
B28: TOTAL GROSS CAPEX (including capcons) | C28: =+SUM(C11:C26) -> 380973480.4
B30: 2.1.2 - STANDARD CONTROL SERVICES OPEX
C31: EXPENDITURE ($0's)
C32: =CRY -> 2018
B33: Vegetation management | C33: 31377588.04
B34: Maintenance | C34: 21685990
B35: Emergency response | C35: 18327659.94
B36: Non-network | C36: 32178133.04
B37: Network overheads | C37: 73745872.95
B38: Corporate overheads | C38: 20888463.2
B39: Metering | C39: 7374946.636
B40: Public Lighting | C40: 0
B48: balancing item
B49: TOTAL OPEX | C49: =+SUM(C33:C48) -> 205578653.8
B51: 2.1.3 - ALTERNATIVE CONTROL SERVICES CAPEX
C52: EXPENDITURE ($0's)
C53: =CRY -> 2018
B54: Connections | C54: 9624686.5
B55: Capitalised network overheads | C55: 3116482.79
B56: Capitalised corporate overheads | C56: 0
B57: Metering | C57: 13151190.02
B58: Public lighting | C58: 7431590.031
B59: Fee and quoted | C59: 9624686.5
B67: balancing item | C67: -10986942.6
B68: TOTAL CAPEX | C68: =+SUM(C54:C67) -> 31961693.24
B70: 2.1.4 - ALTERNATIVE CONTROL SERVICES OPEX
C71: EXPENDITURE ($0's)
C72: =CRY -> 2018
B73: Connections | C73: 0
B74: Network overheads | C74: 0
B75: Corporate overheads | C75: 0
B76: Metering | C76: 18246004.85
B77: Public lighting | C77: 2966870.86
B78: Fee and quoted | C78: 7787292.9
B86: balancing item | C86: -1570319.14
B87: TOTAL OPEX | C87: =+SUM(C73:C86) -> 27429849.47
B89: 2.1.5 - DUAL FUNCTION ASSETS CAPEX
C90: EXPENDITURE ($0's)
C91: =CRY -> 2018
B92: Replacement expenditure | C92: 0
B93: Connections | C93: 0
B94: Augmentation Expenditure | C94: 0
B95: Non-network | C95: 0
B96: Capitalised network overheads | C96: 0
B97: Capitalised corporate overheads | C97: 0
B105: balancing item | C105: 0
B106: capcons (included in the above) | C106: 0
B107: TOTAL GROSS CAPEX (including capcons) | C107: =SUM(C92:C105) -> 0
B109: 2.1.6 - DUAL FUNCTION ASSETS OPEX
C110: EXPENDITURE ($0's)
C111: =CRY -> 2018
B112: Vegetation management | C112: 0
B113: Maintenance | C113: 0
B114: Emergency response | C114: 0
B115: Non-network | C115: 0
B116: Network overheads | C116: 0
B117: Corporate overheads | C117: 0
B125: balancing item | C125: 0
B126: TOTAL OPEX | C126: =SUM(C112:C125) -> 0

Sheet 2.2 Repex
B1: REGULATORY REPORTING STATEMENT
B2: =INDEX(dms_TradingNameFull_List,MATCH(dms_TradingName,dms_TradingName_List)) -> AusNet Electricity Services Pty Ltd
B3: =CONCATENATE((LOOKUP(dms_Model,dms_Model_List,dms_Worksheet_List))&" "&CRY) -> CATEGORY ANALYSIS 2018
B4: 2.2 REPEX
B6: There are TWO tables on this worksheet. Each has been grouped for ease of navigation. See the Instructions sheet on how to group or ungroup tables.
B8: 2.2.1 - REPLACEMENT EXPENDITURE, VOLUMES AND ASSET FAILURES BY ASSET CATEGORY
E9: EXPENDITURE ($0's) | F9: ASSET REPLACEMENTS (0's) | G9: ASSET FAILURES (0's)
B10: ASSET GROUP | C10: ASSET CATEGORY | E10: =CRY -> 2018 | F10: =CRY -> 2018 | G10: =CRY -> 2018
B11: POLES BY: HIGHEST OPERATING VOLTAGE ; MATERIAL TYPE; STAKING (IF WOOD) | C11: Staking of a wooden pole | E11: ='[2]2.2 Repex'!AI11 -> 918409.4806 | F11: ='[2]2.2 Repex'!AJ11 -> 688.2159072 | G11: ='[2]2.2 Repex'!AK11 -> 0
C12: ˂ = 1 kV; Wood | E12: ='[2]2.2 Repex'!AI12 -> 7379895.895 | F12: ='[2]2.2 Repex'!AJ12 -> 1179.358802 | G12: ='[2]2.2 Repex'!AK12 -> 2707.271299
C13: > 1 kV & < = 11 kV; Wood | E13: ='[2]2.2 Repex'!AI13 -> 694.6108447 | F13: ='[2]2.2 Repex'!AJ13 -> 0.159962819 | G13: ='[2]2.2 Repex'!AK13 -> 0.3672018625
C14: ˃ 11 kV & < = 22 kV; Wood | E14: ='[2]2.2 Repex'!AI14 -> 13327662.76 | F14: ='[2]2.2 Repex'!AJ14 -> 1283.741049 | G14: ='[2]2.2 Repex'!AK14 -> 2946.885451
C15: > 22 kV & < = 66 kV; Wood | E15: ='[2]2.2 Repex'!AI15 -> 573037.6366 | F15: ='[2]2.2 Repex'!AJ15 -> 32.72815169 | G15: ='[2]2.2 Repex'!AK15 -> 75.12894765
C16: > 66 kV & < = 132 kV; Wood | E16: ='[2]2.2 Repex'!AI16 -> 0 | F16: ='[2]2.2 Repex'!AJ16 -> 0 | G16: ='[2]2.2 Repex'!AK16 -> 0
C17: > 132 kV; Wood | E17: ='[2]2.2 Repex'!AI17 -> 0 | F17: ='[2]2.2 Repex'!AJ17 -> 0 | G17: ='[2]2.2 Repex'!AK17 -> 0
C18: ˂ = 1 kV; Concrete | E18: ='[2]2.2 Repex'!AI18 -> 2262341.204 | F18: ='[2]2.2 Repex'!AJ18 -> 340.9121565 | G18: ='[2]2.2 Repex'!AK18 -> 782.5792243
C19: > 1 kV & < = 11 kV; Concrete | E19: ='[2]2.2 Repex'!AI19 -> 229.9882061 | F19: ='[2]2.2 Repex'!AJ19 -> 0.05296427787 | G19: ='[2]2.2 Repex'!AK19 -> 0.1215818876
C20: ˃ 11 kV & < = 22 kV; Concrete | E20: ='[2]2.2 Repex'!AI20 -> 13196726.1 | F20: ='[2]2.2 Repex'!AJ20 -> 1333.71659 | G20: ='[2]2.2 Repex'!AK20 -> 3061.60656
C21: > 22 kV & < = 66 kV; Concrete | E21: ='[2]2.2 Repex'!AI21 -> 3467830.111 | F21: ='[2]2.2 Repex'!AJ21 -> 167.5962416 | G21: ='[2]2.2 Repex'!AK21 -> 384.7247283
C22: > 66 kV & < = 132 kV; Concrete | E22: ='[2]2.2 Repex'!AI22 -> 0 | F22: ='[2]2.2 Repex'!AJ22 -> 0 | G22: ='[2]2.2 Repex'!AK22 -> 0
C23: > 132 kV; Concrete | E23: ='[2]2.2 Repex'!AI23 -> 0 | F23: ='[2]2.2 Repex'!AJ23 -> 0 | G23: ='[2]2.2 Repex'!AK23 -> 0
C24: ˂ = 1 kV; Steel | E24: ='[2]2.2 Repex'!AI24 -> 385.63679 | F24: ='[2]2.2 Repex'!AJ24 -> 0.08880878915 | G24: ='[2]2.2 Repex'!AK24 -> 0.2038645792
C25: > 1 kV & < = 11 kV; Steel | E25: ='[2]2.2 Repex'!AI25 -> 2.323113193 | F25: ='[2]2.2 Repex'!AJ25 -> 0.0005349927057 | G25: ='[2]2.2 Repex'!AK25 -> 0.001228099875
C26: ˃ 11 kV & < = 22 kV; Steel | E26: ='[2]2.2 Repex'!AI26 -> 0 | F26: ='[2]2.2 Repex'!AJ26 -> 0 | G26: ='[2]2.2 Repex'!AK26 -> 0
C27: > 22 kV & < = 66 kV; Steel | E27: ='[2]2.2 Repex'!AI27 -> 56.91627323 | F27: ='[2]2.2 Repex'!AJ27 -> 0.01310732129 | G27: ='[2]2.2 Repex'!AK27 -> 0.03008844693
C28: > 66 kV & < = 132 kV; Steel | E28: ='[2]2.2 Repex'!AI28 -> 0 | F28: ='[2]2.2 Repex'!AJ28 -> 0 | G28: ='[2]2.2 Repex'!AK28 -> 0
C29: > 132 kV; Steel | E29: ='[2]2.2 Repex'!AI29 -> 0 | F29: ='[2]2.2 Repex'!AJ29 -> 0 | G29: ='[2]2.2 Repex'!AK29 -> 0
C30: Other | E30: ='[2]2.2 Repex'!AI30 -> 80551.34 | F30: ='[2]2.2 Repex'!AJ30 -> 2 | G30: ='[2]2.2 Repex'!AK30 -> 4.591090164
B31: POLE TOP STRUCTURES BY: HIGHEST OPERATING VOLTAGE | C31: ˂ = 1 kV | E31: ='[2]2.2 Repex'!AI31 -> 5944347.86 | F31: ='[2]2.2 Repex'!AJ31 -> 4864.849405 | G31: ='[2]2.2 Repex'!AK31 -> 11423.36295
C32: > 1 kV & < = 11 kV | E32: ='[2]2.2 Repex'!AI32 -> 0 | F32: ='[2]2.2 Repex'!AJ32 -> 0 | G32: ='[2]2.2 Repex'!AK32 -> 0
C33: ˃ 11 kV & < = 22 kV | E33: ='[2]2.2 Repex'!AI33 -> 3063695.578 | F33: ='[2]2.2 Repex'!AJ33 -> 2369.354616 | G33: ='[2]2.2 Repex'!AK33 -> 5563.583881
C34: > 22 kV & < = 66 kV | E34: ='[2]2.2 Repex'!AI34 -> 22017.36221 | F34: ='[2]2.2 Repex'!AJ34 -> 41.6132534 | G34: ='[2]2.2 Repex'!AK34 -> 97.71387716
C35: > 66 kV & < = 132 kV | E35: ='[2]2.2 Repex'!AI35 -> 203.9763648 | F35: ='[2]2.2 Repex'!AJ35 -> 1.300414169 | G35: ='[2]2.2 Repex'!AK35 -> 3.053558661
C36: > 132 kV | E36: ='[2]2.2 Repex'!AI36 -> 0 | F36: ='[2]2.2 Repex'!AJ36 -> 0 | G36: ='[2]2.2 Repex'!AK36 -> 0
C37: Other | E37: ='[2]2.2 Repex'!AI37 -> 1243134.454 | F37: ='[2]2.2 Repex'!AJ37 -> 3032.565842 | G37: ='[2]2.2 Repex'!AK37 -> 7120.898798
B38: OVERHEAD CONDUCTORS BY: HIGHEST OPERATING VOLTAGE; NUMBER OF PHASES (AT HV) | C38: ˂ = 1 kV | E38: ='[2]2.2 Repex'!AI38 -> 113965.8325 | F38: ='[2]2.2 Repex'!AJ38 -> 1.977862896 | G38: ='[2]2.2 Repex'!AK38 -> 243.7255874
C39: > 1 kV & < = 11 kV | E39: ='[2]2.2 Repex'!AI39 -> 341.8888432 | F39: ='[2]2.2 Repex'!AJ39 -> 0.005768316924 | G39: ='[2]2.2 Repex'!AK39 -> 0.710810862
C40: ˃ 11 kV & < = 22 kV ; SWER | E40: ='[2]2.2 Repex'!AI40 -> 796188.1873 | F40: ='[2]2.2 Repex'!AJ40 -> 14.2914178 | G40: ='[2]2.2 Repex'!AK40 -> 1761.084757
C41: ˃ 11 kV & < = 22 kV ; Single-Phase | E41: ='[2]2.2 Repex'!AI41 -> 3054267.628 | F41: ='[2]2.2 Repex'!AJ41 -> 30.32795561 | G41: ='[2]2.2 Repex'!AK41 -> 3737.214955
C42: ˃ 11 kV & < = 22 kV ; Multiple-Phase | E42: ='[2]2.2 Repex'!AI42 -> 7716897.512 | F42: ='[2]2.2 Repex'!AJ42 -> 76.49824368 | G42: ='[2]2.2 Repex'!AK42 -> 9426.628815
C43: > 22 kV & < = 66 kV | E43: ='[2]2.2 Repex'!AI43 -> 15019.1169 | F43: ='[2]2.2 Repex'!AJ43 -> 0 | G43: ='[2]2.2 Repex'!AK43 -> 0
C44: > 66 kV & < = 132 kV | E44: ='[2]2.2 Repex'!AI44 -> 0 | F44: ='[2]2.2 Repex'!AJ44 -> 0 | G44: ='[2]2.2 Repex'!AK44 -> 0
C45: > 132 kV | E45: ='[2]2.2 Repex'!AI45 -> 0 | F45: ='[2]2.2 Repex'!AJ45 -> 0 | G45: ='[2]2.2 Repex'!AK45 -> 0
C46: Other | E46: ='[2]2.2 Repex'!AI46 -> 0 | F46: ='[2]2.2 Repex'!AJ46 -> 0 | G46: ='[2]2.2 Repex'!AK46 -> 0
B47: UNDERGROUND CABLES BY: HIGHEST OPERATING VOLTAGE | C47: ˂ = 1 kV | E47: ='[2]2.2 Repex'!AI47 -> 1323262.512 | F47: ='[2]2.2 Repex'!AJ47 -> 1038.946244 | G47: ='[2]2.2 Repex'!AK47 -> 0
C48: > 1 kV & < = 11 kV | E48: ='[2]2.2 Repex'!AI48 -> 7141.01003 | F48: ='[2]2.2 Repex'!AJ48 -> 3.582573254 | G48: ='[2]2.2 Repex'!AK48 -> 0
C49: > 11 kV & < = 22 kV | E49: ='[2]2.2 Repex'!AI49 -> 3298790.986 | F49: ='[2]2.2 Repex'!AJ49 -> 112.617947 | G49: ='[2]2.2 Repex'!AK49 -> 0
C50: > 22 kV & < = 33 kV | E50: ='[2]2.2 Repex'!AI50 -> 0 | F50: ='[2]2.2 Repex'!AJ50 -> 0 | G50: ='[2]2.2 Repex'!AK50 -> 0
C51: > 33 kV & < = 66 kV | E51: ='[2]2.2 Repex'!AI51 -> 0 | F51: ='[2]2.2 Repex'!AJ51 -> 0 | G51: ='[2]2.2 Repex'!AK51 -> 0
C52: > 66 kV & < = 132 kV | E52: ='[2]2.2 Repex'!AI52 -> 0 | F52: ='[2]2.2 Repex'!AJ52 -> 0 | G52: ='[2]2.2 Repex'!AK52 -> 0
C53: > 132 kV | E53: ='[2]2.2 Repex'!AI53 -> 0 | F53: ='[2]2.2 Repex'!AJ53 -> 0 | G53: ='[2]2.2 Repex'!AK53 -> 0
C54: Other | E54: ='[2]2.2 Repex'!AI54 -> 0 | F54: ='[2]2.2 Repex'!AJ54 -> 0 | G54: ='[2]2.2 Repex'!AK54 -> 0
B55: SERVICE LINES BY: CONNECTION VOLTAGE; CUSTOMER TYPE; CONNECTION COMPLEXITY | C55: ˂ = 11 kV ; Residential ; Simple Type | E55: ='[2]2.2 Repex'!AI55 -> 6405230.872 | F55: ='[2]2.2 Repex'!AJ55 -> 5701.30803 | G55: ='[2]2.2 Repex'!AK55 -> 8031.685145
C56: ˂ = 11 kV ; Commercial & Industrial ; Simple Type | E56: ='[2]2.2 Repex'!AI56 -> 715820.1686 | F56: ='[2]2.2 Repex'!AJ56 -> 637.1528766 | G56: ='[2]2.2 Repex'!AK56 -> 897.5854782
C57: ˂ = 11 kV ; Residential ; Complex Type | E57: ='[2]2.2 Repex'!AI57 -> 0 | F57: ='[2]2.2 Repex'!AJ57 -> 0 | G57: ='[2]2.2 Repex'!AK57 -> 0
C58: ˂ = 11 kV ; Commercial & Industrial ; Complex Type | E58: ='[2]2.2 Repex'!AI58 -> 0 | F58: ='[2]2.2 Repex'!AJ58 -> 0 | G58: ='[2]2.2 Repex'!AK58 -> 0
C59: ˂ = 11 kV ; Subdivision ; Complex Type | E59: ='[2]2.2 Repex'!AI59 -> 0 | F59: ='[2]2.2 Repex'!AJ59 -> 0 | G59: ='[2]2.2 Repex'!AK59 -> 0
C60: > 11 kV & < = 22 kV ; Commercial & Industrial | E60: ='[2]2.2 Repex'!AI60 -> 0 | F60: ='[2]2.2 Repex'!AJ60 -> 0 | G60: ='[2]2.2 Repex'!AK60 -> 0
C61: > 11 kV & < = 22 kV ; Subdivision | E61: ='[2]2.2 Repex'!AI61 -> 0 | F61: ='[2]2.2 Repex'!AJ61 -> 0 | G61: ='[2]2.2 Repex'!AK61 -> 0
C62: > 22 kV & < = 33 kV ; Commercial & Industrial | E62: ='[2]2.2 Repex'!AI62 -> 0 | F62: ='[2]2.2 Repex'!AJ62 -> 0 | G62: ='[2]2.2 Repex'!AK62 -> 0
C63: > 22 kV & < = 33 kV ; Subdivision | E63: ='[2]2.2 Repex'!AI63 -> 0 | F63: ='[2]2.2 Repex'!AJ63 -> 0 | G63: ='[2]2.2 Repex'!AK63 -> 0
C64: > 33 kV & < = 66 kV ; Commercial & Industrial | E64: ='[2]2.2 Repex'!AI64 -> 0 | F64: ='[2]2.2 Repex'!AJ64 -> 0 | G64: ='[2]2.2 Repex'!AK64 -> 0
C65: > 33 kV & < = 66 kV ; Subdivision | E65: ='[2]2.2 Repex'!AI65 -> 0 | F65: ='[2]2.2 Repex'!AJ65 -> 0 | G65: ='[2]2.2 Repex'!AK65 -> 0
C66: > 66 kV & < = 132 kV ; Commercial & Industrial | E66: ='[2]2.2 Repex'!AI66 -> 0 | F66: ='[2]2.2 Repex'!AJ66 -> 0 | G66: ='[2]2.2 Repex'!AK66 -> 0
C67: > 66 kV & < = 132 kV ; Subdivision | E67: ='[2]2.2 Repex'!AI67 -> 0 | F67: ='[2]2.2 Repex'!AJ67 -> 0 | G67: ='[2]2.2 Repex'!AK67 -> 0
C68: > 132 kV ; Commercial & Industrial | E68: ='[2]2.2 Repex'!AI68 -> 0 | F68: ='[2]2.2 Repex'!AJ68 -> 0 | G68: ='[2]2.2 Repex'!AK68 -> 0
C69: > 132 kV ; Subdivision | E69: ='[2]2.2 Repex'!AI69 -> 0 | F69: ='[2]2.2 Repex'!AJ69 -> 0 | G69: ='[2]2.2 Repex'!AK69 -> 0
C70: Other | E70: ='[2]2.2 Repex'!AI70 -> 0 | F70: ='[2]2.2 Repex'!AJ70 -> 0 | G70: ='[2]2.2 Repex'!AK70 -> 0
B71: TRANSFORMERS BY: MOUNTING TYPE; HIGHEST OPERATING VOLTAGE ; AMPERE RATING; NUMBER OF PHASES (AT LV) | C71: Pole Mounted ; < = 22kV ; < = 60 kVA ; Single Phase | E71: ='[2]2.2 Repex'!AI71 -> 2388227.624 | F71: ='[2]2.2 Repex'!AJ71 -> 897.002864 | G71: ='[2]2.2 Repex'!AK71 -> 2977.76755
C72: Pole Mounted ; < = 22kV ; > 60 kVA and < = 600 kVA ; Single Phase | E72: ='[2]2.2 Repex'!AI72+'[2]2.2 Repex'!AI85 -> 41513.76042 | F72: ='[2]2.2 Repex'!AJ72+'[2]2.2 Repex'!AJ85 -> 0.967891884 | G72: ='[2]2.2 Repex'!AK72 -> 3.213096813
C73: Pole Mounted ; < = 22kV ; > 600 kVA ; Single Phase | E73: ='[2]2.2 Repex'!AI73 -> 0 | F73: ='[2]2.2 Repex'!AJ73 -> 0 | G73: ='[2]2.2 Repex'!AK73 -> 0
C74: Pole Mounted ; < = 22kV ; < = 60 kVA ; Multiple Phase | E74: ='[2]2.2 Repex'!AI74 -> 785124.4053 | F74: ='[2]2.2 Repex'!AJ74 -> 168.5050953 | G74: ='[2]2.2 Repex'!AK74 -> 559.3839494
C75: Pole Mounted ; < = 22kV ; > 60 kVA and < = 600 kVA ; Multiple Phase | E75: ='[2]2.2 Repex'!AI75 -> 1147676.015 | F75: ='[2]2.2 Repex'!AJ75 -> 69.22338397 | G75: ='[2]2.2 Repex'!AK75 -> 229.7998755
C76: Pole Mounted ; < = 22kV ; > 600 kVA ; Multiple Phase | E76: ='[2]2.2 Repex'!AI76 -> 0 | F76: ='[2]2.2 Repex'!AJ76 -> 0 | G76: ='[2]2.2 Repex'!AK76 -> 0
C77: Kiosk Mounted ; < = 22kV ; < = 60 kVA ; Single Phase | E77: ='[2]2.2 Repex'!AI77 -> 170490.7391 | F77: ='[2]2.2 Repex'!AJ77 -> 21.06624262 | G77: ='[2]2.2 Repex'!AK77 -> 69.93330366
C78: Kiosk Mounted ; < = 22kV ; > 60 kVA and < = 600 kVA ; Single Phase | E78: ='[2]2.2 Repex'!AI78 -> 0 | F78: ='[2]2.2 Repex'!AJ78 -> 0 | G78: ='[2]2.2 Repex'!AK78 -> 0
C79: Kiosk Mounted ; < = 22kV ; > 600 kVA ; Single Phase | E79: ='[2]2.2 Repex'!AI79 -> 0 | F79: ='[2]2.2 Repex'!AJ79 -> 0 | G79: ='[2]2.2 Repex'!AK79 -> 0
C80: Kiosk Mounted ; < = 22kV ; < = 60 kVA ; Multiple Phase | E80: ='[2]2.2 Repex'!AI80 -> 212260.1646 | F80: ='[2]2.2 Repex'!AJ80 -> 7.287139477 | G80: ='[2]2.2 Repex'!AK80 -> 24.19101246
C81: Kiosk Mounted ; < = 22kV ; > 60 kVA and < = 600 kVA ; Multiple Phase | E81: ='[2]2.2 Repex'!AI81 -> 563544.4391 | F81: ='[2]2.2 Repex'!AJ81 -> 11.26194283 | G81: ='[2]2.2 Repex'!AK81 -> 37.38611017
C82: Kiosk Mounted ; < = 22kV ; > 600 kVA ; Multiple Phase | E82: ='[2]2.2 Repex'!AI82 -> 111667.0944 | F82: ='[2]2.2 Repex'!AJ82 -> 1.32493445 | G82: ='[2]2.2 Repex'!AK82 -> 4.398365903
C83: Ground Outdoor / Indoor Chamber Mounted; ˂ 22 kV ; < = 60 kVA ; Single Phase | E83: ='[2]2.2 Repex'!AI83 -> 0 | F83: ='[2]2.2 Repex'!AJ83 -> 0 | G83: ='[2]2.2 Repex'!AK83 -> 0
C84: Ground Outdoor / Indoor Chamber Mounted; ˂ 22 kV ; > 60 kVA and < = 600 kVA ; Single Phase | E84: ='[2]2.2 Repex'!AI84*0 -> 0 | F84: ='[2]2.2 Repex'!AJ84*0 -> 0 | G84: ='[2]2.2 Repex'!AK84*0 -> 0
C85: Ground Outdoor / Indoor Chamber Mounted; ˂ 22 kV ; > 600 kVA ; Single Phase | E85: ='[2]2.2 Repex'!AI85*0 -> 0 | F85: ='[2]2.2 Repex'!AJ85*0 -> 0 | G85: ='[2]2.2 Repex'!AK85 -> 0
C86: Ground Outdoor / Indoor Chamber Mounted; ˂ 22 kV ; < = 60 kVA ; Multiple Phase | E86: ='[2]2.2 Repex'!AI86 -> -35440.82062 | F86: ='[2]2.2 Repex'!AJ86 -> 2.649868901 | G86: ='[2]2.2 Repex'!AK86 -> 8.796731805
C87: Ground Outdoor / Indoor Chamber Mounted; ˂ 22 kV ; > 60 kVA and < = 600 kVA ; Multiple Phase | E87: ='[2]2.2 Repex'!AI87+'[2]2.2 Repex'!AI84 -> 83097.19854 | F87: ='[2]2.2 Repex'!AJ87+'[2]2.2 Repex'!AJ84 -> 5.263463274 | G87: ='[2]2.2 Repex'!AK87+'[2]2.2 Repex'!AK84 -> 17.47304358
C88: Ground Outdoor / Indoor Chamber Mounted; ˂ 22 kV ; > 600 kVA ; Multiple Phase | E88: ='[2]2.2 Repex'!AI88 -> 0 | F88: ='[2]2.2 Repex'!AJ88 -> 0 | G88: ='[2]2.2 Repex'!AK88 -> 0
C89: Ground Outdoor / Indoor Chamber Mounted; > = 22 kV & < = 33 kV ; < = 15 MVA | E89: ='[2]2.2 Repex'!AI89 -> 0 | F89: ='[2]2.2 Repex'!AJ89 -> 0 | G89: ='[2]2.2 Repex'!AK89 -> 0
C90: Ground Outdoor / Indoor Chamber Mounted; > = 22 kV & < = 33 kV ; > 15 MVA and < = 40 MVA | E90: ='[2]2.2 Repex'!AI90 -> 0 | F90: ='[2]2.2 Repex'!AJ90 -> 0 | G90: ='[2]2.2 Repex'!AK90 -> 0
C91: Ground Outdoor / Indoor Chamber Mounted; > = 22 kV & < = 33 kV ; > 40 MVA | E91: ='[2]2.2 Repex'!AI91 -> 0 | F91: ='[2]2.2 Repex'!AJ91 -> 0 | G91: ='[2]2.2 Repex'!AK91 -> 0
C92: Ground Outdoor / Indoor Chamber Mounted; > 33 kV & < = 66 kV ; < = 15 MVA | E92: ='[2]2.2 Repex'!AI92 -> 0 | F92: ='[2]2.2 Repex'!AJ92 -> 0 | G92: ='[2]2.2 Repex'!AK92 -> 0
C93: Ground Outdoor / Indoor Chamber Mounted; > 33 kV & < = 66 kV ; > 15 MVA and < = 40 MVA | E93: ='[2]2.2 Repex'!AI93 -> 2722060.935 | F93: ='[2]2.2 Repex'!AJ93 -> 1 | G93: ='[2]2.2 Repex'!AK93 -> 3.319685665
C94: Ground Outdoor / Indoor Chamber Mounted; > 33 kV & < = 66 kV ; > 40 MVA | E94: ='[2]2.2 Repex'!AI94 -> 0 | F94: ='[2]2.2 Repex'!AJ94 -> 0 | G94: ='[2]2.2 Repex'!AK94 -> 0
C95: Ground Outdoor / Indoor Chamber Mounted; > 66 kV & < = 132 kV ; < = 100 MVA | E95: ='[2]2.2 Repex'!AI95 -> 0 | F95: ='[2]2.2 Repex'!AJ95 -> 0 | G95: ='[2]2.2 Repex'!AK95 -> 0
C96: Ground Outdoor / Indoor Chamber Mounted; > 66 kV & < = 132 kV ; > 100 MVA | E96: ='[2]2.2 Repex'!AI96 -> 0 | F96: ='[2]2.2 Repex'!AJ96 -> 0 | G96: ='[2]2.2 Repex'!AK96 -> 0
C97: Ground Outdoor / Indoor Chamber Mounted; > 132 kV ; < = 100 MVA | E97: ='[2]2.2 Repex'!AI97 -> 0 | F97: ='[2]2.2 Repex'!AJ97 -> 0 | G97: ='[2]2.2 Repex'!AK97 -> 0
C98: Ground Outdoor / Indoor Chamber Mounted; > 132 kV ; > 100 MVA | E98: ='[2]2.2 Repex'!AI98 -> 0 | F98: ='[2]2.2 Repex'!AJ98 -> 0 | G98: ='[2]2.2 Repex'!AK98 -> 0
C99: Other | E99: ='[2]2.2 Repex'!AI99 -> 1832960.388 | F99: ='[2]2.2 Repex'!AJ99 -> 5.045214383 | G99: ='[2]2.2 Repex'!AK99 -> 16.74852587
B100: SWITCHGEAR BY: HIGHEST OPERATING VOLTAGE ; SWITCH FUNCTION | C100: ˂ = 11 kV ; FUSE | E100: ='[2]2.2 Repex'!AI100 -> 21869.77209 | F100: ='[2]2.2 Repex'!AJ100 -> 20.91903745 | G100: ='[2]2.2 Repex'!AK100 -> 4.682822095
C101: ˂ = 11 kV ; Switch | E101: ='[2]2.2 Repex'!AI103 -> 26793.18896 | F101: ='[2]2.2 Repex'!AJ103 -> 1.96399231 | G101: ='[2]2.2 Repex'!AK103 -> 0.4396486505
C102: ˂ = 11 kV ; Circuit Breaker | E102: ='[2]2.2 Repex'!AI104 -> 260104.7128 | F102: ='[2]2.2 Repex'!AJ104 -> 1 | G102: ='[2]2.2 Repex'!AK104 -> 0.2238545681
C103: > 11 kV & < = 22 kV ; Switch | E103: ='[2]2.2 Repex'!AI105+'[2]2.2 Repex'!AI101 -> 8514340.271 | F103: ='[2]2.2 Repex'!AJ105+'[2]2.2 Repex'!AJ101 -> 4542.538523 | G103: ='[2]2.2 Repex'!AK105+'[2]2.2 Repex'!AK101 -> 1016.867999
C104: > 11 kV & < = 22 kV ; Circuit Breaker | E104: ='[2]2.2 Repex'!AI106 -> 5869651.199 | F104: ='[2]2.2 Repex'!AJ106 -> 32.97827137 | G104: ='[2]2.2 Repex'!AK106 -> 7.382336695
C105: > 22 kV & < = 33 kV ; Switch | E105: ='[2]2.2 Repex'!AI107 -> 0 | F105: ='[2]2.2 Repex'!AJ107 -> 0 | G105: ='[2]2.2 Repex'!AK107 -> 0
C106: > 22 kV & < = 33 kV ; Circuit Breaker | E106: ='[2]2.2 Repex'!AI108 -> 0 | F106: ='[2]2.2 Repex'!AJ108 -> 0 | G106: ='[2]2.2 Repex'!AK108 -> 0
C107: > 33 kV & < = 66 kV ; Switch | E107: ='[2]2.2 Repex'!AI109 -> 0 | F107: ='[2]2.2 Repex'!AJ109 -> 0 | G107: ='[2]2.2 Repex'!AK109 -> 0
C108: > 33 kV & < = 66 kV ; Circuit Breaker | E108: ='[2]2.2 Repex'!AI110 -> 6684986.805 | F108: ='[2]2.2 Repex'!AJ110 -> 8.045681808 | G108: ='[2]2.2 Repex'!AK110 -> 1.801062626
C109: > 66 kV & < = 132 kV ; Switch | E109: ='[2]2.2 Repex'!AI111 -> 0 | F109: ='[2]2.2 Repex'!AJ111 -> 0 | G109: ='[2]2.2 Repex'!AK111 -> 0
C110: > 66 kV & < = 132 kV ; Circuit Breaker | E110: ='[2]2.2 Repex'!AI112 -> 0 | F110: ='[2]2.2 Repex'!AJ112 -> 0 | G110: ='[2]2.2 Repex'!AK112 -> 0
C111: > 132 kV ; Switch | E111: ='[2]2.2 Repex'!AI113 -> 0 | F111: ='[2]2.2 Repex'!AJ113 -> 0 | G111: ='[2]2.2 Repex'!AK113 -> 0
C112: > 132 kV ; Circuit Breaker | E112: ='[2]2.2 Repex'!AI114 -> 0 | F112: ='[2]2.2 Repex'!AJ114 -> 0 | G112: ='[2]2.2 Repex'!AK114 -> 0
C113: Other | E113: ='[2]2.2 Repex'!AI115 -> 5383282.78 | F113: ='[2]2.2 Repex'!AJ115 -> 2099 | G113: ='[2]2.2 Repex'!AK115 -> 469.8707385
B114: PUBLIC LIGHTING BY: ASSET TYPE ; LIGHTING OBLIGATION | C114: Luminaires ; Major Road | E114: ='[2]2.2 Repex'!AI116 -> 0 | F114: ='[2]2.2 Repex'!AJ116 -> 0 | G114: ='[2]2.2 Repex'!AK116 -> 0
C115: Luminaires ; Minor Road | E115: ='[2]2.2 Repex'!AI117 -> 0 | F115: ='[2]2.2 Repex'!AJ117 -> 0 | G115: ='[2]2.2 Repex'!AK117 -> 0
C116: Brackets ; Major Road | E116: ='[2]2.2 Repex'!AI118 -> 0 | F116: ='[2]2.2 Repex'!AJ118 -> 0 | G116: ='[2]2.2 Repex'!AK118 -> 0
C117: Brackets ; Minor Road | E117: ='[2]2.2 Repex'!AI119 -> 0 | F117: ='[2]2.2 Repex'!AJ119 -> 0 | G117: ='[2]2.2 Repex'!AK119 -> 0
C118: Lamps ; Major Road | E118: ='[2]2.2 Repex'!AI120 -> 0 | F118: ='[2]2.2 Repex'!AJ120 -> 0 | G118: ='[2]2.2 Repex'!AK120 -> 0
C119: Lamps ; Minor Road | E119: ='[2]2.2 Repex'!AI121 -> 0 | F119: ='[2]2.2 Repex'!AJ121 -> 0 | G119: ='[2]2.2 Repex'!AK121 -> 0
C120: Poles / Columns ; Major Road | E120: ='[2]2.2 Repex'!AI122 -> 0 | F120: ='[2]2.2 Repex'!AJ122 -> 0 | G120: ='[2]2.2 Repex'!AK122 -> 0
C121: Poles / Columns ; Minor Road | E121: ='[2]2.2 Repex'!AI123 -> 0 | F121: ='[2]2.2 Repex'!AJ123 -> 0 | G121: ='[2]2.2 Repex'!AK123 -> 0
C122: Other | E122: ='[2]2.2 Repex'!AI124 -> 0 | F122: ='[2]2.2 Repex'!AJ124 -> 0 | G122: ='[2]2.2 Repex'!AK124 -> 0
B123: SCADA, NETWORK CONTROL AND PROTECTION SYSTEMS BY: FUNCTION | C123: Field Devices | E123: ='[2]2.2 Repex'!AI125 -> 9988813.193 | F123: ='[2]2.2 Repex'!AJ125 -> 62.73377227 | G123: ='[2]2.2 Repex'!AK125 -> 0
C124: Local Network Wiring Assets | E124: ='[2]2.2 Repex'!AI126 -> 0 | F124: ='[2]2.2 Repex'!AJ126 -> 0 | G124: ='[2]2.2 Repex'!AK126 -> 0
C125: Communications Network Assets | E125: ='[2]2.2 Repex'!AI127 -> 2213122.92 | F125: ='[2]2.2 Repex'!AJ127 -> 3.77897319 | G125: ='[2]2.2 Repex'!AK127 -> 0
C126: Master Station Assets | E126: ='[2]2.2 Repex'!AI128 -> 0 | F126: ='[2]2.2 Repex'!AJ128 -> 0 | G126: ='[2]2.2 Repex'!AK128 -> 0
C127: Communications Site Infrastructure | E127: ='[2]2.2 Repex'!AI129 -> 0 | F127: ='[2]2.2 Repex'!AJ129 -> 0 | G127: ='[2]2.2 Repex'!AK129 -> 0
C128: Communications Linear Assets | E128: ='[2]2.2 Repex'!AI130 -> 0 | F128: ='[2]2.2 Repex'!AJ130 -> 0 | G128: ='[2]2.2 Repex'!AK130 -> 0
C129: AFLC | E129: ='[2]2.2 Repex'!AI131 -> 0 | F129: ='[2]2.2 Repex'!AJ131 -> 0 | G129: ='[2]2.2 Repex'!AK131 -> 0
C130: Other | E130: ='[2]2.2 Repex'!AI132 -> 0 | F130: ='[2]2.2 Repex'!AJ132 -> 0 | G130: ='[2]2.2 Repex'!AK132 -> 0
B131: OTHER BY: DNSP DEFINED | C131: OTHER - EARTHING | E131: ='[2]2.2 Repex'!AI133 -> 718028.8551 | F131: ='[2]2.2 Repex'!AJ133 -> 268 | G131: ='[2]2.2 Repex'!AK133 -> 0
C132: OTHER - MEASURING TRANSFORMERS | E132: ='[2]2.2 Repex'!AI134 -> 127104.83 | F132: ='[2]2.2 Repex'!AJ134 -> 2.744452474 | G132: ='[2]2.2 Repex'!AK134 -> 0
C133: OTHER - REGULATORS | E133: ='[2]2.2 Repex'!AI135 -> 50318.38 | F133: ='[2]2.2 Repex'!AJ135 -> 0.1262294293 | G133: ='[2]2.2 Repex'!AK135 -> 0
C134: OTHER - SITE REPAIRS REFURBISHMENTS | E134: ='[2]2.2 Repex'!AI136 -> 5012313.288 | F134: ='[2]2.2 Repex'!AJ136 -> 672.379299 | G134: ='[2]2.2 Repex'!AK136 -> 0
C135: OTHER - SURGE DIVERTERS | E135: ='[2]2.2 Repex'!AI137 -> 8759405.466 | F135: ='[2]2.2 Repex'!AJ137 -> 8774.121362 | G135: ='[2]2.2 Repex'!AK137 -> 0
B163: 2.2.2 - SELECTED ASSET CHARACTERISTICS
E164: ASSET VOLUMES CURRENTLY IN COMMISSION | F164: ASSET REPLACEMENTS (0's)
B165: ASSET GROUP | C165: METRIC | D165: UNITS | E165: =CRY -> 2018 | F165: =CRY -> 2018
B166: TOTAL POLES BY: FEEDER TYPE | C166: Total CBD poles | D166: Number | E166: ='[2]2.2 Repex'!AI180 -> 0 | F166: ='[2]2.2 Repex'!AJ180 -> 0
C167: Total urban poles | D167: Number | E167: ='[2]2.2 Repex'!AI181 -> 21334.76392 | F167: ='[2]2.2 Repex'!AJ181 -> 343.8556752
C168: Total rural long poles | D168: Number | E168: ='[2]2.2 Repex'!AI182 -> 181415.9336 | F168: ='[2]2.2 Repex'!AJ182 -> 2923.908537
C169: Total rural short poles | D169: Number | E169: ='[2]2.2 Repex'!AI183 -> 109251.3025 | F169: ='[2]2.2 Repex'!AJ183 -> 1760.820065
B170: OVERHEAD CONDUCTORS BY: CONDUCTOR LENGTH BY FEEDER TYPE | C170: Conductors CBD | D170: KM | E170: ='[2]2.2 Repex'!AI184 -> 0 | F170: ='[2]2.2 Repex'!AJ184 -> 0
C171: Conductors urban | D171: KM | E171: ='[2]2.2 Repex'!AI185 -> 2612.64564 | F171: ='[2]2.2 Repex'!AJ185 -> 8.417689856
C172: Conductors rural long | D172: KM | E172: ='[2]2.2 Repex'!AI186 -> 22216.11403 | F172: ='[2]2.2 Repex'!AJ186 -> 71.5781562
C173: Conductors rural short | D173: KM | E173: ='[2]2.2 Repex'!AI187 -> 13378.8656 | F173: ='[2]2.2 Repex'!AJ187 -> 43.10540225
B174: OVERHEAD CONDUCTORS BY: CONDUCTOR LENGTH MATERIAL TYPE | C174: OH conductor LV ABC | D174: KM | E174: ='[2]2.2 Repex'!AI188 -> 1294.068595 | F174: ='[2]2.2 Repex'!AJ188 -> 4.16936301
C175: OH conductor steel | D175: KM | E175: ='[2]2.2 Repex'!AI189 -> 13532.48238 | F175: ='[2]2.2 Repex'!AJ189 -> 43.60034055
C176: OH conductor ACSR | D176: KM | E176: ='[2]2.2 Repex'!AI190 -> 11272.32647 | F176: ='[2]2.2 Repex'!AJ190 -> 36.31833829
C177: OH conductor AAAC | D177: KM | E177: ='[2]2.2 Repex'!AI191 -> 0 | F177: ='[2]2.2 Repex'!AJ191 -> 0
C178: OH conductor AAC | D178: KM | E178: ='[2]2.2 Repex'!AI192 -> 10090.66949 | F178: ='[2]2.2 Repex'!AJ192 -> 32.51115457
C179: OH conductor HDBC | D179: KM | E179: ='[2]2.2 Repex'!AI193 -> 2018.078332 | F179: ='[2]2.2 Repex'!AJ193 -> 6.502051885
C180: Other | D180: KM | E180: ='[2]2.2 Repex'!AI194 -> 0 | F180: ='[2]2.2 Repex'!AJ194 -> 0
B181: UNDERGROUND CABLES BY: CABLE LENGTH BY FEEDER TYPE | C181: Cable CBD | D181: KM | E181: ='[2]2.2 Repex'!AI195 -> 0 | F181: ='[2]2.2 Repex'!AJ195 -> 0
C182: Cable urban | D182: KM | E182: ='[2]2.2 Repex'!AI196 -> 3049.605476 | F182: ='[2]2.2 Repex'!AJ196 -> 509.907506
C183: Cable rural long | D183: KM | E183: ='[2]2.2 Repex'!AI197 -> 821.0444682 | F183: ='[2]2.2 Repex'!AJ197 -> 137.2822617
C184: Cable rural short | D184: KM | E184: ='[2]2.2 Repex'!AI198 -> 3037.940056 | F184: ='[2]2.2 Repex'!AJ198 -> 507.9569961
B185: TRANSFORMERS BY: TOTAL MVA | C185: Total MVA replaced | D185: MVA | E185: ='[2]2.2 Repex'!AI199 -> 9257.83 | F185: ='[2]2.2 Repex'!AJ199 -> 1368.865
C186: Total MVA disposed of | D186: MVA | E186: ='[2]2.2 Repex'!AI200 -> 0 | F186: ='[2]2.2 Repex'!AJ200 -> 990.225
E188: WIP

Sheet 2.3(a) Augex
B1: REGULATORY REPORTING STATEMENT
B2: =INDEX(dms_TradingNameFull_List,MATCH(dms_TradingName,dms_TradingName_List)) -> AusNet Electricity Services Pty Ltd
B3: =CONCATENATE((LOOKUP(dms_Model,dms_Model_List,dms_Worksheet_List))&" "&CRY) -> CATEGORY ANALYSIS 2018
B4: 2.3 AUGEX PROJECT DATA
B7: There are TWO tables on this worksheet - each has been 'grouped' for easy navigation. Both ROWS and COLUMNS have been grouped. See the Instructions sheet on how to group or ungroup tables.
B9: 2.3.1 - AUGEX ASSET DATA - SUBTRANSMISSION SUBSTATIONS, SWITCHING STATIONS AND ZONE SUBSTATIONS
B10: NOTE: DNSP MUST PROVIDE EXPENDITURE INFORMATION ON A PROJECT CLOSE BASIS.
B11: PROJECT DESCRIPTION AND CHANGES | L11: PLANT AND EQUIPMENT EXPENDITURE AND VOLUME | X11: OTHER EXPENDITURE | Z11: TOTAL DIRECT EXPENDITURE ($0's) | AA11: YEARS INCURRED | AB11: ALL RELATED PARTY CONTRACTS | AD11: ALL NON RELATED PARTY CONTRACTS | AE11: LAND AND EASEMENTS
B12: SUBSTATION ID | C12: SUBSTATION TYPE (drop down) | D12: PROJECT ID | E12: PROJECT TYPE (drop down) | F12: PROJECT TRIGGER (drop down) | G12: VOLTAGE (KV) | H12: SUBSTATION RATING NORMAL CYCLIC (MVA) | J12: SUBSTATION RATING N-1 EMERGENCY (MVA) | L12: TRANSFORMERS | O12: SWITCHGEAR | Q12: CAPACITORS | U12: OTHER PLANT ITEM | V12: INSTALLATION (LABOUR) | X12: CIVIL WORKS | Y12: OTHER DIRECT | AB12: RELATED PARTY MARGINS | AC12: TOTAL | AE12: LAND PURCHASE | AF12: EASEMENTS
H13: PRE | I13: POST | J13: PRE | K13: POST | L13: UNITS ADDED | M13: MVA ADDED | N13: EXPENDITURE ($0's) | O13: UNITS ADDED | P13: EXPENDITURE ($0's) | Q13: MVAR ADDED | R13: EXPENDITURE ($0's) | U13: EXPENDITURE ($0's) | V13: VOLUME | W13: EXPENDITURE ($0's) | X13: EXPENDITURE ($0's) | AB13: EXPENDITURE ($0's) | AE13: EXPENDITURE ($0's)
B14: KLO - DRN 66kv Line | C14: Zone substation | D14: DD-0001287 | E14: Other | F14: Demand growth | G14: 66KV | O14: 25 | P14: 752995.383 | U14: 564393.7911 | V14: 12234.63481 | W14: 1181592.497 | Z14: 2498981.672 | AA14: 2015/2016/2017/2018
B15: REFCL T1 ZS Work | D15: DD-0006040 | E15: Other | F15: Safety | G15: 22kv | O15: 5 | P15: 1100198.518 | U15: 606217.9119 | V15: 10946.81494 | W15: 2756242.022 | Z15: 4283556.367 | AA15: 2016/2017/2018
Z16: 0
Z17: =SUM(N17,P17,R17,U17,W17,X17,Y17) -> 0
Z18: 0
Z19: 0
Z20: 0
Z21: 0
Z22: 0
Z23: 0
Z24: 0
Z25: 0
Z26: 0
Z27: 0
Z28: 0
Z29: 0
Z30: 0
Z31: 0
Z32: 0
Z33: 0
Z34: 0
Z35: 0
Z36: 0
Z37: 0
Z38: 0
Z39: 0
Z40: 0
Z41: 0
Z42: 0
Z43: 0
Z44: 0
Z45: 0
Z46: =SUM(N46,P46,R46,U46,W46,X46,Y46) -> 0
Z47: 0
Z48: 0
Z49: 0
Z50: 0
Z51: 0
Z52: 0
Z53: 0
Z54: 0
Z55: 0
Z56: 0
Z57: 0
Z58: 0
Z59: 0
Z60: 0
Z61: 0
Z62: 0
Z63: 0
Z64: 0
Z65: 0
D66: Non material projects - [actual] | Z66: 12207208.55
B69: AUG232_1 | C69: AUG232_2 | D69: AUG232_3 | E69: AUG232_4 | F69: AUG232_5 | G69: AUG232_6 | H69: ED_AUG232_00001 | I69: ED_AUG232_00002 | J69: ED_AUG232_00003 | K69: ED_AUG232_00004 | L69: ED_AUG232_00005 | M69: ED_AUG232_00006 | N69: ED_AUG232_00007 | O69: ED_AUG232_00008 | P69: ED_AUG232_00009 | Q69: ED_AUG232_00010 | R69: ED_AUG232_00011 | S69: ED_AUG232_00012 | T69: ED_AUG232_00013 | U69: ED_AUG232_00014 | V69: ED_AUG232_00015 | W69: ED_AUG232_00016 | X69: ED_AUG232_00017 | Y69: ED_AUG232_00018 | Z69: ED_AUG232_00019 | AA69: ED_AUG232_00020 | AB69: ED_AUG232_00021
B70: 2.3.2 - AUGEX ASSET DATA - SUBTRANSMISSION LINES
B71: NOTE: DNSP MUST PROVIDE EXPENDITURE INFORMATION ON A PROJECT CLOSE BASIS.
B72: PROJECT DESCRIPTION AND CHANGES | L72: PLANT AND EQUIPMENT EXPENDITURE AND VOLUME | X72: OTHER EXPENDITURE | Z72: TOTAL DIRECT EXPENDITURE ($0's) | AA72: YEARS INCURRED | AB72: ALL RELATED PARTY CONTRACTS | AD72: ALL NON RELATED PARTY CONTRACTS | AE72: LAND AND EASEMENTS
B73: LINE ID | C73: PROJECT ID | D73: PROJECT TYPE | E73: PROJECT TRIGGER | G73: VOLTAGE (KV) | H73: ROUTE LINE LENGTH ADDED | L73: POLES/TOWERS (INCLUDING STRUCTURES, AND CIVIL WORKS) | O73: OVERHEAD LINES | R73: UNDERGROUND CABLES | U73: OTHER PLANT ITEM | V73: INSTALLATION (LABOUR) | X73: CIVIL WORKS | Y73: OTHER DIRECT | AB73: RELATED PARTY MARGINS | AC73: TOTAL | AE73: LAND PURCHASE | AF73: EASEMENTS
H74: KM ADDED | L74: POLES/TOWERS ADDED | M74: POLES/TOWERS UPGRADED | N74: EXPENDITURE ($0's) | O74: CIRCUIT KM ADDED | P74: CIRCUIT KM UPGRADED | Q74: EXPENDITURE ($0's) | R74: CIRCUIT KM ADDED | S74: CIRCUIT KM UPGRADED | T74: EXPENDITURE ($0's) | U74: EXPENDITURE ($0's) | V74: VOLUME | W74: EXPENDITURE ($0's) | X74: EXPENDITURE ($0's) | AB74: EXPENDITURE ($0's) | AE74: EXPENDITURE ($0's)
B75: KLO - DRN 66kv Line | C75: DD-0001287 | D75: New line on new route - single circuit | E75: Demand growth | G75: 66 | H75: 19.6 | L75: 286 | M75: 0 | N75: 2080261.448 | O75: 19.6 | P75: 0 | Q75: 126377.1764 | R75: 1.26 | S75: 0 | T75: 517316 | V75: 22635.01181 | W75: 2443209.307 | Z75: 5167163.931 | AA75: 2015/2016/2017/2018 | AH75: New line on new route - single circuit
Z76: =SUM(N76,Q76,T76,U76,W76,X76,Y76) -> 0 | AH76: New line on new route - dual circuit
Z77: 0 | AH77: New line on new route - other
Z78: 0 | AH78: Line rebuild over existing route - single circuit
Z79: 0 | AH79: Line rebuild over existing route - dual circuit
Z80: 0 | AH80: Reconductor - Single circuit
Z81: 0 | AH81: Reconductor - Dual circuit
Z82: 0 | AH82: Reconductor - Other
Z83: 0 | AH83: Line upgrade - raising/retensoring
Z84: 0 | AH84: Line upgrade - voltage upgrade
Z85: 0 | AH85: Line upgrade - capacity
Z86: 0 | AH86: String spare circuit
Z87: 0 | AH87: Other
Z88: 0
Z89: 0
Z90: 0
Z91: 0
Z92: 0
Z93: 0
Z94: 0
Z95: 0
Z96: 0
Z97: 0
Z98: 0
Z99: 0
Z100: 0
Z101: 0
Z102: 0
Z103: 0
Z104: 0
Z105: 0
Z106: 0
Z107: =SUM(N107,Q107,T107,U107,W107,X107,Y107) -> 0
Z108: 0
Z109: 0
Z110: 0
Z111: 0
Z112: 0
Z113: 0
Z114: 0
Z115: 0
Z116: 0
Z117: 0
Z118: 0
Z119: 0
Z120: 0
Z121: 0
Z122: 0
Z123: 0
Z124: 0
Z125: 0
Z126: 0
Z127: 0
Z128: 0
C129: Non material projects - [actual] | Z129: 80365

Sheet 2.3(b) Augex
B1: REGULATORY REPORTING STATEMENT
B2: =INDEX(dms_TradingNameFull_List,MATCH(dms_TradingName,dms_TradingName_List)) -> AusNet Electricity Services Pty Ltd
B3: =CONCATENATE((LOOKUP(dms_Model,dms_Model_List,dms_Worksheet_List))&" "&CRY) -> CATEGORY ANALYSIS 2018
B4: 2.3 AUGEX DATA
B6: There are TWO tables on this worksheet. Each has been grouped for ease of navigation. See the Instructions sheet on how to group or ungroup tables.
B8: 2.3.3 - AUGEX DATA - HV/LV FEEDERS AND DISTRIBUTION SUBSTATIONS
B9: NOTE: DNSP MUST PROVIDE EXPENDITURE INFORMATION ON AN AS INCURRED BASIS.
B10: DESCRIPTOR METRICS
B11: PROJECT TYPE | D11: UNITS ADDED (0's) | E11: UNITS UPGRADED (0's)
C12: UNITS | D12: =CRY -> 2018 | E12: =CRY -> 2018
B13: HV Feeder Augmentations - Overhead Lines | C13: Circuit line length in km | D13: 19.91328 | E13: 1.251
B14: HV Feeder Augmentations - Underground Cables | C14: Circuit line length in km | D14: 7.447058 | E14: 0.228
B15: LV Feeder Augmentations - Overhead Lines | C15: Circuit line length in km | D15: 0.858 | E15: 1.889
B16: LV Feeder Augmentations - Underground Cables | C16: Circuit line length in km | D16: 3.541437 | E16: 0.106
B17: Distribution Substation Augmentations - Pole Mounted | C17: Number | D17: 98 | E17: 3.5
B18: Distribution Substation Augmentations - Ground Mounted | C18: Number | D18: 68.29268293 | E18: 2.43902439
B19: Distribution Substation Augmentations - Indoor | C19: Number | D19: 1.707317073 | E19: 0.06097560976
B21: COST METRICS
B22: TOTAL DIRECT EXPENDITURE - Project Type | D22: EXPENDITURE ($0's)
D23: =CRY -> 2018
B24: HV Feeder Augmentations - Overhead Lines | D24: 7384498.566
B25: HV Feeder Augmentations - Underground Cables | D25: 2057185.48
B26: HV Feeder Non-Material Projects | D26: 1557711.733
B27: LV Feeder Augmentations - Overhead Lines | D27: 1184186.745
B28: LV Feeder Augmentations - Underground Cables | D28: 292173.849
B29: LV Feeder Non-Material Projects | D29: 1213.685614
B30: Distribution Substation Augmentations - Pole Mounted | D30: 838789.6626
B31: Distribution Substation Augmentations - Ground Mounted | D31: 584522.413
B32: Distribution Substation Augmentations - Indoor | D32: 14613.06032
B35: 2.3.4 - AUGEX DATA - TOTAL EXPENDITURE
B36: AUGMENTATION CAPEX (As incurred) | D36: EXPENDITURE ($0's)
D37: =CRY -> 2018
B38: Subtransmission Substations, Switching Stations, Zone Substations | D38: 49199361.99
B39: Subtransmission Lines | D39: 13468587.25
B40: HV Feeders | D40: 28231390.62
B41: HV Feeders - Land Purchases and Easements | D41: 0
B42: Distribution Substations | D42: 3690623.287
B43: Distribution Substations - Land Purchases And Easements | D43: 0
B44: LV Feeders | D44: 3792388.01
B45: LV Feeders - Land Purchases And Easements | D45: 0
B46: Other Assets | D46: 0

Sheet 2.5 Connections
B1: REGULATORY REPORTING STATEMENT
B2: =INDEX(dms_TradingNameFull_List,MATCH(dms_TradingName,dms_TradingName_List)) -> AusNet Electricity Services Pty Ltd
B3: =CONCATENATE((LOOKUP(dms_Model,dms_Model_List,dms_Worksheet_List))&" "&CRY) -> CATEGORY ANALYSIS 2018
B4: 2.5 CONNECTIONS
B6: There are TWO tables on this worksheet. Each has been grouped for ease of navigation. See the Instructions sheet on how to group or ungroup tables.
B8: 2.5.1 - DESCRIPTOR METRICS
B9: <<<GROUP-ROW>>>
E11: VOLUMES AND EXPENDITURE
B12: CONNECTION SUBCATEGORY | C12: DESCRIPTOR METRIC | D12: UNITS | E12: =CRY -> 2018
B13: RESIDENTIAL | C13: Underground connections | D13: 0's | E13: 17300.476
C14: Overhead connections | D14: 0's | E14: 892.4714571
C15: Distribution substation installed | D15: MVA added | E15: 90.53415794
C16: Distribution substations installed | D16: 0's | E16: 452.6707897
C17: Distribution substation installed | D17: total spend $0s | E17: 3850201.076
C18: Augmentation HV | D18: net circuit km added | E18: 94.9457228
C19: Augmentation HV | D19: total spend $0s | E19: 1758591.504
C20: Augmentation LV | D20: net circuit km added | E20: 11.66254675
C21: Augmentation LV | D21: total spend $0s | E21: 1313810.551
C22: Mean days to connect residential customer with LV single phase connection | D22: 0's | E22: 7.6
C23: Volume of GSL breaches for residential customers | D23: 0's | E23: 1123
C24: Volume of customer complaints relating to connection services | D24: 0's | E24: 200
C25: GSL payments | D25: $0s | E25: 271880
B26: COMMERCIAL/INDUSTRIAL | C26: Underground connections | D26: 0's | E26: 1877.081187
C27: Overhead connections | D27: 0's | E27: 292.97136
C28: Distribution substation installed | D28: MVA added | E28: 537
C29: Distribution substations installed | D29: 0's | E29: 537
C30: Distribution substation installed | D30: total spend $0s | E30: 10558047.07
C31: Augmentation HV | D31: net circuit km added | E31: 122.3796361
C32: Augmentation HV | D32: total spend $0s | E32: 5341031.176
C33: Augmentation LV | D33: net circuit km added | E33: 24.951031
C34: Augmentation LV | D34: total spend $0s | E34: 1998258.853
B35: SUBDIVISION | C35: Underground connections | D35: 0's | E35: 182.3759174
C36: Overhead connections | D36: 0's | E36: 64.62408261
C37: Distribution substation installed | D37: MVA added | E37: 201.1658421
C38: Distribution substations installed | D38: 0's | E38: 554.3292103
C39: Distribution substation installed | D39: total spend $0s | E39: 11046074.12
C40: Augmentation HV | D40: net circuit km added | E40: 143.4234038
C41: Augmentation HV | D41: total spend $0s | E41: 6200080.428
C42: Augmentation LV | D42: net circuit km added | E42: 188.2070593
C43: Augmentation LV | D43: total spend $0s | E43: 8247424.017
C44: Cost per lot ($) | D44: $0s | E44: 2138.913986
B45: EMBEDDED GENERATION | C45: Underground connections | D45: 0's | E45: 0
C46: Overhead connections | D46: 0's | E46: 0
C47: Distribution substation installed | D47: MVA added | E47: 1
C48: Distribution substations installed | D48: 0's | E48: 2
C49: Distribution substation installed | D49: total spend $0s | E49: 6779.827613
C50: Augmentation HV | D50: net circuit km added | E50: 0.0455
C51: Augmentation HV | D51: total spend $0s | E51: 11587.58649
C52: Augmentation LV | D52: net circuit km added | E52: 0.004
C53: Augmentation LV | D53: total spend $0s | E53: -2449.895497
B57: 2.5.2 - COST METRICS BY CONNECTION CLASSIFICATION
D58: EXPENDITURE ($0's) | E58: VOLUMES (0's)
B59: CONNECTION SUBCATEGORY | C59: CONNECTION CLASSIFICATION | D59: =CRY -> 2018 | E59: =CRY -> 2018
B60: RESIDENTIAL | C60: Simple connection LV | D60: 13770350.65 | E60: 16835.62432
C61: Complex connection LV | D61: 11425213.84 | E61: 978.3501889
C62: Complex connection HV | D62: 5854819.494 | E62: 378.9729434
B63: COMMERCIAL/INDUSTRIAL | C63: Simple connection LV | D63: 1008884.497 | E63: 1796.875679
C64: Complex connection HV (customer connected at LV, minor HV works) | D64: 3402150.331 | E64: 77.4382351
C65: Complex connection HV (customer connected at LV, upstream asset works) | D65: 11806365.55 | E65: 102.8763894
C66: Complex connection HV (customer connected at HV) | D66: 8625535.869 | E66: 185.7972381
C67: Complex connection sub-transmission | D67: 345788.8641 | E67: 7.065005052
B68: SUBDIVISION | C68: Complex connection LV | D68: 3024134.374 | E68: 68.68418537
C69: Complex connection HV (no upstream asset works) | D69: 15508669.94 | E69: 176.8718289
C70: Complex connection HV (with upstream asset works) | D70: 46577.16189 | E70: 3.864611843
B71: EMBEDDED GENERATION | C71: Simple connection LV | D71: 0 | E71: 0
C72: Complex connection HV (small capacity) | D72: 130083.9813 | E72: 0
C73: Complex connection HV (large capacity) | D73: 0 | E73: 0

Sheet 2.6 Non-network
B1: REGULATORY REPORTING STATEMENT
B2: =INDEX(dms_TradingNameFull_List,MATCH(dms_TradingName,dms_TradingName_List)) -> AusNet Electricity Services Pty Ltd
B3: =CONCATENATE((LOOKUP(dms_Model,dms_Model_List,dms_Worksheet_List))&" "&CRY) -> CATEGORY ANALYSIS 2018
B4: 2.6 NON NETWORK EXPENDITURE
B6: There are THREE tables on this worksheet. Each has been grouped (and sub-grouped) for ease of navigation. See the Instructions sheet on how to group or ungroup tables.
B8: 2.6.1 - NON-NETWORK EXPENDITURE
F9: EXPENDITURE ($0's)
B10: SERVICE SUBCATEGORY | C10: ASSET CATEGORY | F10: =CRY -> 2018
B11: OPEX
B12: IT & COMMUNICATIONS | C12: Client device expenditure | F12: 0
C13: Recurrent expenditure | F13: 21401840.64
C14: Non-recurrent expenditure | F14: 976079.9832
B15: MOTOR VEHICLES | C15: Car | F15: 126567.4461
C16: Light commercial vehicle | F16: 1258929.121
C17: Elevated work platform (LCV) | F17: 0
C18: Elevated work platform (HCV) | F18: 402722.1812
C19: Heavy commercial vehicle | F19: 200570.0517
B20: BUILDINGS AND PROPERTY | C20: Total buildings and property expenditure | F20: 7811423.62
B21: OTHER | C21: Other expenditure | F21: 0
B22: OTHER - DNSP nominated | F22: 0
F23: 0
B33: CAPEX
B34: IT & COMMUNICATIONS | C34: Client device expenditure | F34: 0
C35: Recurrent expenditure | F35: 23394857.06
C36: Non-recurrent expenditure | F36: 4407144.075
B37: MOTOR VEHICLES | C37: Car | F37: 228386.0947
C38: Light commercial vehicle | F38: 5281782.231
C39: Elevated work platform (LCV) | F39: 0
C40: Elevated work platform (HCV) | F40: 5133899.28
C41: Heavy commercial vehicle | F41: 364952.8783
B42: BUILDINGS AND PROPERTY | C42: Total buildings and property expenditure | F42: 1331402.88
B43: OTHER | C43: Other expenditure | F43: 0
B44: OTHER - DNSP nominated | C44: General Equipment | F44: 3227063.9
C45: MV Other | F45: 1521691.416
B58: 2.6.2 - ANNUAL DESCRIPTOR METRICS - IT & COMMUNICATIONS EXPENDITURE
F59: VOLUMES (0's)
B61: NON-NETWORK CATEGORY | C61: DESCRIPTOR METRIC | F61: =CRY -> 2018
B62: IT & COMMUNICATIONS | C62: Employee numbers | F62: 824
C63: User numbers | F63: 1758
C64: Number of devices | F64: 2011
B67: 2.6.3 - ANNUAL DESCRIPTOR METRICS - MOTOR VEHICLES
F68: VOLUMES / %
B69: NON-NETWORK CATEGORY | C69: ASSET CATEGORY | D69: DESCRIPTOR METRIC | E69: UNITS | F69: =CRY -> 2018
B70: MOTOR VEHICLES | C70: CAR | D70: Average kilometres travelled | E70: 0's | F70: 16819.92581
D71: Number purchased | E71: 0's | F71: 25.34722331
D72: Number leased | E72: 0's | F72: 11.05420572
D73: Number in fleet | E73: 0's | F73: 49.35667651
D74: Proportion of total fleet expenditure allocated as regulatory expenditure | E74: (per cent) | F74: 0.8449074438
C75: LIGHT COMMERCIAL VEHICLE | D75: Average kilometres travelled | E75: 0's | F75: 24843.58729
D76: Number purchased | E76: 0's | F76: 158.8425994
D77: Number leased | E77: 0's | F77: 53.15876001
D78: Number in fleet | E78: 0's | F78: 320.0791033
D79: Proportion of total fleet expenditure allocated as regulatory expenditure | E79: (per cent) | F79: 0.8449074438
C80: ELEVATED WORK PLATFORM (LCV) | D80: Average kilometres travelled | E80: 0's | F80: 0
D81: Number purchased | E81: 0's | F81: 0
D82: Number leased | E82: 0's | F82: 0
D83: Number in fleet | E83: 0's | F83: 0
D84: Proportion of total fleet expenditure allocated as regulatory expenditure | E84: (per cent) | F84: 0
C85: ELEVATED WORK PLATFORM (HCV) | D85: Average kilometres travelled | E85: 0's | F85: 16169.53737
D86: Number purchased | E86: 0's | F86: 23.65740843
D87: Number leased | E87: 0's | F87: 3.590856636
D88: Number in fleet | E88: 0's | F88: 34.85243206
D89: Proportion of total fleet expenditure allocated as regulatory expenditure | E89: (per cent) | F89: 0.8449074438
C90: HEAVY COMMERCIAL VEHICLE | D90: Average kilometres travelled | E90: 0's | F90: 12989.87385
D91: Number purchased | E91: 0's | F91: 6.75925955
D92: Number leased | E92: 0's | F92: 2.605131285
D93: Number in fleet | E93: 0's | F93: 31.33198437
D94: Proportion of total fleet expenditure allocated as regulatory expenditure | E94: (per cent) | F94: 0.8449074438

Sheet 2.7 Vegetation management
B1: REGULATORY REPORTING STATEMENT
B2: =INDEX(dms_TradingNameFull_List,MATCH(dms_TradingName,dms_TradingName_List)) -> AusNet Electricity Services Pty Ltd
B3: =CONCATENATE((LOOKUP(dms_Model,dms_Model_List,dms_Worksheet_List))&" "&CRY) -> CATEGORY ANALYSIS 2018
B4: 2.7 VEGETATION MANAGEMENT
B6: There are THREE tables on this worksheet. Each has been grouped (and sub-grouped) for ease of navigation. See the Instructions sheet on how to group or ungroup tables.
B8: Please enter a description for each Zone in table 2.7.1 - Urban and CBD. The zone description will then autopopulate in tables 2.7.1 - Rural and 2.7.2.
A11: ` | B11: 2.7.1 - DESCRIPTOR METRICS BY ZONE
B12: URBAN AND CBD
E13: =CRY -> 2018
B14: ZONES | C14: ASSET | D14: UNITS
B15: HBRA | C15: Route line length within zone | D15: km | E15: 559.4244322
C16: Number of maintenance spans | D16: 0's | E16: 1307
C17: Total length of maintenance spans | D17: km | E17: 100.23958
C18: Length of vegetation corridors | D18: km | E18: 172.83
C19: Average number of trees per maintenance span | D19: 0's | E19: 5.31
C20: Average frequency of cutting cycle | D20: years | E20: 1
B21: LBRA | C21: Route line length within zone | D21: km | E21: 131.223015
C22: Number of maintenance spans | D22: 0's | E22: 3808
C23: Total length of maintenance spans | D23: km | E23: 171.6679183
C24: Length of vegetation corridors | D24: km | E24: 356.33
C25: Average number of trees per maintenance span | D25: 0's | E25: 2.2
C26: Average frequency of cutting cycle | D26: years | E26: 1
B27: ZONE 3 | C27: Route line length within zone | D27: km
C28: Number of maintenance spans | D28: 0's
C29: Total length of maintenance spans | D29: km
C30: Length of vegetation corridors | D30: km
C31: Average number of trees per maintenance span | D31: 0's
C32: Average frequency of cutting cycle | D32: years
B33: ZONE 4 | C33: Route line length within zone | D33: km
C34: Number of maintenance spans | D34: 0's
C35: Total length of maintenance spans | D35: km
C36: Length of vegetation corridors | D36: km
C37: Average number of trees per maintenance span | D37: 0's
C38: Average frequency of cutting cycle | D38: years
B39: ZONE 5 | C39: Route line length within zone | D39: km
C40: Number of maintenance spans | D40: 0's
C41: Total length of maintenance spans | D41: km
C42: Length of vegetation corridors | D42: km
C43: Average number of trees per maintenance span | D43: 0's
C44: Average frequency of cutting cycle | D44: years
B45: ZONE 6 | C45: Route line length within zone | D45: km
C46: Number of maintenance spans | D46: 0's
C47: Total length of maintenance spans | D47: km
C48: Length of vegetation corridors | D48: km
C49: Average number of trees per maintenance span | D49: 0's
C50: Average frequency of cutting cycle | D50: years
B51: ZONE 7 | C51: Route line length within zone | D51: km
C52: Number of maintenance spans | D52: 0's
C53: Total length of maintenance spans | D53: km
C54: Length of vegetation corridors | D54: km
C55: Average number of trees per maintenance span | D55: 0's
C56: Average frequency of cutting cycle | D56: years
B57: ZONE 8 | C57: Route line length within zone | D57: km
C58: Number of maintenance spans | D58: 0's
C59: Total length of maintenance spans | D59: km
C60: Length of vegetation corridors | D60: km
C61: Average number of trees per maintenance span | D61: 0's
C62: Average frequency of cutting cycle | D62: years
B63: ZONE 9 | C63: Route line length within zone | D63: km
C64: Number of maintenance spans | D64: 0's
C65: Total length of maintenance spans | D65: km
C66: Length of vegetation corridors | D66: km
C67: Average number of trees per maintenance span | D67: 0's
C68: Average frequency of cutting cycle | D68: years
B69: ZONE 10 | C69: Route line length within zone | D69: km
C70: Number of maintenance spans | D70: 0's
C71: Total length of maintenance spans | D71: km
C72: Length of vegetation corridors | D72: km
C73: Average number of trees per maintenance span | D73: 0's
C74: Average frequency of cutting cycle | D74: years
B75: ZONE 11 | C75: Route line length within zone | D75: km
C76: Number of maintenance spans | D76: 0's
C77: Total length of maintenance spans | D77: km
C78: Length of vegetation corridors | D78: km
C79: Average number of trees per maintenance span | D79: 0's
C80: Average frequency of cutting cycle | D80: years
B81: ZONE 12 | C81: Route line length within zone | D81: km
C82: Number of maintenance spans | D82: 0's
C83: Total length of maintenance spans | D83: km
C84: Length of vegetation corridors | D84: km
C85: Average number of trees per maintenance span | D85: 0's
C86: Average frequency of cutting cycle | D86: years
B87: ZONE 13 | C87: Route line length within zone | D87: km
C88: Number of maintenance spans | D88: 0's
C89: Total length of maintenance spans | D89: km
C90: Length of vegetation corridors | D90: km
C91: Average number of trees per maintenance span | D91: 0's
C92: Average frequency of cutting cycle | D92: years
B93: ZONE 14 | C93: Route line length within zone | D93: km
C94: Number of maintenance spans | D94: 0's
C95: Total length of maintenance spans | D95: km
C96: Length of vegetation corridors | D96: km
C97: Average number of trees per maintenance span | D97: 0's
C98: Average frequency of cutting cycle | D98: years
B99: ZONE 15 | C99: Route line length within zone | D99: km
C100: Number of maintenance spans | D100: 0's
C101: Total length of maintenance spans | D101: km
C102: Length of vegetation corridors | D102: km
C103: Average number of trees per maintenance span | D103: 0's
C104: Average frequency of cutting cycle | D104: years
B105: ZONE 16 | C105: Route line length within zone | D105: km
C106: Number of maintenance spans | D106: 0's
C107: Total length of maintenance spans | D107: km
C108: Length of vegetation corridors | D108: km
C109: Average number of trees per maintenance span | D109: 0's
C110: Average frequency of cutting cycle | D110: years
B111: ZONE 17 | C111: Route line length within zone | D111: km
C112: Number of maintenance spans | D112: 0's
C113: Total length of maintenance spans | D113: km
C114: Length of vegetation corridors | D114: km
C115: Average number of trees per maintenance span | D115: 0's
C116: Average frequency of cutting cycle | D116: years
B117: ZONE 18 | C117: Route line length within zone | D117: km
C118: Number of maintenance spans | D118: 0's
C119: Total length of maintenance spans | D119: km
C120: Length of vegetation corridors | D120: km
C121: Average number of trees per maintenance span | D121: 0's
C122: Average frequency of cutting cycle | D122: years
B124: RURAL
E125: =CRY -> 2018
B126: ZONES | C126: ASSET | D126: UNITS
B127: =B15 -> HBRA | C127: Route line length within zone | D127: km | E127: 27411.79718
C128: Number of maintenance spans | D128: 0's | E128: 46352
C129: Total length of maintenance spans | D129: km | E129: 6862.686838
C130: Length of vegetation corridors | D130: km | E130: 10763.42
C131: Average number of trees per maintenance span | D131: 0's | E131: 4.97
C132: Average frequency of cutting cycle | D132: years | E132: 1
B133: =B21 -> LBRA | C133: Route line length within zone | D133: km | E133: 6429.927734
C134: Number of maintenance spans | D134: 0's | E134: 8486
C135: Total length of maintenance spans | D135: km | E135: 466.2594541
C136: Length of vegetation corridors | D136: km | E136: 766.13
C137: Average number of trees per maintenance span | D137: 0's | E137: 2.59
C138: Average frequency of cutting cycle | D138: years | E138: 1
B139: =B27 -> ZONE 3 | C139: Route line length within zone | D139: km
C140: Number of maintenance spans | D140: 0's
C141: Total length of maintenance spans | D141: km
C142: Length of vegetation corridors | D142: km
C143: Average number of trees per maintenance span | D143: 0's
C144: Average frequency of cutting cycle | D144: years
B145: =B33 -> ZONE 4 | C145: Route line length within zone | D145: km
C146: Number of maintenance spans | D146: 0's
C147: Total length of maintenance spans | D147: km
C148: Length of vegetation corridors | D148: km
C149: Average number of trees per maintenance span | D149: 0's
C150: Average frequency of cutting cycle | D150: years
B151: =B39 -> ZONE 5 | C151: Route line length within zone | D151: km
C152: Number of maintenance spans | D152: 0's
C153: Total length of maintenance spans | D153: km
C154: Length of vegetation corridors | D154: km
C155: Average number of trees per maintenance span | D155: 0's
C156: Average frequency of cutting cycle | D156: years
B157: =B45 -> ZONE 6 | C157: Route line length within zone | D157: km
C158: Number of maintenance spans | D158: 0's
C159: Total length of maintenance spans | D159: km
C160: Length of vegetation corridors | D160: km
C161: Average number of trees per maintenance span | D161: 0's
C162: Average frequency of cutting cycle | D162: years
B163: =B51 -> ZONE 7 | C163: Route line length within zone | D163: km
C164: Number of maintenance spans | D164: 0's
C165: Total length of maintenance spans | D165: km
C166: Length of vegetation corridors | D166: km
C167: Average number of trees per maintenance span | D167: 0's
C168: Average frequency of cutting cycle | D168: years
B169: =B57 -> ZONE 8 | C169: Route line length within zone | D169: km
C170: Number of maintenance spans | D170: 0's
C171: Total length of maintenance spans | D171: km
C172: Length of vegetation corridors | D172: km
C173: Average number of trees per maintenance span | D173: 0's
C174: Average frequency of cutting cycle | D174: years
B175: =B63 -> ZONE 9 | C175: Route line length within zone | D175: km
C176: Number of maintenance spans | D176: 0's
C177: Total length of maintenance spans | D177: km
C178: Length of vegetation corridors | D178: km
C179: Average number of trees per maintenance span | D179: 0's
C180: Average frequency of cutting cycle | D180: years
B181: =B69 -> ZONE 10 | C181: Route line length within zone | D181: km
C182: Number of maintenance spans | D182: 0's
C183: Total length of maintenance spans | D183: km
C184: Length of vegetation corridors | D184: km
C185: Average number of trees per maintenance span | D185: 0's
C186: Average frequency of cutting cycle | D186: years
B187: =B75 -> ZONE 11 | C187: Route line length within zone | D187: km
C188: Number of maintenance spans | D188: 0's
C189: Total length of maintenance spans | D189: km
C190: Length of vegetation corridors | D190: km
C191: Average number of trees per maintenance span | D191: 0's
C192: Average frequency of cutting cycle | D192: years
B193: =B81 -> ZONE 12 | C193: Route line length within zone | D193: km
C194: Number of maintenance spans | D194: 0's
C195: Total length of maintenance spans | D195: km
C196: Length of vegetation corridors | D196: km
C197: Average number of trees per maintenance span | D197: 0's
C198: Average frequency of cutting cycle | D198: years
B199: =B87 -> ZONE 13 | C199: Route line length within zone | D199: km
C200: Number of maintenance spans | D200: 0's
C201: Total length of maintenance spans | D201: km
C202: Length of vegetation corridors | D202: km
C203: Average number of trees per maintenance span | D203: 0's
C204: Average frequency of cutting cycle | D204: years
B205: =B93 -> ZONE 14 | C205: Route line length within zone | D205: km
... 201 more rows

Sheet 2.8 Maintenance
B1: REGULATORY REPORTING STATEMENT
B2: =INDEX(dms_TradingNameFull_List,MATCH(dms_TradingName,dms_TradingName_List)) -> AusNet Electricity Services Pty Ltd
B3: =CONCATENATE((LOOKUP(dms_Model,dms_Model_List,dms_Worksheet_List))&" "&CRY) -> CATEGORY ANALYSIS 2018
B4: 2.8 MAINTENANCE
B6: There are TWO tables on this worksheet. Each has been grouped for ease of navigation. See the Instructions sheet on how to group or ungroup tables.
B8: 2.8.1 - DESCRIPTOR METRICS FOR ROUTINE AND NON-ROUTINE MAINTENANCE
F9: ASSET QUANTITY (0's) | H9: AVERAGE AGE OF ASSET GROUP | I9: INSPECTION CYCLE (YEARS) | J9: MAINTENANCE CYCLE (YEARS)
F10: AT YEAR END | G10: INSPECTED / MAINTAINED
B11: MAINTENANCE ACTIVITY | C11: MAINTENANCE ASSET CATEGORY | D11: ASSET QUANTITY | E11: Units | F11: =CRY -> 2018 | G11: =CRY -> 2018 | H11: =CRY -> 2018
B12: Pole top, overhead line & service line maintenance | C12: Pole tops and overhead lines | D12: Number of poles | E12: Number | F12: 405073.9675 | G12: 127774.544 | H12: 22.24497059 | I12: 3 | J12: 0
C13: Service lines | D13: Number of customers | E13: Number | F13: 259801 | G13: 96803 | H13: 20.25727291 | I13: 3 | J13: 0
B14: Pole inspection and treatment | C14: All poles | D14: Number of poles | E14: Number | F14: 311998.9991 | G14: 95318.86257 | H14: 33.49837887 | I14: 5 | J14: 0
B15: Overhead asset inspection | C15: All overhead assets | D15: Line patrolled (route KM) | E15: KM | F15: 34532.37236 | G15: 8980 | H15: 31.87249067 | I15: 5 | J15: 0
B16: Network underground cable maintenance: by voltage | C16: LV - 11 to 22 KV | D16: Length (KM) | E16: KM | F16: 6895.176193 | G16: 620 | H16: 18.58803667 | I16: 0 | J16: 0
C17: 33 KV and above | D17: Length (KM) | E17: KM | F17: 11.43 | G17: 0 | H17: 28.93126234 | I17: 0 | J17: 0
B18: Network underground cable maintenance: by location | C18: Cbd | D18: Length (KM) | E18: KM | F18: 0 | G18: 0 | H18: 0 | I18: 0 | J18: 0
C19: Non-CBD | D19: Length (KM) | E19: KM | F19: 6906.606193 | G19: 620 | H19: 18.58803667 | I19: 0 | J19: 0
B20: Distribution substation equipment & property maintenance | C20: Distribution substation transformers | D20: Number of installed transformers | E20: Number | F20: 61369 | G20: 20274 | H20: 25.69584143 | I20: 3 | J20: 0
C21: Distribution substation switchgear (within-substations and stand-alone switchgear) | D21: Number of switches | E21: Number | F21: 133273.8198 | G21: 16104 | H21: 23.8697392 | I21: 0 | J21: 10
C22: Distribution substation - other equipment | D22: Earth mat | E22: Number | F22: 185672.8198 | G22: 2412 | H22: 24.51921156 | I22: 0 | J22: 0
C23: Distribution substation - property | D23: Number of distribution substation properties maintained | E23: Number | F23: 4395 | G23: 427 | H23: 40 | I23: 3 | J23: 0
B24: Zone substation equipment maintenance | C24: Transformers - zone substation | D24: Number | E24: Number | F24: 155 | G24: 603 | H24: 38.40645161 | I24: 1 | J24: 4
C25: Transformers - distribution | D25: Number of distribution transformers within zone substation | E25: Number | F25: 0 | G25: 0 | H25: 0 | I25: 0 | J25: 0
C26: Transformers - HV | D26: Number of HV transformers | E26: Number | F26: 0 | G26: 0 | H26: 0 | I26: 0 | J26: 0
C27: Zone substation - other equipment | D27: <DNSP to nominate> | E27: Number | F27: 2598 | G27: 2150 | H27: 21.72489718 | I27: 1 | J27: 4
B28: Zone substation property maintenance | C28: All zone substation properties | D28: Number of zone substation properties maintained | E28: Number | F28: 71 | G28: 180 | H28: 40 | I28: 0 | J28: 1
B29: Public lighting maintenance | C29: Minor roads | D29: Number of public lights maintained | E29: Number | F29: 0 | G29: 0 | H29: 0 | I29: 0 | J29: 0
C30: Major roads | D30: Number of public lights maintained | E30: Number | F30: 0 | G30: 0 | H30: 0 | I30: 0 | J30: 0
B31: SCADA & network control maintenance | C31: SCADA & network control | D31: Number of systems | E31: Number | F31: 9130.607989 | G31: 3010.405135 | H31: 8.961671226 | I31: 6 | J31: 6
B32: Protection systems maintenance | C32: Protection systems | D32: Number of systems | E32: Number | F32: 331.392011 | G32: 731 | H32: 10.35351482 | I32: 6 | J32: 6
B33: Subtransmission asset maintenance | C33: Subtransmission asset maintenance - for DNSPs with dual function assets | D33: <DNSP to nominate> | E33: Number | F33: 0 | G33: 0 | H33: 0 | I33: 0 | J33: 0
B34: Various assets | C34: includes rates, electricity, communications equip, metering | D34: Various | E34: Number | F34: 0 | G34: 0 | H34: 0 | I34: 0 | J34: 0
B35: Ground clearance - access tracks | C35: Access tracks | D35: Number | E35: Number | F35: 0 | G35: 0 | H35: 0 | I35: 0 | J35: 0
B36: Other | C36: < DNSP to nominate > | D36: < DNSP to nominate > | G36: 0 | H36: 0 | J36: 0
B48: 2.8.2 - COST METRICS FOR ROUTINE AND NON-ROUTINE MAINTENANCE
F49: EXPENDITURE ($0'S)
F50: ROUTINE MAINTENANCE | G50: NON-ROUTINE MAINTENANCE
B51: MAINTENANCE ACTIVITY | C51: MAINTENANCE ASSET CATEGORY | D51: ASSET QUANTITY | E51: Units | F51: =CRY -> 2018 | G51: =CRY -> 2018
B52: Pole top, overhead line & service line maintenance | C52: Pole tops and overhead lines | D52: Number of poles | E52: Number | F52: 800442.8869 | G52: 398548.69
C53: Service lines | D53: Number of customers | E53: Number | F53: 2090.756694 | G53: 431017.18
B54: Pole inspection and treatment | C54: All poles | D54: Number of poles | E54: Number | F54: 4484523.891 | G54: 192562.07
B55: Overhead asset inspection | C55: All overhead assets | D55: Line patrolled (route KM) | E55: KM | F55: 1699743.498 | G55: 6213480.1
B56: Network underground cable maintenance: by voltage | C56: LV - 11 to 22 KV | D56: Length (KM) | E56: KM | F56: 54990.83899 | G56: 448346.65
C57: 33 KV and above | D57: Length (KM) | E57: KM | F57: 0 | G57: 0
B58: Network underground cable maintenance: by location | C58: Cbd | D58: Length (KM) | E58: KM | F58: 0 | G58: 0
C59: Non-CBD | D59: Length (KM) | E59: KM | F59: 54990.83899 | G59: 448346.65
B60: Distribution substation equipment & property maintenance | C60: Distribution substation transformers | D60: Number of installed transformers | E60: Number | F60: 259303.0522 | G60: 297393.51
C61: Distribution substation switchgear (within-substations and stand-alone switchgear) | D61: Number of switches | E61: Number | F61: 158145.492 | G61: 1190967.39
C62: Distribution substation - other equipment | D62: Earth mat | E62: Number | F62: 802366.8561 | G62: 26208.49
C63: Distribution substation - property | D63: Number of distribution substation properties maintained | E63: Number | F63: 270082.402 | G63: 767374.87
B64: Zone substation equipment maintenance | C64: Transformers - zone substation | D64: Number | E64: Number | F64: 162570.5016 | G64: 187967.24
C65: Transformers - distribution | D65: Number of distribution transformers within zone substation | E65: Number | F65: 0 | G65: 0
C66: Transformers - HV | D66: Number of HV transformers | E66: Number | F66: 0 | G66: 0
C67: Zone substation - other equipment | D67: =IF(ISBLANK(D27),"",D27) -> <DNSP to nominate> | E67: =IF(ISBLANK(E27),"",E27) -> Number | F67: 1051514.337 | G67: 561901.23
B68: Zone substation property maintenance | C68: All zone substation properties | D68: Number of zone substation properties maintained | E68: Number | F68: 107307.7004 | G68: 470121.49
B69: Public lighting maintenance | C69: Minor roads | D69: Number of public lights maintained | E69: Number | F69: 0 | G69: 0
C70: Major roads | D70: Number of public lights maintained | E70: Number | F70: 0 | G70: 0
B71: SCADA & network control maintenance | C71: SCADA & network control | D71: Number of systems | E71: Number | F71: 0 | G71: 44751.53
B72: Protection systems maintenance | C72: Protection systems | D72: Number of systems | E72: Number | F72: 378062.0824 | G72: 218287.46
B73: Subtransmission asset maintenance | C73: Subtransmission asset maintenance - for DNSPs with dual function assets | D73: =IF(ISBLANK(D33),"",D33) -> <DNSP to nominate> | E73: =IF(ISBLANK(E33),"",E33) -> Number | F73: 0 | G73: 5917.66
B74: Various assets | C74: includes rates, electricity, communications equip, metering | D74: Various | E74: Number | F74: 0 | G74: 0
B75: Ground clearance - access tracks | C75: Access tracks | D75: Number | E75: Number | F75: 0 | G75: 0
B76: Other | C76: =IF(ISBLANK(C36),"",C36) -> < DNSP to nominate > | D76: < DNSP to nominate > | F76: -54990.83899 | G76: -448346.65

Sheet 2.9 Emergency Response
B1: REGULATORY REPORTING STATEMENT
B2: =INDEX(dms_TradingNameFull_List,MATCH(dms_TradingName,dms_TradingName_List)) -> AusNet Electricity Services Pty Ltd
B3: =CONCATENATE((LOOKUP(dms_Model,dms_Model_List,dms_Worksheet_List))&" "&CRY) -> CATEGORY ANALYSIS 2018
B4: 2.9 EMERGENCY RESPONSE
B7: There is ONE table on this worksheet. It has been sub-grouped for ease of navigation. See the Instructions sheet on how to group or ungroup tables.
B9: 2.9.1 - EMERGENCY RESPONSE EXPENDITURE (OPEX)
C10: EXPENDITURE ($0's)
C11: =CRY -> 2018
B12: (A) TOTAL EMERGENCY RESPONSE EXPENDITURE | C12: ='[3]2.9 Emergency Response'!$C$12 -> 18327659.94
B13: Total Expenditure | C13: 18327660
B14: (B) MAJOR EVENTS O&M EXPENDITURE | C14: 199993.455
B15: MED DAY 14th February 2018 | C15: 199993
B58: (C) MAJOR EVENT DAYS O&M EXPENDITURE | C58: 199993.455
B59: MED DAY 14th February 2018 | C59: 199993

Sheet 2.10 Overheads
B1: REGULATORY REPORTING STATEMENT
B2: =INDEX(dms_TradingNameFull_List,MATCH(dms_TradingName,dms_TradingName_List)) -> AusNet Electricity Services Pty Ltd
B3: =CONCATENATE((LOOKUP(dms_Model,dms_Model_List,dms_Worksheet_List))&" "&CRY) -> CATEGORY ANALYSIS 2018
B4: 2.10 OVERHEADS
B6: =CONCATENATE("Please note. This worksheet 2.10 Overheads is the original worksheet. We have also included a different version of the Overheads template (worksheet 2.10A Overheads) which collects the information in a different way. ",dms_TradingName, " is not obliged to complete worksheet 2.10A. However, the AER would prefer to collect Overheads information as presented in the revised worksheet 2.10A Overheads. If ",dms_TradingName," is prepared to complete worksheet 2.10A in lieu of the original worksheet 2.10 Overheads, please indicate that choice by selecting from the drop down list at the right. ",dms_TradingName, " is only required to complete one version of the Overheads worksheet in order to comply with the Category Analysis RIN.") -> Please note. This worksheet 2.10 Overheads is the original worksheet. We have also included a different version of the Overheads template (worksheet 2.10A Overheads) which collects the information in a different way. AusNet (D) is not obliged to complete worksheet 2.10A. However, the AER would prefer to collect Overheads information as presented in the revised worksheet 2.10A Overheads. If AusNet (D) is prepared to complete worksheet 2.10A in lieu of the original worksheet 2.10 Overheads, please indicate that choice by selecting from the drop down list at the right. AusNet (D) is only required to complete one version of the Overheads worksheet in order to comply with the Category Analysis RIN. | D6: Choose Response drop down selection
D7: Worksheet 2.10A
B11: There are TWO tables on this worksheet. Each has been grouped (and sub-grouped) for ease of navigation. See the Instructions sheet on how to group or ungroup tables.
B13: =CONCATENATE("Instructions Please enter a description for each expenditure category as currently reported under ",dms_TradingName,"'s annual RIN.") -> Instructions Please enter a description for each expenditure category as currently reported under AusNet (D)'s annual RIN.
B15: 2.10.1 - NETWORK OVERHEADS EXPENDITURE
D16: EXPENDITURE ($0's)
D17: =CRY -> 2018
B18: NETWORK OVERHEADS
B19: Standard Control Services
B47: Alternative Control Services
B75: Negotiated Services | C75: Total
B76: Unregulated Services | C76: Total
B79: CAPITALISED NETWORK OVERHEADS
B80: Standard Control Services
B104: 2.10.2 - CORPORATE OVERHEADS EXPENDITURE
D105: EXPENDITURE ($0's)
D106: =CRY -> 2018
B107: CORPORATE OVERHEADS
B108: Standard Control Services
B129: Alternative Control Services
B150: Negotiated Services | C150: Total
B151: Unregulated Services | C151: Total
B153: CAPITALISED CORPORATE OVERHEADS
B154: Standard Control Services

Sheet 2.10(A) Overheads
B1: REGULATORY REPORTING STATEMENT
B2: =INDEX(dms_TradingNameFull_List,MATCH(dms_TradingName,dms_TradingName_List)) -> AusNet Electricity Services Pty Ltd
B3: =CONCATENATE((LOOKUP(dms_Model,dms_Model_List,dms_Worksheet_List))&" "&CRY) -> CATEGORY ANALYSIS 2018
B4: 2.10(A) OVERHEADS
B6: This worksheet may be completed on a voluntary basis. Please see worksheet 2.10 for an explanation of Overheads reporting options.
B9: There are TWO tables on this worksheet. Each has been grouped (and sub-grouped) for ease of navigation. See the Instructions sheet on how to group or ungroup tables.
B11: 2.10.1 - NETWORK OVERHEADS EXPENDITURE
D12: EXPENDITURE ($0's)
D13: =CRY -> 2018
B14: OPEX
B15: Standard Control Services | C15: Total | D15: 73745872.95
B16: Alternative Control Services | C16: Total | D16: 4.656612873e-10
B17: CAPEX
B18: Standard Control Services | C18: Total | D18: 30691961.26
B19: Alternative Control Services | C19: Total | D19: 3116482.79
B20: OTHER DISTRIBUTION SERVICES
B21: Negotiated Services | C21: Total | D21: 94211.83831
B22: Unregulated Services | C22: Total | D22: 335216.427
B26: 2.10.2 - CORPORATE OVERHEADS EXPENDITURE
D27: EXPENDITURE ($0's)
D28: =CRY -> 2018
B29: OPEX
B30: Standard Control Services | C30: Total | D30: 20888463.2
B31: Alternative Control Services | C31: Total | D31: 0
B32: CAPEX
B33: Standard Control Services | C33: Total | D33: 3102633.561
B34: Alternative Control Services | C34: Total | D34: 0
B35: OTHER DISTRIBUTION SERVICES
B36: Negotiated Services | C36: Total | D36: 0
B37: Unregulated Services | C37: Total | D37: 0

Sheet 2.11 Labour
B1: REGULATORY REPORTING STATEMENT
B2: =INDEX(dms_TradingNameFull_List,MATCH(dms_TradingName,dms_TradingName_List)) -> AusNet Electricity Services Pty Ltd
B3: =CONCATENATE((LOOKUP(dms_Model,dms_Model_List,dms_Worksheet_List))&" "&CRY) -> CATEGORY ANALYSIS 2018
B4: 2.11 LABOUR
B6: There are TWO tables on this worksheet. Each has been grouped for ease of navigation. See the Instructions sheet on how to group or ungroup tables.
B8: 2.11.1 - COST METRICS PER ANNUM
D9: ASL (0's) | E9: TOTAL LABOUR EXPENDITURE ($0's) | F9: AVERAGE PRODUCTIVE WORK HOURS PER ASL (0's) | G9: STAND-DOWN OCCURENCES PER ASL (0's)
D11: =CRY -> 2018 | E11: =CRY -> 2018 | F11: =CRY -> 2018 | G11: =CRY -> 2018
B12: INTERNAL LABOUR EXPENDITURE
B13: CORPORATE OVERHEADS | C13: Executive manager
C14: Senior manager
C15: Manager
C16: Professional
C17: Semi professional
C18: Support staff
C19: Intern, junior staff, apprentice
B20: NETWORK OVERHEADS | C20: Executive manager
C21: Senior manager
C22: Manager
C23: Professional
C24: Semi professional
C25: Support staff
C26: Intern, junior staff, apprentice
B27: TOTAL DIRECT NETWORK LABOUR | C27: Skilled electrical worker
C28: Skilled non electical worker
C29: Apprentice
C30: Unskilled worker
B33: 2.11.2 - DESCRIPTOR METRICS
D34: ORDINARY TIME (0's) | F34: OVERTIME (0's)
D35: PER ASL | E35: HOURLY RATE PER ASL | F35: PER ASL | G35: HOURLY RATE PER ASL
D36: =CRY -> 2018 | E36: =CRY -> 2018 | F36: =CRY -> 2018 | G36: =CRY -> 2018
B37: AVERAGE PRODUCTIVE WORK HOURS PER ASL
B38: CORPORATE OVERHEADS | C38: Executive manager
C39: Senior manager
C40: Manager
C41: Professional
C42: Semi professional
C43: Support staff
C44: Intern, junior staff, apprentice
B45: NETWORK OVERHEADS | C45: Executive manager
C46: Senior manager
C47: Manager
C48: Professional
C49: Semi professional
C50: Support staff
C51: Intern, junior staff, apprentice
B52: TOTAL DIRECT NETWORK LABOUR | C52: Skilled electrical worker
C53: Skilled non electical worker
C54: Apprentice
C55: Unskilled worker

Sheet 2.12 Input tables
B1: REGULATORY REPORTING STATEMENT
B2: =INDEX(dms_TradingNameFull_List,MATCH(dms_TradingName,dms_TradingName_List)) -> AusNet Electricity Services Pty Ltd
B3: =CONCATENATE((LOOKUP(dms_Model,dms_Model_List,dms_Worksheet_List))&" "&CRY) -> CATEGORY ANALYSIS 2018
B4: 2.12 INPUT TABLES
B6: There is ONE table on this worksheet. It has been sub-grouped for ease of navigation. See the Instructions sheet on how to group or ungroup tables.
B8: 2.12.1 - INPUT TABLES
D9: DIRECT MATERIAL EXPENDITURE | E9: DIRECT LABOUR EXPENDITURE | F9: CONTRACT EXPENDITURE | G9: OTHER EXPENDITURE | H9: RELATED PARTY CONTRACT EXPENDITURE | I9: RELATED PARTY CONTRACT MARGIN EXPENDITURE
D10: EXPENDITURE ($0's)
D11: =CRY -> 2018 | E11: 2018 | F11: 2018 | G11: 2018 | H11: 2018 | I11: 2018
B12: VEGETATION MANAGEMENT | C12: ='2.7 Vegetation management'!B15 -> HBRA | D12: 7411.292785 | E12: 3723550.949 | F12: 22679314.76 | G12: 786302.2847
C13: ='2.7 Vegetation management'!B21 -> LBRA | D13: 1140.577135 | E13: 573044.0286 | F13: 3490282.817 | G13: 121009.7123
C14: ='2.7 Vegetation management'!B27 -> ZONE 3 | D14: 0 | E14: 0 | F14: 0 | G14: 0
C15: ='2.7 Vegetation management'!B33 -> ZONE 4 | D15: 0 | E15: 0 | F15: 0 | G15: 0
C16: ='2.7 Vegetation management'!B39 -> ZONE 5 | D16: 0 | E16: 0 | F16: 0 | G16: 0
C17: ='2.7 Vegetation management'!B45 -> ZONE 6 | D17: 0 | E17: 0 | F17: 0 | G17: 0
C18: ='2.7 Vegetation management'!B51 -> ZONE 7 | D18: 0 | E18: 0 | F18: 0 | G18: 0
C19: ='2.7 Vegetation management'!B57 -> ZONE 8 | D19: 0 | E19: 0 | F19: 0 | G19: 0
C20: ='2.7 Vegetation management'!B63 -> ZONE 9 | D20: 0 | E20: 0 | F20: 0 | G20: 0
C21: ='2.7 Vegetation management'!B69 -> ZONE 10 | D21: 0 | E21: 0 | F21: 0 | G21: 0
C22: ='2.7 Vegetation management'!B75 -> ZONE 11 | D22: 0 | E22: 0 | F22: 0 | G22: 0
C23: ='2.7 Vegetation management'!B81 -> ZONE 12 | D23: 0 | E23: 0 | F23: 0 | G23: 0
C24: ='2.7 Vegetation management'!B87 -> ZONE 13 | D24: 0 | E24: 0 | F24: 0 | G24: 0
C25: ='2.7 Vegetation management'!B93 -> ZONE 14 | D25: 0 | E25: 0 | F25: 0 | G25: 0
C26: ='2.7 Vegetation management'!B99 -> ZONE 15 | D26: 0 | E26: 0 | F26: 0 | G26: 0
C27: ='2.7 Vegetation management'!B105 -> ZONE 16 | D27: 0 | E27: 0 | F27: 0 | G27: 0
C28: ='2.7 Vegetation management'!B111 -> ZONE 17 | D28: 0 | E28: 0 | F28: 0 | G28: 0
C29: ='2.7 Vegetation management'!B117 -> ZONE 18 | D29: 0 | E29: 0 | F29: 0 | G29: 0
B30: ROUTINE MAINTENANCE | C30: Pole top, overhead line & service line maintenance | D30: 408159.378 | E30: 327704.9102 | F30: 25327.92496 | G30: 41341.47051
C31: Pole inspection and treatment | D31: 2280777.256 | E31: 1831201.11 | F31: 141531.3682 | G31: 231014.3801
C32: Overhead asset inspection | D32: 864469.9872 | E32: 694069.7061 | F32: 53643.82677 | G32: 87560.06212
C33: Network underground cable maintenance | D33: 27967.70804 | E33: 22454.84422 | F33: 1735.508355 | G33: 2832.781114
C34: Distribution substation equipment & property maintenance | D34: 757744.8809 | E34: 608381.7536 | F34: 47021.10626 | G34: 76750.13571
C35: Zone substation equipment maintenance | D35: 617469.581 | E35: 495756.8648 | F35: 38316.46179 | G35: 62541.99181
C36: Zone substation property maintenance | D36: 54575.46183 | E36: 43817.80202 | F36: 3386.626099 | G36: 5527.81577
C37: Public lighting maintenance | D37: 0 | E37: 0 | F37: 0 | G37: 0
C38: Scada & network control maintenance | D38: 0 | E38: 0 | F38: 0 | G38: 0
C39: Protection systems maintenance | D39: 192278.0255 | E39: 154377.0803 | F39: 11931.62197 | G39: 19475.37347
C40: Subtransmission asset maintenance - for dnsps with dual function assets | D40: 0 | E40: 0 | F40: 0 | G40: 0
C41: Other | D41: 0 | E41: 0 | F41: 0 | G41: 0
B42: NON-ROUTINE MAINTENANCE | C42: Pole top, overhead line & service line maintenance | D42: 421907.6573 | E42: 338743.193 | F42: 26181.06078 | G42: 42734.00028
C43: Pole inspection and treatment | D43: 97934.85337 | E43: 78630.39307 | F43: 6077.250091 | G43: 9919.583063
C44: Overhead asset inspection | D44: 3160104.492 | E44: 2537199.473 | F44: 196097.1468 | G44: 320079.2968
C45: Network underground cable maintenance | D45: 228023.9479 | E45: 183076.9337 | F45: 14149.7997 | G45: 23095.991
C46: Distribution substation equipment & property maintenance | D46: 1160570.597 | E46: 931804.3482 | F46: 72018.05611 | G46: 117551.3726
C47: Zone substation equipment maintenance | D47: 381374.4766 | E47: 306199.7233 | F47: 23665.8145 | G47: 38628.49301
C48: Zone substation property maintenance | D48: 239098.381 | E48: 191968.4263 | F48: 14837.01265 | G48: 24217.69339
C49: Public lighting maintenance | D49: 0 | E49: 0 | F49: 0 | G49: 0
C50: SCADA & network control maintenance | D50: 22760.11329 | E50: 18273.7462 | F50: 1412.356233 | G50: 2305.316509
C51: Protection systems maintenance | D51: 111018.4907 | E51: 89135.04504 | F51: 6889.142219 | G51: 11244.79287
C52: Subtransmission asset maintenance - for DNSP with dual function assets | D52: 3009.653793 | E52: 2416.404912 | F52: 186.761078 | G52: 304.8405115
C53: Other | D53: 0 | E53: 0 | F53: 0 | G53: 0
B54: OVERHEADS | C54: Network overheads | D54: 511012.1207 | E54: 59255124.33 | F54: 5719586.117 | G54: 42068594.43
C55: Corporate overheads | D55: -129122.8533 | E55: 17692197.87 | F55: 1371794.661 | G55: 5056227.086
B56: AUGMENTATION | C56: Subtransmission substations, switching stations, zone substations | D56: 15193702.5 | E56: 7620652.707 | F56: 20698406.58 | G56: 5686599.977
C57: Subtransmission lines | D57: 4159356.939 | E57: 2086194.245 | F57: 5666298.983 | G57: 1556737.015
C58: HV feeders | D58: 8718392.534 | E58: 4372853.929 | F58: 11877080.88 | G58: 3263063.153
C59: Distribution substations | D59: 1139734.947 | E59: 571652.9077 | F59: 1552662.844 | G59: 426572.5702
C60: LV feeders | D60: 1171161.837 | E60: 587415.5839 | F60: 1595475.749 | G60: 438334.8217
C61: Other assets | D61: 0 | E61: 0 | F61: 0 | G61: 0
B62: CONNECTIONS | C62: Simple and complex customer connections | D62: 9155668.527 | E62: 8118257.927 | F62: 52671569.82 | G62: 5003078.582
B63: EMERGENCY RESPONSE | C63: Major storms | D63: 0 | E63: 0 | F63: 199993.455 | G63: 0
C64: Major event days | D64: 0 | E64: 0 | F64: 199993.455 | G64: 0
B65: PUBLIC LIGHTING | C65: All public lighting services | D65: 2217604.978 | E65: 527209.9371 | F65: 7323379.655 | G65: 330266.3213
B66: METERING | C66: All metering services | D66: 3837713.847 | E66: 11818269.05 | F66: 7720670.703 | G66: 15395458.9
B67: FEE-BASED SERVICES | C67: All fee-based services | D67: 6079285.258 | E67: 2478931.524 | F67: 3857797.172 | G67: 810130.7256
B68: QUOTED SERVICES | C68: All quoted services | D68: 27572.26058 | E68: 1188674.938 | F68: 967738.3677 | G68: 2001849.153
B69: REPLACEMENT | C69: Poles | D69: 9061564.304 | E69: 4114897.254 | F69: 24274727.33 | G69: 3756635.117
C70: Pole top structures | D70: 2259111.467 | E70: 1025872.715 | F70: 6051859.596 | G70: 936555.4542
C71: Overhead conductors | D71: 2572089.695 | E71: 1167997.541 | F71: 6890286.701 | G71: 1066306.23
C72: Underground cables | D72: 1017955.806 | E72: 462258.3267 | F72: 2726968.413 | G72: 422011.9619
C73: Service lines | D73: 1565912.869 | E73: 711088.1025 | F73: 4194872.613 | G73: 649177.4574
C74: Transformers | D74: 2204088.906 | E74: 1000886.721 | F74: 5904461.46 | G74: 913744.8576
C75: Switchgear | D75: 5884726.713 | E75: 2672280.964 | F75: 15764401.33 | G75: 2439619.726
C76: Public lighting | D76: 0 | E76: 0 | F76: 0 | G76: 0
C77: SCADA network control and protection systems | D77: 2683195.034 | E77: 1218450.977 | F77: 7187923.149 | G77: 1112366.955
C78: Other | D78: 3225297.981 | E78: 1464622.372 | F78: 8640144.948 | G78: 1337105.521
B79: NON-NETWORK EXPENDITURE | C79: IT and communications | D79: 12923.95 | E79: 24829374.21 | F79: 130619.8 | G79: 25207003.79
C80: Motor vehicles | D80: 3913948.41 | E80: 947.35 | F80: -198.75 | G80: 10604803.69
C81: Buildings and property | D81: 174995.6005 | E81: 1233024.325 | F81: 2829300.412 | G81: 4905506.163
C82: Other | D82: 1763385.43 | E82: 133977.48 | F82: 607221.86 | G82: 722479.13

Sheet 4.1 Public lighting
B1: REGULATORY REPORTING STATEMENT
B2: =INDEX(dms_TradingNameFull_List,MATCH(dms_TradingName,dms_TradingName_List)) -> AusNet Electricity Services Pty Ltd
B3: =CONCATENATE((LOOKUP(dms_Model,dms_Model_List,dms_Worksheet_List))&" "&CRY) -> CATEGORY ANALYSIS 2018
B4: 4.1 PUBLIC LIGHTING
B7: There are THREE tables on this worksheet. Each has been grouped for ease of navigation. See the Instructions sheet on how to group or ungroup tables.
B9: 4.1.1 - DESCRIPTOR METRICS OVER YEAR
E10: VOLUME (0's)
C11: LIGHT TYPE | E11: =CRY -> 2018
B12: POPULATION OF LIGHTS | C12: CC Mercury Vapour 125W | E12: 346
C13: CC Mercury Vapour 250W | E13: 942
C14: CC Mercury Vapour 400W | E14: 232
C15: CC Mercury Vapour 50W | E15: 199
C16: CC Mercury Vapour 80W | E16: 26841
C17: Compact Flourescent 32W | E17: 3424
C18: Compact Flourescent 42W | E18: 4577
C19: HP Sodium 100W | E19: 3191
C20: HP Sodium 150W | E20: 21649
C21: HP Sodium 250W | E21: 12361
C22: HP Sodium 400W | E22: 638
C23: LED 18W | E23: 44874
C24: LED 14W | E24: 11
C25: Metal Halide 100W | E25: 34
C26: Metal Halide 150W | E26: 33
C27: Metal Halide 70W | E27: 31
C28: T5 Fluor 14W | E28: 29289
C29: T5 Fluor 24W | E29: 2742
B214: 4.1.2 - DESCRIPTOR METRICS ANNUALLY
E217: VOLUMES & EXPENDITURE
B218: SERVICE/SERVICE QUALITY | C218: DESCRIPTOR METRIC | D218: UNITS | E218: =CRY -> 2018
B219: LIGHT INSTALLATION | C219: Major road light installation | D219: 0's
C220: Minor road light installation | D220: 0's
C221: Number of poles installed | D221: 0's | E221: 3904
C222: Total cost | D222: $0s | E222: 4620792.084
B223: LIGHT REPLACEMENT | C223: Major road light replacement | D223: 0's | E223: 1096
C224: Minor road light replacement | D224: 0's | E224: 1349
C225: Number of poles replaced | D225: 0's | E225: 385
C226: Total cost | D226: $0s | E226: 2810797.947
B227: LIGHT MAINTENANCE | C227: Major road light maintenance | D227: 0's | E227: 2083
C228: Minor road light maintenance | D228: 0's | E228: 6708
C229: Number of poles installed | D229: 0's
C230: Total cost | D230: $0s | E230: 2966870.86
B231: QUALITY OF SUPPLY | C231: Mean days to rectify/replace public lighting assets | D231: days | E231: 1.38
C232: GSO breaches | D232: 0's | E232: 19
C233: GSL payments | D233: $0s | E233: 475
C234: Customer complaints | D234: 0's | E234: 14
B237: 4.1.3 - COST METRICS
E238: AVERAGE UNIT COST ($)
B239: ACTIVITY TYPE | C239: LIGHT TYPE | E239: =CRY -> 2018
B240: LIGHT INSTALLATION | C240: Major Road - all light types
C241: CC Mercury Vapour 125W
C242: CC Mercury Vapour 80W
C243: CC Mercury Vapour 50W
C244: Compact Fluorescent 32W
C245: Compact Fluorescent 42W
C246: Fluorescent 20W
C247: HP Sodium 100W
C248: HP Sodium 50W
C249: Metal halide 100W
C250: Metal halide 70W
C251: T5 Fluor 14W
C252: T5 Fluor 24W
C253: LED 20W
C254: LED 18W
C255: Other minor
B340: LIGHT REPLACEMENT | C340: Major Road - all light types
C341: CC Mercury Vapour 125W
C342: CC Mercury Vapour 80W
C343: CC Mercury Vapour 50W
C344: Compact Fluorescent 32W
C345: Compact Fluorescent 42W
C346: Fluorescent 20W
C347: HP Sodium 100W
C348: HP Sodium 50W
C349: Metal halide 100W
C350: Metal halide 70W
C351: T5 Fluor 14W
C352: T5 Fluor 24W
C353: LED 20W
C354: LED 18W
C355: Other minor
B440: LIGHT MAINTENANCE | C440: Major Road - all light types
C441: CC Mercury Vapour 125W
C442: CC Mercury Vapour 80W
C443: CC Mercury Vapour 50W
C444: Compact Fluorescent 32W
C445: Compact Fluorescent 42W
C446: Fluorescent 20W
C447: HP Sodium 100W
C448: HP Sodium 50W
C449: Metal halide 100W
C450: Metal halide 70W
C451: T5 Fluor 14W
C452: T5 Fluor 24W
C453: LED 20W
C454: LED 18W
C455: Other minor

Sheet 4.2 Metering
B1: REGULATORY REPORTING STATEMENT
B2: =INDEX(dms_TradingNameFull_List,MATCH(dms_TradingName,dms_TradingName_List)) -> AusNet Electricity Services Pty Ltd
B3: =CONCATENATE((LOOKUP(dms_Model,dms_Model_List,dms_Worksheet_List))&" "&CRY) -> CATEGORY ANALYSIS 2018
B4: 4.2 METERING
B6: There are TWO tables on this worksheet. Each has been grouped for ease of navigation. See the Instructions sheet on how to group or ungroup tables.
B8: 4.2.1 - METERING DESCRIPTOR METRIC
D9: VOLUMES (0's)
B10: Asset Category | C10: Asset Subcategory | D10: =CRY -> 2018
B11: Meter Type 4 | C11: Single phase meter population | D11: 611515
C12: Multi phase meter population | D12: 134391
C13: Current transformer connected meter population | D13: 4210
C14: Direct connect meter population | D14: 741696
B15: Meter Type 5 | C15: Single phase meter population | D15: 3036
C16: Multi phase meter population | D16: 560
C17: Current transformer connected meter population | D17: 54
C18: Direct connect meter population | D18: 3542
B19: Meter Type 6 | C19: Single phase meter population | D19: 10402
C20: Multi phase meter population | D20: 4697
C21: Current transformer connected meter population | D21: 68
C22: Direct connect meter population | D22: 15031
B25: 4.2.2 - COST METRICS
D26: VOLUMES (0's) | E26: EXPENDITURE ($0's)
B27: Service Subcategory | C27: Meter Type | D27: =CRY -> 2018 | E27: =CRY -> 2018
B28: Meter purchase | C28: Meter Type 4 | D28: 85294 | E28: 4897210.73
C29: Meter Type 5 | D29: 0 | E29: 0
C30: Meter Type 6 | D30: 0 | E30: 0
B31: Meter testing | C31: Meter Type 4 | D31: 134 | E31: 80303.25991
C32: Meter Type 5 | D32: 0 | E32: 0
C33: Meter Type 6 | D33: 119 | E33: 71314.08902
B34: Meter investigation | C34: Meter Type 4 | D34: 2802 | E34: 682287.4854
C35: Meter Type 5 | D35: 0 | E35: 0
C36: Meter Type 6 | D36: 33 | E36: 8035.505716
B37: Scheduled meter reading | C37: Meter Type 4 | D37: 0 | E37: 0
C38: Meter Type 5 | D38: 89149 | E38: 2343758.028
C39: Meter Type 6 | D39: 3101 | E39: 81526.36199
B40: Special meter reading | C40: Meter Type 4 | D40: 9000 | E40: 397912.5327
C41: Meter Type 5 | D41: 3904 | E41: 172605.6142
C42: Meter Type 6 | D42: 20104 | E42: 888848.1731
B43: New meter installation | C43: Meter Type 4 | D43: 0 | E43: 0
C44: Meter Type 5 | D44: 0 | E44: 0
C45: Meter Type 6 | D45: 0 | E45: 0
B46: Meter replacement | C46: Meter Type 4 | D46: 244 | E46: 204577.1641
C47: Meter Type 5 | D47: 547 | E47: 458621.7571
C48: Meter Type 6 | D48: 3408 | E48: 2857372.849
B49: Meter maintenance | C49: Meter Type 4 | D49: 123 | E49: 1118902.49
C50: Meter Type 5 | D50: 0 | E50: 0
C51: Meter Type 6 | D51: 0 | E51: 0
B52: Remote meter reading | C52: Meter Type 4 | D52: 745855 | E52: 1853193.55
B53: Remote meter re-configuration | C53: Meter Type 4 | D53: 10033 | E53: 24928.55969
B54: Other metering | C54: Meter Type 4 | D54: ='[4]4.2 Metering'!D54 -> 0 | E54: 7374946.636
C55: Meter Type 5 | D55: ='[4]4.2 Metering'!D55 -> 0 | E55: 0
C56: Meter Type 6 | D56: ='[4]4.2 Metering'!D56 -> 0 | E56: 0
C57: Meter Type 7 | D57: ='[4]4.2 Metering'!D57 -> 0 | E57: 0
B58: IT infrastructure capex | C58: Meter Type 4 | D58: ='[4]4.2 Metering'!D58 -> 0 | E58: 0
B59: IT infrastructure opex | C59: Meter Type 4 | D59: ='[4]4.2 Metering'!D59 -> 0 | E59: 7277064.912
B60: Communications infrastructure capex | C60: Meter Type 4 | D60: ='[4]4.2 Metering'!D60 -> 0 | E60: 4733407.52
B61: Communications infrastructure opex | C61: Meter Type 4 | D61: ='[4]4.2 Metering'!D61 -> 0 | E61: 3245324.292

Sheet 4.3 Fee-based services
B1: REGULATORY REPORTING STATEMENT
B2: =INDEX(dms_TradingNameFull_List,MATCH(dms_TradingName,dms_TradingName_List)) -> AusNet Electricity Services Pty Ltd
B3: =CONCATENATE((LOOKUP(dms_Model,dms_Model_List,dms_Worksheet_List))&" "&CRY) -> CATEGORY ANALYSIS 2018
B4: 4.3 ANCILLARY SERVICES - FEE BASED SERVICES
B6: 4.3.1 - COST METRICS FOR FEE-BASED SERVICES
D7: EXPENDITURE ($0's) | F7: VOLUMES (0's)
B8: SERVICE | C8: SERVICE SUBCATEGORY | D8: =CRY -> 2018 | F8: =CRY -> 2018
B9: Common Fee-Based Services | C9: Energisation | D9: 0 | E9: ED_FEE431_00001 | F9: 0
C10: De-energisation | D10: 0 | E10: ED_FEE431_00002 | F10: 0
C11: Re-energisation | D11: 0 | E11: ED_FEE431_00003 | F11: 0
B12: Miscellaneous Fee-Based Services | C12: FIELD OFFICER VISITS | D12: 1459366.32 | E12: ED_FEE431_00004 | F12: 214964
C13: NEW CONNECTIONS | D13: 7080968.83 | E13: ED_FEE431_00005 | F13: 18538
C14: SERVICE TRUCK VISITS | D14: 2543717.67 | E14: ED_FEE431_00006 | F14: 7662
C15: METER EQUIPMENT TESTS | D15: 2142091.86 | E15: ED_FEE431_00007 | F15: 10978
E16: ED_FEE431_00008
E17: ED_FEE431_00009
E18: ED_FEE431_00010
E19: ED_FEE431_00011
E20: ED_FEE431_00012
E21: ED_FEE431_00013
E22: ED_FEE431_00014
E23: ED_FEE431_00015
E24: ED_FEE431_00016
E25: ED_FEE431_00017
E26: ED_FEE431_00018
E27: ED_FEE431_00019
E28: ED_FEE431_00020
E29: ED_FEE431_00021
E30: ED_FEE431_00022
E31: ED_FEE431_00023
E32: ED_FEE431_00024
E33: ED_FEE431_00025
E34: ED_FEE431_00026
E35: ED_FEE431_00027
E36: ED_FEE431_00028
E37: ED_FEE431_00029
E38: ED_FEE431_00030
E39: ED_FEE431_00031
E40: ED_FEE431_00032
E41: ED_FEE431_00033
E42: ED_FEE431_00034
E43: ED_FEE431_00035
E44: ED_FEE431_00036
E45: ED_FEE431_00037
E46: ED_FEE431_00038
E47: ED_FEE431_00039
E48: ED_FEE431_00040
E49: ED_FEE431_00041
E50: ED_FEE431_00042
E51: ED_FEE431_00043
E52: ED_FEE431_00044
E53: ED_FEE431_00045
E54: ED_FEE431_00046
E55: ED_FEE431_00047
E56: ED_FEE431_00048
E57: ED_FEE431_00049
E58: ED_FEE431_00050
E59: ED_FEE431_00051
E60: ED_FEE431_00052
E61: ED_FEE431_00053
E62: ED_FEE431_00054
E63: ED_FEE431_00055
E64: ED_FEE431_00056
E65: ED_FEE431_00057
E66: ED_FEE431_00058
E67: ED_FEE431_00059
E68: ED_FEE431_00060
E69: ED_FEE431_00061
E70: ED_FEE431_00062
E71: ED_FEE431_00063
E72: ED_FEE431_00064
E73: ED_FEE431_00065
E74: ED_FEE431_00066
E75: ED_FEE431_00067
E76: ED_FEE431_00068
E77: ED_FEE431_00069
E78: ED_FEE431_00070
E79: ED_FEE431_00071
E80: ED_FEE431_00072
E81: ED_FEE431_00073
E82: ED_FEE431_00074
E83: ED_FEE431_00075
E84: ED_FEE431_00076
E85: ED_FEE431_00077
E86: ED_FEE431_00078
E87: ED_FEE431_00079
E88: ED_FEE431_00080
E89: ED_FEE431_00081
E90: ED_FEE431_00082
E91: ED_FEE431_00083
E92: ED_FEE431_00084
E93: ED_FEE431_00085
E94: ED_FEE431_00086
E95: ED_FEE431_00087
E96: ED_FEE431_00088
E97: ED_FEE431_00089
E98: ED_FEE431_00090
E99: ED_FEE431_00091
E100: ED_FEE431_00092
E101: ED_FEE431_00093
E102: ED_FEE431_00094
E103: ED_FEE431_00095
E104: ED_FEE431_00096
E105: ED_FEE431_00097
E106: ED_FEE431_00098
E107: ED_FEE431_00099
E108: ED_FEE431_00100
E109: ED_FEE431_00101
E110: ED_FEE431_00102
E111: ED_FEE431_00103
E112: ED_FEE431_00104
E113: ED_FEE431_00105
E114: ED_FEE431_00106
E115: ED_FEE431_00107
E116: ED_FEE431_00108
E117: ED_FEE431_00109
E118: ED_FEE431_00110
E119: ED_FEE431_00111
E120: ED_FEE431_00112
E121: ED_FEE431_00113
E122: ED_FEE431_00114
E123: ED_FEE431_00115
E124: ED_FEE431_00116
E125: ED_FEE431_00117
E126: ED_FEE431_00118
E127: ED_FEE431_00119
E128: ED_FEE431_00120
E129: ED_FEE431_00121
E130: ED_FEE431_00122
E131: ED_FEE431_00123
E132: ED_FEE431_00124
E133: ED_FEE431_00125
E134: ED_FEE431_00126
E135: ED_FEE431_00127
E136: ED_FEE431_00128
E137: ED_FEE431_00129
E138: ED_FEE431_00130
E139: ED_FEE431_00131
E140: ED_FEE431_00132
E141: ED_FEE431_00133
E142: ED_FEE431_00134
E143: ED_FEE431_00135
E144: ED_FEE431_00136
E145: ED_FEE431_00137
E146: ED_FEE431_00138
E147: ED_FEE431_00139
E148: ED_FEE431_00140
E149: ED_FEE431_00141
E150: ED_FEE431_00142
E151: ED_FEE431_00143
E152: ED_FEE431_00144
E153: ED_FEE431_00145
E154: ED_FEE431_00146
E155: ED_FEE431_00147
E156: ED_FEE431_00148
E157: ED_FEE431_00149
E158: ED_FEE431_00150
E159: ED_FEE431_00151
E160: ED_FEE431_00152
E161: ED_FEE431_00153
E162: ED_FEE431_00154
E163: ED_FEE431_00155
E164: ED_FEE431_00156
E165: ED_FEE431_00157
E166: ED_FEE431_00158
E167: ED_FEE431_00159
E168: ED_FEE431_00160
E169: ED_FEE431_00161
E170: ED_FEE431_00162
E171: ED_FEE431_00163
E172: ED_FEE431_00164
E173: ED_FEE431_00165
E174: ED_FEE431_00166
E175: ED_FEE431_00167
E176: ED_FEE431_00168
E177: ED_FEE431_00169
E178: ED_FEE431_00170
E179: ED_FEE431_00171
E180: ED_FEE431_00172
E181: ED_FEE431_00173
E182: ED_FEE431_00174
E183: ED_FEE431_00175
E184: ED_FEE431_00176
E185: ED_FEE431_00177
E186: ED_FEE431_00178
E187: ED_FEE431_00179
E188: ED_FEE431_00180
E189: ED_FEE431_00181
E190: ED_FEE431_00182
E191: ED_FEE431_00183
E192: ED_FEE431_00184
E193: ED_FEE431_00185
E194: ED_FEE431_00186
E195: ED_FEE431_00187
E196: ED_FEE431_00188
E197: ED_FEE431_00189
E198: ED_FEE431_00190
E199: ED_FEE431_00191
E200: ED_FEE431_00192
E201: ED_FEE431_00193
... 278 more rows

Sheet 4.4 Quoted services
B1: REGULATORY REPORTING STATEMENT
B2: =INDEX(dms_TradingNameFull_List,MATCH(dms_TradingName,dms_TradingName_List)) -> AusNet Electricity Services Pty Ltd
B3: =CONCATENATE((LOOKUP(dms_Model,dms_Model_List,dms_Worksheet_List))&" "&CRY) -> CATEGORY ANALYSIS 2018
B4: 4.4 ANCILLARY SERVICES - QUOTED SERVICES
B6: 4.4.1 - COST METRICS FOR QUOTED SERVICES
D7: EXPENDITURE ($0's) | F7: VOLUMES (0's)
B8: SERVICE | C8: SERVICE SUBCATEGORY | D8: =CRY -> 2018 | F8: =CRY -> 2018
B9: Quoted Services | C9: Recoverable Works | D9: 4185834.72 | E9: ED_QUO441_00001 | F9: 274
E10: ED_QUO441_00002
E11: ED_QUO441_00003
E12: ED_QUO441_00004
E13: ED_QUO441_00005
E14: ED_QUO441_00006
E15: ED_QUO441_00007
E16: ED_QUO441_00008
E17: ED_QUO441_00009
E18: ED_QUO441_00010
E19: ED_QUO441_00011
E20: ED_QUO441_00012
E21: ED_QUO441_00013
E22: ED_QUO441_00014
E23: ED_QUO441_00015
E24: ED_QUO441_00016
E25: ED_QUO441_00017
E26: ED_QUO441_00018
E27: ED_QUO441_00019
E28: ED_QUO441_00020
E29: ED_QUO441_00021
E30: ED_QUO441_00022
E31: ED_QUO441_00023
E32: ED_QUO441_00024
E33: ED_QUO441_00025
E34: ED_QUO441_00026
E35: ED_QUO441_00027
E36: ED_QUO441_00028
E37: ED_QUO441_00029
E38: ED_QUO441_00030
E39: ED_QUO441_00031
E40: ED_QUO441_00032
E41: ED_QUO441_00033
E42: ED_QUO441_00034
E43: ED_QUO441_00035
E44: ED_QUO441_00036
E45: ED_QUO441_00037
E46: ED_QUO441_00038
E47: ED_QUO441_00039
E48: ED_QUO441_00040
E49: ED_QUO441_00041
E50: ED_QUO441_00042
E51: ED_QUO441_00043
E52: ED_QUO441_00044
E53: ED_QUO441_00045
E54: ED_QUO441_00046
E55: ED_QUO441_00047
E56: ED_QUO441_00048
E57: ED_QUO441_00049
E58: ED_QUO441_00050
E59: ED_QUO441_00051
E60: ED_QUO441_00052
E61: ED_QUO441_00053
E62: ED_QUO441_00054
E63: ED_QUO441_00055
E64: ED_QUO441_00056
E65: ED_QUO441_00057
E66: ED_QUO441_00058
E67: ED_QUO441_00059
E68: ED_QUO441_00060
E69: ED_QUO441_00061
E70: ED_QUO441_00062
E71: ED_QUO441_00063
E72: ED_QUO441_00064
E73: ED_QUO441_00065
E74: ED_QUO441_00066
E75: ED_QUO441_00067
E76: ED_QUO441_00068
E77: ED_QUO441_00069
E78: ED_QUO441_00070
E79: ED_QUO441_00071
E80: ED_QUO441_00072
E81: ED_QUO441_00073
E82: ED_QUO441_00074
E83: ED_QUO441_00075
E84: ED_QUO441_00076
E85: ED_QUO441_00077
E86: ED_QUO441_00078
E87: ED_QUO441_00079
E88: ED_QUO441_00080
E89: ED_QUO441_00081
E90: ED_QUO441_00082
E91: ED_QUO441_00083
E92: ED_QUO441_00084
E93: ED_QUO441_00085
E94: ED_QUO441_00086
E95: ED_QUO441_00087
E96: ED_QUO441_00088
E97: ED_QUO441_00089
E98: ED_QUO441_00090
E99: ED_QUO441_00091
E100: ED_QUO441_00092
E101: ED_QUO441_00093
E102: ED_QUO441_00094
E103: ED_QUO441_00095
E104: ED_QUO441_00096
E105: ED_QUO441_00097
E106: ED_QUO441_00098
E107: ED_QUO441_00099
E108: ED_QUO441_00100
E109: ED_QUO441_00101
E110: ED_QUO441_00102
E111: ED_QUO441_00103
E112: ED_QUO441_00104
E113: ED_QUO441_00105
E114: ED_QUO441_00106
E115: ED_QUO441_00107
E116: ED_QUO441_00108
E117: ED_QUO441_00109
E118: ED_QUO441_00110
E119: ED_QUO441_00111
E120: ED_QUO441_00112
E121: ED_QUO441_00113
E122: ED_QUO441_00114
E123: ED_QUO441_00115
E124: ED_QUO441_00116
E125: ED_QUO441_00117
E126: ED_QUO441_00118
E127: ED_QUO441_00119
E128: ED_QUO441_00120
E129: ED_QUO441_00121
E130: ED_QUO441_00122
E131: ED_QUO441_00123
E132: ED_QUO441_00124
E133: ED_QUO441_00125
E134: ED_QUO441_00126
E135: ED_QUO441_00127
E136: ED_QUO441_00128
E137: ED_QUO441_00129
E138: ED_QUO441_00130
E139: ED_QUO441_00131
E140: ED_QUO441_00132
E141: ED_QUO441_00133
E142: ED_QUO441_00134
E143: ED_QUO441_00135
E144: ED_QUO441_00136
E145: ED_QUO441_00137
E146: ED_QUO441_00138
E147: ED_QUO441_00139
E148: ED_QUO441_00140
E149: ED_QUO441_00141
E150: ED_QUO441_00142
E151: ED_QUO441_00143
E152: ED_QUO441_00144
E153: ED_QUO441_00145
E154: ED_QUO441_00146
E155: ED_QUO441_00147
E156: ED_QUO441_00148
E157: ED_QUO441_00149
E158: ED_QUO441_00150
E159: ED_QUO441_00151
E160: ED_QUO441_00152
E161: ED_QUO441_00153
E162: ED_QUO441_00154
E163: ED_QUO441_00155
E164: ED_QUO441_00156
E165: ED_QUO441_00157
E166: ED_QUO441_00158
E167: ED_QUO441_00159
E168: ED_QUO441_00160
E169: ED_QUO441_00161
E170: ED_QUO441_00162
E171: ED_QUO441_00163
E172: ED_QUO441_00164
E173: ED_QUO441_00165
E174: ED_QUO441_00166
E175: ED_QUO441_00167
E176: ED_QUO441_00168
E177: ED_QUO441_00169
E178: ED_QUO441_00170
E179: ED_QUO441_00171
E180: ED_QUO441_00172
E181: ED_QUO441_00173
E182: ED_QUO441_00174
E183: ED_QUO441_00175
E184: ED_QUO441_00176
E185: ED_QUO441_00177
E186: ED_QUO441_00178
E187: ED_QUO441_00179
E188: ED_QUO441_00180
E189: ED_QUO441_00181
E190: ED_QUO441_00182
E191: ED_QUO441_00183
E192: ED_QUO441_00184
E193: ED_QUO441_00185
E194: ED_QUO441_00186
E195: ED_QUO441_00187
E196: ED_QUO441_00188
E197: ED_QUO441_00189
E198: ED_QUO441_00190
E199: ED_QUO441_00191
E200: ED_QUO441_00192
E201: ED_QUO441_00193
... 280 more rows

Sheet 5.2 Asset Age Profile
B1: REGULATORY REPORTING STATEMENT
B2: =INDEX(dms_TradingNameFull_List,MATCH(dms_TradingName,dms_TradingName_List)) -> AusNet Electricity Services Pty Ltd
B3: =CONCATENATE((LOOKUP(dms_Model,dms_Model_List,dms_Worksheet_List))&" "&CRY) -> CATEGORY ANALYSIS 2018
B4: 5.2 ASSET AGE PROFILE
B6: There is ONE table on this worksheet. Both the ROWS and COLUMNS have been 'grouped' for easy navigation. See the Instructions sheet on how to group or ungroup data.
B8: 5.2.1 - ASSET AGE PROFILE
D9: ECONOMIC LIFE (YEARS) | F9: INSTALLED ASSETS -˃ QUANTITY CURRENTLY IN COMMISSION BY YEAR
B10: ASSET GROUP | C10: ASSET CATEGORY | D10: MEAN | E10: STANDARD DEVIATION | F10: =CRY -> 2018 | G10: =IF(dms_RPT="financial",(VALUE(LEFT(F10,4)-1)&"-"&MID(F10,3,2)),VALUE(LEFT(F10,4)-1)) -> 2017 | H10: =IF(dms_RPT="financial",(VALUE(LEFT(G10,4)-1)&"-"&MID(G10,3,2)),VALUE(LEFT(G10,4)-1)) -> 2016 | I10: 2015 | J10: 2014 | K10: 2013 | L10: 2012 | M10: 2011 | N10: 2010 | O10: 2009 | P10: 2008 | Q10: 2007 | R10: 2006 | S10: 2005 | T10: 2004 | U10: 2003 | V10: 2002 | W10: 2001 | X10: 2000 | Y10: 1999 | Z10: 1998 | AA10: 1997 | AB10: 1996 | AC10: 1995 | AD10: 1994 | AE10: 1993 | AF10: 1992 | AG10: 1991 | AH10: 1990 | AI10: 1989 | AJ10: 1988 | AK10: 1987 | AL10: 1986 | AM10: =IF(dms_RPT="financial",(VALUE(LEFT(AL10,4)-1)&"-"&MID(AL10,3,2)),VALUE(LEFT(AL10,4)-1)) -> 1985 | AN10: 1984 | AO10: 1983 | AP10: 1982 | AQ10: 1981 | AR10: 1980 | AS10: 1979 | AT10: 1978 | AU10: 1977 | AV10: 1976 | AW10: 1975 | AX10: 1974 | AY10: 1973 | AZ10: 1972 | BA10: 1971 | BB10: 1970 | BC10: 1969 | BD10: 1968 | BE10: 1967 | BF10: 1966 | BG10: 1965 | BH10: 1964 | BI10: 1963 | BJ10: 1962 | BK10: 1961 | BL10: 1960 | BM10: 1959 | BN10: 1958 | BO10: 1957 | BP10: 1956 | BQ10: 1955 | BR10: 1954 | BS10: =IF(dms_RPT="financial",(VALUE(LEFT(BR10,4)-1)&"-"&MID(BR10,3,2)),VALUE(LEFT(BR10,4)-1)) -> 1953 | BT10: 1952 | BU10: 1951 | BV10: 1950 | BW10: 1949 | BX10: 1948 | BY10: 1947 | BZ10: 1946 | CA10: 1945 | CB10: 1944 | CC10: 1943 | CD10: 1942 | CE10: 1941 | CF10: 1940 | CG10: 1939 | CH10: 1938 | CI10: 1937 | CJ10: 1936 | CK10: 1935 | CL10: 1934 | CM10: 1933 | CN10: 1932 | CO10: 1931 | CP10: 1930 | CQ10: 1929 | CR10: 1928 | CS10: 1927 | CT10: 1926 | CU10: 1925 | CV10: 1924 | CW10: 1923 | CX10: 1922 | CY10: =IF(dms_RPT="financial",(VALUE(LEFT(CX10,4)-1)&"-"&MID(CX10,3,2)),VALUE(LEFT(CX10,4)-1)) -> 1921 | CZ10: 1920 | DA10: 1919 | DB10: 1918 | DC10: 1917 | DD10: 1916 | DE10: 1915 | DF10: 1914 | DG10: 1913 | DH10: =IF(dms_RPT="financial",(VALUE(LEFT(DG10,4)-1)&"-"&MID(DG10,3,2)),VALUE(LEFT(DG10,4)-1)) -> 1912 | DI10: =IF(dms_RPT="financial",(VALUE(LEFT(DH10,4)-1)&"-"&MID(DH10,3,2)),VALUE(LEFT(DH10,4)-1)) -> 1911 | DJ10: =IF(dms_RPT="financial",(VALUE(LEFT(DI10,4)-1)&"-"&MID(DI10,3,2)),VALUE(LEFT(DI10,4)-1)) -> 1910
B11: POLES BY: HIGHEST OPERATING VOLTAGE ; MATERIAL TYPE; STAKING (IF WOOD) | C11: Staking of a wooden pole | D11: 65 | E11: 8.062257748 | F11: 1414 | G11: 2084.439805 | H11: 1361.804563 | I11: 874.4155244 | J11: 1179.616316 | K11: 842.4156756 | L11: 640.6380204 | M11: 337.4980938 | N11: 378.721578 | O11: 364.1549078 | P11: 431.3819145 | Q11: 395.3258144 | R11: 452.7870801 | S11: 821.929617 | T11: 503.2421848 | U11: 182.444481 | V11: 92.46344344 | W11: 417.0008297 | X11: 923.8035238 | Y11: 897.6310421 | Z11: 954.0733434 | AA11: 638.49535 | AB11: 439.9765185 | AC11: 617.1012616 | AD11: 547.8273077 | AE11: 465.9929446 | AF11: 526.0420206 | AG11: 648.5019926 | AH11: 983.0889365 | AI11: 1474.240445 | AJ11: 381.4470632 | AK11: 72.76820008 | AL11: 4.132326035 | AM11: 1.022054339 | AN11: 0 | AO11: 0 | AP11: 0 | AQ11: 0 | AR11: 0 | AS11: 1.022054339 | AT11: 0 | AU11: 0 | AV11: 0 | AW11: 0 | AX11: 2.044108678 | AY11: 0.0004816182666 | AZ11: 0 | BA11: 1.022054339 | BB11: 1.022054339 | BC11: 1.022535957 | BD11: 3.066163018 | BE11: 4.088698975 | BF11: 1.022054339 | BG11: 2.044108678 | BH11: 1.022054339 | BI11: 0 | BJ11: 0.02253595748 | BK11: 1.022054339 | BL11: 4.088217357 | BM11: 0.0004816182666 | BN11: 1.022054339 | BO11: 0 | BP11: 0 | BQ11: 0 | BR11: 0 | BS11: 0 | BT11: 0 | BU11: 0 | BV11: 1.022054339 | BW11: 0 | BX11: 0 | BY11: 0 | BZ11: 0 | CA11: 0 | CB11: 0 | CC11: 0 | CD11: 0 | CE11: 1.022054339 | CF11: 0 | CG11: 0 | CH11: 0 | CI11: 0 | CJ11: 0 | CK11: 0 | CL11: 0 | CM11: 0 | CN11: 0 | CO11: 0 | CP11: 0 | CQ11: 0 | CR11: 0 | CS11: 0 | CT11: 0 | CU11: 0 | CV11: 0 | CW11: 0 | CX11: 0 | CY11: 0 | CZ11: 0 | DA11: 0 | DB11: 0 | DC11: 0 | DD11: 0 | DE11: 0 | DF11: 0 | DG11: 0 | DH11: 0 | DI11: 0 | DJ11: 0 | DL11: =SUM(F11:DJ11) -> 22376
C12: ˂ = 1 kV; Wood | D12: 55 | E12: 7.416198487 | F12: 1121 | G12: 1383.264998 | H12: 983.9266694 | I12: 749.7092273 | J12: 683.645886 | K12: 270.259117 | L12: 240.2288718 | M12: 151.1484674 | N12: 146.1427972 | O12: 182.1721069 | P12: 337.3196323 | Q12: 363.3470553 | R12: 335.3158506 | S12: 391.3678633 | T12: 315.2988344 | U12: 206.1948062 | V12: 209.1985907 | W12: 144.136173 | X12: 1327.306944 | Y12: 353.3366541 | Z12: 238.2250588 | AA12: 258.2439783 | AB12: 132.1248289 | AC12: 90.08511238 | AD12: 49.04728262 | AE12: 88.08510963 | AF12: 50.04728353 | AG12: 90.08700185 | AH12: 501.4785019 | AI12: 689.6572265 | AJ12: 688.6487147 | AK12: 567.5361839 | AL12: 1555.470486 | AM12: 1267.191526 | AN12: 1408.334314 | AO12: 1179.114925 | AP12: 838.8028689 | AQ12: 1314.252046 | AR12: 2228.130578 | AS12: 1217.165054 | AT12: 1402.344744 | AU12: 1287.24546 | AV12: 1876.800532 | AW12: 1929.865807 | AX12: 1650.600075 | AY12: 2049.984992 | AZ12: 1890.825157 | BA12: 1325.314522 | BB12: 2004.970843 | BC12: 2219.196836 | BD12: 2419.362336 | BE12: 2157.101306 | BF12: 1190.158487 | BG12: 1822.77505 | BH12: 1463.418511 | BI12: 982.9457075 | BJ12: 1131.115926 | BK12: 1100.079991 | BL12: 1221.195363 | BM12: 989.9664916 | BN12: 673.6572679 | BO12: 951.9353025 | BP12: 366.3849025 | BQ12: 233.2345429 | BR12: 204.2080748 | BS12: 134.1305156 | BT12: 284.2789803 | BU12: 170.1654993 | BV12: 292.2922213 | BW12: 146.1437529 | BX12: 111.1106523 | BY12: 159.163619 | BZ12: 123.1229477 | CA12: 49.05107442 | CB12: 23.02458972 | CC12: 31.03026271 | CD12: 90.08700093 | CE12: 243.2335816 | CF12: 246.2354739 | CG12: 300.2884267 | CH12: 559.5380789 | CI12: 314.3044964 | CJ12: 326.3149077 | CK12: 230.2203361 | CL12: 260.2496559 | CM12: 143.1371131 | CN12: 25.02458696 | CO12: 8.00851179 | CP12: 32.03026179 | CQ12: 11.01134783 | CR12: 29.02836865 | CS12: 0 | CT12: 38.03593755 | CU12: 0 | CV12: 0 | CW12: 0 | CX12: 0 | CY12: 0 | CZ12: 9.191885661e-07 | DA12: 0 | DB12: 0 | DC12: 0 | DD12: 0 | DE12: 0 | DF12: 0 | DG12: 0 | DH12: 0 | DI12: 1.000945652 | DJ12: 1 | DL12: =SUM(F12:DJ12) -> 63273
C13: > 1 kV & < = 11 kV; Wood | D13: 55 | E13: 7.416198487 | F13: 7 | G13: 7 | H13: 3 | I13: 2 | J13: 1 | K13: 4 | L13: 5 | M13: 10 | N13: 1 | O13: 1 | P13: 5 | Q13: 3 | R13: 0 | S13: 1 | T13: 2 | U13: 1 | V13: 0 | W13: 1 | X13: 2 | Y13: 2 | Z13: 4 | AA13: 7 | AB13: 4 | AC13: 5 | AD13: 1 | AE13: 2 | AF13: 0 | AG13: 2 | AH13: 5 | AI13: 7 | AJ13: 10 | AK13: 7 | AL13: 24 | AM13: 3 | AN13: 13 | AO13: 25 | AP13: 17 | AQ13: 17 | AR13: 9 | AS13: 2 | AT13: 8 | AU13: 23 | AV13: 37 | AW13: 25 | AX13: 19 | AY13: 4 | AZ13: 3 | BA13: 5 | BB13: 11 | BC13: 12 | BD13: 9 | BE13: 19 | BF13: 9 | BG13: 13 | BH13: 3 | BI13: 5 | BJ13: 5 | BK13: 5 | BL13: 23 | BM13: 6 | BN13: 10 | BO13: 4 | BP13: 2 | BQ13: 0 | BR13: 4 | BS13: 0 | BT13: 1 | BU13: 1 | BV13: 0 | BW13: 10 | BX13: 0 | BY13: 1 | BZ13: 0 | CA13: 0 | CB13: 0 | CC13: 2 | CD13: 2 | CE13: 11 | CF13: 7 | CG13: 22 | CH13: 22 | CI13: 5 | CJ13: 1 | CK13: 8 | CL13: 13 | CM13: 5 | CN13: 1 | CO13: 0 | CP13: 0 | CQ13: 0 | CR13: 0 | CS13: 0 | CT13: 0 | CU13: 0 | CV13: 0 | CW13: 0 | CX13: 0 | CY13: 0 | CZ13: 0 | DA13: 0 | DB13: 0 | DC13: 0 | DD13: 0 | DE13: 0 | DF13: 0 | DG13: 0 | DH13: 0 | DI13: 0 | DJ13: 0 | DL13: 598
C14: ˃ 11 kV & < = 22 kV; Wood | D14: 55 | E14: 7.416198487 | F14: 1484 | G14: 1553.457188 | H14: 1254.372607 | I14: 932.2784149 | J14: 1019.302264 | K14: 591.1788544 | L14: 361.1091014 | M14: 354.1064188 | N14: 404.1219193 | O14: 769.232511 | P14: 1605.482907 | Q14: 1780.533582 | R14: 1356.407788 | S14: 1400.423289 | T14: 1122.336246 | U14: 768.2351932 | V14: 506.1538148 | W14: 466.140699 | X14: 1779.546103 | Y14: 708.212539 | Z14: 544.1633541 | AA14: 507.1514302 | AB14: 250.0751189 | AC14: 201.0605124 | AD14: 216.0649837 | AE14: 538.1606706 | AF14: 268.0798883 | AG14: 740.2238658 | AH14: 1661.499004 | AI14: 1284.385133 | AJ14: 1721.513908 | AK14: 1183.356218 | AL14: 3496.050174 | AM14: 2548.764603 | AN14: 2990.894869 | AO14: 2725.826308 | AP14: 2226.677859 | AQ14: 3612.087735 | AR14: 3880.173287 | AS14: 1773.535073 | AT14: 3215.984896 | AU14: 3932.199224 | AV14: 3896.189387 | AW14: 2937.897855 | AX14: 2349.717806 | AY14: 1878.582771 | AZ14: 2466.770269 | BA14: 2839.903522 | BB14: 2680.823935 | BC14: 3437.073737 | BD14: 3066.965524 | BE14: 2745.855528 | BF14: 2913.893385 | BG14: 2937.904116 | BH14: 2475.764014 | BI14: 1530.47516 | BJ14: 1275.414053 | BK14: 1757.548195 | BL14: 1183.378281 | BM14: 939.2945171 | BN14: 656.2074753 | BO14: 1262.393188 | BP14: 642.2050898 | BQ14: 465.149643 | BR14: 580.1815389 | BS14: 563.1785573 | BT14: 284.089428 | BU14: 186.0575319 | BV14: 299.0962844 | BW14: 164.0521662 | BX14: 299.0947944 | BY14: 95.03070458 | BZ14: 196.0608113 | CA14: 53.01967438 | CB14: 44.01430865 | CC14: 42.0137122 | CD14: 115.0366653 | CE14: 172.0524642 | CF14: 558.171701 | CG14: 440.1326513 | CH14: 519.1573931 | CI14: 462.1442775 | CJ14: 540.1645465 | CK14: 361.1093996 | CL14: 224.0679652 | CM14: 245.0742256 | CN14: 8.002682865 | CO14: 3.000894324 | CP14: 11.00357708 | CQ14: 5.001490504 | CR14: 63.01937591 | CS14: 1.00029809 | CT14: 10.0029809 | CU14: 0 | CV14: 0 | CW14: 1.00029809 | CX14: 0 | CY14: 0 | CZ14: 2.00059618 | DA14: 0 | DB14: 0 | DC14: 0 | DD14: 0 | DE14: 0 | DF14: 0 | DG14: 0 | DH14: 0 | DI14: 0 | DJ14: 1 | DL14: 112622
C15: > 22 kV & < = 66 kV; Wood | D15: 55 | E15: 7.416198487 | F15: 78 | G15: 34.01433536 | H15: 47.02085698 | I15: 33.01434022 | J15: 83.03650153 | K15: 49.02172774 | L15: 62.02737528 | M15: 37.01607825 | N15: 43.01912006 | O15: 83.0365018 | P15: 99.04345436 | Q15: 173.078218 | R15: 114.0499728 | S15: 125.0547526 | T15: 31.0139054 | U15: 31.01303631 | V15: 36.01651266 | W15: 53.02216172 | X15: 136.0612711 | Y15: 41.01781629 | Z15: 20.00912555 | AA15: 11.00477998 | AB15: 6.002607262 | AC15: 4.001738174 | AD15: 21.00912542 | AE15: 26.011298 | AF15: 5.002172718 | AG15: 21.00912542 | AH15: 114.0512761 | AI15: 45.02085823 | AJ15: 35.01520917 | AK15: 42.01825069 | AL15: 72.03128714 | AM15: 86.03737089 | AN15: 113.049538 | AO15: 171.0747415 | AP15: 113.051711 | AQ15: 802.352416 | AR15: 235.1025527 | AS15: 249.1134164 | AT15: 183.0812602 | AU15: 857.3767504 | AV15: 1367.595761 | AW15: 235.1060295 | AX15: 190.0838684 | AY15: 229.1021246 | AZ15: 249.1047264 | BA15: 111.0478005 | BB15: 138.0577951 | BC15: 283.126889 | BD15: 126.0582294 | BE15: 333.1477464 | BF15: 170.0756114 | BG15: 143.0634443 | BH15: 43.01912089 | BI15: 71.03085329 | BJ15: 22.00999478 | BK15: 75.05084188 | BL15: 22.01042932 | BM15: 19.00956024 | BN15: 27.01303631 | BO15: 43.02346647 | BP15: 49.0217276 | BQ15: 138.0617062 | BR15: 3.001303631 | BS15: 12.00521452 | BT15: 0.0004345436233 | BU15: 0 | BV15: 1.000434544 | BW15: 10.00477998 | BX15: 6.002607262 | BY15: 0.0004346823812 | BZ15: 1.000434544 | CA15: 5.003041944 | CB15: 0 | CC15: 111.0491037 | CD15: 14.00608361 | CE15: 26.01129813 | CF15: 21.00912542 | CG15: 91.04084724 | CH15: 83.03737075 | CI15: 1.000434544 | CJ15: 4.001738174 | CK15: 0 | CL15: 0 | CM15: 0 | CN15: 0 | CO15: 0 | CP15: 0 | CQ15: 0 | CR15: 0 | CS15: 0 | CT15: 0 | CU15: 0 | CV15: 0 | CW15: 0 | CX15: 0 | CY15: 0 | CZ15: 0 | DA15: 0 | DB15: 0 | DC15: 0 | DD15: 0 | DE15: 0 | DF15: 0 | DG15: 0 | DH15: 0 | DI15: 0 | DJ15: 0 | DL15: 9095
C16: > 66 kV & < = 132 kV; Wood | D16: 0 | E16: 0 | F16: 0 | G16: 0 | H16: 0 | I16: 0 | J16: 0 | K16: 0 | L16: 0 | M16: 0 | N16: 0 | O16: 0 | P16: 0 | Q16: 0 | R16: 0 | S16: 0 | T16: 0 | U16: 0 | V16: 0 | W16: 0 | X16: 0 | Y16: 0 | Z16: 0 | AA16: 0 | AB16: 0 | AC16: 0 | AD16: 0 | AE16: 0 | AF16: 0 | AG16: 0 | AH16: 0 | AI16: 0 | AJ16: 0 | AK16: 0 | AL16: 0 | AM16: 0 | AN16: 0 | AO16: 0 | AP16: 0 | AQ16: 0 | AR16: 0 | AS16: 0 | AT16: 0 | AU16: 0 | AV16: 0 | AW16: 0 | AX16: 0 | AY16: 0 | AZ16: 0 | BA16: 0 | BB16: 0 | BC16: 0 | BD16: 0 | BE16: 0 | BF16: 0 | BG16: 0 | BH16: 0 | BI16: 0 | BJ16: 0 | BK16: 0 | BL16: 0 | BM16: 0 | BN16: 0 | BO16: 0 | BP16: 0 | BQ16: 0 | BR16: 0 | BS16: 0 | BT16: 0 | BU16: 0 | BV16: 0 | BW16: 0 | BX16: 0 | BY16: 0 | BZ16: 0 | CA16: 0 | CB16: 0 | CC16: 0 | CD16: 0 | CE16: 0 | CF16: 0 | CG16: 0 | CH16: 0 | CI16: 0 | CJ16: 0 | CK16: 0 | CL16: 0 | CM16: 0 | CN16: 0 | CO16: 0 | CP16: 0 | CQ16: 0 | CR16: 0 | CS16: 0 | CT16: 0 | CU16: 0 | CV16: 0 | CW16: 0 | CX16: 0 | CY16: 0 | CZ16: 0 | DA16: 0 | DB16: 0 | DC16: 0 | DD16: 0 | DE16: 0 | DF16: 0 | DG16: 0 | DH16: 0 | DI16: 0 | DJ16: 0 | DL16: 0
C17: > 132 kV; Wood | D17: 0 | E17: 0 | F17: 0 | G17: 0 | H17: 0 | I17: 0 | J17: 0 | K17: 0 | L17: 0 | M17: 0 | N17: 0 | O17: 0 | P17: 0 | Q17: 0 | R17: 0 | S17: 0 | T17: 0 | U17: 0 | V17: 0 | W17: 0 | X17: 0 | Y17: 0 | Z17: 0 | AA17: 0 | AB17: 0 | AC17: 0 | AD17: 0 | AE17: 0 | AF17: 0 | AG17: 0 | AH17: 0 | AI17: 0 | AJ17: 0 | AK17: 0 | AL17: 0 | AM17: 0 | AN17: 0 | AO17: 0 | AP17: 0 | AQ17: 0 | AR17: 0 | AS17: 0 | AT17: 0 | AU17: 0 | AV17: 0 | AW17: 0 | AX17: 0 | AY17: 0 | AZ17: 0 | BA17: 0 | BB17: 0 | BC17: 0 | BD17: 0 | BE17: 0 | BF17: 0 | BG17: 0 | BH17: 0 | BI17: 0 | BJ17: 0 | BK17: 0 | BL17: 0 | BM17: 0 | BN17: 0 | BO17: 0 | BP17: 0 | BQ17: 0 | BR17: 0 | BS17: 0 | BT17: 0 | BU17: 0 | BV17: 0 | BW17: 0 | BX17: 0 | BY17: 0 | BZ17: 0 | CA17: 0 | CB17: 0 | CC17: 0 | CD17: 0 | CE17: 0 | CF17: 0 | CG17: 0 | CH17: 0 | CI17: 0 | CJ17: 0 | CK17: 0 | CL17: 0 | CM17: 0 | CN17: 0 | CO17: 0 | CP17: 0 | CQ17: 0 | CR17: 0 | CS17: 0 | CT17: 0 | CU17: 0 | CV17: 0 | CW17: 0 | CX17: 0 | CY17: 0 | CZ17: 0 | DA17: 0 | DB17: 0 | DC17: 0 | DD17: 0 | DE17: 0 | DF17: 0 | DG17: 0 | DH17: 0 | DI17: 0 | DJ17: 0 | DL17: 0
C18: ˂ = 1 kV; Concrete | D18: 100 | E18: 10 | F18: 325 | G18: 463.9422377 | H18: 311.6617455 | I18: 307.6490643 | J18: 509.0606038 | K18: 630.3321377 | L18: 492.0436532 | M18: 190.4051565 | N18: 176.3733303 | O18: 198.4200052 | P18: 152.3287997 | Q18: 54.11455843 | R18: 50.10606192 | S18: 50.10606577 | T18: 50.10606192 | U18: 26.05303096 | V18: 22.04666725 | W18: 32.06787963 | X18: 180.3775881 | Y18: 103.2206088 | Z18: 72.15272917 | AA18: 116.2460637 | AB18: 145.3118221 | AC18: 595.2621446 | AD18: 714.512443 | AE18: 1286.717291 | AF18: 1657.500032 | AG18: 1085.303653 | AH18: 1107.346086 | AI18: 1726.648534 | AJ18: 1530.251855 | AK18: 1089.312146 | AL18: 1142.418227 | AM18: 1546.268828 | AN18: 1228.604869 | AO18: 490.0478995 | AP18: 143.3118182 | AQ18: 1069.267619 | AR18: 636.3448613 | AS18: 12.02545486 | AT18: 784.6630548 | AU18: 619.3109254 | AV18: 427.9227387 | AW18: 179.3796901 | AX18: 3.006371416 | AY18: 53.11242564 | AZ18: 67.14424421 | BA18: 3.006363715 | BB18: 26.0551522 | BC18: 3.006363715 | BD18: 6.012731281 | BE18: 5.012727431 | BF18: 6.012727431 | BG18: 3.010606192 | BH18: 2.004242477 | BI18: 2.002117388 | BJ18: 3.010606192 | BK18: 2.004246327 | BL18: 2.002121238 | BM18: 3.006363715 | BN18: 0.002125088916 | BO18: 1.004242477 | BP18: 1.004242477 | BQ18: 0 | BR18: 2.004242477 | BS18: 1.002121238 | BT18: 0 | BU18: 1.004238626 | BV18: 0 | BW18: 1.002121238 | BX18: 0 | BY18: 0 | BZ18: 1.004242477 | CA18: 0 | CB18: 0 | CC18: 0 | CD18: 0 | CE18: 0 | CF18: 0 | CG18: 0 | CH18: 2.004242477 | CI18: 2.004242477 | CJ18: 1.004242477 | CK18: 1.002121238 | CL18: 0 | CM18: 0 | CN18: 0 | CO18: 0 | CP18: 0 | CQ18: 0 | CR18: 1.002121238 | CS18: 0 | CT18: 0 | CU18: 0 | CV18: 0 | CW18: 0 | CX18: 0 | CY18: 0 | CZ18: 0 | DA18: 0 | DB18: 0 | DC18: 0 | DD18: 0 | DE18: 0 | DF18: 0 | DG18: 0 | DH18: 0 | DI18: 0 | DJ18: 0 | DL18: 23936
C19: > 1 kV & < = 11 kV; Concrete | D19: 100 | E19: 10 | F19: 4 | G19: 4.020408163 | H19: 19.09795918 | I19: 3.016326531 | J19: 3.028571429 | K19: 5.053061224 | L19: 6.057142857 | M19: 5.020408163 | N19: 2.008163265 | O19: 0.004081632653 | P19: 0.004081632653 | Q19: 0 | R19: 0 | S19: 0 | T19: 0.004081632653 | U19: 1.008163265 | V19: 1.004081633 | W19: 0 | X19: 0 | Y19: 2.012244898 | Z19: 2.008163265 | AA19: 0.004081632653 | AB19: 0 | AC19: 12.06122449 | AD19: 15.07346939 | AE19: 14.06122449 | AF19: 22.08979592 | AG19: 3.012244898 | AH19: 4.020408163 | AI19: 4.020408163 | AJ19: 4.024489796 | AK19: 4.016326531 | AL19: 3.012244898 | AM19: 5.020408163 | AN19: 18.08571429 | AO19: 2.008163265 | AP19: 3.012244898 | AQ19: 5.024489796 | AR19: 7.032653061 | AS19: 0 | AT19: 4.016326531 | AU19: 4.016326531 | AV19: 1.004081633 | AW19: 0 | AX19: 0 | AY19: 0 | AZ19: 0 | BA19: 0 | BB19: 0 | BC19: 1.020408163 | BD19: 0 | BE19: 0 | BF19: 0 | BG19: 0 | BH19: 0 | BI19: 0 | BJ19: 0 | BK19: 0 | BL19: 0 | BM19: 0.004081632653 | BN19: 0 | BO19: 0 | BP19: 0 | BQ19: 0 | BR19: 0 | BS19: 0 | BT19: 0 | BU19: 0 | BV19: 0 | BW19: 0 | BX19: 0 | BY19: 0 | BZ19: 0 | CA19: 0 | CB19: 0 | CC19: 1 | CD19: 0 | CE19: 0 | CF19: 0 | CG19: 2 | CH19: 1.008163265 | CI19: 0 | CJ19: 0 | CK19: 1 | CL19: 0.004081632653 | CM19: 0 | CN19: 0 | CO19: 0 | CP19: 0 | CQ19: 0 | CR19: 0 | CS19: 0 | CT19: 0 | CU19: 0 | CV19: 0 | CW19: 0 | CX19: 0 | CY19: 0 | CZ19: 0 | DA19: 0 | DB19: 0 | DC19: 0 | DD19: 0 | DE19: 0 | DF19: 0 | DG19: 0 | DH19: 0 | DI19: 0 | DJ19: 0 | DL19: 198
C20: ˃ 11 kV & < = 22 kV; Concrete | D20: 100 | E20: 10 | F20: 1845 | G20: 2069.174194 | H20: 2037.187943 | I20: 1643.453305 | J20: 2803.783377 | K20: 2354.825243 | L20: 1563.189576 | M20: 1225.513989 | N20: 1472.021646 | O20: 1192.436176 | P20: 726.5046876 | Q20: 357.7308444 | R20: 334.6899007 | S20: 369.7615601 | T20: 380.7902127 | U20: 281.5773056 | V20: 216.4442387 | W20: 265.5404724 | X20: 1011.086076 | Y20: 991.0308097 | Z20: 1024.10041 | AA20: 1114.276476 | AB20: 940.9243561 | AC20: 1921.938792 | AD20: 2677.490589 | AE20: 4470.165327 | AF20: 4742.740541 | AG20: 3936.10489 | AH20: 4749.726231 | AI20: 6027.360956 | AJ20: 4747.738518 | AK20: 4781.804096 | AL20: 4022.266574 | AM20: 4438.089553 | AN20: 4441.095671 | AO20: 2026.143503 | AP20: 860.766723 | AQ20: 4102.389397 | AR20: 1698.486389 | AS20: 69.14330282 | AT20: 1152.358371 | AU20: 828.709414 | AV20: 336.7021959 | AW20: 169.3500804 | AX20: 23.04299887 | AY20: 70.14126366 | AZ20: 54.11465028 | BA20: 14.03275894 | BB20: 106.2211118 | BC20: 28.07576585 | BD20: 17.03276296 | BE20: 36.10031599 | BF20: 21.04299887 | BG20: 26.05937232 | BH20: 11.02457021 | BI20: 15.03276296 | BJ20: 23.04504204 | BK20: 16.04299486 | BL20: 31.06550585 | BM20: 3.006141549 | BN20: 4.008188732 | BO20: 10.02047585 | BP20: 6.020499929 | BQ20: 10.02661739 | BR20: 19.03889648 | BS20: 3.006141549 | BT20: 3.006145563 | BU20: 2.00409838 | BV20: 12.022515 | BW20: 4.008188732 | BX20: 1.002043169 | BY20: 6.012283099 | BZ20: 1.002047183 | CA20: 0 | CB20: 0 | CC20: 0 | CD20: 0 | CE20: 0 | CF20: 5.010235916 | CG20: 1.002047183 | CH20: 5.00409838 | CI20: 6.012283099 | CJ20: 0 | CK20: 5.010235916 | CL20: 38.07779296 | CM20: 1.002047183 | CN20: 0 | CO20: 0 | CP20: 0 | CQ20: 0 | CR20: 4.008188732 | CS20: 0 | CT20: 0 | CU20: 0 | CV20: 0 | CW20: 0 | CX20: 0 | CY20: 0 | CZ20: 0 | DA20: 0 | DB20: 0 | DC20: 0 | DD20: 0 | DE20: 0 | DF20: 0 | DG20: 0 | DH20: 0 | DI20: 0 | DJ20: 0 | DL20: 89063
C21: > 22 kV & < = 66 kV; Concrete | D21: 100 | E21: 10 | F21: 282 | G21: 160.2610229 | H21: 239.4095729 | I21: 443.6973671 | J21: 600.0522589 | K21: 337.5949907 | L21: 132.2330554 | M21: 272.4802257 | N21: 345.6073475 | O21: 222.3919511 | P21: 321.5667366 | Q21: 140.2348153 | R21: 206.3619353 | S21: 299.5278931 | T21: 89.15536654 | U21: 53.09357675 | V21: 25.04413822 | W21: 38.06708451 | X21: 171.3019073 | Y21: 188.3319231 | Z21: 60.10593173 | AA21: 77.13947678 | AB21: 74.13064913 | AC21: 317.5596745 | AD21: 210.3707611 | AE21: 340.6002817 | AF21: 257.4537446 | AG21: 187.3301576 | AH21: 612.0787381 | AI21: 629.1087577 | AJ21: 593.0469605 | AK21: 560.988698 | AL21: 455.8050812 | AM21: 599.0593173 | AN21: 1206.127462 | AO21: 219.3884163 | AP21: 155.273657 | AQ21: 855.5077709 | AR21: 387.6832597 | AS21: 8.014124231 | AT21: 240.4237269 | AU21: 33.05473139 | AV21: 26.0512022 | AW21: 15.0247174 | AX21: 11.01942268 | AY21: 5.008825784 | AZ21: 18.04943481 | BA21: 10.02648293 | BB21: 21.05296587 | BC21: 3.005296587 | BD21: 4.007062115 | BE21: 8.014124231 | BF21: 2.003531058 | BG21: 23.04060716 | BH21: 2.003531058 | BI21: 0 | BJ21: 0 | BK21: 2.003531058 | BL21: 0 | BM21: 2.003531058 | BN21: 0 | BO21: 2.003531058 | BP21: 1.001765529 | BQ21: 3.005296587 | BR21: 1.001765529 | BS21: 1.001765529 | BT21: 1.001765529 | BU21: 0 | BV21: 0 | BW21: 0 | BX21: 0 | BY21: 0 | BZ21: 1.001765529 | CA21: 0 | CB21: 0 | CC21: 0 | CD21: 0 | CE21: 0 | CF21: 2.003531058 | CG21: 0 | CH21: 0 | CI21: 0 | CJ21: 0 | CK21: 0 | CL21: 0 | CM21: 0 | CN21: 0 | CO21: 0 | CP21: 0 | CQ21: 0 | CR21: 0 | CS21: 0 | CT21: 0 | CU21: 0 | CV21: 0 | CW21: 0 | CX21: 0 | CY21: 0 | CZ21: 0 | DA21: 0 | DB21: 0 | DC21: 0 | DD21: 0 | DE21: 0 | DF21: 0 | DG21: 0 | DH21: 0 | DI21: 0 | DJ21: 0 | DL21: 12813
C22: > 66 kV & < = 132 kV; Concrete | D22: 0 | E22: 0 | F22: 0 | G22: 0 | H22: 0 | I22: 0 | J22: 0 | K22: 0 | L22: 0 | M22: 0 | N22: 0 | O22: 0 | P22: 0 | Q22: 0 | R22: 0 | S22: 0 | T22: 0 | U22: 0 | V22: 0 | W22: 0 | X22: 0 | Y22: 0 | Z22: 0 | AA22: 0 | AB22: 0 | AC22: 0 | AD22: 0 | AE22: 0 | AF22: 0 | AG22: 0 | AH22: 0 | AI22: 0 | AJ22: 0 | AK22: 0 | AL22: 0 | AM22: 0 | AN22: 0 | AO22: 0 | AP22: 0 | AQ22: 0 | AR22: 0 | AS22: 0 | AT22: 0 | AU22: 0 | AV22: 0 | AW22: 0 | AX22: 0 | AY22: 0 | AZ22: 0 | BA22: 0 | BB22: 0 | BC22: 0 | BD22: 0 | BE22: 0 | BF22: 0 | BG22: 0 | BH22: 0 | BI22: 0 | BJ22: 0 | BK22: 0 | BL22: 0 | BM22: 0 | BN22: 0 | BO22: 0 | BP22: 0 | BQ22: 0 | BR22: 0 | BS22: 0 | BT22: 0 | BU22: 0 | BV22: 0 | BW22: 0 | BX22: 0 | BY22: 0 | BZ22: 0 | CA22: 0 | CB22: 0 | CC22: 0 | CD22: 0 | CE22: 0 | CF22: 0 | CG22: 0 | CH22: 0 | CI22: 0 | CJ22: 0 | CK22: 0 | CL22: 0 | CM22: 0 | CN22: 0 | CO22: 0 | CP22: 0 | CQ22: 0 | CR22: 0 | CS22: 0 | CT22: 0 | CU22: 0 | CV22: 0 | CW22: 0 | CX22: 0 | CY22: 0 | CZ22: 0 | DA22: 0 | DB22: 0 | DC22: 0 | DD22: 0 | DE22: 0 | DF22: 0 | DG22: 0 | DH22: 0 | DI22: 0 | DJ22: 0 | DL22: 0
C23: > 132 kV; Concrete | D23: 0 | E23: 0 | F23: 0 | G23: 0 | H23: 0 | I23: 0 | J23: 0 | K23: 0 | L23: 0 | M23: 0 | N23: 0 | O23: 0 | P23: 0 | Q23: 0 | R23: 0 | S23: 0 | T23: 0 | U23: 0 | V23: 0 | W23: 0 | X23: 0 | Y23: 0 | Z23: 0 | AA23: 0 | AB23: 0 | AC23: 0 | AD23: 0 | AE23: 0 | AF23: 0 | AG23: 0 | AH23: 0 | AI23: 0 | AJ23: 0 | AK23: 0 | AL23: 0 | AM23: 0 | AN23: 0 | AO23: 0 | AP23: 0 | AQ23: 0 | AR23: 0 | AS23: 0 | AT23: 0 | AU23: 0 | AV23: 0 | AW23: 0 | AX23: 0 | AY23: 0 | AZ23: 0 | BA23: 0 | BB23: 0 | BC23: 0 | BD23: 0 | BE23: 0 | BF23: 0 | BG23: 0 | BH23: 0 | BI23: 0 | BJ23: 0 | BK23: 0 | BL23: 0 | BM23: 0 | BN23: 0 | BO23: 0 | BP23: 0 | BQ23: 0 | BR23: 0 | BS23: 0 | BT23: 0 | BU23: 0 | BV23: 0 | BW23: 0 | BX23: 0 | BY23: 0 | BZ23: 0 | CA23: 0 | CB23: 0 | CC23: 0 | CD23: 0 | CE23: 0 | CF23: 0 | CG23: 0 | CH23: 0 | CI23: 0 | CJ23: 0 | CK23: 0 | CL23: 0 | CM23: 0 | CN23: 0 | CO23: 0 | CP23: 0 | CQ23: 0 | CR23: 0 | CS23: 0 | CT23: 0 | CU23: 0 | CV23: 0 | CW23: 0 | CX23: 0 | CY23: 0 | CZ23: 0 | DA23: 0 | DB23: 0 | DC23: 0 | DD23: 0 | DE23: 0 | DF23: 0 | DG23: 0 | DH23: 0 | DI23: 0 | DJ23: 0 | DL23: 0
C24: ˂ = 1 kV; Steel | D24: 35 | E24: 5.916079783 | F24: 2 | G24: 7.038781163 | H24: 11.06682646 | I24: 2.011137743 | J24: 9.050119846 | K24: 5.027873064 | L24: 5.02790177 | M24: 10.05568872 | N24: 0 | O24: 4.016706615 | P24: 31.21730082 | Q24: 2.016735321 | R24: 6.039010808 | S24: 12.06725704 | T24: 7.039039513 | U24: 9.050148551 | V24: 2.011137743 | W24: 1.005568872 | X24: 84.54577814 | Y24: 16.08913065 | Z24: 10.05568872 | AA24: 0.0001148220975 | AB24: 3.016735321 | AC24: 3.016706615 | AD24: 15.08353308 | AE24: 10.05571742 | AF24: 5.027844359 | AG24: 8.044550974 | AH24: 5.050119846 | AI24: 9.050119846 | AJ24: 10.05568872 | AK24: 1.005568872 | AL24: 3.016706615 | AM24: 8.061228883 | AN24: 1.005568872 | AO24: 1.005568872 | AP24: 1.005568872 | AQ24: 0 | AR24: 1.005568872 | AS24: 0 | AT24: 0 | AU24: 1.005568872 | AV24: 0 | AW24: 7.038982102 | AX24: 0 | AY24: 0 | AZ24: 0 | BA24: 0 | BB24: 1.005568872 | BC24: 0 | BD24: 0 | BE24: 0 | BF24: 0 | BG24: 0 | BH24: 0 | BI24: 0 | BJ24: 1.005568872 | BK24: 0 | BL24: 0 | BM24: 1.005568872 | BN24: 0 | BO24: 0 | BP24: 0 | BQ24: 0 | BR24: 0 | BS24: 0 | BT24: 0 | BU24: 0 | BV24: 0 | BW24: 0 | BX24: 0 | BY24: 0 | BZ24: 0 | CA24: 0 | CB24: 0 | CC24: 0 | CD24: 0 | CE24: 0 | CF24: 0 | CG24: 0 | CH24: 0 | CI24: 0 | CJ24: 0 | CK24: 0 | CL24: 0 | CM24: 0 | CN24: 0 | CO24: 0 | CP24: 0 | CQ24: 0 | CR24: 0 | CS24: 0 | CT24: 0 | CU24: 0 | CV24: 0 | CW24: 0 | CX24: 0 | CY24: 0 | CZ24: 0 | DA24: 0 | DB24: 0 | DC24: 0 | DD24: 0 | DE24: 0 | DF24: 0 | DG24: 0 | DH24: 0 | DI24: 0 | DJ24: 0 | DL24: 332
C25: > 1 kV & < = 11 kV; Steel | D25: 35 | E25: 5.916079783 | F25: 0 | G25: 0 | H25: 0 | I25: 0 | J25: 0 | K25: 0 | L25: 2 | M25: 0 | N25: 0 | O25: 0 | P25: 0 | Q25: 0 | R25: 0 | S25: 0 | T25: 0 | U25: 0 | V25: 0 | W25: 0 | X25: 0 | Y25: 0 | Z25: 0 | AA25: 0 | AB25: 0 | AC25: 0 | AD25: 0 | AE25: 0 | AF25: 0 | AG25: 0 | AH25: 0 | AI25: 0 | AJ25: 0 | AK25: 0 | AL25: 0 | AM25: 0 | AN25: 0 | AO25: 0 | AP25: 0 | AQ25: 0 | AR25: 0 | AS25: 0 | AT25: 0 | AU25: 0 | AV25: 0 | AW25: 0 | AX25: 0 | AY25: 0 | AZ25: 0 | BA25: 0 | BB25: 0 | BC25: 0 | BD25: 0 | BE25: 0 | BF25: 0 | BG25: 0 | BH25: 0 | BI25: 0 | BJ25: 0 | BK25: 0 | BL25: 0 | BM25: 0 | BN25: 0 | BO25: 0 | BP25: 0 | BQ25: 0 | BR25: 0 | BS25: 0 | BT25: 0 | BU25: 0 | BV25: 0 | BW25: 0 | BX25: 0 | BY25: 0 | BZ25: 0 | CA25: 0 | CB25: 0 | CC25: 0 | CD25: 0 | CE25: 0 | CF25: 0 | CG25: 0 | CH25: 0 | CI25: 0 | CJ25: 0 | CK25: 0 | CL25: 0 | CM25: 0 | CN25: 0 | CO25: 0 | CP25: 0 | CQ25: 0 | CR25: 0 | CS25: 0 | CT25: 0 | CU25: 0 | CV25: 0 | CW25: 0 | CX25: 0 | CY25: 0 | CZ25: 0 | DA25: 0 | DB25: 0 | DC25: 0 | DD25: 0 | DE25: 0 | DF25: 0 | DG25: 0 | DH25: 0 | DI25: 0 | DJ25: 0 | DL25: 2
C26: ˃ 11 kV & < = 22 kV; Steel | D26: 35 | E26: 5.916079783 | F26: 0 | G26: 1.083333333 | H26: 3.347619048 | I26: 1.09047619 | J26: 1.085714286 | K26: 0 | L26: 0 | M26: 0 | N26: 2.25952381 | O26: 2.171428571 | P26: 2.173809524 | Q26: 0.0880952381 | R26: 0 | S26: 0.002380952381 | T26: 1.085714286 | U26: 0 | V26: 0 | W26: 0 | X26: 2.173809524 | Y26: 0 | Z26: 0 | AA26: 0 | AB26: 0 | AC26: 0 | AD26: 0.08571428571 | AE26: 0 | AF26: 0 | AG26: 0 | AH26: 2.171428571 | AI26: 1.085714286 | AJ26: 0 | AK26: 0 | AL26: 0 | AM26: 0.004761904762 | AN26: 0 | AO26: 0 | AP26: 0 | AQ26: 0 | AR26: 0 | AS26: 0 | AT26: 0 | AU26: 0 | AV26: 0.002380952381 | AW26: 0 | AX26: 0 | AY26: 0 | AZ26: 0 | BA26: 0 | BB26: 1.085714286 | BC26: 0 | BD26: 0 | BE26: 0 | BF26: 0 | BG26: 0 | BH26: 0 | BI26: 0 | BJ26: 0.002380952381 | BK26: 0 | BL26: 0 | BM26: 0 | BN26: 0 | BO26: 0 | BP26: 0 | BQ26: 0 | BR26: 0 | BS26: 0 | BT26: 0 | BU26: 0 | BV26: 0 | BW26: 0 | BX26: 0 | BY26: 0 | BZ26: 0 | CA26: 0 | CB26: 0 | CC26: 0 | CD26: 0 | CE26: 0 | CF26: 0 | CG26: 0 | CH26: 0 | CI26: 0 | CJ26: 0 | CK26: 0 | CL26: 0 | CM26: 0 | CN26: 0 | CO26: 0 | CP26: 0 | CQ26: 0 | CR26: 0 | CS26: 0 | CT26: 0 | CU26: 0 | CV26: 0 | CW26: 0 | CX26: 0 | CY26: 0 | CZ26: 0 | DA26: 0 | DB26: 0 | DC26: 0 | DD26: 0 | DE26: 0 | DF26: 0 | DG26: 0 | DH26: 0 | DI26: 0 | DJ26: 0 | DL26: 21
C27: > 22 kV & < = 66 kV; Steel | D27: 35 | E27: 5.916079783 | F27: 0 | G27: 0 | H27: 0 | I27: 0 | J27: 30 | K27: 0 | L27: 0 | M27: 0 | N27: 0 | O27: 0 | P27: 10 | Q27: 0 | R27: 1 | S27: 0 | T27: 0 | U27: 0 | V27: 1 | W27: 0 | X27: 4 | Y27: 2 | Z27: 0 | AA27: 0 | AB27: 0 | AC27: 0 | AD27: 0 | AE27: 0 | AF27: 0 | AG27: 0 | AH27: 0 | AI27: 0 | AJ27: 0 | AK27: 0 | AL27: 0 | AM27: 1 | AN27: 0 | AO27: 0 | AP27: 0 | AQ27: 0 | AR27: 0 | AS27: 0 | AT27: 0 | AU27: 0 | AV27: 0 | AW27: 0 | AX27: 0 | AY27: 0 | AZ27: 0 | BA27: 0 | BB27: 0 | BC27: 0 | BD27: 0 | BE27: 0 | BF27: 0 | BG27: 0 | BH27: 0 | BI27: 0 | BJ27: 0 | BK27: 0 | BL27: 0 | BM27: 0 | BN27: 0 | BO27: 0 | BP27: 0 | BQ27: 0 | BR27: 0 | BS27: 0 | BT27: 0 | BU27: 0 | BV27: 0 | BW27: 0 | BX27: 0 | BY27: 0 | BZ27: 0 | CA27: 0 | CB27: 0 | CC27: 0 | CD27: 0 | CE27: 0 | CF27: 0 | CG27: 0 | CH27: 0 | CI27: 0 | CJ27: 0 | CK27: 0 | CL27: 0 | CM27: 0 | CN27: 0 | CO27: 0 | CP27: 0 | CQ27: 0 | CR27: 0 | CS27: 0 | CT27: 0 | CU27: 0 | CV27: 0 | CW27: 0 | CX27: 0 | CY27: 0 | CZ27: 0 | DA27: 0 | DB27: 0 | DC27: 0 | DD27: 0 | DE27: 0 | DF27: 0 | DG27: 0 | DH27: 0 | DI27: 0 | DJ27: 0 | DL27: 49
C28: > 66 kV & < = 132 kV; Steel | D28: 0 | E28: 0 | F28: 0 | G28: 0 | H28: 0 | I28: 0 | J28: 0 | K28: 0 | L28: 0 | M28: 0 | N28: 0 | O28: 0 | P28: 0 | Q28: 0 | R28: 0 | S28: 0 | T28: 0 | U28: 0 | V28: 0 | W28: 0 | X28: 0 | Y28: 0 | Z28: 0 | AA28: 0 | AB28: 0 | AC28: 0 | AD28: 0 | AE28: 0 | AF28: 0 | AG28: 0 | AH28: 0 | AI28: 0 | AJ28: 0 | AK28: 0 | AL28: 0 | AM28: 0 | AN28: 0 | AO28: 0 | AP28: 0 | AQ28: 0 | AR28: 0 | AS28: 0 | AT28: 0 | AU28: 0 | AV28: 0 | AW28: 0 | AX28: 0 | AY28: 0 | AZ28: 0 | BA28: 0 | BB28: 0 | BC28: 0 | BD28: 0 | BE28: 0 | BF28: 0 | BG28: 0 | BH28: 0 | BI28: 0 | BJ28: 0 | BK28: 0 | BL28: 0 | BM28: 0 | BN28: 0 | BO28: 0 | BP28: 0 | BQ28: 0 | BR28: 0 | BS28: 0 | BT28: 0 | BU28: 0 | BV28: 0 | BW28: 0 | BX28: 0 | BY28: 0 | BZ28: 0 | CA28: 0 | CB28: 0 | CC28: 0 | CD28: 0 | CE28: 0 | CF28: 0 | CG28: 0 | CH28: 0 | CI28: 0 | CJ28: 0 | CK28: 0 | CL28: 0 | CM28: 0 | CN28: 0 | CO28: 0 | CP28: 0 | CQ28: 0 | CR28: 0 | CS28: 0 | CT28: 0 | CU28: 0 | CV28: 0 | CW28: 0 | CX28: 0 | CY28: 0 | CZ28: 0 | DA28: 0 | DB28: 0 | DC28: 0 | DD28: 0 | DE28: 0 | DF28: 0 | DG28: 0 | DH28: 0 | DI28: 0 | DJ28: 0 | DL28: 0
C29: > 132 kV; Steel | D29: 0 | E29: 0 | F29: 0 | G29: 0 | H29: 0 | I29: 0 | J29: 0 | K29: 0 | L29: 0 | M29: 0 | N29: 0 | O29: 0 | P29: 0 | Q29: 0 | R29: 0 | S29: 0 | T29: 0 | U29: 0 | V29: 0 | W29: 0 | X29: 0 | Y29: 0 | Z29: 0 | AA29: 0 | AB29: 0 | AC29: 0 | AD29: 0 | AE29: 0 | AF29: 0 | AG29: 0 | AH29: 0 | AI29: 0 | AJ29: 0 | AK29: 0 | AL29: 0 | AM29: 0 | AN29: 0 | AO29: 0 | AP29: 0 | AQ29: 0 | AR29: 0 | AS29: 0 | AT29: 0 | AU29: 0 | AV29: 0 | AW29: 0 | AX29: 0 | AY29: 0 | AZ29: 0 | BA29: 0 | BB29: 0 | BC29: 0 | BD29: 0 | BE29: 0 | BF29: 0 | BG29: 0 | BH29: 0 | BI29: 0 | BJ29: 0 | BK29: 0 | BL29: 0 | BM29: 0 | BN29: 0 | BO29: 0 | BP29: 0 | BQ29: 0 | BR29: 0 | BS29: 0 | BT29: 0 | BU29: 0 | BV29: 0 | BW29: 0 | BX29: 0 | BY29: 0 | BZ29: 0 | CA29: 0 | CB29: 0 | CC29: 0 | CD29: 0 | CE29: 0 | CF29: 0 | CG29: 0 | CH29: 0 | CI29: 0 | CJ29: 0 | CK29: 0 | CL29: 0 | CM29: 0 | CN29: 0 | CO29: 0 | CP29: 0 | CQ29: 0 | CR29: 0 | CS29: 0 | CT29: 0 | CU29: 0 | CV29: 0 | CW29: 0 | CX29: 0 | CY29: 0 | CZ29: 0 | DA29: 0 | DB29: 0 | DC29: 0 | DD29: 0 | DE29: 0 | DF29: 0 | DG29: 0 | DH29: 0 | DI29: 0 | DJ29: 0 | DL29: 0
C30: Other | D30: 35 | E30: 5.916079783 | F30: 0 | G30: 0 | H30: 0 | I30: 0 | J30: 0 | K30: 0 | L30: 0 | M30: 0 | N30: 0 | O30: 0 | P30: 0 | Q30: 0 | R30: 0 | S30: 0 | T30: 0 | U30: 0 | V30: 0 | W30: 0 | X30: 0 | Y30: 0 | Z30: 0 | AA30: 0 | AB30: 0 | AC30: 0 | AD30: 0 | AE30: 0 | AF30: 0 | AG30: 0 | AH30: 0 | AI30: 0 | AJ30: 0 | AK30: 0 | AL30: 0 | AM30: 0 | AN30: 0 | AO30: 0 | AP30: 0 | AQ30: 0 | AR30: 0 | AS30: 0 | AT30: 0 | AU30: 0 | AV30: 0 | AW30: 0 | AX30: 0 | AY30: 0 | AZ30: 0 | BA30: 0 | BB30: 0 | BC30: 0 | BD30: 0 | BE30: 0 | BF30: 0 | BG30: 0 | BH30: 0 | BI30: 0 | BJ30: 0 | BK30: 0 | BL30: 0 | BM30: 0 | BN30: 0 | BO30: 0 | BP30: 0 | BQ30: 0 | BR30: 0 | BS30: 0 | BT30: 0 | BU30: 0 | BV30: 0 | BW30: 0 | BX30: 0 | BY30: 0 | BZ30: 0 | CA30: 0 | CB30: 0 | CC30: 0 | CD30: 0 | CE30: 0 | CF30: 0 | CG30: 0 | CH30: 0 | CI30: 0 | CJ30: 0 | CK30: 0 | CL30: 0 | CM30: 0 | CN30: 0 | CO30: 0 | CP30: 0 | CQ30: 0 | CR30: 0 | CS30: 0 | CT30: 0 | CU30: 0 | CV30: 0 | CW30: 0 | CX30: 0 | CY30: 0 | CZ30: 0 | DA30: 0 | DB30: 0 | DC30: 0 | DD30: 0 | DE30: 0 | DF30: 0 | DG30: 0 | DH30: 0 | DI30: 0 | DJ30: 0 | DL30: 0
B31: OVERHEAD CONDUCTORS BY: HIGHEST OPERATING VOLTAGE; NUMBER OF PHASES (AT HV) | C31: ˂ = 1 kV | D31: 55 | E31: 7.416198487 | F31: 22.685805 | G31: 22.54578471 | H31: 0 | I31: 105.5203966 | J31: 18.13584217 | K31: 0 | L31: 0 | M31: 0 | N31: 0 | O31: 0 | P31: 0 | Q31: 0 | R31: 0 | S31: 0 | T31: 0 | U31: 0 | V31: 0 | W31: 0 | X31: 0 | Y31: 0 | Z31: 0 | AA31: 0 | AB31: 0 | AC31: 0 | AD31: 0 | AE31: 0 | AF31: 0 | AG31: 0 | AH31: 0 | AI31: 0 | AJ31: 0 | AK31: 0 | AL31: 0 | AM31: 0 | AN31: 0 | AO31: 0 | AP31: 0 | AQ31: 0 | AR31: 0 | AS31: 0 | AT31: 0 | AU31: 0 | AV31: 0 | AW31: 0 | AX31: 0 | AY31: 0 | AZ31: 0 | BA31: 0 | BB31: 0 | BC31: 0 | BD31: 0 | BE31: 0 | BF31: 0 | BG31: 0 | BH31: 0 | BI31: 0 | BJ31: 0 | BK31: 0 | BL31: 0 | BM31: 0 | BN31: 0 | BO31: 0 | BP31: 0 | BQ31: 0 | BR31: 0 | BS31: 0 | BT31: 0 | BU31: 0 | BV31: 0 | BW31: 0 | BX31: 0 | BY31: 0 | BZ31: 0 | CA31: 0 | CB31: 0 | CC31: 0 | CD31: 0 | CE31: 0 | CF31: 0 | CG31: 0 | CH31: 0 | CI31: 0 | CJ31: 0 | CK31: 0 | CL31: 0 | CM31: 0 | CN31: 0 | CO31: 0 | CP31: 0 | CQ31: 0 | CR31: 0 | CS31: 0 | CT31: 0 | CU31: 0 | CV31: 6456.112172 | CW31: 0 | CX31: 0 | CY31: 0 | CZ31: 0 | DA31: 0 | DB31: 0 | DC31: 0 | DD31: 0 | DE31: 0 | DF31: 0 | DG31: 0 | DH31: 0 | DI31: 0 | DJ31: 0 | DL31: 6625
C32: > 1 kV & < = 11 kV | D32: 60 | E32: 7.745966692 | F32: 0.62298 | G32: 0.628926582 | H32: 0 | I32: 1.644486532 | J32: 1.440064917 | K32: 0.3883438357 | L32: 0.1005117038 | M32: 0.002364981267 | N32: 0.07254927828 | O32: 0.08959105506 | P32: 0 | Q32: 1.377879821 | R32: 1.111193404 | S32: 0.8344905959 | T32: 0 | U32: 0.05265561233 | V32: 0.004173496353 | W32: 0 | X32: 0.4905249381 | Y32: 0.1551149478 | Z32: 1.990896877 | AA32: 3.369263606 | AB32: 1.851432541 | AC32: 1.094986327 | AD32: 0.07101899628 | AE32: 0.866417843 | AF32: 1.618899236 | AG32: 0.9849451394 | AH32: 1.904783736 | AI32: 1.355551616 | AJ32: 1.861796723 | AK32: 1.164405483 | AL32: 0.6409099234 | AM32: 0.7349527079 | AN32: 0.8504889986 | AO32: 0.2683558155 | AP32: 0.3119688524 | AQ32: 0.353703816 | AR32: 1.824791722 | AS32: 0.01530281996 | AT32: 0.08833900615 | AU32: 1.394504248 | AV32: 1.632463099 | AW32: 1.473661562 | AX32: 0.7937294482 | AY32: 0.2366372432 | AZ32: 0.273572686 | BA32: 0.9666513137 | BB32: 2.078192509 | BC32: 0.8554276359 | BD32: 0.430774382 | BE32: 0.4516418637 | BF32: 0.3768667207 | BG32: 0.7550550486 | BH32: 0.4243054626 | BI32: 0.3008395288 | BJ32: 0.0641327273 | BK32: 0.4234707633 | BL32: 0.7211801699 | BM32: 0.2507575726 | BN32: 0.2399064821 | BO32: 0.1784865274 | BP32: 0.1784169691 | BQ32: 0 | BR32: 0.06364581939 | BS32: 0.01509414515 | BT32: 0.1116410275 | BU32: 0 | BV32: 0.04062203117 | BW32: 0.2508271308 | BX32: 0.04604757643 | BY32: 0.04298701244 | BZ32: 0.3897350011 | CA32: 0 | CB32: 0 | CC32: 0 | CD32: 0 | CE32: 0.4569282924 | CF32: 0.3571817296 | CG32: 0.507079807 | CH32: 0.5870718204 | CI32: 0 | CJ32: 0.1981715185 | CK32: 0.1872508697 | CL32: 0.2230733801 | CM32: 0.0035474719 | CN32: 0.3313756105 | CO32: 0.0149550286 | CP32: 0.02385848749 | CQ32: 0.00869478407 | CR32: 0.00626024453 | CS32: 0.004382171171 | CT32: 0.004173496353 | CU32: 0.01620707751 | CV32: 6.369451018 | CW32: 0 | CX32: 0 | CY32: 0 | CZ32: 0 | DA32: 0 | DB32: 0 | DC32: 0 | DD32: 0 | DE32: 0 | DF32: 0 | DG32: 0 | DH32: 0 | DI32: 0 | DJ32: 0 | DL32: 57
C33: ˃ 11 kV & < = 22 kV ; SWER | D33: 46 | E33: 6.782329983 | F33: 58.178741 | G33: 57.66572372 | H33: 2.670647463 | I33: 343.2586378 | J33: 204.2442237 | K33: 4.45504971 | L33: 63.28860181 | M33: 15.15607325 | N33: 12.72023323 | O33: 14.06054069 | P33: 22.62674604 | Q33: 35.40056958 | R33: 31.35326428 | S33: 27.99035766 | T33: 28.91815712 | U33: 28.1077067 | V33: 39.13540213 | W33: 30.0598598 | X33: 44.92874394 | Y33: 57.47190012 | Z33: 54.06639607 | AA33: 68.39873583 | AB33: 26.12028477 | AC33: 20.62485014 | AD33: 58.28592323 | AE33: 45.89914083 | AF33: 52.75100582 | AG33: 47.54660781 | AH33: 111.870831 | AI33: 77.419955 | AJ33: 68.07838485 | AK33: 39.89207902 | AL33: 137.2086972 | AM33: 86.15224451 | AN33: 89.23125988 | AO33: 76.35950806 | AP33: 52.94503023 | AQ33: 109.9272889 | AR33: 109.1540311 | AS33: 43.46549939 | AT33: 88.15597255 | AU33: 104.2808854 | AV33: 112.0941697 | AW33: 129.0291665 | AX33: 90.65502166 | AY33: 65.62266604 | AZ33: 95.44370542 | BA33: 87.72184522 | BB33: 75.43977004 | BC33: 112.3550675 | BD33: 267.7536909 | BE33: 206.1382061 | BF33: 337.3180389 | BG33: 247.4079684 | BH33: 289.9817616 | BI33: 263.4224943 | BJ33: 149.4146466 | BK33: 176.6140662 | BL33: 234.7821824 | BM33: 137.8806372 | BN33: 181.6826105 | BO33: 245.2464925 | BP33: 73.09498775 | BQ33: 41.11494583 | BR33: 3.724847349 | BS33: 0.8777818375 | BT33: 1.751716165 | BU33: 0.3826439924 | BV33: 1.132633546 | BW33: 5.941470926 | BX33: 0.4267071383 | BY33: 0.3933620549 | BZ33: 18.86827878 | CA33: 0.2107885627 | CB33: 1.057149072 | CC33: 0 | CD33: 0.3928124107 | CE33: 5.564781413 | CF33: 24.46530599 | CG33: 0.006870552892 | CH33: 0.2979071734 | CI33: 0.1263265658 | CJ33: 0.1360369473 | CK33: 0 | CL33: 0 | CM33: 0 | CN33: 0 | CO33: 0 | CP33: 0 | CQ33: 0 | CR33: 0 | CS33: 0 | CT33: 0 | CU33: 0 | CV33: 90.12791284 | CW33: 0 | CX33: 0 | CY33: 0 | CZ33: 0 | DA33: 0 | DB33: 0 | DC33: 0 | DD33: 0 | DE33: 0 | DF33: 0 | DG33: 0 | DH33: 0 | DI33: 0 | DJ33: 0 | DL33: 6465.625266
C34: ˃ 11 kV & < = 22 kV ; Single-Phase | D34: 56 | E34: 7.483314774 | F34: 73.824334 | G34: 73.02792322 | H34: 0 | I34: 129.992335 | J34: 135.8033706 | K34: 11.49587223 | L34: 101.3308169 | M34: 49.62276799 | N34: 66.80533314 | O34: 61.61598369 | P34: 68.28355908 | Q34: 51.85722905 | R34: 59.36481994 | S34: 71.3126562 | T34: 50.81270097 | U34: 129.3438543 | V34: 82.76715305 | W34: 63.61138279 | X34: 91.66194405 | Y34: 124.201219 | Z34: 119.4788584 | AA34: 178.2025315 | AB34: 40.965056 | AC34: 50.95555089 | AD34: 77.67355805 | AE34: 106.145805 | AF34: 106.3144716 | AG34: 106.3146623 | AH34: 159.059498 | AI34: 175.9279154 | AJ34: 163.1383476 | AK34: 156.134583 | AL34: 179.3979558 | AM34: 193.360792 | AN34: 218.5799809 | AO34: 132.8167548 | AP34: 91.50155249 | AQ34: 263.2933411 | AR34: 196.7366415 | AS34: 71.56498881 | AT34: 151.3998669 | AU34: 195.0896346 | AV34: 195.3304126 | AW34: 177.355385 | AX34: 156.735689 | AY34: 122.6286496 | AZ34: 124.8074731 | BA34: 173.7796371 | BB34: 197.5148037 | BC34: 243.5917209 | BD34: 268.7960756 | BE34: 259.2878232 | BF34: 243.8523286 | BG34: 263.729327 | BH34: 191.5939681 | BI34: 114.3169272 | BJ34: 107.8104298 | BK34: 150.9721561 | BL34: 102.9437321 | BM34: 73.76981976 | BN34: 74.21450021 | BO34: 118.6380039 | BP34: 103.8595579 | BQ34: 121.7557626 | BR34: 114.6073176 | BS34: 90.26223599 | BT34: 65.81731963 | BU34: 39.70278284 | BV34: 51.71540875 | BW34: 56.43857019 | BX34: 75.00116626 | BY34: 47.52894507 | BZ34: 33.44621559 | CA34: 12.43145151 | CB34: 7.859567603 | CC34: 5.424216684 | CD34: 9.314264869 | CE34: 20.43970353 | CF34: 64.80737907 | CG34: 2.656222982 | CH34: 11.26474212 | CI34: 3.841122278 | CJ34: 6.336496095 | CK34: 10.33755232 | CL34: 4.085789949 | CM34: 1.896060051 | CN34: 0.1037244492 | CO34: 0.01613067721 | CP34: 0.2113385653 | CQ34: 0.00694038594 | CR34: 0.4484557069 | CS34: 0 | CT34: 0.2840982157 | CU34: 0 | CV34: 98.05346749 | CW34: 0 | CX34: 0 | CY34: 0 | CZ34: 0 | DA34: 0 | DB34: 0 | DC34: 0 | DD34: 0 | DE34: 0 | DF34: 0 | DG34: 0 | DH34: 0 | DI34: 0 | DJ34: 0 | DL34: 9052.410471
C35: ˃ 11 kV & < = 22 kV ; Multiple-Phase | D35: 56 | E35: 7.483314774 | F35: 146.578606 | G35: 144.6565137 | H35: 0 | I35: 266.1216806 | J35: 200.3451476 | K35: 16.95938921 | L35: 149.4892017 | M35: 73.20643613 | N35: 98.55517038 | O35: 90.89953579 | P35: 100.7359365 | Q35: 76.50284497 | R35: 87.57848616 | S35: 105.2046394 | T35: 74.96189549 | U35: 190.8156879 | V35: 122.1029892 | W35: 93.8432663 | X35: 135.2251098 | Y35: 183.2289687 | Z35: 176.2622636 | AA35: 262.8948923 | AB35: 60.43406842 | AC35: 75.17263613 | AD35: 114.5886172 | AE35: 156.5925563 | AF35: 156.8413833 | AG35: 156.8416646 | AH35: 234.6539594 | AI35: 259.5392442 | AJ35: 240.671319 | AK35: 230.338952 | AL35: 264.6584527 | AM35: 285.2572528 | AN35: 322.4620887 | AO35: 195.9391156 | AP35: 134.9884908 | AQ35: 388.4258766 | AR35: 290.2375052 | AS35: 105.5768953 | AT35: 223.3540195 | AU35: 287.8077433 | AV35: 288.1629532 | AW35: 261.6451317 | AX35: 231.2257392 | AY35: 180.9090215 | AZ35: 184.1233506 | BA35: 256.3699774 | BB35: 291.385496 | BC35: 359.3608837 | BD35: 396.5438354 | BE35: 382.5167002 | BF35: 359.7453475 | BG35: 389.0690687 | BH35: 282.6507298 | BI35: 168.6470782 | BJ35: 159.0483092 | BK35: 222.7230352 | BL35: 151.8686694 | BM35: 108.8295921 | BN35: 109.4856109 | BO35: 175.0217855 | BP35: 153.2197498 | BQ35: 179.6212871 | BR35: 169.0754791 | BS35: 133.1601779 | BT35: 97.09759453 | BU35: 58.57188855 | BV35: 76.29362329 | BW35: 83.26150981 | BX35: 110.6461471 | BY35: 70.11750498 | BZ35: 49.34183127 | CA35: 18.33961098 | CB35: 11.59489801 | CC35: 8.002124596 | CD35: 13.74095327 | CE35: 30.15385702 | CF35: 95.60767061 | CG35: 3.918616916 | CH35: 16.61841244 | CI35: 5.666650292 | CJ35: 9.347973027 | CK35: 15.25056732 | CL35: 6.027598481 | CM35: 2.797179695 | CN35: 0.1530204294 | CO35: 0.02379692707 | CP35: 0.3117791249 | CQ35: 0.01023886697 | CR35: 0.6615883272 | CS35: 0 | CT35: 0.4191184556 | CU35: 0 | CV35: 144.6542625 | CW35: 0 | CX35: 0 | CY35: 0 | CZ35: 0 | DA35: 0 | DB35: 0 | DC35: 0 | DD35: 0 | DE35: 0 | DF35: 0 | DG35: 0 | DH35: 0 | DI35: 0 | DJ35: 0 | DL35: 13503.58953
C36: > 22 kV & < = 66 kV | D36: 61 | E36: 7.810249676 | F36: 0.373631 | G36: 0.3638298265 | H36: 102.4234366 | I36: 26.11605325 | J36: 59.22748468 | K36: 0 | L36: 38.60391114 | M36: 8.17825065 | N36: 0.8169638211 | O36: 2.836015394 | P36: 10.6524566 | Q36: 3.221574297 | R36: 7.456545628 | S36: 20.91657047 | T36: 7.045062413 | U36: 59.3178718 | V36: 12.81522281 | W36: 16.82705367 | X36: 18.18842805 | Y36: 2.995823992 | Z36: 73.12326416 | AA36: 28.8831639 | AB36: 1.640365223 | AC36: 3.92544548 | AD36: 0.2249673561 | AE36: 0.7292735291 | AF36: 6.721704462 | AG36: 2.839060196 | AH36: 26.7231815 | AI36: 5.893866349 | AJ36: 11.5280546 | AK36: 38.6582826 | AL36: 10.71961622 | AM36: 49.02913853 | AN36: 101.6909866 | AO36: 14.77459627 | AP36: 0 | AQ36: 52.60399683 | AR36: 30.25184581 | AS36: 32.3873828 | AT36: 32.14258073 | AU36: 2.978164141 | AV36: 33.94414646 | AW36: 71.78998895 | AX36: 63.60382181 | AY36: 93.69759891 | AZ36: 7.326489094 | BA36: 64.22269953 | BB36: 71.6894235 | BC36: 47.80399728 | BD36: 57.99173012 | BE36: 106.0256534 | BF36: 54.63879438 | BG36: 50.37215711 | BH36: 12.28795014 | BI36: 24.73475193 | BJ36: 23.75728356 | BK36: 68.77841898 | BL36: 27.27185478 | BM36: 11.63531862 | BN36: 29.30534742 | BO36: 67.80390842 | BP36: 5.703174761 | BQ36: 63.33683619 | BR36: 11.27951178 | BS36: 7.313787921 | BT36: 12.39269132 | BU36: 21.01965876 | BV36: 7.631491241 | BW36: 41.14466776 | BX36: 29.49673496 | BY36: 12.15737164 | BZ36: 3.937972664 | CA36: 38.62940048 | CB36: 1.00869934 | CC36: 22.83053288 | CD36: 8.17242203 | CE36: 22.3618074 | CF36: 38.12352841 | CG36: 0 | CH36: 0 | CI36: 0 | CJ36: 0 | CK36: 0 | CL36: 0.02357546539 | CM36: 0 | CN36: 0 | CO36: 0 | CP36: 0 | CQ36: 0 | CR36: 0 | CS36: 0 | CT36: 0 | CU36: 0 | CV36: 242.9096772 | CW36: 0 | CX36: 0 | CY36: 0 | CZ36: 0 | DA36: 0 | DB36: 0 | DC36: 0 | DD36: 0 | DE36: 0 | DF36: 0 | DG36: 0 | DH36: 0 | DI36: 0 | DJ36: 0 | DL36: 2504
C37: > 66 kV & < = 132 kV | D37: 0 | E37: 0 | F37: 0 | G37: 0 | H37: 0 | I37: 0 | J37: 0 | K37: 0 | L37: 0 | M37: 0 | N37: 0 | O37: 0 | P37: 0 | Q37: 0 | R37: 0 | S37: 0 | T37: 0 | U37: 0 | V37: 0 | W37: 0 | X37: 0 | Y37: 0 | Z37: 0 | AA37: 0 | AB37: 0 | AC37: 0 | AD37: 0 | AE37: 0 | AF37: 0 | AG37: 0 | AH37: 0 | AI37: 0 | AJ37: 0 | AK37: 0 | AL37: 0 | AM37: 0 | AN37: 0 | AO37: 0 | AP37: 0 | AQ37: 0 | AR37: 0 | AS37: 0 | AT37: 0 | AU37: 0 | AV37: 0 | AW37: 0 | AX37: 0 | AY37: 0 | AZ37: 0 | BA37: 0 | BB37: 0 | BC37: 0 | BD37: 0 | BE37: 0 | BF37: 0 | BG37: 0 | BH37: 0 | BI37: 0 | BJ37: 0 | BK37: 0 | BL37: 0 | BM37: 0 | BN37: 0 | BO37: 0 | BP37: 0 | BQ37: 0 | BR37: 0 | BS37: 0 | BT37: 0 | BU37: 0 | BV37: 0 | BW37: 0 | BX37: 0 | BY37: 0 | BZ37: 0 | CA37: 0 | CB37: 0 | CC37: 0 | CD37: 0 | CE37: 0 | CF37: 0 | CG37: 0 | CH37: 0 | CI37: 0 | CJ37: 0 | CK37: 0 | CL37: 0 | CM37: 0 | CN37: 0 | CO37: 0 | CP37: 0 | CQ37: 0 | CR37: 0 | CS37: 0 | CT37: 0 | CU37: 0 | CV37: 0 | CW37: 0 | CX37: 0 | CY37: 0 | CZ37: 0 | DA37: 0 | DB37: 0 | DC37: 0 | DD37: 0 | DE37: 0 | DF37: 0 | DG37: 0 | DH37: 0 | DI37: 0 | DJ37: 0 | DL37: 0
C38: > 132 kV | D38: 0 | E38: 0 | F38: 0 | G38: 0 | H38: 0 | I38: 0 | J38: 0 | K38: 0 | L38: 0 | M38: 0 | N38: 0 | O38: 0 | P38: 0 | Q38: 0 | R38: 0 | S38: 0 | T38: 0 | U38: 0 | V38: 0 | W38: 0 | X38: 0 | Y38: 0 | Z38: 0 | AA38: 0 | AB38: 0 | AC38: 0 | AD38: 0 | AE38: 0 | AF38: 0 | AG38: 0 | AH38: 0 | AI38: 0 | AJ38: 0 | AK38: 0 | AL38: 0 | AM38: 0 | AN38: 0 | AO38: 0 | AP38: 0 | AQ38: 0 | AR38: 0 | AS38: 0 | AT38: 0 | AU38: 0 | AV38: 0 | AW38: 0 | AX38: 0 | AY38: 0 | AZ38: 0 | BA38: 0 | BB38: 0 | BC38: 0 | BD38: 0 | BE38: 0 | BF38: 0 | BG38: 0 | BH38: 0 | BI38: 0 | BJ38: 0 | BK38: 0 | BL38: 0 | BM38: 0 | BN38: 0 | BO38: 0 | BP38: 0 | BQ38: 0 | BR38: 0 | BS38: 0 | BT38: 0 | BU38: 0 | BV38: 0 | BW38: 0 | BX38: 0 | BY38: 0 | BZ38: 0 | CA38: 0 | CB38: 0 | CC38: 0 | CD38: 0 | CE38: 0 | CF38: 0 | CG38: 0 | CH38: 0 | CI38: 0 | CJ38: 0 | CK38: 0 | CL38: 0 | CM38: 0 | CN38: 0 | CO38: 0 | CP38: 0 | CQ38: 0 | CR38: 0 | CS38: 0 | CT38: 0 | CU38: 0 | CV38: 0 | CW38: 0 | CX38: 0 | CY38: 0 | CZ38: 0 | DA38: 0 | DB38: 0 | DC38: 0 | DD38: 0 | DE38: 0 | DF38: 0 | DG38: 0 | DH38: 0 | DI38: 0 | DJ38: 0 | DL38: 0
C39: Other | D39: 0 | E39: 0 | F39: 0 | G39: 0 | H39: 0 | I39: 0 | J39: 0 | K39: 0 | L39: 0 | M39: 0 | N39: 0 | O39: 0 | P39: 0 | Q39: 0 | R39: 0 | S39: 0 | T39: 0 | U39: 0 | V39: 0 | W39: 0 | X39: 0 | Y39: 0 | Z39: 0 | AA39: 0 | AB39: 0 | AC39: 0 | AD39: 0 | AE39: 0 | AF39: 0 | AG39: 0 | AH39: 0 | AI39: 0 | AJ39: 0 | AK39: 0 | AL39: 0 | AM39: 0 | AN39: 0 | AO39: 0 | AP39: 0 | AQ39: 0 | AR39: 0 | AS39: 0 | AT39: 0 | AU39: 0 | AV39: 0 | AW39: 0 | AX39: 0 | AY39: 0 | AZ39: 0 | BA39: 0 | BB39: 0 | BC39: 0 | BD39: 0 | BE39: 0 | BF39: 0 | BG39: 0 | BH39: 0 | BI39: 0 | BJ39: 0 | BK39: 0 | BL39: 0 | BM39: 0 | BN39: 0 | BO39: 0 | BP39: 0 | BQ39: 0 | BR39: 0 | BS39: 0 | BT39: 0 | BU39: 0 | BV39: 0 | BW39: 0 | BX39: 0 | BY39: 0 | BZ39: 0 | CA39: 0 | CB39: 0 | CC39: 0 | CD39: 0 | CE39: 0 | CF39: 0 | CG39: 0 | CH39: 0 | CI39: 0 | CJ39: 0 | CK39: 0 | CL39: 0 | CM39: 0 | CN39: 0 | CO39: 0 | CP39: 0 | CQ39: 0 | CR39: 0 | CS39: 0 | CT39: 0 | CU39: 0 | CV39: 0 | CW39: 0 | CX39: 0 | CY39: 0 | CZ39: 0 | DA39: 0 | DB39: 0 | DC39: 0 | DD39: 0 | DE39: 0 | DF39: 0 | DG39: 0 | DH39: 0 | DI39: 0 | DJ39: 0 | DL39: 0
B40: UNDERGROUND CABLES BY: HIGHEST OPERATING VOLTAGE | C40: ˂ = 1 kV | D40: 50 | E40: 7.071067812 | F40: 177.238387 | G40: 185.2668475 | H40: 210.4136638 | I40: 146.4619507 | J40: 138.8439454 | K40: 119.4720595 | L40: 173.4540483 | M40: 196.3276149 | N40: 107.4223328 | O40: 85.43945602 | P40: 46.63239412 | Q40: 45.77661665 | R40: 58.21055396 | S40: 65.78125581 | T40: 131.6586652 | U40: 148.7946939 | V40: 149.7637764 | W40: 124.6787821 | X40: 116.9264086 | Y40: 132.9070183 | Z40: 103.0937534 | AA40: 77.07977191 | AB40: 33.76316005 | AC40: 22.3958579 | AD40: 17.73697006 | AE40: 17.80988053 | AF40: 17.33065653 | AG40: 8.659738286 | AH40: 11.27084927 | AI40: 12.65847877 | AJ40: 11.01596193 | AK40: 13.71967016 | AL40: 17.13957915 | AM40: 5.643366296 | AN40: 8.676178883 | AO40: 3.553261153 | AP40: 4.605141328 | AQ40: 4.66907731 | AR40: 1114.830644 | AS40: 0.3273911803 | AT40: 3.064862791 | AU40: 6.123286398 | AV40: 2.784291571 | AW40: 1.4547959 | AX40: 2.425501982 | AY40: 7.132544882 | AZ40: 1.781221203 | BA40: 1.114308758 | BB40: 9.546296829 | BC40: 0.1182663557 | BD40: 0.02242391857 | BE40: 0.05757851846 | BF40: 0.02061819007 | BG40: 479.8541437 | BH40: 0 | BI40: 0 | BJ40: 0 | BK40: 0 | BL40: 0 | BM40: 0 | BN40: 0 | BO40: 0 | BP40: 0 | BQ40: 0 | BR40: 0 | BS40: 0 | BT40: 0 | BU40: 0 | BV40: 0 | BW40: 0 | BX40: 0 | BY40: 0 | BZ40: 0 | CA40: 0 | CB40: 0 | CC40: 0 | CD40: 0 | CE40: 0 | CF40: 0 | CG40: 0 | CH40: 0 | CI40: 0 | CJ40: 0 | CK40: 0 | CL40: 0 | CM40: 0 | CN40: 0 | CO40: 0 | CP40: 0 | CQ40: 0 | CR40: 0 | CS40: 0 | CT40: 0 | CU40: 0 | CV40: 0 | CW40: 0 | CX40: 0 | CY40: 0 | CZ40: 0 | DA40: 0 | DB40: 0 | DC40: 0 | DD40: 0 | DE40: 0 | DF40: 0 | DG40: 0 | DH40: 0 | DI40: 0 | DJ40: 0 | DL40: 4582.95
C41: > 1 kV & < = 11 kV | D41: 50 | E41: 7.071067812 | F41: 1.124539 | G41: 1.177606342 | H41: 9.233413556 | I41: 0.06631122985 | J41: 0.05226854429 | K41: 0 | L41: 0 | M41: 0 | N41: 0 | O41: 0 | P41: 0 | Q41: 0 | R41: 0 | S41: 0 | T41: 0 | U41: 0 | V41: 0 | W41: 0 | X41: 0 | Y41: 0 | Z41: 0.004857140775 | AA41: 0 | AB41: 0 | AC41: 0 | AD41: 0 | AE41: 0.8909204435 | AF41: 0 | AG41: 0 | AH41: 0 | AI41: 0 | AJ41: 0 | AK41: 0 | AL41: 0 | AM41: 0 | AN41: 0 | AO41: 0 | AP41: 0 | AQ41: 0 | AR41: 0 | AS41: 0 | AT41: 0 | AU41: 0 | AV41: 0.9686236386 | AW41: 1.927650604 | AX41: 0 | AY41: 0 | AZ41: 0 | BA41: 0 | BB41: 0.4951971623 | BC41: 0 | BD41: 0 | BE41: 0 | BF41: 0 | BG41: 0.01861233828 | BH41: 0 | BI41: 0 | BJ41: 0 | BK41: 0 | BL41: 0 | BM41: 0 | BN41: 0 | BO41: 0 | BP41: 0 | BQ41: 0 | BR41: 0 | BS41: 0 | BT41: 0 | BU41: 0 | BV41: 0 | BW41: 0 | BX41: 0 | BY41: 0 | BZ41: 0 | CA41: 0 | CB41: 0 | CC41: 0 | CD41: 0 | CE41: 0 | CF41: 0 | CG41: 0 | CH41: 0 | CI41: 0 | CJ41: 0 | CK41: 0 | CL41: 0 | CM41: 0 | CN41: 0 | CO41: 0 | CP41: 0 | CQ41: 0 | CR41: 0 | CS41: 0 | CT41: 0 | CU41: 0 | CV41: 0 | CW41: 0 | CX41: 0 | CY41: 0 | CZ41: 0 | DA41: 0 | DB41: 0 | DC41: 0 | DD41: 0 | DE41: 0 | DF41: 0 | DG41: 0 | DH41: 0 | DI41: 0 | DJ41: 0 | DL41: 15.96
C42: > 11 kV & < = 22 kV | D42: 50 | E42: 7.071067812 | F42: 155.087253 | G42: 121.6415437 | H42: 106.9489442 | I42: 97.60037735 | J42: 85.66685114 | K42: 62.63979169 | L42: 86.61241596 | M42: 69.37453495 | N42: 49.20526363 | O42: 44.9152057 | P42: 34.27495461 | Q42: 36.58704301 | R42: 30.9414048 | S42: 41.31079691 | T42: 44.28114454 | U42: 50.21213363 | V42: 57.41960856 | W42: 47.40616665 | X42: 54.49958563 | Y42: 78.81378074 | Z42: 61.48285506 | AA42: 85.21174092 | AB42: 28.08824867 | AC42: 12.55230253 | AD42: 12.36249271 | AE42: 15.30444042 | AF42: 6.223163847 | AG42: 1.55321493 | AH42: 4.855355892 | AI42: 5.487222162 | AJ42: 5.410617054 | AK42: 3.948576524 | AL42: 6.172272327 | AM42: 1.912529822 | AN42: 3.201696565 | AO42: 0.7751361643 | AP42: 1.122036456 | AQ42: 4.737244834 | AR42: 211.3691048 | AS42: 0 | AT42: 1.134479196 | AU42: 1.252333982 | AV42: 417.1444086 | AW42: 0.235426166 | AX42: 1.192893041 | AY42: 1.839688388 | AZ42: 1.440971989 | BA42: 0.1950669066 | BB42: 43.28171545 | BC42: 0 | BD42: 1.472508471 | BE42: 0 | BF42: 0 | BG42: 1.851455777 | BH42: 0 | BI42: 0 | BJ42: 0 | BK42: 0 | BL42: 0 | BM42: 0 | BN42: 0 | BO42: 0 | BP42: 0 | BQ42: 0 | BR42: 0 | BS42: 0 | BT42: 0 | BU42: 0 | BV42: 0 | BW42: 0 | BX42: 0 | BY42: 0 | BZ42: 0 | CA42: 0 | CB42: 0 | CC42: 0 | CD42: 0 | CE42: 0 | CF42: 0 | CG42: 0 | CH42: 0 | CI42: 0 | CJ42: 0 | CK42: 0 | CL42: 0 | CM42: 0 | CN42: 0 | CO42: 0 | CP42: 0 | CQ42: 0 | CR42: 0 | CS42: 0 | CT42: 0 | CU42: 0 | CV42: 0 | CW42: 0 | CX42: 0 | CY42: 0 | CZ42: 0 | DA42: 0 | DB42: 0 | DC42: 0 | DD42: 0 | DE42: 0 | DF42: 0 | DG42: 0 | DH42: 0 | DI42: 0 | DJ42: 0 | DL42: 2298.25
C43: > 22 kV & < = 33 kV | D43: 0 | E43: 0 | F43: 0 | G43: 0 | H43: 0 | I43: 0 | J43: 0 | K43: 0 | L43: 0 | M43: 0 | N43: 0 | O43: 0 | P43: 0 | Q43: 0 | R43: 0 | S43: 0 | T43: 0 | U43: 0 | V43: 0 | W43: 0 | X43: 0 | Y43: 0 | Z43: 0 | AA43: 0 | AB43: 0 | AC43: 0 | AD43: 0 | AE43: 0 | AF43: 0 | AG43: 0 | AH43: 0 | AI43: 0 | AJ43: 0 | AK43: 0 | AL43: 0 | AM43: 0 | AN43: 0 | AO43: 0 | AP43: 0 | AQ43: 0 | AR43: 0 | AS43: 0 | AT43: 0 | AU43: 0 | AV43: 0 | AW43: 0 | AX43: 0 | AY43: 0 | AZ43: 0 | BA43: 0 | BB43: 0 | BC43: 0 | BD43: 0 | BE43: 0 | BF43: 0 | BG43: 0 | BH43: 0 | BI43: 0 | BJ43: 0 | BK43: 0 | BL43: 0 | BM43: 0 | BN43: 0 | BO43: 0 | BP43: 0 | BQ43: 0 | BR43: 0 | BS43: 0 | BT43: 0 | BU43: 0 | BV43: 0 | BW43: 0 | BX43: 0 | BY43: 0 | BZ43: 0 | CA43: 0 | CB43: 0 | CC43: 0 | CD43: 0 | CE43: 0 | CF43: 0 | CG43: 0 | CH43: 0 | CI43: 0 | CJ43: 0 | CK43: 0 | CL43: 0 | CM43: 0 | CN43: 0 | CO43: 0 | CP43: 0 | CQ43: 0 | CR43: 0 | CS43: 0 | CT43: 0 | CU43: 0 | CV43: 0 | CW43: 0 | CX43: 0 | CY43: 0 | CZ43: 0 | DA43: 0 | DB43: 0 | DC43: 0 | DD43: 0 | DE43: 0 | DF43: 0 | DG43: 0 | DH43: 0 | DI43: 0 | DJ43: 0 | DL43: 0
C44: > 33 kV & < = 66 kV | D44: 50 | E44: 7.071067812 | F44: 0.250911 | G44: 0 | H44: 0 | I44: 0 | J44: 0.7574183853 | K44: 0 | L44: 1.224158225 | M44: 0 | N44: 0 | O44: 0 | P44: 0 | Q44: 0 | R44: 0 | S44: 0.3603148889 | T44: 0 | U44: 0 | V44: 0 | W44: 0 | X44: 0 | Y44: 0 | Z44: 0.7009361288 | AA44: 0 | AB44: 0 | AC44: 0 | AD44: 0 | AE44: 0 | AF44: 0 | AG44: 0 | AH44: 0 | AI44: 0 | AJ44: 0 | AK44: 0 | AL44: 0 | AM44: 0 | AN44: 0 | AO44: 5.730869724 | AP44: 0 | AQ44: 0 | AR44: 0 | AS44: 0 | AT44: 0 | AU44: 0 | AV44: 2.405391648 | AW44: 0 | AX44: 0 | AY44: 0 | AZ44: 0 | BA44: 0 | BB44: 0 | BC44: 0 | BD44: 0 | BE44: 0 | BF44: 0 | BG44: 0 | BH44: 0 | BI44: 0 | BJ44: 0 | BK44: 0 | BL44: 0 | BM44: 0 | BN44: 0 | BO44: 0 | BP44: 0 | BQ44: 0 | BR44: 0 | BS44: 0 | BT44: 0 | BU44: 0 | BV44: 0 | BW44: 0 | BX44: 0 | BY44: 0 | BZ44: 0 | CA44: 0 | CB44: 0 | CC44: 0 | CD44: 0 | CE44: 0 | CF44: 0 | CG44: 0 | CH44: 0 | CI44: 0 | CJ44: 0 | CK44: 0 | CL44: 0 | CM44: 0 | CN44: 0 | CO44: 0 | CP44: 0 | CQ44: 0 | CR44: 0 | CS44: 0 | CT44: 0 | CU44: 0 | CV44: 0 | CW44: 0 | CX44: 0 | CY44: 0 | CZ44: 0 | DA44: 0 | DB44: 0 | DC44: 0 | DD44: 0 | DE44: 0 | DF44: 0 | DG44: 0 | DH44: 0 | DI44: 0 | DJ44: 0 | DL44: 11.43
C45: > 66 kV & < = 132 kV | D45: 0 | E45: 0 | F45: 0 | G45: 0 | H45: 0 | I45: 0 | J45: 0 | K45: 0 | L45: 0 | M45: 0 | N45: 0 | O45: 0 | P45: 0 | Q45: 0 | R45: 0 | S45: 0 | T45: 0 | U45: 0 | V45: 0 | W45: 0 | X45: 0 | Y45: 0 | Z45: 0 | AA45: 0 | AB45: 0 | AC45: 0 | AD45: 0 | AE45: 0 | AF45: 0 | AG45: 0 | AH45: 0 | AI45: 0 | AJ45: 0 | AK45: 0 | AL45: 0 | AM45: 0 | AN45: 0 | AO45: 0 | AP45: 0 | AQ45: 0 | AR45: 0 | AS45: 0 | AT45: 0 | AU45: 0 | AV45: 0 | AW45: 0 | AX45: 0 | AY45: 0 | AZ45: 0 | BA45: 0 | BB45: 0 | BC45: 0 | BD45: 0 | BE45: 0 | BF45: 0 | BG45: 0 | BH45: 0 | BI45: 0 | BJ45: 0 | BK45: 0 | BL45: 0 | BM45: 0 | BN45: 0 | BO45: 0 | BP45: 0 | BQ45: 0 | BR45: 0 | BS45: 0 | BT45: 0 | BU45: 0 | BV45: 0 | BW45: 0 | BX45: 0 | BY45: 0 | BZ45: 0 | CA45: 0 | CB45: 0 | CC45: 0 | CD45: 0 | CE45: 0 | CF45: 0 | CG45: 0 | CH45: 0 | CI45: 0 | CJ45: 0 | CK45: 0 | CL45: 0 | CM45: 0 | CN45: 0 | CO45: 0 | CP45: 0 | CQ45: 0 | CR45: 0 | CS45: 0 | CT45: 0 | CU45: 0 | CV45: 0 | CW45: 0 | CX45: 0 | CY45: 0 | CZ45: 0 | DA45: 0 | DB45: 0 | DC45: 0 | DD45: 0 | DE45: 0 | DF45: 0 | DG45: 0 | DH45: 0 | DI45: 0 | DJ45: 0 | DL45: 0
C46: > 132 kV | D46: 0 | E46: 0 | F46: 0 | G46: 0 | H46: 0 | I46: 0 | J46: 0 | K46: 0 | L46: 0 | M46: 0 | N46: 0 | O46: 0 | P46: 0 | Q46: 0 | R46: 0 | S46: 0 | T46: 0 | U46: 0 | V46: 0 | W46: 0 | X46: 0 | Y46: 0 | Z46: 0 | AA46: 0 | AB46: 0 | AC46: 0 | AD46: 0 | AE46: 0 | AF46: 0 | AG46: 0 | AH46: 0 | AI46: 0 | AJ46: 0 | AK46: 0 | AL46: 0 | AM46: 0 | AN46: 0 | AO46: 0 | AP46: 0 | AQ46: 0 | AR46: 0 | AS46: 0 | AT46: 0 | AU46: 0 | AV46: 0 | AW46: 0 | AX46: 0 | AY46: 0 | AZ46: 0 | BA46: 0 | BB46: 0 | BC46: 0 | BD46: 0 | BE46: 0 | BF46: 0 | BG46: 0 | BH46: 0 | BI46: 0 | BJ46: 0 | BK46: 0 | BL46: 0 | BM46: 0 | BN46: 0 | BO46: 0 | BP46: 0 | BQ46: 0 | BR46: 0 | BS46: 0 | BT46: 0 | BU46: 0 | BV46: 0 | BW46: 0 | BX46: 0 | BY46: 0 | BZ46: 0 | CA46: 0 | CB46: 0 | CC46: 0 | CD46: 0 | CE46: 0 | CF46: 0 | CG46: 0 | CH46: 0 | CI46: 0 | CJ46: 0 | CK46: 0 | CL46: 0 | CM46: 0 | CN46: 0 | CO46: 0 | CP46: 0 | CQ46: 0 | CR46: 0 | CS46: 0 | CT46: 0 | CU46: 0 | CV46: 0 | CW46: 0 | CX46: 0 | CY46: 0 | CZ46: 0 | DA46: 0 | DB46: 0 | DC46: 0 | DD46: 0 | DE46: 0 | DF46: 0 | DG46: 0 | DH46: 0 | DI46: 0 | DJ46: 0 | DL46: 0
C47: Other | D47: 0 | E47: 0 | F47: 0 | G47: 0 | H47: 0 | I47: 0 | J47: 0 | K47: 0 | L47: 0 | M47: 0 | N47: 0 | O47: 0 | P47: 0 | Q47: 0 | R47: 0 | S47: 0 | T47: 0 | U47: 0 | V47: 0 | W47: 0 | X47: 0 | Y47: 0 | Z47: 0 | AA47: 0 | AB47: 0 | AC47: 0 | AD47: 0 | AE47: 0 | AF47: 0 | AG47: 0 | AH47: 0 | AI47: 0 | AJ47: 0 | AK47: 0 | AL47: 0 | AM47: 0 | AN47: 0 | AO47: 0 | AP47: 0 | AQ47: 0 | AR47: 0 | AS47: 0 | AT47: 0 | AU47: 0 | AV47: 0 | AW47: 0 | AX47: 0 | AY47: 0 | AZ47: 0 | BA47: 0 | BB47: 0 | BC47: 0 | BD47: 0 | BE47: 0 | BF47: 0 | BG47: 0 | BH47: 0 | BI47: 0 | BJ47: 0 | BK47: 0 | BL47: 0 | BM47: 0 | BN47: 0 | BO47: 0 | BP47: 0 | BQ47: 0 | BR47: 0 | BS47: 0 | BT47: 0 | BU47: 0 | BV47: 0 | BW47: 0 | BX47: 0 | BY47: 0 | BZ47: 0 | CA47: 0 | CB47: 0 | CC47: 0 | CD47: 0 | CE47: 0 | CF47: 0 | CG47: 0 | CH47: 0 | CI47: 0 | CJ47: 0 | CK47: 0 | CL47: 0 | CM47: 0 | CN47: 0 | CO47: 0 | CP47: 0 | CQ47: 0 | CR47: 0 | CS47: 0 | CT47: 0 | CU47: 0 | CV47: 0 | CW47: 0 | CX47: 0 | CY47: 0 | CZ47: 0 | DA47: 0 | DB47: 0 | DC47: 0 | DD47: 0 | DE47: 0 | DF47: 0 | DG47: 0 | DH47: 0 | DI47: 0 | DJ47: 0 | DL47: 0
B48: SERVICE LINES BY: CONNECTION VOLTAGE; CUSTOMER TYPE; CONNECTION COMPLEXITY | C48: ˂ = 11 kV ; Residential ; Simple Type | D48: 40 | E48: 6.32455532 | F48: 1219.425 | G48: 7735.45 | H48: 8140.15 | I48: 5270.8625 | J48: 5706.625 | K48: 12047.70884 | L48: 16933.99006 | M48: 11723.29493 | N48: 9578.6941 | O48: 10335.82804 | P48: 10578.43498 | Q48: 11653.03023 | R48: 3384.709847 | S48: 2156.476191 | T48: 2170.041779 | U48: 2189.774717 | V48: 2358.080285 | W48: 1965.5416 | X48: 3187.879369 | Y48: 4637.258307 | Z48: 4493.90036 | AA48: 1853.201831 | AB48: 1913.811979 | AC48: 2343.058122 | AD48: 2345.14437 | AE48: 3176.695917 | AF48: 3820.533943 | AG48: 2818.934911 | AH48: 7315.600602 | AI48: 8507.642426 | AJ48: 8344.187253 | AK48: 6040.748861 | AL48: 7506.67392 | AM48: 7674.729702 | AN48: 9730.73975 | AO48: 2217.905227 | AP48: 4650.355695 | AQ48: 6957.84763 | AR48: 7077.607707 | AS48: 4856.558545 | AT48: 7465.219635 | AU48: 834.5200934 | AV48: 857.2709562 | AW48: 988.5408119 | AX48: 799.2257739 | AY48: 805.174766 | AZ48: 821.3907232 | BA48: 833.8313054 | BB48: 1070.11988 | BC48: 1236.718731 | BD48: 1221.469888 | BE48: 1160.596976 | BF48: 1041.733027 | BG48: 1057.500621 | BH48: 925.5397879 | BI48: 0 | BJ48: 0 | BK48: 0 | BL48: 0 | BM48: 0 | BN48: 0 | BO48: 0 | BP48: 0 | BQ48: 0 | BR48: 0 | BS48: 0 | BT48: 0 | BU48: 0 | BV48: 0 | BW48: 0 | BX48: 0 | BY48: 0 | BZ48: 0 | CA48: 0 | CB48: 0 | CC48: 0 | CD48: 0 | CE48: 0 | CF48: 0 | CG48: 0 | CH48: 0 | CI48: 0 | CJ48: 0 | CK48: 0 | CL48: 0 | CM48: 0 | CN48: 0 | CO48: 0 | CP48: 0 | CQ48: 0 | CR48: 0 | CS48: 0 | CT48: 0 | CU48: 0 | CV48: 0 | CW48: 0 | CX48: 0 | CY48: 0 | CZ48: 0 | DA48: 0 | DB48: 0 | DC48: 0 | DD48: 0 | DE48: 0 | DF48: 0 | DG48: 0 | DH48: 0 | DI48: 0 | DJ48: 0 | DL48: 257737.9875
C49: ˂ = 11 kV ; Commercial & Industrial ; Simple Type | D49: 40 | E49: 6.32455532 | F49: 154.575 | G49: 980.55 | H49: 1031.85 | I49: 668.1375 | J49: 723.375 | K49: 1527.17436 | L49: 2146.56212 | M49: 1486.05147 | N49: 1214.200661 | O49: 1310.175386 | P49: 1340.928377 | Q49: 1477.144678 | R49: 429.0477271 | S49: 273.3561369 | T49: 275.0757185 | U49: 277.5770768 | V49: 298.9115854 | W49: 249.1531605 | X49: 404.0973848 | Y49: 587.8214755 | Z49: 569.6493414 | AA49: 234.9129082 | AB49: 242.5958847 | AC49: 297.0073675 | AD49: 297.2718215 | AE49: 402.6797641 | AF49: 484.2930351 | AG49: 357.3297775 | AH49: 927.3296538 | AI49: 1078.433547 | AJ49: 1057.713877 | AK49: 765.7287288 | AL49: 951.5502152 | AM49: 972.8530608 | AN49: 1233.474053 | AO49: 281.1429161 | AP49: 589.4817078 | AQ49: 881.9806856 | AR49: 897.1615403 | AS49: 615.6200973 | AT49: 946.2954467 | AU49: 105.7842372 | AV49: 108.6681494 | AW49: 125.3079902 | AX49: 101.3103094 | AY49: 102.064407 | AZ49: 104.1199508 | BA49: 105.696926 | BB49: 135.6489989 | BC49: 156.7671631 | BD49: 154.8342111 | BE49: 147.1179266 | BF49: 132.0506654 | BG49: 134.0493745 | BH49: 117.3219449 | BI49: 0 | BJ49: 0 | BK49: 0 | BL49: 0 | BM49: 0 | BN49: 0 | BO49: 0 | BP49: 0 | BQ49: 0 | BR49: 0 | BS49: 0 | BT49: 0 | BU49: 0 | BV49: 0 | BW49: 0 | BX49: 0 | BY49: 0 | BZ49: 0 | CA49: 0 | CB49: 0 | CC49: 0 | CD49: 0 | CE49: 0 | CF49: 0 | CG49: 0 | CH49: 0 | CI49: 0 | CJ49: 0 | CK49: 0 | CL49: 0 | CM49: 0 | CN49: 0 | CO49: 0 | CP49: 0 | CQ49: 0 | CR49: 0 | CS49: 0 | CT49: 0 | CU49: 0 | CV49: 0 | CW49: 0 | CX49: 0 | CY49: 0 | CZ49: 0 | DA49: 0 | DB49: 0 | DC49: 0 | DD49: 0 | DE49: 0 | DF49: 0 | DG49: 0 | DH49: 0 | DI49: 0 | DJ49: 0 | DL49: 32671.0125
C50: ˂ = 11 kV ; Residential ; Complex Type | D50: 0 | E50: 0 | F50: 0 | G50: 0 | H50: 0 | I50: 0 | J50: 0 | K50: 0 | L50: 0 | M50: 0 | N50: 0 | O50: 0 | P50: 0 | Q50: 0 | R50: 0 | S50: 0 | T50: 0 | U50: 0 | V50: 0 | W50: 0 | X50: 0 | Y50: 0 | Z50: 0 | AA50: 0 | AB50: 0 | AC50: 0 | AD50: 0 | AE50: 0 | AF50: 0 | AG50: 0 | AH50: 0 | AI50: 0 | AJ50: 0 | AK50: 0 | AL50: 0 | AM50: 0 | AN50: 0 | AO50: 0 | AP50: 0 | AQ50: 0 | AR50: 0 | AS50: 0 | AT50: 0 | AU50: 0 | AV50: 0 | AW50: 0 | AX50: 0 | AY50: 0 | AZ50: 0 | BA50: 0 | BB50: 0 | BC50: 0 | BD50: 0 | BE50: 0 | BF50: 0 | BG50: 0 | BH50: 0 | BI50: 0 | BJ50: 0 | BK50: 0 | BL50: 0 | BM50: 0 | BN50: 0 | BO50: 0 | BP50: 0 | BQ50: 0 | BR50: 0 | BS50: 0 | BT50: 0 | BU50: 0 | BV50: 0 | BW50: 0 | BX50: 0 | BY50: 0 | BZ50: 0 | CA50: 0 | CB50: 0 | CC50: 0 | CD50: 0 | CE50: 0 | CF50: 0 | CG50: 0 | CH50: 0 | CI50: 0 | CJ50: 0 | CK50: 0 | CL50: 0 | CM50: 0 | CN50: 0 | CO50: 0 | CP50: 0 | CQ50: 0 | CR50: 0 | CS50: 0 | CT50: 0 | CU50: 0 | CV50: 0 | CW50: 0 | CX50: 0 | CY50: 0 | CZ50: 0 | DA50: 0 | DB50: 0 | DC50: 0 | DD50: 0 | DE50: 0 | DF50: 0 | DG50: 0 | DH50: 0 | DI50: 0 | DJ50: 0 | DL50: 0
C51: ˂ = 11 kV ; Commercial & Industrial ; Complex Type | D51: 0 | E51: 0 | F51: 0 | G51: 0 | H51: 0 | I51: 0 | J51: 0 | K51: 0 | L51: 0 | M51: 0 | N51: 0 | O51: 0 | P51: 0 | Q51: 0 | R51: 0 | S51: 0 | T51: 0 | U51: 0 | V51: 0 | W51: 0 | X51: 0 | Y51: 0 | Z51: 0 | AA51: 0 | AB51: 0 | AC51: 0 | AD51: 0 | AE51: 0 | AF51: 0 | AG51: 0 | AH51: 0 | AI51: 0 | AJ51: 0 | AK51: 0 | AL51: 0 | AM51: 0 | AN51: 0 | AO51: 0 | AP51: 0 | AQ51: 0 | AR51: 0 | AS51: 0 | AT51: 0 | AU51: 0 | AV51: 0 | AW51: 0 | AX51: 0 | AY51: 0 | AZ51: 0 | BA51: 0 | BB51: 0 | BC51: 0 | BD51: 0 | BE51: 0 | BF51: 0 | BG51: 0 | BH51: 0 | BI51: 0 | BJ51: 0 | BK51: 0 | BL51: 0 | BM51: 0 | BN51: 0 | BO51: 0 | BP51: 0 | BQ51: 0 | BR51: 0 | BS51: 0 | BT51: 0 | BU51: 0 | BV51: 0 | BW51: 0 | BX51: 0 | BY51: 0 | BZ51: 0 | CA51: 0 | CB51: 0 | CC51: 0 | CD51: 0 | CE51: 0 | CF51: 0 | CG51: 0 | CH51: 0 | CI51: 0 | CJ51: 0 | CK51: 0 | CL51: 0 | CM51: 0 | CN51: 0 | CO51: 0 | CP51: 0 | CQ51: 0 | CR51: 0 | CS51: 0 | CT51: 0 | CU51: 0 | CV51: 0 | CW51: 0 | CX51: 0 | CY51: 0 | CZ51: 0 | DA51: 0 | DB51: 0 | DC51: 0 | DD51: 0 | DE51: 0 | DF51: 0 | DG51: 0 | DH51: 0 | DI51: 0 | DJ51: 0 | DL51: 0
C52: ˂ = 11 kV ; Subdivision ; Complex Type | D52: 0 | E52: 0 | F52: 0 | G52: 0 | H52: 0 | I52: 0 | J52: 0 | K52: 0 | L52: 0 | M52: 0 | N52: 0 | O52: 0 | P52: 0 | Q52: 0 | R52: 0 | S52: 0 | T52: 0 | U52: 0 | V52: 0 | W52: 0 | X52: 0 | Y52: 0 | Z52: 0 | AA52: 0 | AB52: 0 | AC52: 0 | AD52: 0 | AE52: 0 | AF52: 0 | AG52: 0 | AH52: 0 | AI52: 0 | AJ52: 0 | AK52: 0 | AL52: 0 | AM52: 0 | AN52: 0 | AO52: 0 | AP52: 0 | AQ52: 0 | AR52: 0 | AS52: 0 | AT52: 0 | AU52: 0 | AV52: 0 | AW52: 0 | AX52: 0 | AY52: 0 | AZ52: 0 | BA52: 0 | BB52: 0 | BC52: 0 | BD52: 0 | BE52: 0 | BF52: 0 | BG52: 0 | BH52: 0 | BI52: 0 | BJ52: 0 | BK52: 0 | BL52: 0 | BM52: 0 | BN52: 0 | BO52: 0 | BP52: 0 | BQ52: 0 | BR52: 0 | BS52: 0 | BT52: 0 | BU52: 0 | BV52: 0 | BW52: 0 | BX52: 0 | BY52: 0 | BZ52: 0 | CA52: 0 | CB52: 0 | CC52: 0 | CD52: 0 | CE52: 0 | CF52: 0 | CG52: 0 | CH52: 0 | CI52: 0 | CJ52: 0 | CK52: 0 | CL52: 0 | CM52: 0 | CN52: 0 | CO52: 0 | CP52: 0 | CQ52: 0 | CR52: 0 | CS52: 0 | CT52: 0 | CU52: 0 | CV52: 0 | CW52: 0 | CX52: 0 | CY52: 0 | CZ52: 0 | DA52: 0 | DB52: 0 | DC52: 0 | DD52: 0 | DE52: 0 | DF52: 0 | DG52: 0 | DH52: 0 | DI52: 0 | DJ52: 0 | DL52: 0
C53: > 11 kV & < = 22 kV ; Commercial & Industrial | D53: 0 | E53: 0 | F53: 0 | G53: 0 | H53: 0 | I53: 0 | J53: 0 | K53: 0 | L53: 0 | M53: 0 | N53: 0 | O53: 0 | P53: 0 | Q53: 0 | R53: 0 | S53: 0 | T53: 0 | U53: 0 | V53: 0 | W53: 0 | X53: 0 | Y53: 0 | Z53: 0 | AA53: 0 | AB53: 0 | AC53: 0 | AD53: 0 | AE53: 0 | AF53: 0 | AG53: 0 | AH53: 0 | AI53: 0 | AJ53: 0 | AK53: 0 | AL53: 0 | AM53: 0 | AN53: 0 | AO53: 0 | AP53: 0 | AQ53: 0 | AR53: 0 | AS53: 0 | AT53: 0 | AU53: 0 | AV53: 0 | AW53: 0 | AX53: 0 | AY53: 0 | AZ53: 0 | BA53: 0 | BB53: 0 | BC53: 0 | BD53: 0 | BE53: 0 | BF53: 0 | BG53: 0 | BH53: 0 | BI53: 0 | BJ53: 0 | BK53: 0 | BL53: 0 | BM53: 0 | BN53: 0 | BO53: 0 | BP53: 0 | BQ53: 0 | BR53: 0 | BS53: 0 | BT53: 0 | BU53: 0 | BV53: 0 | BW53: 0 | BX53: 0 | BY53: 0 | BZ53: 0 | CA53: 0 | CB53: 0 | CC53: 0 | CD53: 0 | CE53: 0 | CF53: 0 | CG53: 0 | CH53: 0 | CI53: 0 | CJ53: 0 | CK53: 0 | CL53: 0 | CM53: 0 | CN53: 0 | CO53: 0 | CP53: 0 | CQ53: 0 | CR53: 0 | CS53: 0 | CT53: 0 | CU53: 0 | CV53: 0 | CW53: 0 | CX53: 0 | CY53: 0 | CZ53: 0 | DA53: 0 | DB53: 0 | DC53: 0 | DD53: 0 | DE53: 0 | DF53: 0 | DG53: 0 | DH53: 0 | DI53: 0 | DJ53: 0 | DL53: 0
C54: > 11 kV & < = 22 kV ; Subdivision | D54: 0 | E54: 0 | F54: 0 | G54: 0 | H54: 0 | I54: 0 | J54: 0 | K54: 0 | L54: 0 | M54: 0 | N54: 0 | O54: 0 | P54: 0 | Q54: 0 | R54: 0 | S54: 0 | T54: 0 | U54: 0 | V54: 0 | W54: 0 | X54: 0 | Y54: 0 | Z54: 0 | AA54: 0 | AB54: 0 | AC54: 0 | AD54: 0 | AE54: 0 | AF54: 0 | AG54: 0 | AH54: 0 | AI54: 0 | AJ54: 0 | AK54: 0 | AL54: 0 | AM54: 0 | AN54: 0 | AO54: 0 | AP54: 0 | AQ54: 0 | AR54: 0 | AS54: 0 | AT54: 0 | AU54: 0 | AV54: 0 | AW54: 0 | AX54: 0 | AY54: 0 | AZ54: 0 | BA54: 0 | BB54: 0 | BC54: 0 | BD54: 0 | BE54: 0 | BF54: 0 | BG54: 0 | BH54: 0 | BI54: 0 | BJ54: 0 | BK54: 0 | BL54: 0 | BM54: 0 | BN54: 0 | BO54: 0 | BP54: 0 | BQ54: 0 | BR54: 0 | BS54: 0 | BT54: 0 | BU54: 0 | BV54: 0 | BW54: 0 | BX54: 0 | BY54: 0 | BZ54: 0 | CA54: 0 | CB54: 0 | CC54: 0 | CD54: 0 | CE54: 0 | CF54: 0 | CG54: 0 | CH54: 0 | CI54: 0 | CJ54: 0 | CK54: 0 | CL54: 0 | CM54: 0 | CN54: 0 | CO54: 0 | CP54: 0 | CQ54: 0 | CR54: 0 | CS54: 0 | CT54: 0 | CU54: 0 | CV54: 0 | CW54: 0 | CX54: 0 | CY54: 0 | CZ54: 0 | DA54: 0 | DB54: 0 | DC54: 0 | DD54: 0 | DE54: 0 | DF54: 0 | DG54: 0 | DH54: 0 | DI54: 0 | DJ54: 0 | DL54: 0
C55: > 22 kV & < = 33 kV ; Commercial & Industrial | D55: 0 | E55: 0 | F55: 0 | G55: 0 | H55: 0 | I55: 0 | J55: 0 | K55: 0 | L55: 0 | M55: 0 | N55: 0 | O55: 0 | P55: 0 | Q55: 0 | R55: 0 | S55: 0 | T55: 0 | U55: 0 | V55: 0 | W55: 0 | X55: 0 | Y55: 0 | Z55: 0 | AA55: 0 | AB55: 0 | AC55: 0 | AD55: 0 | AE55: 0 | AF55: 0 | AG55: 0 | AH55: 0 | AI55: 0 | AJ55: 0 | AK55: 0 | AL55: 0 | AM55: 0 | AN55: 0 | AO55: 0 | AP55: 0 | AQ55: 0 | AR55: 0 | AS55: 0 | AT55: 0 | AU55: 0 | AV55: 0 | AW55: 0 | AX55: 0 | AY55: 0 | AZ55: 0 | BA55: 0 | BB55: 0 | BC55: 0 | BD55: 0 | BE55: 0 | BF55: 0 | BG55: 0 | BH55: 0 | BI55: 0 | BJ55: 0 | BK55: 0 | BL55: 0 | BM55: 0 | BN55: 0 | BO55: 0 | BP55: 0 | BQ55: 0 | BR55: 0 | BS55: 0 | BT55: 0 | BU55: 0 | BV55: 0 | BW55: 0 | BX55: 0 | BY55: 0 | BZ55: 0 | CA55: 0 | CB55: 0 | CC55: 0 | CD55: 0 | CE55: 0 | CF55: 0 | CG55: 0 | CH55: 0 | CI55: 0 | CJ55: 0 | CK55: 0 | CL55: 0 | CM55: 0 | CN55: 0 | CO55: 0 | CP55: 0 | CQ55: 0 | CR55: 0 | CS55: 0 | CT55: 0 | CU55: 0 | CV55: 0 | CW55: 0 | CX55: 0 | CY55: 0 | CZ55: 0 | DA55: 0 | DB55: 0 | DC55: 0 | DD55: 0 | DE55: 0 | DF55: 0 | DG55: 0 | DH55: 0 | DI55: 0 | DJ55: 0 | DL55: 0
C56: > 22 kV & < = 33 kV ; Subdivision | D56: 0 | E56: 0 | F56: 0 | G56: 0 | H56: 0 | I56: 0 | J56: 0 | K56: 0 | L56: 0 | M56: 0 | N56: 0 | O56: 0 | P56: 0 | Q56: 0 | R56: 0 | S56: 0 | T56: 0 | U56: 0 | V56: 0 | W56: 0 | X56: 0 | Y56: 0 | Z56: 0 | AA56: 0 | AB56: 0 | AC56: 0 | AD56: 0 | AE56: 0 | AF56: 0 | AG56: 0 | AH56: 0 | AI56: 0 | AJ56: 0 | AK56: 0 | AL56: 0 | AM56: 0 | AN56: 0 | AO56: 0 | AP56: 0 | AQ56: 0 | AR56: 0 | AS56: 0 | AT56: 0 | AU56: 0 | AV56: 0 | AW56: 0 | AX56: 0 | AY56: 0 | AZ56: 0 | BA56: 0 | BB56: 0 | BC56: 0 | BD56: 0 | BE56: 0 | BF56: 0 | BG56: 0 | BH56: 0 | BI56: 0 | BJ56: 0 | BK56: 0 | BL56: 0 | BM56: 0 | BN56: 0 | BO56: 0 | BP56: 0 | BQ56: 0 | BR56: 0 | BS56: 0 | BT56: 0 | BU56: 0 | BV56: 0 | BW56: 0 | BX56: 0 | BY56: 0 | BZ56: 0 | CA56: 0 | CB56: 0 | CC56: 0 | CD56: 0 | CE56: 0 | CF56: 0 | CG56: 0 | CH56: 0 | CI56: 0 | CJ56: 0 | CK56: 0 | CL56: 0 | CM56: 0 | CN56: 0 | CO56: 0 | CP56: 0 | CQ56: 0 | CR56: 0 | CS56: 0 | CT56: 0 | CU56: 0 | CV56: 0 | CW56: 0 | CX56: 0 | CY56: 0 | CZ56: 0 | DA56: 0 | DB56: 0 | DC56: 0 | DD56: 0 | DE56: 0 | DF56: 0 | DG56: 0 | DH56: 0 | DI56: 0 | DJ56: 0 | DL56: 0
C57: > 33 kV & < = 66 kV ; Commercial & Industrial | D57: 0 | E57: 0 | F57: 0 | G57: 0 | H57: 0 | I57: 0 | J57: 0 | K57: 0 | L57: 0 | M57: 0 | N57: 0 | O57: 0 | P57: 0 | Q57: 0 | R57: 0 | S57: 0 | T57: 0 | U57: 0 | V57: 0 | W57: 0 | X57: 0 | Y57: 0 | Z57: 0 | AA57: 0 | AB57: 0 | AC57: 0 | AD57: 0 | AE57: 0 | AF57: 0 | AG57: 0 | AH57: 0 | AI57: 0 | AJ57: 0 | AK57: 0 | AL57: 0 | AM57: 0 | AN57: 0 | AO57: 0 | AP57: 0 | AQ57: 0 | AR57: 0 | AS57: 0 | AT57: 0 | AU57: 0 | AV57: 0 | AW57: 0 | AX57: 0 | AY57: 0 | AZ57: 0 | BA57: 0 | BB57: 0 | BC57: 0 | BD57: 0 | BE57: 0 | BF57: 0 | BG57: 0 | BH57: 0 | BI57: 0 | BJ57: 0 | BK57: 0 | BL57: 0 | BM57: 0 | BN57: 0 | BO57: 0 | BP57: 0 | BQ57: 0 | BR57: 0 | BS57: 0 | BT57: 0 | BU57: 0 | BV57: 0 | BW57: 0 | BX57: 0 | BY57: 0 | BZ57: 0 | CA57: 0 | CB57: 0 | CC57: 0 | CD57: 0 | CE57: 0 | CF57: 0 | CG57: 0 | CH57: 0 | CI57: 0 | CJ57: 0 | CK57: 0 | CL57: 0 | CM57: 0 | CN57: 0 | CO57: 0 | CP57: 0 | CQ57: 0 | CR57: 0 | CS57: 0 | CT57: 0 | CU57: 0 | CV57: 0 | CW57: 0 | CX57: 0 | CY57: 0 | CZ57: 0 | DA57: 0 | DB57: 0 | DC57: 0 | DD57: 0 | DE57: 0 | DF57: 0 | DG57: 0 | DH57: 0 | DI57: 0 | DJ57: 0 | DL57: 0
C58: > 33 kV & < = 66 kV ; Subdivision | D58: 0 | E58: 0 | F58: 0 | G58: 0 | H58: 0 | I58: 0 | J58: 0 | K58: 0 | L58: 0 | M58: 0 | N58: 0 | O58: 0 | P58: 0 | Q58: 0 | R58: 0 | S58: 0 | T58: 0 | U58: 0 | V58: 0 | W58: 0 | X58: 0 | Y58: 0 | Z58: 0 | AA58: 0 | AB58: 0 | AC58: 0 | AD58: 0 | AE58: 0 | AF58: 0 | AG58: 0 | AH58: 0 | AI58: 0 | AJ58: 0 | AK58: 0 | AL58: 0 | AM58: 0 | AN58: 0 | AO58: 0 | AP58: 0 | AQ58: 0 | AR58: 0 | AS58: 0 | AT58: 0 | AU58: 0 | AV58: 0 | AW58: 0 | AX58: 0 | AY58: 0 | AZ58: 0 | BA58: 0 | BB58: 0 | BC58: 0 | BD58: 0 | BE58: 0 | BF58: 0 | BG58: 0 | BH58: 0 | BI58: 0 | BJ58: 0 | BK58: 0 | BL58: 0 | BM58: 0 | BN58: 0 | BO58: 0 | BP58: 0 | BQ58: 0 | BR58: 0 | BS58: 0 | BT58: 0 | BU58: 0 | BV58: 0 | BW58: 0 | BX58: 0 | BY58: 0 | BZ58: 0 | CA58: 0 | CB58: 0 | CC58: 0 | CD58: 0 | CE58: 0 | CF58: 0 | CG58: 0 | CH58: 0 | CI58: 0 | CJ58: 0 | CK58: 0 | CL58: 0 | CM58: 0 | CN58: 0 | CO58: 0 | CP58: 0 | CQ58: 0 | CR58: 0 | CS58: 0 | CT58: 0 | CU58: 0 | CV58: 0 | CW58: 0 | CX58: 0 | CY58: 0 | CZ58: 0 | DA58: 0 | DB58: 0 | DC58: 0 | DD58: 0 | DE58: 0 | DF58: 0 | DG58: 0 | DH58: 0 | DI58: 0 | DJ58: 0 | DL58: 0
C59: > 66 kV & < = 132 kV ; Commercial & Industrial | D59: 0 | E59: 0 | F59: 0 | G59: 0 | H59: 0 | I59: 0 | J59: 0 | K59: 0 | L59: 0 | M59: 0 | N59: 0 | O59: 0 | P59: 0 | Q59: 0 | R59: 0 | S59: 0 | T59: 0 | U59: 0 | V59: 0 | W59: 0 | X59: 0 | Y59: 0 | Z59: 0 | AA59: 0 | AB59: 0 | AC59: 0 | AD59: 0 | AE59: 0 | AF59: 0 | AG59: 0 | AH59: 0 | AI59: 0 | AJ59: 0 | AK59: 0 | AL59: 0 | AM59: 0 | AN59: 0 | AO59: 0 | AP59: 0 | AQ59: 0 | AR59: 0 | AS59: 0 | AT59: 0 | AU59: 0 | AV59: 0 | AW59: 0 | AX59: 0 | AY59: 0 | AZ59: 0 | BA59: 0 | BB59: 0 | BC59: 0 | BD59: 0 | BE59: 0 | BF59: 0 | BG59: 0 | BH59: 0 | BI59: 0 | BJ59: 0 | BK59: 0 | BL59: 0 | BM59: 0 | BN59: 0 | BO59: 0 | BP59: 0 | BQ59: 0 | BR59: 0 | BS59: 0 | BT59: 0 | BU59: 0 | BV59: 0 | BW59: 0 | BX59: 0 | BY59: 0 | BZ59: 0 | CA59: 0 | CB59: 0 | CC59: 0 | CD59: 0 | CE59: 0 | CF59: 0 | CG59: 0 | CH59: 0 | CI59: 0 | CJ59: 0 | CK59: 0 | CL59: 0 | CM59: 0 | CN59: 0 | CO59: 0 | CP59: 0 | CQ59: 0 | CR59: 0 | CS59: 0 | CT59: 0 | CU59: 0 | CV59: 0 | CW59: 0 | CX59: 0 | CY59: 0 | CZ59: 0 | DA59: 0 | DB59: 0 | DC59: 0 | DD59: 0 | DE59: 0 | DF59: 0 | DG59: 0 | DH59: 0 | DI59: 0 | DJ59: 0 | DL59: 0
C60: > 66 kV & < = 132 kV ; Subdivision | D60: 0 | E60: 0 | F60: 0 | G60: 0 | H60: 0 | I60: 0 | J60: 0 | K60: 0 | L60: 0 | M60: 0 | N60: 0 | O60: 0 | P60: 0 | Q60: 0 | R60: 0 | S60: 0 | T60: 0 | U60: 0 | V60: 0 | W60: 0 | X60: 0 | Y60: 0 | Z60: 0 | AA60: 0 | AB60: 0 | AC60: 0 | AD60: 0 | AE60: 0 | AF60: 0 | AG60: 0 | AH60: 0 | AI60: 0 | AJ60: 0 | AK60: 0 | AL60: 0 | AM60: 0 | AN60: 0 | AO60: 0 | AP60: 0 | AQ60: 0 | AR60: 0 | AS60: 0 | AT60: 0 | AU60: 0 | AV60: 0 | AW60: 0 | AX60: 0 | AY60: 0 | AZ60: 0 | BA60: 0 | BB60: 0 | BC60: 0 | BD60: 0 | BE60: 0 | BF60: 0 | BG60: 0 | BH60: 0 | BI60: 0 | BJ60: 0 | BK60: 0 | BL60: 0 | BM60: 0 | BN60: 0 | BO60: 0 | BP60: 0 | BQ60: 0 | BR60: 0 | BS60: 0 | BT60: 0 | BU60: 0 | BV60: 0 | BW60: 0 | BX60: 0 | BY60: 0 | BZ60: 0 | CA60: 0 | CB60: 0 | CC60: 0 | CD60: 0 | CE60: 0 | CF60: 0 | CG60: 0 | CH60: 0 | CI60: 0 | CJ60: 0 | CK60: 0 | CL60: 0 | CM60: 0 | CN60: 0 | CO60: 0 | CP60: 0 | CQ60: 0 | CR60: 0 | CS60: 0 | CT60: 0 | CU60: 0 | CV60: 0 | CW60: 0 | CX60: 0 | CY60: 0 | CZ60: 0 | DA60: 0 | DB60: 0 | DC60: 0 | DD60: 0 | DE60: 0 | DF60: 0 | DG60: 0 | DH60: 0 | DI60: 0 | DJ60: 0 | DL60: 0
C61: > 132 kV ; Commercial & Industrial | D61: 0 | E61: 0 | F61: 0 | G61: 0 | H61: 0 | I61: 0 | J61: 0 | K61: 0 | L61: 0 | M61: 0 | N61: 0 | O61: 0 | P61: 0 | Q61: 0 | R61: 0 | S61: 0 | T61: 0 | U61: 0 | V61: 0 | W61: 0 | X61: 0 | Y61: 0 | Z61: 0 | AA61: 0 | AB61: 0 | AC61: 0 | AD61: 0 | AE61: 0 | AF61: 0 | AG61: 0 | AH61: 0 | AI61: 0 | AJ61: 0 | AK61: 0 | AL61: 0 | AM61: 0 | AN61: 0 | AO61: 0 | AP61: 0 | AQ61: 0 | AR61: 0 | AS61: 0 | AT61: 0 | AU61: 0 | AV61: 0 | AW61: 0 | AX61: 0 | AY61: 0 | AZ61: 0 | BA61: 0 | BB61: 0 | BC61: 0 | BD61: 0 | BE61: 0 | BF61: 0 | BG61: 0 | BH61: 0 | BI61: 0 | BJ61: 0 | BK61: 0 | BL61: 0 | BM61: 0 | BN61: 0 | BO61: 0 | BP61: 0 | BQ61: 0 | BR61: 0 | BS61: 0 | BT61: 0 | BU61: 0 | BV61: 0 | BW61: 0 | BX61: 0 | BY61: 0 | BZ61: 0 | CA61: 0 | CB61: 0 | CC61: 0 | CD61: 0 | CE61: 0 | CF61: 0 | CG61: 0 | CH61: 0 | CI61: 0 | CJ61: 0 | CK61: 0 | CL61: 0 | CM61: 0 | CN61: 0 | CO61: 0 | CP61: 0 | CQ61: 0 | CR61: 0 | CS61: 0 | CT61: 0 | CU61: 0 | CV61: 0 | CW61: 0 | CX61: 0 | CY61: 0 | CZ61: 0 | DA61: 0 | DB61: 0 | DC61: 0 | DD61: 0 | DE61: 0 | DF61: 0 | DG61: 0 | DH61: 0 | DI61: 0 | DJ61: 0 | DL61: 0
C62: > 132 kV ; Subdivision | D62: 0 | E62: 0 | F62: 0 | G62: 0 | H62: 0 | I62: 0 | J62: 0 | K62: 0 | L62: 0 | M62: 0 | N62: 0 | O62: 0 | P62: 0 | Q62: 0 | R62: 0 | S62: 0 | T62: 0 | U62: 0 | V62: 0 | W62: 0 | X62: 0 | Y62: 0 | Z62: 0 | AA62: 0 | AB62: 0 | AC62: 0 | AD62: 0 | AE62: 0 | AF62: 0 | AG62: 0 | AH62: 0 | AI62: 0 | AJ62: 0 | AK62: 0 | AL62: 0 | AM62: 0 | AN62: 0 | AO62: 0 | AP62: 0 | AQ62: 0 | AR62: 0 | AS62: 0 | AT62: 0 | AU62: 0 | AV62: 0 | AW62: 0 | AX62: 0 | AY62: 0 | AZ62: 0 | BA62: 0 | BB62: 0 | BC62: 0 | BD62: 0 | BE62: 0 | BF62: 0 | BG62: 0 | BH62: 0 | BI62: 0 | BJ62: 0 | BK62: 0 | BL62: 0 | BM62: 0 | BN62: 0 | BO62: 0 | BP62: 0 | BQ62: 0 | BR62: 0 | BS62: 0 | BT62: 0 | BU62: 0 | BV62: 0 | BW62: 0 | BX62: 0 | BY62: 0 | BZ62: 0 | CA62: 0 | CB62: 0 | CC62: 0 | CD62: 0 | CE62: 0 | CF62: 0 | CG62: 0 | CH62: 0 | CI62: 0 | CJ62: 0 | CK62: 0 | CL62: 0 | CM62: 0 | CN62: 0 | CO62: 0 | CP62: 0 | CQ62: 0 | CR62: 0 | CS62: 0 | CT62: 0 | CU62: 0 | CV62: 0 | CW62: 0 | CX62: 0 | CY62: 0 | CZ62: 0 | DA62: 0 | DB62: 0 | DC62: 0 | DD62: 0 | DE62: 0 | DF62: 0 | DG62: 0 | DH62: 0 | DI62: 0 | DJ62: 0 | DL62: 0
C63: Other | D63: 0 | E63: 0 | F63: 0 | G63: 0 | H63: 0 | I63: 0 | J63: 0 | K63: 0 | L63: 0 | M63: 0 | N63: 0 | O63: 0 | P63: 0 | Q63: 0 | R63: 0 | S63: 0 | T63: 0 | U63: 0 | V63: 0 | W63: 0 | X63: 0 | Y63: 0 | Z63: 0 | AA63: 0 | AB63: 0 | AC63: 0 | AD63: 0 | AE63: 0 | AF63: 0 | AG63: 0 | AH63: 0 | AI63: 0 | AJ63: 0 | AK63: 0 | AL63: 0 | AM63: 0 | AN63: 0 | AO63: 0 | AP63: 0 | AQ63: 0 | AR63: 0 | AS63: 0 | AT63: 0 | AU63: 0 | AV63: 0 | AW63: 0 | AX63: 0 | AY63: 0 | AZ63: 0 | BA63: 0 | BB63: 0 | BC63: 0 | BD63: 0 | BE63: 0 | BF63: 0 | BG63: 0 | BH63: 0 | BI63: 0 | BJ63: 0 | BK63: 0 | BL63: 0 | BM63: 0 | BN63: 0 | BO63: 0 | BP63: 0 | BQ63: 0 | BR63: 0 | BS63: 0 | BT63: 0 | BU63: 0 | BV63: 0 | BW63: 0 | BX63: 0 | BY63: 0 | BZ63: 0 | CA63: 0 | CB63: 0 | CC63: 0 | CD63: 0 | CE63: 0 | CF63: 0 | CG63: 0 | CH63: 0 | CI63: 0 | CJ63: 0 | CK63: 0 | CL63: 0 | CM63: 0 | CN63: 0 | CO63: 0 | CP63: 0 | CQ63: 0 | CR63: 0 | CS63: 0 | CT63: 0 | CU63: 0 | CV63: 0 | CW63: 0 | CX63: 0 | CY63: 0 | CZ63: 0 | DA63: 0 | DB63: 0 | DC63: 0 | DD63: 0 | DE63: 0 | DF63: 0 | DG63: 0 | DH63: 0 | DI63: 0 | DJ63: 0 | DL63: 0
B64: TRANSFORMERS BY: MOUNTING TYPE; HIGHEST OPERATING VOLTAGE ; AMPERE RATING; NUMBER OF PHASES (AT LV) | C64: Pole Mounted ; < = 22kV ; < = 60 kVA ; Single Phase | D64: 58 | E64: 7.615773106 | F64: 427 | G64: 431.3487313 | H64: 367.5751519 | I64: 387.9172754 | J64: 428.1549166 | K64: 454.6715615 | L64: 451.7404475 | M64: 507.1870532 | N64: 575.7013916 | O64: 613.6657954 | P64: 577.8391636 | Q64: 560.1503037 | R64: 533.048128 | S64: 628.0791113 | T64: 602.2869225 | U64: 681.1801338 | V64: 637.6646422 | W64: 506.9459522 | X64: 575.4258477 | Y64: 696.3867918 | Z64: 706.4556778 | AA64: 561.3225187 | AB64: 519.151457 | AC64: 575.9769356 | AD64: 758.6255863 | AE64: 757.4522181 | AF64: 868.6898594 | AG64: 825.2776967 | AH64: 1056.475129 | AI64: 1276.155916 | AJ64: 1148.333897 | AK64: 1235.709311 | AL64: 1241.950411 | AM64: 1228.882679 | AN64: 1127.782809 | AO64: 881.9998463 | AP64: 1014.580764 | AQ64: 1417.599062 | AR64: 1086.854002 | AS64: 1048.717383 | AT64: 887.7920352 | AU64: 833.3810257 | AV64: 824.6221266 | AW64: 362.2272623 | AX64: 315.9184286 | AY64: 331.3661875 | AZ64: 369.5716922 | BA64: 360.6750212 | BB64: 352.2617053 | BC64: 344.9517183 | BD64: 420.3627278 | BE64: 596.5624664 | BF64: 426.7416007 | BG64: 375.1227801 | BH64: 446.1549166 | BI64: 326.2284155 | BJ64: 286.9540248 | BK64: 196.9919274 | BL64: 141.9253479 | BM64: 89.23764128 | BN64: 84.99654033 | BO64: 69.44545246 | BP64: 26.96440379 | BQ64: 25.8955178 | BR64: 10.37887292 | BS64: 11.41331591 | BT64: 2.068885985 | BU64: 3.103328977 | BV64: 30.99884678 | BW64: 1.034442992 | BX64: 3.103328977 | BY64: 4.137771969 | BZ64: 0 | CA64: 1.103328977 | CB64: 0 | CC64: 0 | CD64: 0 | CE64: 0 | CF64: 1.034442992 | CG64: 3.103328977 | CH64: 1.034442992 | CI64: 0 | CJ64: 2.068885985 | CK64: 0 | CL64: 0 | CM64: 0 | CN64: 0 | CO64: 0 | CP64: 0 | CQ64: 1.034442992 | CR64: 0 | CS64: 0 | CT64: 0 | CU64: 0 | CV64: 0 | CW64: 0 | CX64: 0 | CY64: 0 | CZ64: 0 | DA64: 1.034442992 | DB64: 0 | DC64: 0 | DD64: 0 | DE64: 0 | DF64: 0 | DG64: 0 | DH64: 1.034442992 | DI64: 0 | DJ64: 0 | DL64: 38556
C65: Pole Mounted ; < = 22kV ; > 60 kVA and < = 600 kVA ; Single Phase | D65: 58 | E65: 7.615773106 | F65: 18 | G65: 8.341750842 | H65: 5.251829957 | I65: 12.45329392 | J65: 16.75548987 | K65: 32.61171173 | L65: 17.95695384 | M65: 17.85622186 | N65: 9.503659915 | O65: 19.35988177 | P65: 14.6043919 | Q65: 20.05768582 | R65: 15.90658785 | S65: 9.554025906 | T65: 9.503659915 | U65: 15.70512388 | V65: 12.40292793 | W65: 9.402927932 | X65: 5.35256194 | Y65: 10.55402591 | Z65: 11.70512388 | AA65: 10.75548987 | AB65: 6.755489872 | AC65: 7.705123881 | AD65: 8.705123881 | AE65: 6.503659915 | AF65: 8.604391898 | AG65: 4.35256194 | AH65: 7.503659915 | AI65: 9.554025906 | AJ65: 10.65475789 | AK65: 12.70512388 | AL65: 6.453293923 | AM65: 7.503659915 | AN65: 4.402927932 | AO65: 9.503659915 | AP65: 3.453293923 | AQ65: 10.65475789 | AR65: 15.85622186 | AS65: 12.75548987 | AT65: 5.35256194 | AU65: 7.402927932 | AV65: 14.65475789 | AW65: 3.251829957 | AX65: 4.201463966 | AY65: 1.050365991 | AZ65: 2.100731983 | BA65: 0 | BB65: 2.100731983 | BC65: 0 | BD65: 2.201463966 | BE65: 2.251829957 | BF65: 3.201463966 | BG65: 0.05036599149 | BH65: 0 | BI65: 3.151097974 | BJ65: 3.151097974 | BK65: 4.201463966 | BL65: 6.302195949 | BM65: 0.05036599149 | BN65: 1.050365991 | BO65: 0 | BP65: 0 | BQ65: 0 | BR65: 0 | BS65: 0 | BT65: 0 | BU65: 0 | BV65: 0 | BW65: 0 | BX65: 0 | BY65: 0 | BZ65: 0 | CA65: 0 | CB65: 0 | CC65: 0 | CD65: 0 | CE65: 0 | CF65: 0 | CG65: 0 | CH65: 0 | CI65: 0.05036599149 | CJ65: 0 | CK65: 0 | CL65: 0 | CM65: 0 | CN65: 0 | CO65: 0 | CP65: 0 | CQ65: 0 | CR65: 0 | CS65: 0 | CT65: 0 | CU65: 0 | CV65: 0 | CW65: 0 | CX65: 0 | CY65: 0 | CZ65: 0 | DA65: 0 | DB65: 0 | DC65: 0 | DD65: 0 | DE65: 0 | DF65: 0 | DG65: 0 | DH65: 0 | DI65: 0 | DJ65: 0 | DL65: 523
C66: Pole Mounted ; < = 22kV ; > 600 kVA ; Single Phase | D66: 58 | E66: 7.615773106 | F66: 0 | G66: 0 | H66: 0 | I66: 0 | J66: 0 | K66: 0 | L66: 0 | M66: 0 | N66: 0 | O66: 0 | P66: 0 | Q66: 0 | R66: 0 | S66: 0 | T66: 0 | U66: 0 | V66: 0 | W66: 0 | X66: 0 | Y66: 0 | Z66: 0 | AA66: 0 | AB66: 0 | AC66: 0 | AD66: 0 | AE66: 0 | AF66: 0 | AG66: 0 | AH66: 0 | AI66: 0 | AJ66: 0 | AK66: 0 | AL66: 0 | AM66: 0 | AN66: 0 | AO66: 0 | AP66: 0 | AQ66: 0 | AR66: 0 | AS66: 0 | AT66: 0 | AU66: 0 | AV66: 0 | AW66: 0 | AX66: 0 | AY66: 0 | AZ66: 0 | BA66: 0 | BB66: 0 | BC66: 0 | BD66: 0 | BE66: 0 | BF66: 0 | BG66: 0 | BH66: 0 | BI66: 0 | BJ66: 0 | BK66: 0 | BL66: 0 | BM66: 0 | BN66: 0 | BO66: 0 | BP66: 0 | BQ66: 0 | BR66: 0 | BS66: 0 | BT66: 0 | BU66: 0 | BV66: 0 | BW66: 0 | BX66: 0 | BY66: 0 | BZ66: 0 | CA66: 0 | CB66: 0 | CC66: 0 | CD66: 0 | CE66: 0 | CF66: 0 | CG66: 0 | CH66: 0 | CI66: 0 | CJ66: 0 | CK66: 0 | CL66: 0 | CM66: 0 | CN66: 0 | CO66: 0 | CP66: 0 | CQ66: 0 | CR66: 0 | CS66: 0 | CT66: 0 | CU66: 0 | CV66: 0 | CW66: 0 | CX66: 0 | CY66: 0 | CZ66: 0 | DA66: 0 | DB66: 0 | DC66: 0 | DD66: 0 | DE66: 0 | DF66: 0 | DG66: 0 | DH66: 0 | DI66: 0 | DJ66: 0 | DL66: 0
C67: Pole Mounted ; < = 22kV ; < = 60 kVA ; Multiple Phase | D67: 58 | E67: 7.615773106 | F67: 35 | G67: 29.52736231 | H67: 40.67180642 | I67: 50.88915555 | J67: 31.71132444 | K67: 37.88915555 | L67: 36.75084247 | M67: 44.14602271 | N67: 55.24481777 | O67: 71.50168493 | P67: 78.60048 | Q67: 72.58072098 | R67: 70.40288987 | S67: 78.79807012 | T67: 83.91662419 | U67: 76.56096197 | V67: 86.89686518 | W67: 152.279996 | X67: 188.9122844 | Y67: 212.3667417 | Z67: 170.8332484 | AA67: 154.9045748 | AB67: 139.5686716 | AC67: 142.5884306 | AD67: 185.4973452 | AE67: 171.0626469 | AF67: 157.1021649 | AG67: 161.240478 | AH67: 232.6433679 | AI67: 265.2163792 | AJ67: 172.5368632 | AK67: 145.9638518 | AL67: 149.9638518 | AM67: 149.0231289 | AN67: 134.7069847 | AO67: 129.6081896 | AP67: 134.6872257 | AQ67: 173.4578272 | AR67: 124.5291536 | AS67: 102.2130094 | AT67: 94.89686518 | AU67: 72.58072098 | AV67: 72.4424079 | AW67: 32.69156543 | AX67: 36.69156543 | AY67: 57.16578172 | AZ67: 37.90891457 | BA67: 39.82987852 | BB67: 53.16578172 | BC67: 34.73108345 | BD67: 58.10650469 | BE67: 36.77060148 | BF67: 25.53349333 | BG67: 30.61252938 | BH67: 21.39518025 | BI67: 16.39518025 | BJ67: 19.37542123 | BK67: 10.19759012 | BL67: 5.098795061 | BM67: 2.059277037 | BN67: 8.158072098 | BO67: 2.019759012 | BP67: 0 | BQ67: 1.019759012 | BR67: 0 | BS67: 0 | BT67: 0 | BU67: 0 | BV67: 5.098795061 | BW67: 0 | BX67: 0 | BY67: 1.019759012 | BZ67: 0 | CA67: 0 | CB67: 0 | CC67: 0 | CD67: 0 | CE67: 0 | CF67: 0 | CG67: 0 | CH67: 1.019759012 | CI67: 0 | CJ67: 0 | CK67: 0 | CL67: 0 | CM67: 0 | CN67: 0 | CO67: 0 | CP67: 0 | CQ67: 0 | CR67: 0 | CS67: 0 | CT67: 0 | CU67: 1.019759012 | CV67: 0 | CW67: 0 | CX67: 0 | CY67: 0 | CZ67: 0 | DA67: 0 | DB67: 0 | DC67: 0 | DD67: 0 | DE67: 0 | DF67: 0 | DG67: 0 | DH67: 0 | DI67: 0 | DJ67: 0 | DL67: 5509
C68: Pole Mounted ; < = 22kV ; > 60 kVA and < = 600 kVA ; Multiple Phase | D68: 58 | E68: 7.615773106 | F68: 331 | G68: 419.1580709 | H68: 326.6372469 | I68: 281.2434548 | J68: 352.1112302 | K68: 373.2095342 | L68: 358.9965423 | M68: 487.7987817 | N68: 674.8625888 | O68: 502.2739176 | P68: 412.832126 | Q68: 419.045118 | R68: 353.8654703 | S68: 349.7507823 | T68: 285.6858226 | U68: 322.4886384 | V68: 269.4564467 | W68: 216.6208629 | X68: 206.473407 | Y68: 192.2112631 | Z68: 154.6378232 | AA68: 149.6214392 | AB68: 114.9169274 | AC68: 127.0152314 | AD68: 121.0479994 | AE68: 124.1790714 | AF68: 137.2609913 | AG68: 123.1299194 | AH68: 226.7519349 | AI68: 257.2926068 | AJ68: 224.7519349 | AK68: 203.506175 | AL68: 225.7027829 | AM68: 212.604479 | AN68: 160.6378232 | AO68: 181.0638071 | AP68: 207.538943 | AQ68: 274.6530546 | AR68: 196.2604151 | AS68: 207.6863989 | AT68: 205.571711 | AU68: 238.1615348 | AV68: 216.8830069 | AW68: 90.55647955 | AX68: 75.34348761 | AY68: 57.0485757 | AZ68: 67.17964766 | BA68: 63.11411168 | BB68: 45.83558376 | BC68: 37.6881278 | BD68: 34.63897581 | BE68: 46.80281577 | BF68: 33.55705584 | BG68: 31.54067184 | BH68: 15.29491191 | BI68: 19.3604479 | BJ68: 13.26214392 | BK68: 15.22937593 | BL68: 18.3276799 | BM68: 6.098303971 | BN68: 10.16383995 | BO68: 2.049151986 | BP68: 4.065535981 | BQ68: 2.03276799 | BR68: 3.049151986 | BS68: 0 | BT68: 3.03276799 | BU68: 0 | BV68: 5.081919976 | BW68: 0 | BX68: 0 | BY68: 1.016383995 | BZ68: 0 | CA68: 0 | CB68: 1.016383995 | CC68: 0 | CD68: 0 | CE68: 0 | CF68: 0 | CG68: 0 | CH68: 0 | CI68: 1 | CJ68: 1.016383995 | CK68: 0 | CL68: 0 | CM68: 0 | CN68: 0 | CO68: 0 | CP68: 0 | CQ68: 0 | CR68: 0 | CS68: 0 | CT68: 0 | CU68: 0 | CV68: 0 | CW68: 0 | CX68: 0 | CY68: 0 | CZ68: 0 | DA68: 0 | DB68: 0 | DC68: 0 | DD68: 0 | DE68: 0 | DF68: 0 | DG68: 0 | DH68: 0 | DI68: 0 | DJ68: 0 | DL68: 12131
C69: Pole Mounted ; < = 22kV ; > 600 kVA ; Multiple Phase | D69: 58 | E69: 7.615773106 | F69: 0 | G69: 0 | H69: 0 | I69: 0 | J69: 0 | K69: 0 | L69: 0 | M69: 0 | N69: 0 | O69: 0 | P69: 0 | Q69: 0 | R69: 0 | S69: 0 | T69: 0 | U69: 0 | V69: 0 | W69: 0 | X69: 0 | Y69: 0 | Z69: 0 | AA69: 0 | AB69: 0 | AC69: 1 | AD69: 0 | AE69: 0 | AF69: 0 | AG69: 0 | AH69: 0 | AI69: 0 | AJ69: 0 | AK69: 0 | AL69: 0 | AM69: 0 | AN69: 0 | AO69: 0 | AP69: 0 | AQ69: 0 | AR69: 0 | AS69: 0 | AT69: 0 | AU69: 0 | AV69: 0 | AW69: 0 | AX69: 0 | AY69: 0 | AZ69: 0 | BA69: 0 | BB69: 0 | BC69: 0 | BD69: 0 | BE69: 0 | BF69: 0 | BG69: 0 | BH69: 0 | BI69: 0 | BJ69: 0 | BK69: 0 | BL69: 0 | BM69: 0 | BN69: 0 | BO69: 0 | BP69: 0 | BQ69: 0 | BR69: 0 | BS69: 0 | BT69: 0 | BU69: 0 | BV69: 0 | BW69: 0 | BX69: 0 | BY69: 0 | BZ69: 0 | CA69: 0 | CB69: 0 | CC69: 0 | CD69: 0 | CE69: 0 | CF69: 0 | CG69: 0 | CH69: 0 | CI69: 0 | CJ69: 0 | CK69: 0 | CL69: 0 | CM69: 0 | CN69: 0 | CO69: 0 | CP69: 0 | CQ69: 0 | CR69: 0 | CS69: 0 | CT69: 0 | CU69: 0 | CV69: 0 | CW69: 0 | CX69: 0 | CY69: 0 | CZ69: 0 | DA69: 0 | DB69: 0 | DC69: 0 | DD69: 0 | DE69: 0 | DF69: 0 | DG69: 0 | DH69: 0 | DI69: 0 | DJ69: 0 | DL69: 1
C70: Kiosk Mounted ; < = 22kV ; < = 60 kVA ; Single Phase | D70: 58 | E70: 7.615773106 | F70: 1 | G70: 1.016666667 | H70: 1 | I70: 1.016666667 | J70: 4.066666667 | K70: 1.016666667 | L70: 0 | M70: 1.016666667 | N70: 5.066666667 | O70: 1.016666667 | P70: 2.033333333 | Q70: 0 | R70: 6.1 | S70: 3.05 | T70: 2.033333333 | U70: 3.05 | V70: 2.033333333 | W70: 3.05 | X70: 5.083333333 | Y70: 6.083333333 | Z70: 6.116666667 | AA70: 4.066666667 | AB70: 1.016666667 | AC70: 2.033333333 | AD70: 2.033333333 | AE70: 1 | AF70: 0 | AG70: 0 | AH70: 0 | AI70: 0 | AJ70: 0 | AK70: 0 | AL70: 0 | AM70: 0 | AN70: 0 | AO70: 0 | AP70: 0 | AQ70: 0 | AR70: 0 | AS70: 0 | AT70: 0 | AU70: 0 | AV70: 0 | AW70: 0 | AX70: 0 | AY70: 0 | AZ70: 0 | BA70: 0 | BB70: 0 | BC70: 0 | BD70: 0 | BE70: 0 | BF70: 0 | BG70: 0 | BH70: 0 | BI70: 0 | BJ70: 0 | BK70: 0 | BL70: 0 | BM70: 0 | BN70: 0 | BO70: 0 | BP70: 0 | BQ70: 0 | BR70: 0 | BS70: 0 | BT70: 0 | BU70: 0 | BV70: 0 | BW70: 0 | BX70: 0 | BY70: 0 | BZ70: 0 | CA70: 0 | CB70: 0 | CC70: 0 | CD70: 0 | CE70: 0 | CF70: 0 | CG70: 0 | CH70: 0 | CI70: 0 | CJ70: 0 | CK70: 0 | CL70: 0 | CM70: 0 | CN70: 0 | CO70: 0 | CP70: 0 | CQ70: 0 | CR70: 0 | CS70: 0 | CT70: 0 | CU70: 0 | CV70: 0 | CW70: 0 | CX70: 0 | CY70: 0 | CZ70: 0 | DA70: 0 | DB70: 0 | DC70: 0 | DD70: 0 | DE70: 0 | DF70: 0 | DG70: 0 | DH70: 0 | DI70: 0 | DJ70: 0 | DL70: 65
C71: Kiosk Mounted ; < = 22kV ; > 60 kVA and < = 600 kVA ; Single Phase | D71: 0 | E71: 0 | F71: 0 | G71: 0 | H71: 0 | I71: 0 | J71: 0 | K71: 0 | L71: 0 | M71: 0 | N71: 0 | O71: 0 | P71: 0 | Q71: 0 | R71: 0 | S71: 0 | T71: 0 | U71: 0 | V71: 0 | W71: 0 | X71: 0 | Y71: 0 | Z71: 0 | AA71: 0 | AB71: 0 | AC71: 0 | AD71: 0 | AE71: 0 | AF71: 0 | AG71: 0 | AH71: 0 | AI71: 0 | AJ71: 0 | AK71: 0 | AL71: 1 | AM71: 0 | AN71: 0 | AO71: 0 | AP71: 0 | AQ71: 0 | AR71: 0 | AS71: 0 | AT71: 0 | AU71: 0 | AV71: 0 | AW71: 0 | AX71: 0 | AY71: 0 | AZ71: 0 | BA71: 0 | BB71: 0 | BC71: 0 | BD71: 0 | BE71: 0 | BF71: 0 | BG71: 0 | BH71: 0 | BI71: 0 | BJ71: 0 | BK71: 0 | BL71: 0 | BM71: 0 | BN71: 0 | BO71: 0 | BP71: 0 | BQ71: 0 | BR71: 0 | BS71: 0 | BT71: 0 | BU71: 0 | BV71: 0 | BW71: 0 | BX71: 0 | BY71: 0 | BZ71: 0 | CA71: 0 | CB71: 0 | CC71: 0 | CD71: 0 | CE71: 0 | CF71: 0 | CG71: 0 | CH71: 0 | CI71: 0 | CJ71: 0 | CK71: 0 | CL71: 0 | CM71: 0 | CN71: 0 | CO71: 0 | CP71: 0 | CQ71: 0 | CR71: 0 | CS71: 0 | CT71: 0 | CU71: 0 | CV71: 0 | CW71: 0 | CX71: 0 | CY71: 0 | CZ71: 0 | DA71: 0 | DB71: 0 | DC71: 0 | DD71: 0 | DE71: 0 | DF71: 0 | DG71: 0 | DH71: 0 | DI71: 0 | DJ71: 0 | DL71: 1
C72: Kiosk Mounted ; < = 22kV ; > 600 kVA ; Single Phase | D72: 0 | E72: 0 | F72: 0 | G72: 0 | H72: 0 | I72: 0 | J72: 0 | K72: 0 | L72: 0 | M72: 0 | N72: 0 | O72: 0 | P72: 0 | Q72: 0 | R72: 0 | S72: 0 | T72: 0 | U72: 0 | V72: 0 | W72: 0 | X72: 0 | Y72: 0 | Z72: 0 | AA72: 0 | AB72: 0 | AC72: 0 | AD72: 0 | AE72: 0 | AF72: 0 | AG72: 0 | AH72: 0 | AI72: 0 | AJ72: 0 | AK72: 0 | AL72: 0 | AM72: 0 | AN72: 0 | AO72: 0 | AP72: 0 | AQ72: 0 | AR72: 0 | AS72: 0 | AT72: 0 | AU72: 0 | AV72: 0 | AW72: 0 | AX72: 0 | AY72: 0 | AZ72: 0 | BA72: 0 | BB72: 0 | BC72: 0 | BD72: 0 | BE72: 0 | BF72: 0 | BG72: 0 | BH72: 0 | BI72: 0 | BJ72: 0 | BK72: 0 | BL72: 0 | BM72: 0 | BN72: 0 | BO72: 0 | BP72: 0 | BQ72: 0 | BR72: 0 | BS72: 0 | BT72: 0 | BU72: 0 | BV72: 0 | BW72: 0 | BX72: 0 | BY72: 0 | BZ72: 0 | CA72: 0 | CB72: 0 | CC72: 0 | CD72: 0 | CE72: 0 | CF72: 0 | CG72: 0 | CH72: 0 | CI72: 0 | CJ72: 0 | CK72: 0 | CL72: 0 | CM72: 0 | CN72: 0 | CO72: 0 | CP72: 0 | CQ72: 0 | CR72: 0 | CS72: 0 | CT72: 0 | CU72: 0 | CV72: 0 | CW72: 0 | CX72: 0 | CY72: 0 | CZ72: 0 | DA72: 0 | DB72: 0 | DC72: 0 | DD72: 0 | DE72: 0 | DF72: 0 | DG72: 0 | DH72: 0 | DI72: 0 | DJ72: 0 | DL72: 0
C73: Kiosk Mounted ; < = 22kV ; < = 60 kVA ; Multiple Phase | D73: 58 | E73: 7.615773106 | F73: 0 | G73: 0 | H73: 0 | I73: 0 | J73: 0 | K73: 0 | L73: 0 | M73: 0 | N73: 1 | O73: 0 | P73: 0 | Q73: 1 | R73: 0 | S73: 0 | T73: 1 | U73: 0 | V73: 0 | W73: 1 | X73: 1 | Y73: 1 | Z73: 3 | AA73: 0 | AB73: 0 | AC73: 0 | AD73: 1 | AE73: 0 | AF73: 0 | AG73: 0 | AH73: 0 | AI73: 0 | AJ73: 0 | AK73: 0 | AL73: 0 | AM73: 0 | AN73: 0 | AO73: 0 | AP73: 0 | AQ73: 0 | AR73: 0 | AS73: 0 | AT73: 0 | AU73: 0 | AV73: 0 | AW73: 0 | AX73: 0 | AY73: 0 | AZ73: 0 | BA73: 0 | BB73: 0 | BC73: 0 | BD73: 0 | BE73: 0 | BF73: 0 | BG73: 0 | BH73: 0 | BI73: 0 | BJ73: 0 | BK73: 0 | BL73: 0 | BM73: 0 | BN73: 0 | BO73: 0 | BP73: 0 | BQ73: 0 | BR73: 0 | BS73: 0 | BT73: 0 | BU73: 0 | BV73: 0 | BW73: 0 | BX73: 0 | BY73: 0 | BZ73: 0 | CA73: 0 | CB73: 0 | CC73: 0 | CD73: 0 | CE73: 0 | CF73: 0 | CG73: 0 | CH73: 0 | CI73: 0 | CJ73: 0 | CK73: 0 | CL73: 0 | CM73: 0 | CN73: 0 | CO73: 0 | CP73: 0 | CQ73: 0 | CR73: 0 | CS73: 0 | CT73: 0 | CU73: 0 | CV73: 0 | CW73: 0 | CX73: 0 | CY73: 0 | CZ73: 0 | DA73: 0 | DB73: 0 | DC73: 0 | DD73: 0 | DE73: 0 | DF73: 0 | DG73: 0 | DH73: 0 | DI73: 0 | DJ73: 0 | DL73: 10
C74: Kiosk Mounted ; < = 22kV ; > 60 kVA and < = 600 kVA ; Multiple Phase | D74: 58 | E74: 7.615773106 | F74: 183 | G74: 163.0409639 | H74: 153.4754193 | I74: 105.6450078 | J74: 135.3403203 | K74: 114.9672258 | L74: 158.7134149 | M74: 178.0695506 | N74: 189.2900155 | O74: 222.8326985 | P74: 186.1034683 | Q74: 108.8485139 | R74: 110.9841846 | S74: 106.831555 | T74: 63.20407785 | U74: 74.25495438 | V74: 35.69531256 | W74: 66.18711901 | X74: 81.49237818 | Y74: 51.96665405 | Z74: 38.64443603 | AA74: 27.4748476 | AB74: 22.42397107 | AC74: 28.52572413 | AD74: 45.79706562 | AE74: 25.42397107 | AF74: 36.61051835 | AG74: 40.76314793 | AH74: 46.8309833 | AI74: 50.88185983 | AJ74: 54.93273636 | AK74: 30.50876529 | AL74: 33.55964182 | AM74: 30.52572413 | AN74: 18.32221802 | AO74: 6.101753058 | AP74: 8.135670744 | AQ74: 10.16958843 | AR74: 12.20350612 | AS74: 18.30525917 | AT74: 17.30525917 | AU74: 23.39005339 | AV74: 11.18654727 | AW74: 0 | AX74: 0 | AY74: 0 | AZ74: 0 | BA74: 0 | BB74: 1.016958843 | BC74: 0 | BD74: 0 | BE74: 0 | BF74: 0 | BG74: 0 | BH74: 0 | BI74: 0 | BJ74: 0 | BK74: 0 | BL74: 0 | BM74: 0 | BN74: 0 | BO74: 0 | BP74: 0 | BQ74: 0 | BR74: 0 | BS74: 0 | BT74: 0 | BU74: 0 | BV74: 1.016958843 | BW74: 0 | BX74: 0 | BY74: 0 | BZ74: 0 | CA74: 0 | CB74: 0 | CC74: 0 | CD74: 0 | CE74: 0 | CF74: 0 | CG74: 0 | CH74: 0 | CI74: 0 | CJ74: 0 | CK74: 0 | CL74: 0 | CM74: 0 | CN74: 0 | CO74: 0 | CP74: 0 | CQ74: 0 | CR74: 0 | CS74: 0 | CT74: 0 | CU74: 0 | CV74: 0 | CW74: 0 | CX74: 0 | CY74: 0 | CZ74: 0 | DA74: 0 | DB74: 0 | DC74: 0 | DD74: 0 | DE74: 0 | DF74: 0 | DG74: 0 | DH74: 0 | DI74: 0 | DJ74: 0 | DL74: 3130
C75: Kiosk Mounted ; < = 22kV ; > 600 kVA ; Multiple Phase | D75: 58 | E75: 7.615773106 | F75: 20 | G75: 23.73426573 | H75: 22.36713287 | I75: 25.51398601 | J75: 23.56293706 | K75: 20.48951049 | L75: 21.51398601 | M75: 16.39160839 | N75: 19.44055944 | O75: 13.31818182 | P75: 17.41608392 | Q75: 13.31818182 | R75: 11.29370629 | S75: 9.22027972 | T75: 10.24475524 | U75: 7.171328671 | V75: 7.171328671 | W75: 7.195804196 | X75: 10.24475524 | Y75: 3.073426573 | Z75: 1.024475524 | AA75: 1.024475524 | AB75: 3.024475524 | AC75: 1.024475524 | AD75: 0 | AE75: 3.073426573 | AF75: 0 | AG75: 3.048951049 | AH75: 0 | AI75: 2.048951049 | AJ75: 0 | AK75: 1.024475524 | AL75: 0 | AM75: 0 | AN75: 0 | AO75: 1.024475524 | AP75: 0 | AQ75: 0 | AR75: 0 | AS75: 0 | AT75: 0 | AU75: 0 | AV75: 0 | AW75: 0 | AX75: 0 | AY75: 0 | AZ75: 0 | BA75: 0 | BB75: 0 | BC75: 0 | BD75: 0 | BE75: 0 | BF75: 0 | BG75: 0 | BH75: 0 | BI75: 0 | BJ75: 0 | BK75: 0 | BL75: 0 | BM75: 0 | BN75: 0 | BO75: 0 | BP75: 0 | BQ75: 0 | BR75: 0 | BS75: 0 | BT75: 0 | BU75: 0 | BV75: 0 | BW75: 0 | BX75: 0 | BY75: 0 | BZ75: 0 | CA75: 0 | CB75: 0 | CC75: 0 | CD75: 0 | CE75: 0 | CF75: 0 | CG75: 0 | CH75: 0 | CI75: 0 | CJ75: 0 | CK75: 0 | CL75: 0 | CM75: 0 | CN75: 0 | CO75: 0 | CP75: 0 | CQ75: 0 | CR75: 0 | CS75: 0 | CT75: 0 | CU75: 0 | CV75: 0 | CW75: 0 | CX75: 0 | CY75: 0 | CZ75: 0 | DA75: 0 | DB75: 0 | DC75: 0 | DD75: 0 | DE75: 0 | DF75: 0 | DG75: 0 | DH75: 0 | DI75: 0 | DJ75: 0 | DL75: 319
C76: Ground Outdoor / Indoor Chamber Mounted; ˂ 22 kV ; < = 60 kVA ; Single Phase | D76: 0 | E76: 0 | F76: 0 | G76: 0 | H76: 0 | I76: 0 | J76: 0 | K76: 0 | L76: 0 | M76: 0 | N76: 0 | O76: 0 | P76: 0 | Q76: 0 | R76: 0 | S76: 0 | T76: 0 | U76: 0 | V76: 0 | W76: 0 | X76: 0 | Y76: 0 | Z76: 0 | AA76: 0 | AB76: 0 | AC76: 0 | AD76: 0 | AE76: 0 | AF76: 0 | AG76: 0 | AH76: 0 | AI76: 0 | AJ76: 0 | AK76: 0 | AL76: 0 | AM76: 0 | AN76: 0 | AO76: 0 | AP76: 0 | AQ76: 0 | AR76: 0 | AS76: 0 | AT76: 0 | AU76: 0 | AV76: 0 | AW76: 0 | AX76: 0 | AY76: 0 | AZ76: 0 | BA76: 0 | BB76: 0 | BC76: 0 | BD76: 0 | BE76: 0 | BF76: 0 | BG76: 0 | BH76: 0 | BI76: 0 | BJ76: 0 | BK76: 0 | BL76: 0 | BM76: 0 | BN76: 0 | BO76: 0 | BP76: 0 | BQ76: 0 | BR76: 0 | BS76: 0 | BT76: 0 | BU76: 0 | BV76: 0 | BW76: 0 | BX76: 0 | BY76: 0 | BZ76: 0 | CA76: 0 | CB76: 0 | CC76: 0 | CD76: 0 | CE76: 0 | CF76: 0 | CG76: 0 | CH76: 0 | CI76: 0 | CJ76: 0 | CK76: 0 | CL76: 0 | CM76: 0 | CN76: 0 | CO76: 0 | CP76: 0 | CQ76: 0 | CR76: 0 | CS76: 0 | CT76: 0 | CU76: 0 | CV76: 0 | CW76: 0 | CX76: 0 | CY76: 0 | CZ76: 0 | DA76: 0 | DB76: 0 | DC76: 0 | DD76: 0 | DE76: 0 | DF76: 0 | DG76: 0 | DH76: 0 | DI76: 0 | DJ76: 0 | DL76: =SUM(F76:DJ76) -> 0
C77: Ground Outdoor / Indoor Chamber Mounted; ˂ 22 kV ; > 60 kVA and < = 600 kVA ; Single Phase | D77: 0 | E77: 0 | F77: 0 | G77: 0 | H77: 0 | I77: 0 | J77: 0 | K77: 0 | L77: 0 | M77: 0 | N77: 0 | O77: 0 | P77: 0 | Q77: 0 | R77: 0 | S77: 0 | T77: 0 | U77: 0 | V77: 0 | W77: 0 | X77: 0 | Y77: 0 | Z77: 0 | AA77: 0 | AB77: 0 | AC77: 0 | AD77: 0 | AE77: 0 | AF77: 0 | AG77: 0 | AH77: 0 | AI77: 0 | AJ77: 0 | AK77: 0 | AL77: 0 | AM77: 0 | AN77: 0 | AO77: 0 | AP77: 0 | AQ77: 0 | AR77: 0 | AS77: 0 | AT77: 0 | AU77: 0 | AV77: 0 | AW77: 0 | AX77: 0 | AY77: 0 | AZ77: 0 | BA77: 0 | BB77: 0 | BC77: 0 | BD77: 0 | BE77: 0 | BF77: 0 | BG77: 0 | BH77: 0 | BI77: 0 | BJ77: 0 | BK77: 0 | BL77: 0 | BM77: 0 | BN77: 0 | BO77: 0 | BP77: 0 | BQ77: 0 | BR77: 0 | BS77: 0 | BT77: 0 | BU77: 0 | BV77: 0 | BW77: 0 | BX77: 0 | BY77: 0 | BZ77: 0 | CA77: 0 | CB77: 0 | CC77: 0 | CD77: 0 | CE77: 0 | CF77: 0 | CG77: 0 | CH77: 0 | CI77: 0 | CJ77: 0 | CK77: 0 | CL77: 0 | CM77: 0 | CN77: 0 | CO77: 0 | CP77: 0 | CQ77: 0 | CR77: 0 | CS77: 0 | CT77: 0 | CU77: 0 | CV77: 0 | CW77: 0 | CX77: 0 | CY77: 0 | CZ77: 0 | DA77: 0 | DB77: 0 | DC77: 0 | DD77: 0 | DE77: 0 | DF77: 0 | DG77: 0 | DH77: 0 | DI77: 0 | DJ77: 0 | DL77: 0
C78: Ground Outdoor / Indoor Chamber Mounted; ˂ 22 kV ; > 600 kVA ; Single Phase | D78: 0 | E78: 0 | F78: 0 | G78: 0 | H78: 0 | I78: 0 | J78: 0 | K78: 0 | L78: 0 | M78: 0 | N78: 0 | O78: 0 | P78: 0 | Q78: 0 | R78: 0 | S78: 0 | T78: 0 | U78: 0 | V78: 0 | W78: 0 | X78: 0 | Y78: 0 | Z78: 0 | AA78: 0 | AB78: 0 | AC78: 0 | AD78: 0 | AE78: 0 | AF78: 0 | AG78: 0 | AH78: 0 | AI78: 0 | AJ78: 0 | AK78: 0 | AL78: 0 | AM78: 0 | AN78: 0 | AO78: 0 | AP78: 0 | AQ78: 0 | AR78: 0 | AS78: 0 | AT78: 0 | AU78: 0 | AV78: 0 | AW78: 0 | AX78: 0 | AY78: 0 | AZ78: 0 | BA78: 0 | BB78: 0 | BC78: 0 | BD78: 0 | BE78: 0 | BF78: 0 | BG78: 0 | BH78: 0 | BI78: 0 | BJ78: 0 | BK78: 0 | BL78: 0 | BM78: 0 | BN78: 0 | BO78: 0 | BP78: 0 | BQ78: 0 | BR78: 0 | BS78: 0 | BT78: 0 | BU78: 0 | BV78: 0 | BW78: 0 | BX78: 0 | BY78: 0 | BZ78: 0 | CA78: 0 | CB78: 0 | CC78: 0 | CD78: 0 | CE78: 0 | CF78: 0 | CG78: 0 | CH78: 0 | CI78: 0 | CJ78: 0 | CK78: 0 | CL78: 0 | CM78: 0 | CN78: 0 | CO78: 0 | CP78: 0 | CQ78: 0 | CR78: 0 | CS78: 0 | CT78: 0 | CU78: 0 | CV78: 0 | CW78: 0 | CX78: 0 | CY78: 0 | CZ78: 0 | DA78: 0 | DB78: 0 | DC78: 0 | DD78: 0 | DE78: 0 | DF78: 0 | DG78: 0 | DH78: 0 | DI78: 0 | DJ78: 0 | DL78: 0
C79: Ground Outdoor / Indoor Chamber Mounted; ˂ 22 kV ; < = 60 kVA ; Multiple Phase | D79: 50 | E79: 7.071067812 | F79: 0 | G79: 0 | H79: 0 | I79: 0 | J79: 0 | K79: 0 | L79: 0 | M79: 0 | N79: 0 | O79: 0 | P79: 0 | Q79: 0 | R79: 0 | S79: 0 | T79: 0 | U79: 0 | V79: 0 | W79: 0 | X79: 0 | Y79: 0 | Z79: 1 | AA79: 0 | AB79: 0 | AC79: 0 | AD79: 0 | AE79: 0 | AF79: 0 | AG79: 0 | AH79: 0 | AI79: 0 | AJ79: 0 | AK79: 0 | AL79: 0 | AM79: 0 | AN79: 0 | AO79: 0 | AP79: 0 | AQ79: 0 | AR79: 0 | AS79: 0 | AT79: 0 | AU79: 0 | AV79: 0 | AW79: 0 | AX79: 0 | AY79: 0 | AZ79: 0 | BA79: 0 | BB79: 0 | BC79: 0 | BD79: 0 | BE79: 0 | BF79: 0 | BG79: 0 | BH79: 0 | BI79: 0 | BJ79: 1 | BK79: 0 | BL79: 0 | BM79: 0 | BN79: 0 | BO79: 0 | BP79: 0 | BQ79: 0 | BR79: 0 | BS79: 0 | BT79: 0 | BU79: 0 | BV79: 0 | BW79: 0 | BX79: 0 | BY79: 0 | BZ79: 0 | CA79: 0 | CB79: 0 | CC79: 0 | CD79: 0 | CE79: 0 | CF79: 0 | CG79: 0 | CH79: 0 | CI79: 0 | CJ79: 0 | CK79: 0 | CL79: 0 | CM79: 0 | CN79: 0 | CO79: 0 | CP79: 0 | CQ79: 0 | CR79: 0 | CS79: 0 | CT79: 0 | CU79: 0 | CV79: 0 | CW79: 0 | CX79: 0 | CY79: 0 | CZ79: 0 | DA79: 0 | DB79: 0 | DC79: 0 | DD79: 0 | DE79: 0 | DF79: 0 | DG79: 0 | DH79: 0 | DI79: 0 | DJ79: 0 | DL79: 2
C80: Ground Outdoor / Indoor Chamber Mounted; ˂ 22 kV ; > 60 kVA and < = 600 kVA ; Multiple Phase | D80: 50 | E80: 7.071067812 | F80: 6 | G80: 1.019189765 | H80: 4.057940711 | I80: 4.077254282 | J80: 6.115881422 | K80: 2.057940711 | L80: 8.135194993 | M80: 6.135194993 | N80: 4.096567852 | O80: 2.038627141 | P80: 9.173822134 | Q80: 8.154508563 | R80: 10.1931357 | S80: 6.115881422 | T80: 13.25107642 | U80: 6.115881422 | V80: 6.115881422 | W80: 6.096567852 | X80: 7.135194993 | Y80: 6.115881422 | Z80: 18.36695784 | AA80: 7.115881422 | AB80: 10.17382213 | AC80: 9.173822134 | AD80: 11.23176284 | AE80: 17.34764427 | AF80: 7.193135704 | AG80: 11.21244927 | AH80: 21.44421212 | AI80: 23.46352569 | AJ80: 17.3283307 | AK80: 13.25107642 | AL80: 12.21244927 | AM80: 11.21244927 | AN80: 7.135194993 | AO80: 11.21244927 | AP80: 10.1931357 | AQ80: 23.46352569 | AR80: 10.1931357 | AS80: 17.28970356 | AT80: 14.27038999 | AU80: 15.28970356 | AV80: 14.25107642 | AW80: 4.077254282 | AX80: 2.038627141 | AY80: 4.077254282 | AZ80: 5.096567852 | BA80: 7.154508563 | BB80: 6.115881422 | BC80: 1.01931357 | BD80: 1 | BE80: 3.057940711 | BF80: 2.038627141 | BG80: 2.038627141 | BH80: 0 | BI80: 0 | BJ80: 0 | BK80: 0 | BL80: 0 | BM80: 0 | BN80: 0 | BO80: 0 | BP80: 1.01931357 | BQ80: 0 | BR80: 0 | BS80: 0 | BT80: 0 | BU80: 0 | BV80: 1.01931357 | BW80: 0 | BX80: 0 | BY80: 0 | BZ80: 0 | CA80: 0 | CB80: 0 | CC80: 1.01931357 | CD80: 0 | CE80: 0 | CF80: 0 | CG80: 0 | CH80: 0 | CI80: 0 | CJ80: 0 | CK80: 0 | CL80: 0 | CM80: 0 | CN80: 0 | CO80: 0 | CP80: 0 | CQ80: 0 | CR80: 0 | CS80: 0 | CT80: 0 | CU80: 0 | CV80: 0 | CW80: 0 | CX80: 0 | CY80: 0 | CZ80: 0 | DA80: 0 | DB80: 0 | DC80: 0 | DD80: 0 | DE80: 0 | DF80: 0 | DG80: 0 | DH80: 0 | DI80: 0 | DJ80: 0 | DL80: 477
C81: Ground Outdoor / Indoor Chamber Mounted; ˂ 22 kV ; > 600 kVA ; Multiple Phase | D81: 50 | E81: 7.071067812 | F81: 6 | G81: 10.33078101 | H81: 5.036983155 | I81: 15.4068147 | J81: 5.221898928 | K81: 11.48078101 | L81: 20.73966309 | M81: 16.62871363 | N81: 10.36983155 | O81: 30.07251149 | P81: 26.96156202 | Q81: 25.88759571 | R81: 39.51630934 | S81: 17.62871363 | T81: 16.59173047 | U81: 17.66569678 | V81: 25.96156202 | W81: 17.66569678 | X81: 10.36983155 | Y81: 20.8136294 | Z81: 33.2204441 | AA81: 14.51776417 | AB81: 15.59173047 | AC81: 18.66569678 | AD81: 16.59173047 | AE81: 16.66569678 | AF81: 7.332848392 | AG81: 4.147932619 | AH81: 11.44379786 | AI81: 12.44379786 | AJ81: 22.8136294 | AK81: 13.48078101 | AL81: 15.66569678 | AM81: 11.44379786 | AN81: 8.332848392 | AO81: 5.184915773 | AP81: 10.36983155 | AQ81: 5.184915773 | AR81: 7.258882083 | AS81: 6.295865237 | AT81: 10.4068147 | AU81: 7.221898928 | AV81: 6.295865237 | AW81: 1.036983155 | AX81: 2.073966309 | AY81: 2.073966309 | AZ81: 1.036983155 | BA81: 2.073966309 | BB81: 1.036983155 | BC81: 1.036983155 | BD81: 1.073966309 | BE81: 1.036983155 | BF81: 1.036983155 | BG81: 0.03698315467 | BH81: 0 | BI81: 0 | BJ81: 0.110949464 | BK81: 0 | BL81: 0 | BM81: 0.07396630934 | BN81: 0 | BO81: 0 | BP81: 0 | BQ81: 0.03698315467 | BR81: 0 | BS81: 0 | BT81: 0 | BU81: 0 | BV81: 0.03698315467 | BW81: 0 | BX81: 0 | BY81: 0 | BZ81: 0 | CA81: 0 | CB81: 0 | CC81: 0 | CD81: 0 | CE81: 0.110949464 | CF81: 0 | CG81: 0 | CH81: 0 | CI81: 0.03698315467 | CJ81: 0 | CK81: 0.03698315467 | CL81: 0 | CM81: 0 | CN81: 0 | CO81: 0 | CP81: 0 | CQ81: 0 | CR81: 0.07396630934 | CS81: 0 | CT81: 0 | CU81: 0 | CV81: 0 | CW81: 0 | CX81: 0 | CY81: 0 | CZ81: 0 | DA81: 0 | DB81: 0 | DC81: 0 | DD81: 0 | DE81: 0 | DF81: 0 | DG81: 0 | DH81: 0 | DI81: 0 | DJ81: 0 | DL81: 645
C82: Ground Outdoor / Indoor Chamber Mounted; > = 22 kV & < = 33 kV ; < = 15 MVA | D82: 50 | E82: 7.071067812 | F82: 0 | G82: 0 | H82: 0 | I82: 0 | J82: 0 | K82: 2 | L82: 0 | M82: 0 | N82: 0 | O82: 0 | P82: 0 | Q82: 0 | R82: 0 | S82: 0 | T82: 0 | U82: 0 | V82: 0 | W82: 0 | X82: 0 | Y82: 0 | Z82: 0 | AA82: 0 | AB82: 0 | AC82: 0 | AD82: 0 | AE82: 0 | AF82: 0 | AG82: 0 | AH82: 0 | AI82: 0 | AJ82: 0 | AK82: 0 | AL82: 0 | AM82: 0 | AN82: 0 | AO82: 0 | AP82: 0 | AQ82: 0 | AR82: 0 | AS82: 0 | AT82: 0 | AU82: 0 | AV82: 0 | AW82: 0 | AX82: 0 | AY82: 0 | AZ82: 0 | BA82: 0 | BB82: 0 | BC82: 0 | BD82: 0 | BE82: 0 | BF82: 0 | BG82: 0 | BH82: 1 | BI82: 0 | BJ82: 2 | BK82: 0 | BL82: 0 | BM82: 2 | BN82: 0 | BO82: 0 | BP82: 0 | BQ82: 1 | BR82: 0 | BS82: 0 | BT82: 0 | BU82: 0 | BV82: 1 | BW82: 0 | BX82: 0 | BY82: 0 | BZ82: 0 | CA82: 0 | CB82: 0 | CC82: 0 | CD82: 0 | CE82: 1 | CF82: 0 | CG82: 0 | CH82: 0 | CI82: 1 | CJ82: 0 | CK82: 1 | CL82: 0 | CM82: 0 | CN82: 0 | CO82: 0 | CP82: 0 | CQ82: 0 | CR82: 2 | CS82: 0 | CT82: 0 | CU82: 0 | CV82: 0 | CW82: 0 | CX82: 0 | CY82: 0 | CZ82: 0 | DA82: 0 | DB82: 0 | DC82: 0 | DD82: 0 | DE82: 0 | DF82: 0 | DG82: 0 | DH82: 0 | DI82: 0 | DJ82: 0 | DL82: 14
C83: Ground Outdoor / Indoor Chamber Mounted; > = 22 kV & < = 33 kV ; > 15 MVA and < = 40 MVA | D83: 0 | E83: 0 | F83: 0 | G83: 0 | H83: 0 | I83: 0 | J83: 0 | K83: 0 | L83: 0 | M83: 0 | N83: 0 | O83: 0 | P83: 0 | Q83: 0 | R83: 0 | S83: 0 | T83: 0 | U83: 0 | V83: 0 | W83: 0 | X83: 0 | Y83: 0 | Z83: 0 | AA83: 0 | AB83: 0 | AC83: 0 | AD83: 0 | AE83: 0 | AF83: 0 | AG83: 0 | AH83: 0 | AI83: 0 | AJ83: 0 | AK83: 0 | AL83: 0 | AM83: 0 | AN83: 0 | AO83: 0 | AP83: 0 | AQ83: 0 | AR83: 0 | AS83: 0 | AT83: 0 | AU83: 0 | AV83: 0 | AW83: 0 | AX83: 0 | AY83: 0 | AZ83: 0 | BA83: 0 | BB83: 0 | BC83: 0 | BD83: 0 | BE83: 0 | BF83: 0 | BG83: 1 | BH83: 0 | BI83: 0 | BJ83: 1 | BK83: 0 | BL83: 0 | BM83: 0 | BN83: 0 | BO83: 1 | BP83: 0 | BQ83: 0 | BR83: 0 | BS83: 0 | BT83: 0 | BU83: 1 | BV83: 2 | BW83: 0 | BX83: 0 | BY83: 0 | BZ83: 0 | CA83: 0 | CB83: 0 | CC83: 0 | CD83: 0 | CE83: 0 | CF83: 0 | CG83: 0 | CH83: 0 | CI83: 0 | CJ83: 0 | CK83: 0 | CL83: 0 | CM83: 0 | CN83: 0 | CO83: 0 | CP83: 0 | CQ83: 0 | CR83: 0 | CS83: 0 | CT83: 0 | CU83: 0 | CV83: 0 | CW83: 0 | CX83: 0 | CY83: 0 | CZ83: 0 | DA83: 0 | DB83: 0 | DC83: 0 | DD83: 0 | DE83: 0 | DF83: 0 | DG83: 0 | DH83: 0 | DI83: 0 | DJ83: 0 | DL83: 6
C84: Ground Outdoor / Indoor Chamber Mounted; > = 22 kV & < = 33 kV ; > 40 MVA | D84: 0 | E84: 0 | F84: 0 | G84: 0 | H84: 0 | I84: 0 | J84: 0 | K84: 0 | L84: 0 | M84: 0 | N84: 0 | O84: 0 | P84: 0 | Q84: 0 | R84: 0 | S84: 0 | T84: 0 | U84: 0 | V84: 0 | W84: 0 | X84: 0 | Y84: 0 | Z84: 0 | AA84: 0 | AB84: 0 | AC84: 0 | AD84: 0 | AE84: 0 | AF84: 0 | AG84: 0 | AH84: 0 | AI84: 0 | AJ84: 0 | AK84: 0 | AL84: 0 | AM84: 0 | AN84: 0 | AO84: 0 | AP84: 0 | AQ84: 0 | AR84: 0 | AS84: 0 | AT84: 0 | AU84: 0 | AV84: 0 | AW84: 0 | AX84: 0 | AY84: 0 | AZ84: 0 | BA84: 0 | BB84: 0 | BC84: 0 | BD84: 0 | BE84: 0 | BF84: 0 | BG84: 0 | BH84: 0 | BI84: 0 | BJ84: 0 | BK84: 0 | BL84: 0 | BM84: 0 | BN84: 0 | BO84: 0 | BP84: 0 | BQ84: 0 | BR84: 0 | BS84: 0 | BT84: 0 | BU84: 0 | BV84: 0 | BW84: 0 | BX84: 0 | BY84: 0 | BZ84: 0 | CA84: 0 | CB84: 0 | CC84: 0 | CD84: 0 | CE84: 0 | CF84: 0 | CG84: 0 | CH84: 0 | CI84: 0 | CJ84: 0 | CK84: 0 | CL84: 0 | CM84: 0 | CN84: 0 | CO84: 0 | CP84: 0 | CQ84: 0 | CR84: 0 | CS84: 0 | CT84: 0 | CU84: 0 | CV84: 0 | CW84: 0 | CX84: 0 | CY84: 0 | CZ84: 0 | DA84: 0 | DB84: 0 | DC84: 0 | DD84: 0 | DE84: 0 | DF84: 0 | DG84: 0 | DH84: 0 | DI84: 0 | DJ84: 0 | DL84: 0
C85: Ground Outdoor / Indoor Chamber Mounted; > 33 kV & < = 66 kV ; < = 15 MVA | D85: 50 | E85: 7.071067812 | F85: 0 | G85: 4 | H85: 0 | I85: 1 | J85: 2 | K85: 0 | L85: 0 | M85: 1 | N85: 2 | O85: 0 | P85: 0 | Q85: 1 | R85: 0 | S85: 1 | T85: 0 | U85: 0 | V85: 0 | W85: 0 | X85: 0 | Y85: 1 | Z85: 1 | AA85: 0 | AB85: 0 | AC85: 0 | AD85: 0 | AE85: 0 | AF85: 0 | AG85: 0 | AH85: 0 | AI85: 0 | AJ85: 0 | AK85: 0 | AL85: 0 | AM85: 0 | AN85: 0 | AO85: 4 | AP85: 0 | AQ85: 0 | AR85: 0 | AS85: 1 | AT85: 1 | AU85: 2 | AV85: 3 | AW85: 2 | AX85: 0 | AY85: 0 | AZ85: 0 | BA85: 0 | BB85: 0 | BC85: 0 | BD85: 3 | BE85: 3 | BF85: 2 | BG85: 2 | BH85: 0 | BI85: 1 | BJ85: 7 | BK85: 0 | BL85: 3 | BM85: 0 | BN85: 0 | BO85: 0 | BP85: 0 | BQ85: 2 | BR85: 0 | BS85: 0 | BT85: 2 | BU85: 0 | BV85: 3 | BW85: 3 | BX85: 0 | BY85: 1 | BZ85: 2 | CA85: 1 | CB85: 0 | CC85: 0 | CD85: 0 | CE85: 0 | CF85: 0 | CG85: 0 | CH85: 0 | CI85: 0 | CJ85: 2 | CK85: 0 | CL85: 0 | CM85: 0 | CN85: 0 | CO85: 0 | CP85: 0 | CQ85: 0 | CR85: 0 | CS85: 0 | CT85: 0 | CU85: 0 | CV85: 0 | CW85: 0 | CX85: 0 | CY85: 0 | CZ85: 0 | DA85: 0 | DB85: 0 | DC85: 0 | DD85: 0 | DE85: 0 | DF85: 0 | DG85: 0 | DH85: 0 | DI85: 0 | DJ85: 0 | DL85: 64
C86: Ground Outdoor / Indoor Chamber Mounted; > 33 kV & < = 66 kV ; > 15 MVA and < = 40 MVA | D86: 50 | E86: 7.071067812 | F86: 0 | G86: 0 | H86: 1 | I86: 1 | J86: 4 | K86: 3 | L86: 2 | M86: 1 | N86: 4 | O86: 3 | P86: 1 | Q86: 0 | R86: 3 | S86: 3 | T86: 2 | U86: 1 | V86: 2 | W86: 2 | X86: 0 | Y86: 1 | Z86: 0 | AA86: 0 | AB86: 1 | AC86: 0 | AD86: 0 | AE86: 0 | AF86: 0 | AG86: 0 | AH86: 0 | AI86: 1 | AJ86: 0 | AK86: 0 | AL86: 2 | AM86: 2 | AN86: 2 | AO86: 3 | AP86: 2 | AQ86: 6 | AR86: 2 | AS86: 0 | AT86: 3 | AU86: 1 | AV86: 0 | AW86: 0 | AX86: 0 | AY86: 0 | AZ86: 0 | BA86: 0 | BB86: 0 | BC86: 3 | BD86: 2 | BE86: 1 | BF86: 2 | BG86: 0 | BH86: 0 | BI86: 0 | BJ86: 2 | BK86: 0 | BL86: 0 | BM86: 0 | BN86: 0 | BO86: 0 | BP86: 0 | BQ86: 0 | BR86: 0 | BS86: 0 | BT86: 0 | BU86: 0 | BV86: 0 | BW86: 1 | BX86: 1 | BY86: 0 | BZ86: 0 | CA86: 0 | CB86: 0 | CC86: 0 | CD86: 0 | CE86: 0 | CF86: 0 | CG86: 0 | CH86: 0 | CI86: 0 | CJ86: 0 | CK86: 0 | CL86: 0 | CM86: 0 | CN86: 0 | CO86: 0 | CP86: 0 | CQ86: 0 | CR86: 0 | CS86: 0 | CT86: 0 | CU86: 0 | CV86: 0 | CW86: 0 | CX86: 0 | CY86: 0 | CZ86: 0 | DA86: 0 | DB86: 0 | DC86: 0 | DD86: 0 | DE86: 0 | DF86: 0 | DG86: 0 | DH86: 0 | DI86: 0 | DJ86: 0 | DL86: 71
C87: Ground Outdoor / Indoor Chamber Mounted; > 33 kV & < = 66 kV ; > 40 MVA | D87: 50 | E87: 7.071067812 | F87: 0 | G87: 0 | H87: 0 | I87: 0 | J87: 0 | K87: 0 | L87: 0 | M87: 0 | N87: 0 | O87: 0 | P87: 0 | Q87: 0 | R87: 0 | S87: 0 | T87: 0 | U87: 0 | V87: 0 | W87: 0 | X87: 0 | Y87: 0 | Z87: 0 | AA87: 0 | AB87: 0 | AC87: 0 | AD87: 0 | AE87: 0 | AF87: 0 | AG87: 0 | AH87: 0 | AI87: 0 | AJ87: 0 | AK87: 0 | AL87: 0 | AM87: 0 | AN87: 0 | AO87: 0 | AP87: 0 | AQ87: 0 | AR87: 0 | AS87: 0 | AT87: 0 | AU87: 0 | AV87: 0 | AW87: 0 | AX87: 0 | AY87: 0 | AZ87: 0 | BA87: 0 | BB87: 0 | BC87: 0 | BD87: 0 | BE87: 0 | BF87: 0 | BG87: 0 | BH87: 0 | BI87: 0 | BJ87: 0 | BK87: 0 | BL87: 0 | BM87: 0 | BN87: 0 | BO87: 0 | BP87: 0 | BQ87: 0 | BR87: 0 | BS87: 0 | BT87: 0 | BU87: 0 | BV87: 0 | BW87: 0 | BX87: 0 | BY87: 0 | BZ87: 0 | CA87: 0 | CB87: 0 | CC87: 0 | CD87: 0 | CE87: 0 | CF87: 0 | CG87: 0 | CH87: 0 | CI87: 0 | CJ87: 0 | CK87: 0 | CL87: 0 | CM87: 0 | CN87: 0 | CO87: 0 | CP87: 0 | CQ87: 0 | CR87: 0 | CS87: 0 | CT87: 0 | CU87: 0 | CV87: 0 | CW87: 0 | CX87: 0 | CY87: 0 | CZ87: 0 | DA87: 0 | DB87: 0 | DC87: 0 | DD87: 0 | DE87: 0 | DF87: 0 | DG87: 0 | DH87: 0 | DI87: 0 | DJ87: 0 | DL87: 0
C88: Ground Outdoor / Indoor Chamber Mounted; > 66 kV & < = 132 kV ; < = 100 MVA | D88: 50 | E88: 7.071067812 | F88: 0 | G88: 0 | H88: 0 | I88: 0 | J88: 0 | K88: 0 | L88: 0 | M88: 0 | N88: 0 | O88: 0 | P88: 0 | Q88: 0 | R88: 0 | S88: 0 | T88: 0 | U88: 0 | V88: 0 | W88: 0 | X88: 0 | Y88: 0 | Z88: 0 | AA88: 0 | AB88: 0 | AC88: 0 | AD88: 0 | AE88: 0 | AF88: 0 | AG88: 0 | AH88: 0 | AI88: 0 | AJ88: 0 | AK88: 0 | AL88: 0 | AM88: 0 | AN88: 0 | AO88: 0 | AP88: 0 | AQ88: 0 | AR88: 0 | AS88: 0 | AT88: 0 | AU88: 0 | AV88: 0 | AW88: 0 | AX88: 0 | AY88: 0 | AZ88: 0 | BA88: 0 | BB88: 0 | BC88: 0 | BD88: 0 | BE88: 0 | BF88: 0 | BG88: 0 | BH88: 0 | BI88: 0 | BJ88: 0 | BK88: 0 | BL88: 0 | BM88: 0 | BN88: 0 | BO88: 0 | BP88: 0 | BQ88: 0 | BR88: 0 | BS88: 0 | BT88: 0 | BU88: 0 | BV88: 0 | BW88: 0 | BX88: 0 | BY88: 0 | BZ88: 0 | CA88: 0 | CB88: 0 | CC88: 0 | CD88: 0 | CE88: 0 | CF88: 0 | CG88: 0 | CH88: 0 | CI88: 0 | CJ88: 0 | CK88: 0 | CL88: 0 | CM88: 0 | CN88: 0 | CO88: 0 | CP88: 0 | CQ88: 0 | CR88: 0 | CS88: 0 | CT88: 0 | CU88: 0 | CV88: 0 | CW88: 0 | CX88: 0 | CY88: 0 | CZ88: 0 | DA88: 0 | DB88: 0 | DC88: 0 | DD88: 0 | DE88: 0 | DF88: 0 | DG88: 0 | DH88: 0 | DI88: 0 | DJ88: 0 | DL88: 0
C89: Ground Outdoor / Indoor Chamber Mounted; > 66 kV & < = 132 kV ; > 100 MVA | D89: 0 | E89: 0 | F89: 0 | G89: 0 | H89: 0 | I89: 0 | J89: 0 | K89: 0 | L89: 0 | M89: 0 | N89: 0 | O89: 0 | P89: 0 | Q89: 0 | R89: 0 | S89: 0 | T89: 0 | U89: 0 | V89: 0 | W89: 0 | X89: 0 | Y89: 0 | Z89: 0 | AA89: 0 | AB89: 0 | AC89: 0 | AD89: 0 | AE89: 0 | AF89: 0 | AG89: 0 | AH89: 0 | AI89: 0 | AJ89: 0 | AK89: 0 | AL89: 0 | AM89: 0 | AN89: 0 | AO89: 0 | AP89: 0 | AQ89: 0 | AR89: 0 | AS89: 0 | AT89: 0 | AU89: 0 | AV89: 0 | AW89: 0 | AX89: 0 | AY89: 0 | AZ89: 0 | BA89: 0 | BB89: 0 | BC89: 0 | BD89: 0 | BE89: 0 | BF89: 0 | BG89: 0 | BH89: 0 | BI89: 0 | BJ89: 0 | BK89: 0 | BL89: 0 | BM89: 0 | BN89: 0 | BO89: 0 | BP89: 0 | BQ89: 0 | BR89: 0 | BS89: 0 | BT89: 0 | BU89: 0 | BV89: 0 | BW89: 0 | BX89: 0 | BY89: 0 | BZ89: 0 | CA89: 0 | CB89: 0 | CC89: 0 | CD89: 0 | CE89: 0 | CF89: 0 | CG89: 0 | CH89: 0 | CI89: 0 | CJ89: 0 | CK89: 0 | CL89: 0 | CM89: 0 | CN89: 0 | CO89: 0 | CP89: 0 | CQ89: 0 | CR89: 0 | CS89: 0 | CT89: 0 | CU89: 0 | CV89: 0 | CW89: 0 | CX89: 0 | CY89: 0 | CZ89: 0 | DA89: 0 | DB89: 0 | DC89: 0 | DD89: 0 | DE89: 0 | DF89: 0 | DG89: 0 | DH89: 0 | DI89: 0 | DJ89: 0 | DL89: 0
C90: Ground Outdoor / Indoor Chamber Mounted; > 132 kV ; < = 100 MVA | D90: 0 | E90: 0 | F90: 0 | G90: 0 | H90: 0 | I90: 0 | J90: 0 | K90: 0 | L90: 0 | M90: 0 | N90: 0 | O90: 0 | P90: 0 | Q90: 0 | R90: 0 | S90: 0 | T90: 0 | U90: 0 | V90: 0 | W90: 0 | X90: 0 | Y90: 0 | Z90: 0 | AA90: 0 | AB90: 0 | AC90: 0 | AD90: 0 | AE90: 0 | AF90: 0 | AG90: 0 | AH90: 0 | AI90: 0 | AJ90: 0 | AK90: 0 | AL90: 0 | AM90: 0 | AN90: 0 | AO90: 0 | AP90: 0 | AQ90: 0 | AR90: 0 | AS90: 0 | AT90: 0 | AU90: 0 | AV90: 0 | AW90: 0 | AX90: 0 | AY90: 0 | AZ90: 0 | BA90: 0 | BB90: 0 | BC90: 0 | BD90: 0 | BE90: 0 | BF90: 0 | BG90: 0 | BH90: 0 | BI90: 0 | BJ90: 0 | BK90: 0 | BL90: 0 | BM90: 0 | BN90: 0 | BO90: 0 | BP90: 0 | BQ90: 0 | BR90: 0 | BS90: 0 | BT90: 0 | BU90: 0 | BV90: 0 | BW90: 0 | BX90: 0 | BY90: 0 | BZ90: 0 | CA90: 0 | CB90: 0 | CC90: 0 | CD90: 0 | CE90: 0 | CF90: 0 | CG90: 0 | CH90: 0 | CI90: 0 | CJ90: 0 | CK90: 0 | CL90: 0 | CM90: 0 | CN90: 0 | CO90: 0 | CP90: 0 | CQ90: 0 | CR90: 0 | CS90: 0 | CT90: 0 | CU90: 0 | CV90: 0 | CW90: 0 | CX90: 0 | CY90: 0 | CZ90: 0 | DA90: 0 | DB90: 0 | DC90: 0 | DD90: 0 | DE90: 0 | DF90: 0 | DG90: 0 | DH90: 0 | DI90: 0 | DJ90: 0 | DL90: 0
C91: Ground Outdoor / Indoor Chamber Mounted; > 132 kV ; > 100 MVA | D91: 0 | E91: 0 | F91: 0 | G91: 0 | H91: 0 | I91: 0 | J91: 0 | K91: 0 | L91: 0 | M91: 0 | N91: 0 | O91: 0 | P91: 0 | Q91: 0 | R91: 0 | S91: 0 | T91: 0 | U91: 0 | V91: 0 | W91: 0 | X91: 0 | Y91: 0 | Z91: 0 | AA91: 0 | AB91: 0 | AC91: 0 | AD91: 0 | AE91: 0 | AF91: 0 | AG91: 0 | AH91: 0 | AI91: 0 | AJ91: 0 | AK91: 0 | AL91: 0 | AM91: 0 | AN91: 0 | AO91: 0 | AP91: 0 | AQ91: 0 | AR91: 0 | AS91: 0 | AT91: 0 | AU91: 0 | AV91: 0 | AW91: 0 | AX91: 0 | AY91: 0 | AZ91: 0 | BA91: 0 | BB91: 0 | BC91: 0 | BD91: 0 | BE91: 0 | BF91: 0 | BG91: 0 | BH91: 0 | BI91: 0 | BJ91: 0 | BK91: 0 | BL91: 0 | BM91: 0 | BN91: 0 | BO91: 0 | BP91: 0 | BQ91: 0 | BR91: 0 | BS91: 0 | BT91: 0 | BU91: 0 | BV91: 0 | BW91: 0 | BX91: 0 | BY91: 0 | BZ91: 0 | CA91: 0 | CB91: 0 | CC91: 0 | CD91: 0 | CE91: 0 | CF91: 0 | CG91: 0 | CH91: 0 | CI91: 0 | CJ91: 0 | CK91: 0 | CL91: 0 | CM91: 0 | CN91: 0 | CO91: 0 | CP91: 0 | CQ91: 0 | CR91: 0 | CS91: 0 | CT91: 0 | CU91: 0 | CV91: 0 | CW91: 0 | CX91: 0 | CY91: 0 | CZ91: 0 | DA91: 0 | DB91: 0 | DC91: 0 | DD91: 0 | DE91: 0 | DF91: 0 | DG91: 0 | DH91: 0 | DI91: 0 | DJ91: 0 | DL91: 0
C92: Other | D92: 0 | E92: 0 | F92: 0 | G92: 0 | H92: 0 | I92: 0 | J92: 0 | K92: 0 | L92: 0 | M92: 0 | N92: 0 | O92: 0 | P92: 0 | Q92: 0 | R92: 0 | S92: 0 | T92: 0 | U92: 0 | V92: 0 | W92: 0 | X92: 0 | Y92: 0 | Z92: 0 | AA92: 0 | AB92: 0 | AC92: 0 | AD92: 0 | AE92: 0 | AF92: 0 | AG92: 0 | AH92: 0 | AI92: 0 | AJ92: 0 | AK92: 0 | AL92: 0 | AM92: 0 | AN92: 0 | AO92: 0 | AP92: 0 | AQ92: 0 | AR92: 0 | AS92: 0 | AT92: 0 | AU92: 0 | AV92: 0 | AW92: 0 | AX92: 0 | AY92: 0 | AZ92: 0 | BA92: 0 | BB92: 0 | BC92: 0 | BD92: 0 | BE92: 0 | BF92: 0 | BG92: 0 | BH92: 0 | BI92: 0 | BJ92: 0 | BK92: 0 | BL92: 0 | BM92: 0 | BN92: 0 | BO92: 0 | BP92: 0 | BQ92: 0 | BR92: 0 | BS92: 0 | BT92: 0 | BU92: 0 | BV92: 0 | BW92: 0 | BX92: 0 | BY92: 0 | BZ92: 0 | CA92: 0 | CB92: 0 | CC92: 0 | CD92: 0 | CE92: 0 | CF92: 0 | CG92: 0 | CH92: 0 | CI92: 0 | CJ92: 0 | CK92: 0 | CL92: 0 | CM92: 0 | CN92: 0 | CO92: 0 | CP92: 0 | CQ92: 0 | CR92: 0 | CS92: 0 | CT92: 0 | CU92: 0 | CV92: 0 | CW92: 0 | CX92: 0 | CY92: 0 | CZ92: 0 | DA92: 0 | DB92: 0 | DC92: 0 | DD92: 0 | DE92: 0 | DF92: 0 | DG92: 0 | DH92: 0 | DI92: 0 | DJ92: 0 | DL92: 0
